Workbook

Sheet Calculator_old (hidden)
B2: Servicing Calculator
B3: V1.0.0 27/04/2021
Y5: =TODAY() -> 2023-07-05
B6: Servicing calculator is subject to change. Check Partner portal for the latest version.
AC8: Assessment rate to have a difference of 2.5% higher than borrower rate Assessment rate can not be lower than 5.50% (floor rate)
B10: Total Loan Amount including capped LMI | N10: 300000 | S10: Total Security Value | W10: 350000
M12: Loan Term in months | N12: 360 | S12: Borrower Interest Rate | W12: 0.0179
M14: Repayment Type | N14: Principal and Interest | Q14: Interest Only Term in years | AC14: Max loan term not more thatn 360 months
J16: Number of Households | N16: 1 | S16: Assessment Rate | W16: =IF(OR(ISBLANK(W12)),"",IF(W12+2.5%<=5.5%,5.5%,W12+2.5%)) -> 0.055
M20: Borrower 1 | P20: Borrower 2 | S20: Borrower 3 | W20: Borrower 4
B22: Applicant Name | M22: John
B24: Martial Status | M24: Married | S24: Married
B26: Number of Dependants
B28: Household | M28: 1 | S28: 1
B30: Residential Postcode | M30: 2125
B32: Annual Taxable Income | M32: 85000
B34: Total Gross Rental Income
AC35: Investment loan add back row is calculated at 6% of the investment loan entered - this must be able to be amended from time to time
B36: Total Investment Loan
B38: Investment Interest add back | M38: =M36*'Tables '!$G$16 -> 0 | P38: =P36*'Tables '!$G$16 -> 0 | S38: =S36*'Tables '!$G$16 -> 0 | W38: =W36*'Tables '!$G$16 -> 0
B40: Other Taxable Income
B42: Company car
B44: Family Assistance
AC45: refer to cell formaula
G46: Total Taxable Income | M46: =M32+M34+M38+M40+M42 -> 85000 | P46: =P32+P34+P38+P40+P42 -> 0 | S46: =S32+S34+S38+S40+S42 -> 0 | W46: =W32+W34+W38+W40+W42 -> 0
J48: Tax Payable | M48: =IF(OR(ISBLANK(M46)),"",IF(AND(M46>=0,M46<=18200),M46*'Tables '!$J$5,IF(AND(M46>=18201,M46<=45000),M46*'Tables '!$J$6,IF(AND(M46>=45001,M46<=120000),M46*'Tables '!$J$7,IF(AND(M46>=120001,M46<=180000),M46*'Tables '!$J$8,IF(AND(M46>=180001),M46*'Tables '!$J$9,"")))))) -> 27625 | P48: =IF(OR(ISBLANK(P46)),"",IF(AND(P46>=0,P46<=18200),P46*'Tables '!$J$5,IF(AND(P46>=18201,P46<=45000),P46*'Tables '!$J$6,IF(AND(P46>=45001,P46<=120000),P46*'Tables '!$J$7,IF(AND(P46>=120001,P46<=180000),P46*'Tables '!$J$8,IF(AND(P46>=180001),P46*'Tables '!$J$9,"")))))) -> 0 | S48: =IF(OR(ISBLANK(S46)),"",IF(AND(S46>=0,S46<=18200),S46*'Tables '!$J$5,IF(AND(S46>=18201,S46<=45000),S46*'Tables '!$J$6,IF(AND(S46>=45001,S46<=120000),S46*'Tables '!$J$7,IF(AND(S46>=120001,S46<=180000),S46*'Tables '!$J$8,IF(AND(S46>=180001),S46*'Tables '!$J$9,"")))))) -> 0 | W48: =IF(OR(ISBLANK(W46)),"",IF(AND(W46>=0,W46<=18200),W46*'Tables '!$J$5,IF(AND(W46>=18201,W46<=45000),W46*'Tables '!$J$6,IF(AND(W46>=45001,W46<=120000),W46*'Tables '!$J$7,IF(AND(W46>=120001,W46<=180000),W46*'Tables '!$J$8,IF(AND(W46>=180001),W46*'Tables '!$J$9,"")))))) -> 0 | AC48: have to build tax table for income brackets
I50: Total Net Income | M50: =(M46-M48)+M44 -> 57375 | P50: =(P46-P48)+P44 -> 0 | S50: =(S46-S48)+S44 -> 0 | W50: =(W46-W48)+W44 -> 0 | AC50: Refer to cell formula
B54: Monthly Household Declared Living Expenses
M56: Household 1 | P56: Household 2 | S56: Household 3 | W56: Household 4
B58: Childcare
B60: Clothing & other personal expenses | M60: 200
B62: Education
B64: Groceries
B66: Insurance
B68: Investment Property Expenses
B70: Medical & Health
B72: Other
B74: Owner Occupied Property Expenses
B76: Recreation & Entertainment
B78: Telephone, Media and Subscriptions
B80: Transport Expenses
F82: Total Monthly Household | M82: =SUM(M58:N80) -> 200 | P82: =SUM(P58:Q80) -> 0 | S82: =SUM(S58:U80) -> 0 | W82: =SUM(W58:Y80) -> 0 | AC82: Refer to cell formula
E84: Total Declared Living Expenses | M84: =SUM(M82+P82+S82+W82)*12 -> 2400 | O84: (Annual Amount) | AC84: Refer to cell formula
F86: Total HEM Living Expense | M86: =390*52 -> 20280 | AC86: Have to build HEM table (martial status, dependats and post code)
F88: Living Expenses Variation | M88: =M84/M86 -> 0.1183431953 | O88: Comment required if less than or equal to 75% | AC88: Refer to cell formula
B92: Ongoing Commitments
H94: Commitment Type | M94: Repayment Amount | P94: Frequency | S94: Annual Amount | W94: Current Balance in Redraw
C96: Commitment 1 | S96: =IF(OR(ISBLANK(M96),ISBLANK(P96)),"",IF(P96="weekly",SUM(M96*52),IF(P96="fortnightly",SUM(M96*26),IF(P96="monthly",SUM(M96*12),IF(P96="annually",SUM(M96*1)))))) ->  | AC96: Only the first row to be displayed by default. Following rows to be displayed as previous rows start to have information entered Annual Amount based on repayment amount by Frequency to be annualised Last Row - field to allow info if commitment type is other mortgage
C98: Commitment 2 | S98: =IF(OR(ISBLANK(M98),ISBLANK(P98)),"",IF(P98="weekly",SUM(M98*52),IF(P98="fortnightly",SUM(M98*26),IF(P98="monthly",SUM(M98*12),IF(P98="annually",SUM(M98*1)))))) -> 
C100: Commitment 3 | S100: =IF(OR(ISBLANK(M100),ISBLANK(P100)),"",IF(P100="weekly",SUM(M100*52),IF(P100="fortnightly",SUM(M100*26),IF(P100="monthly",SUM(M100*12),IF(P100="annually",SUM(M100*1)))))) -> 
C102: Commitment 4 | S102: =IF(OR(ISBLANK(M102),ISBLANK(P102)),"",IF(P102="weekly",SUM(M102*52),IF(P102="fortnightly",SUM(M102*26),IF(P102="monthly",SUM(M102*12),IF(P102="annually",SUM(M102*1)))))) -> 
C104: Commitment 5 | S104: =IF(OR(ISBLANK(M104),ISBLANK(P104)),"",IF(P104="weekly",SUM(M104*52),IF(P104="fortnightly",SUM(M104*26),IF(P104="monthly",SUM(M104*12),IF(P104="annually",SUM(M104*1)))))) -> 
C106: Commitment 6 | S106: =IF(OR(ISBLANK(M106),ISBLANK(P106)),"",IF(P106="weekly",SUM(M106*52),IF(P106="fortnightly",SUM(M106*26),IF(P106="monthly",SUM(M106*12),IF(P106="annually",SUM(M106*1)))))) -> 
C108: Commitment 7 | S108: =IF(OR(ISBLANK(M108),ISBLANK(P108)),"",IF(P108="weekly",SUM(M108*52),IF(P108="fortnightly",SUM(M108*26),IF(P108="monthly",SUM(M108*12),IF(P108="annually",SUM(M108*1)))))) -> 
C110: Commitment 8 | S110: =IF(OR(ISBLANK(M110),ISBLANK(P110)),"",IF(P110="weekly",SUM(M110*52),IF(P110="fortnightly",SUM(M110*26),IF(P110="monthly",SUM(M110*12),IF(P110="annually",SUM(M110*1)))))) -> 
C112: Commitment 9 | S112: =IF(OR(ISBLANK(M112),ISBLANK(P112)),"",IF(P112="weekly",SUM(M112*52),IF(P112="fortnightly",SUM(M112*26),IF(P112="monthly",SUM(M112*12),IF(P112="annually",SUM(M112*1)))))) -> 
C114: Commitment 10 | S114: =IF(OR(ISBLANK(M114),ISBLANK(P114)),"",IF(P114="weekly",SUM(M114*52),IF(P114="fortnightly",SUM(M114*26),IF(P114="monthly",SUM(M114*12),IF(P114="annually",SUM(M114*1)))))) -> 
R116: Total Annual Commitments | U116: =SUM(S96:U114) -> 0 | AC116: Row 110 is the annual total of all commitment entered
C121: LVR | P121: =N10/W10 -> 0.8571428571 | R121: LMI required if LVR is greater than 80% | AC121: Refer to cell formula
J123: Total Net Income | P123: =(M50+P50+S50+W50)-P129 -> 20394.99993 | AC123: Refer to cell formula
C125: Total Repayments For This Loan (Assessment Interest Rate) | P125: =PMT(W16,N12,-N10) -> 16500.00007 | R125: Total Repayments (Actual Interest Rate) | Y125: =PMT(W12,N12,-N10) -> 5379.054506 | AC125: need formula for P&I loan at assesment rate
J127: Total Credit Card Limit | P127: 5000 | R127: @4% | T127: =P127*4% -> 200 | AC127: Refer to cell formula
F129: Total Commitments | P129: =IF(M86>=M84,U116+T127+P125+M86,U116+T127+P125+M84) -> 36980.00007 | AC129: Refer to cell formula
J131: Net Disposable Income Ratio (NDI) | P131: =(ROUNDDOWN(P123/P125,2)&":"&(P123/P123)) -> 1.23:1 | R131: NDI must be 1.00 or higher | AC131: should be displayed as 1.00:1
B134: Important Information:
B135: This calculator is provided for information purposes only. The calculations produced are intended for use by you as a guide only. They DO NOT constitute a quote or loan approval. The calculator estimates loan serviceability based on the accuracy of information provided. Source Funding Pty Ltd reserves the right to change its lending and assessment criteria at any time. Actual loan serviceability can only be calculated once your application has been lodged.

Sheet Calculator
B2: Servicing Calculator
B3: V1.1.4 14/06/2023
B6: Servicing calculator is subject to change. Check Partner Portal for the latest version. | T6: =TODAY() -> 2023-07-05
C9: New Commitment
G10: Type of Product | M10: Amount/Limit ($) Including LMI | P10: Loan Term in months | R10: Contract Rate | T10: Eligible for Tax Deduction? | W10: Comments
D11: 1
D13: 2
D15: 3
G17: Total Loan Amount including capped LMI | M17: =SUM(M11:N15) -> 0 | P17: Security Value | U17: LVR | W17: =IFERROR(M17/R17,"") -> 
K19: Security Postcode | T19: Assessment Rate | W19: =IF(OR(ISBLANK(R11:R15)),"",IF(MAX(R11:R15)+'Tables '!D7<='Tables '!D8,'Tables '!D8,MAX(R11:R15)+'Tables '!D7)) -> 0.05
C25: Applicant Details | M25: Borrower 1 | P25: Borrower 2 | T25: Borrower 3 | W25: Borrower 4
B27: Applicant Name
B29: Household
C32: Household Details | M32: Household 1 | P32: Household 2 | T32: Household 3 | W32: Household 4
B34: Couple
B36: Adults | M36: =IF(OR(ISBLANK(M34)),"",IF(M34="YES",2,1)) ->  | P36: =IF(OR(ISBLANK(P34)),"",IF(P34="YES",2,1)) ->  | T36: =IF(OR(ISBLANK(T34)),"",IF(T34="YES",2,1)) ->  | W36: =IF(OR(ISBLANK(W34)),"",IF(W34="YES",2,1)) -> 
B38: Dependents
C41: PAYG | M41: Borrower 1 | P41: Borrower 2 | T41: Borrower 3 | W41: Borrower 4
K43: Income PAYG
C45: Self Employed
K47: Taxable Income | M47: ='Self Employed'!E35 -> 0 | P47: ='Self Employed'!G35 -> 0 | T47: ='Self Employed'!I35 -> 0 | W47: ='Self Employed'!K35 -> 0
K49: Non-Taxable Income | M49: ='Self Employed'!E49 -> 0 | P49: ='Self Employed'!G49 -> 0 | T49: ='Self Employed'!I49 -> 0 | W49: ='Self Employed'!K49 -> 0
B50: =SUMIF(Calculator!M29:X29,1) -> 0
B51: Total Income | M51: =SUM(M47:N49) -> 0 | P51: =SUM(P47:R49) -> 0 | T51: =SUM(T47:U49) -> 0 | W51: =SUM(W47:X49) -> 0
C54: Rental Income | M54: Gross | P54: Gross | T54: Gross | W54: Gross
B56: Cat 1,2,3 and any other Residential
B58: Cat 4 Residential
B60: Cat 1,2,3 and any other Commercial
B62: Cat 4 Commercial
C65: Other Income
H67: Bonus
H69: Commission
H71: Dividends
H73: Overtime
B75: Other Taxable Income
B77: Company car
B79: Tax Free Income
G81: Non-Taxable Income | M81: =M79 -> 0 | P81: =P79 -> 0 | T81: =T79 -> 0 | W81: =W79 -> 0
G83: Total Taxable Income | M83: =M43+M47+M56+M58+M60+M62+M67+M69+M71+M73+M75+M77 -> 0 | P83: =P43+P47+P56+P58+P60+P62+P67+P69+P71+P73+P75+P77 -> 0 | T83: =T43+T51+T56+T58+T60+T62+T67+T69+T71+T73+T75+T77 -> 0 | W83: =W43+W51+W56+W58+W60+W62+W67+W69+W71+W73+W75+W77 -> 0
B87: Monthly Household Declared Living Expenses
M89: Household 1 | P89: Household 2 | T89: Household 3 | W89: Household 4
E92: Total Monthly Household | M92: ='Living Exp'!F47 -> 0 | P92: ='Living Exp'!H47 -> 0 | T92: ='Living Exp'!J47 -> 0 | W92: ='Living Exp'!L47 -> 0
E94: HEM + Disc Living Expenses | M94: ='Result Sheet'!D139 -> 0 | P94: ='Result Sheet'!D140 -> 0 | T94: ='Result Sheet'!D141 -> 0 | W94: ='Result Sheet'!D142 -> 0
E96: Total HEM + Disc Living Expenses | M96: =SUM('Result Sheet'!D139:D142) -> 0 | P96: Living Expenses Variation | T96: =IFERROR(SUM(M92:X92)/M96,"") -> 
B100: Ongoing Commitments
H102: Commitment Type | M102: Amount/Limit($) | P102: Remaining P&I Loan Term (m) | R102: Contractual Rate (%) | T102: Monthly Amount ($) | W102: Eligible for Tax Deduction?
C104: Commitment 1
C106: Commitment 2
C108: Commitment 3
C110: Commitment 4
C112: Commitment 5
C114: Commitment 6
R116: Total Monthly Commitments | T116: =SUM(T104:U114) -> 0
H118: Credit Institution | M118: Card Limit | P118: Paid off every month? | T118: Comment
F120: Credit/Store Card 1
F122: Credit/Store Card 2
F124: Credit/Store Card 3
F126: Credit/Store Card 4
F128: Credit/Store Card 5
F130: Total Credit Card Limit | H130: =SUM(M120:N128) -> 0
F135: Total Net Income | H135: ='Result Sheet'!G107/12 -> 0 | U135: Monthly Repayments (Assessment Interest Rate) | W135: =IFERROR('Result Sheet'!L121,"") -> 0
F137: Monthly Surplus Income | H137: =IFERROR(H135-'Result Sheet'!Q135-'Result Sheet'!D109-W135-'Result Sheet'!B65-'Result Sheet'!B64,"") -> 0 | U137: Monthly Repayments (Actual Interest Rate) | W137: =IFERROR('Result Sheet'!L126,"") -> 0
F139: Serviceability Ratio | H139: =IF(OR(ISBLANK(M29)),"",'Result Sheet'!B153) ->  | M139: DTI | N139: =IFERROR((M17+'Result Sheet'!B115+SUM(M104:N114))/(SUM('Result Sheet'!D56:G56)),"") ->  | U139: Mortgage Repayment to Income | W139: =IFERROR(SUM(W137+'Result Sheet'!E135)/'Result Sheet'!B151,"") -> 
B143: Important Information:
B144: This calculator is provided for information purposes only. The calculations produced are intended for use by you as a guide ONLY. They DO NOT constitute a quote or loan approval. The calculator estimates loan serviceability based on the accuracy of information provided. Source Funding Pty Ltd reserves the right to change its lending and assessment criteria at any time. Actual loan serviceability can only be calculated once your application has been lodged.
M162: =IF(OR(ISBLANK(M160)),"",IF(M160="YES",2,1)) ->  | P162: =IF(OR(ISBLANK(P160)),"",IF(P160="YES",2,1)) ->  | T162: =IF(OR(ISBLANK(T160)),"",IF(T160="YES",2,1)) ->  | W162: =IF(OR(ISBLANK(W160)),"",IF(W160="YES",2,1)) -> 

Sheet Living Exp
B2: Monthly Household Declared Living Expenses
B5: Expense Category | D5: Description | F5: Household 1 | H5: Household 2 | J5: Household 3 | L5: Household 4
B7: Childcare | D7: Childcare including nannies and non-compulsory pre-school.
B9: Clothing & other personal expenses | D9: Clothing, Footwear, Buy Now/Pay Later Purchases, Cosmetics, Hairdressing etc
B11: General Basic Insurances | D11: General basic insurances include ambulance, car (not recreation vehicles), travel, and personal belongings insurance. Excludes property (house and contents), health, sickness and personal accident, life, income protection and pet insurance.
B13: Groceries | D13: Groceries (food and non-alcoholic beverages), toiletries and cleaning products.
B15: Higher Education, Vocational Training and Professional Fees | D15: Higher education and vocational training fees (including TAFE, business college, drama, music, dance) excluding HECS, and professional fees (union dues, professional association subscriptions, legal, accountant and tax agent fees).
B17: Medical & Health | D17: Medical and health care services including GPs, specialists, physiotherapists, chiropractors, and opticians. Medicines, pharmaceuticals, prescriptions, glasses, purchase or hire of therapeutic appliances and equipment, hospital charges, nursing home charges. Excludes health insurance and ambulance insurance.
B19: Pet Care | D19: Pet food, grooming, minding services, care products, health products, veterinarian fees.
B21: Primary Residence Running Costs | D21: Costs associated with the primary residence, either owned or rented. Includes rates, water, sewage, repairs and maintenance, electricity, gas, heating oil and wood for fuel, purchase, hire and repair of household and outdoor furnishings and equipment, furnishings, floor coverings, linen, tableware, gardening tools, power tools, electrical, lights, trees, shrubs, plants, pool chemicals, home insurance, contents insurance and appliance insurance. Excludes body corporate fees, strata fees and land tax.
B23: Public or Government Primary and Secondary Education | D23: Public or government, primary and secondary school tuition, school and sports fees including compulsory kindergarten/reception/pre-primary/prep.
B25: Recreation and entertainment | D25: Meals in restaurants, hotels and clubs, fast food and takeaway including coffee. Alcoholic beverages and tobacco products. Purchase, hire, repair of recreational personal belongings including electronics, computers, games consoles, AV equipment, cameras. Toys, hobbies, stationery, arts, crafts, sports, camping, fishing and recreation equipment including musical instruments, accessories and lessons. Non-subscription TV, video, games, and audio content, books, newspapers, magazines (including physical material and digital content). Recreation, gym, and health and fitness studios fees, court hire, sports lessons, admission fees and tickets (sports, theatre, gallery, museum, music events). Domestic holidays (fares, fuel, accommodation, theme parks, zoos tours). Recreational gambling, including lottery-type games, scratch cards, poker machines, club and casino gaming, and sports betting. Excludes travel insurance.
B27: Telephone, internet, pay TV and media streaming subscriptions | D27: Telephone accounts (home and mobile), internet, pay TV and media streaming subscriptions (such as Netflix and Spotify).
B29: Transport | D29: Public transport, taxis, ride-sharing and non-holiday domestic airfares (excludes overseas airfares). Running costs for essential vehicles including fuel, servicing, repairs, parking, tolls (excludes insurance) and registration of motor vehicles (excludes recreational vehicles such as caravans, trailers, motorcycles, boats and aircraft).
B31: Body Corporate Fees, Strata Fees and Land Tax on Owner Occupied Principal Place of Residence | D31: Body corporate fees, strata fees and land tax on owner occupied principal place of residence. Excludes investment properties, secondary residences, and properties maintained for other purposes such as holiday properties or residences maintained for parents or children.
B33: Private Schooling and Tuition | D33: Tuition fees, school fees and sports fees for private schooling, including independent schools (Catholic or non-Catholic) and private tuition including compulsory age kindergarten/reception/pre-primary/prep.
B35: Sickness and Personal Accident Insurance, Life Insurance | D35: Sickness and personal accident insurance, life insurance
B37: Health Insurance | D37: Health insurance including hospital, medical and dental insurance (excludes separate ambulance insurance).
B39: Investment Property Running Costs | D39: Costs associated with any property owned for investment purposes. Includes body corporate fees, strata fees, land tax, property management fees, rates, water, sewage, repairs and maintenance, electricity, gas, heating oil and wood for fuel, purchase, hire and repair of household and outdoor furnishings and equipment, furnishings, floor coverings, linen, tableware, gardening tools, power tools, electrical, lights, trees, shrubs, plants, pool chemicals, landlords insurance, home insurance, contents insurance and appliance insurance.
B41: Secondary Residence Running Costs | D41: Costs associated with any secondary residence, either rented or owned for non-investment purposes, such as a holiday property that is not rented to generate income, or a property that family members (parents or children) are allowed to live in rent-free. Includes body corporate fees, strata fees, land tax, property management fees, rates, water, sewage, repairs and maintenance, electricity, gas, heating oil and wood for fuel, purchase, hire and repair of household and outdoor furnishings and equipment, furnishings, floor coverings, linen, tableware, gardening tools, power tools, electrical, lights, trees, shrubs, plants, pool chemicals, landlords insurance, home insurance, contents insurance and appliance insurance.
B43: Other | D43: Other ongoing or recurring items not included within the other categories including, but not limited to pet insurance, insurance not elsewhere classified, registration, insurance and operation of recreational vehicles (such as caravans, trailers, motorcycles, boats and aircraft), overseas holidays, gifts, jewellery, household services including cleaning, gardening, housekeeping, security and pest control services.
F46: Household 1 | H46: Household 2 | J46: Household 3 | L46: Household 4
D47: Total | F47: =SUM(F7:F43) -> 0 | H47: =SUM(H7:H43) -> 0 | J47: =SUM(J7:J43) -> 0 | L47: =SUM(L7:L43) -> 0
D49: HEM | F49: =HEM!K17 -> 0 | H49: =HEM!K24 -> 0 | J49: =HEM!K31 -> 0 | L49: =HEM!K38 -> 0

Sheet Self Employed
B8: Corporate Self Employed Income
B11: Taxable Income - Sole Proprietor or Partnership
E12: Applicant 1 | G12: Applicant 2 | I12: Applicant 3 | K12: Applicant 4
B14: Sole Traders/Partners/Directors Salary
B16: Net Profit
B18: Abnormal Expenses
B20: Abnormal Income
B22: Other Income
B25: Taxable Income - Company
B27: Company Profit
B29: Abnormal Expenses
B31: Abnormal Income
B33: Other Income
B35: TOTAL TAXABLE INCOME | E35: =SUM(E14:E18)+E22+SUM(E27:E29)+E33-E20-E31 -> 0 | G35: =SUM(G14:G22)+SUM(G27:G33) -> 0 | I35: =SUM(I14:I22)+SUM(I27:I33) -> 0 | K35: =SUM(K14:K22)+SUM(K27:K33) -> 0
B37: Plus Addbacks / Non Taxable Income
B39: Motor Vehicle Expenses
B41: Depreciation
B43: Interest of Loans being refinanced
B45: Other Self-Employed Addbacks
B47: Government Ongoing Payments
B49: TOTAL NON TAXABLE INCOME | E49: =SUM(E39:E47) -> 0 | G49: =SUM(G39:G47) -> 0 | I49: =SUM(I39:I47) -> 0 | K49: =SUM(K39:K47) -> 0
B51: TOTAL INCOME | E51: =E35+E49 -> 0 | G51: =G35+G49 -> 0 | I51: =I35+I49 -> 0 | K51: =K35+K49 -> 0

Sheet Help Guide
A1: Help Guide
A2: Ensure to enable the calculator before commencement
A4: NEW COMMITMENT Details
B5: New Commitment | C5: Auto populated (locked field) | D5: Field containing numbering of the new commitments.
B6: Type of Product | C6: Drop down list (with predefined products) | D6: Choose a new commitment to include in the servicing scenario. This field is mandatory for all products.
B7: Amount/Limit ($) | C7: Number field (Currency) | D7: Input field to contain loan amount or credit card Limit. This field is mandatory for all products. Inclusive of LMI or other Fees & Charges to be included in the loan.
B8: Loan Term | C8: Number field (1 to 360) | D8: Input field to contain the term of the loan. Mandatory if unlocked.
B9: Contractual Rate (%) | C9: Number field (percentage) | D9: Input field to contain the contractual rate of the application. Mandatory if Unlocked.
B10: Investment Eligible for Tax Deductions? | C10: Drop down list (Y/N) | D10: Answer 'Yes' if the commitment is an investment and is eligible for a tax deduction. Otherwise select 'No' from the drop down box. Mandatory if Unlocked. Selecting 'Yes' will apply a tax deduction amount. Note: Only answer "Yes" for an Investment loan where rental income forms part of the serviceability and customer is an Australian Resident.
B11: Comment | C11: Free text field (any characters) | D11: Input field to contain a comment/note if further information is needed. This field is not mandatory.
B12: Total Loan Amount including capped LMI amount | C12: Auto populated (locked field) | D12: Sum of New Commitments entered prior
B13: Security Value | C13: Number field (Currency) | D13: Field containing the security value for the new lending.
B14: Loan to Valuation Ratio | C14: Auto populated (locked field) | D14: Field containing Loan to Valuation Ratio, auto calculated based on inputs.
B15: Assessment Rate | C15: Auto populated (locked field) | D15: Field containg 5% floor rate or contract rate plus 2.5% interest buffer, whichever is greater, auto calculated based on inputs.
A16: APPLICANT Details | B16: Applicant Name | C16: Free text field (any characters) | D16: Input field to contain full Customer name or Company name.
B17: Which household? | C17: Drop down list (with option between 1 and 4) | D17: Select in which household the applicant belongs to. This field is used to determine whether a set of applicants are in the same household or not for servicing.
A18: HOUSEHOLD Details | B18: Couple? | C18: Drop down list (YES/NO) | D18: Answer 'YES' if applicant/s are Married or in a defacto relationship. Otherwise select 'NO' from the drop down box. This is based on Household not number of applicants, i.e. if single applicant but in a Couple household select "Couple" - Determines the appropriate application of the HEM.
B19: Adults | C19: Auto populated (locked field) | D19: This field will auto populate with number of adults depending on relationship status. Couples set to 'YES' will populate 2 adults and couples set to 'NO' will populate 1 adult. (Regardless of the number of applicants)
B20: Dependant/s | C20: Number field | D20: Input field to contain number of dependants (children & adults).
A21: PAYG Details - Annual | B21: Gross (PAYG) | C21: Number field (Currency) | D21: Input field to contain the gross pay/salary of the applicant, before Tax. Foreign Income needs to be converted to Australian dollars as per credit policy.
A22: Self Employed Details
A23: INCOME - CORPORATE/SELF EMPLOYED | B23: Calculate SE Income Sheet | C23: Button | D23: Button that will take you to the "Corporate / Self-Employed Income" sheet.
B24: Sole Traders/Partners/Directors Salary | C24: Number field (Currency) | D24: Field containing Sole Traders/Partners/Directors Salary. (Field exists in the "Corporate / Self-Employed Income" sheet)
B25: Net Profit | C25: Number field (Currency) | D25: Field containing Net Profit. (Field exists in the "Corporate / Self-Employed Income" sheet)
B26: Company Profit | C26: Number field (Currency) | D26: Field containing Company Profit. (Field exists in the "Corporate / Self-Employed Income" sheet)
B27: Abnormal Expenses | C27: Number field (Currency) | D27: Field containing Abnormal Expenses. (Field exists in the "Corporate / Self-Employed Income" sheet). These expenses are added to the sevicing as these expenses won't occur again.
B28: Abnormal Income | C28: Number field (Currency) | D28: Field containing Abnormal Income in the "Corporate / Self-Employed Income" sheet. (Field exists in the "Corporate / Self-Employed Income" sheet). This income is subtracted from the servicing as the income will not occure again.
B29: Other Income | C29: Number field (Currency) | D29: Field containing Other Income. (Field exists in the "Corporate / Self-Employed Income" sheet)
B30: Motor Vehicle Expenses | C30: Number field (Currency) | D30: Field containing Motor Vehicle Expenses. (Field exists in the "Corporate / Self-Employed Income" sheet as an addback item)
B31: Depreciation | C31: Number field (Currency) | D31: Field containing Depreciation. (Field exists in the "Corporate / Self-Employed Income" sheet as an addback item)
B32: Interest of Loans being refinanced | C32: Number field (Currency) | D32: Field containing Interest of Loans being refinanced. (Field exists in the "Corporate / Self-Employed Income" sheet as an addback item)
B33: Other Self-Employed Addbacks | C33: Number field (Currency) | D33: Field containing Other Self-Employed Addbacks. (Field exists in the "Corporate / Self-Employed Income" sheet as an addback item)
B34: Centrelink Payments | C34: Number field (Currency) | D34: Field containing Centrelink Payments. (Field exists in the "Corporate / Self-Employed Income" sheet as an addback item)
B35: NON-TAXABLE | C35: Auto populated (locked field) | D35: Field containing NON-TAXABLE income from the "Corporate / Self-Employed Income" sheet.
B36: TAXABLE | C36: Auto populated (locked field) | D36: Field containing Taxable income from the "Corporate / Self-Employed Income" sheet.
B37: TOTAL INCOME | C37: Auto populated (locked field) | D37: Field containing Total Income from the "Corporate / Self-Employed Income" sheet.
A38: Rental Income Details | B38: Cat 1,2 and 3 Residential | C38: Number field (Currency) | D38: Input field to populate any Cat 1, 2 and 3 Residential rental income. This will then calculate the appropriate income deduction as per credit policy.
B39: Cat 4 Residential | C39: Number field (Currency) | D39: Input field to populate any Cat 4 Residential rental income. Higher Risk Postcodes, this will then be calculated with the appropriate income deduction as per credit policy.
B40: Cat 1, 2, and 3 Commercial | C40: Number field (Currency) | D40: Input field to populate any Cat 1, 2, and 3 Commercial rental income. This will then calculate the appropriate income deduction as per credit policy.
B41: Cat 4 Commercial | C41: Number field (Currency) | D41: Input field to populate any Cat 4 Commercial rental income. (Higher Risk Postcodes) - This will then calcualate an income deduction as per credit policy.
A42: Other Income Details | B42: Bonus (lower of the last 2 yrs) | C42: Number field (Currency) | D42: Input field to populate any Bonus (lower of the last 2 years), this will then be calculated with a deduction as per credit policy.
B43: Commission (lower of the last 2 yrs) | C43: Number field (Currency) | D43: Input field to populate any Commission (lower of the last 2 yrs), this will then be calculated with a deduction as per credit policy.
B44: Dividends | C44: Number field (Currency) | D44: Input field to populate any Dividends which will then be calculated at a deduction as per credit policy
B45: Overtime | C45: Number field (Currency) | D45: Input field to populate any "permanent" overtime as defined in Credit Policy.
B46: Other Taxable Income | C46: Number field (Currency) | D46: Input field to populate any Other non taxable benefit.
B47: Company Car | C47: Number field (Currency) | D47: Input field to populate any Company Car non taxable benefit.
B48: Tax Free Income | C48: Number field (Currency) | D48: Field containing Centrelink Payments.
B49: TOTAL NON-TAXABLE INCOME | C49: Number field (Currency) | D49: Field containing Total Non Taxable Income.
B50: TOTAL TAXABLE INCOME | C50: Number field (Currency) | D50: Field containing Total Taxable Income
A51: Monthly Household Declared Living Expenses | B51: Total Monthly Household | C51: Number field (Currency) | D51: Field containting Total Declared Living Expenses by Household, auto calculated based on inputs
B52: HEM Living Expenses | C52: Number field (Currency) | D52: Field containing HEM Living expenses by Household, auto calculated based on inputs
B53: Total HEM Living Expenses | C53: Number field (Currency) | D53: Sum of HEM Living expenses of all households, auto calculated. Field is locked.
A54: Ongoing Commitments | B54: Commitment Type | C54: Drop down list (with predefined commitments) | D54: Choose an existing commitment to include in the servicing scenario. This field is mandatory for all type of commitments.
B55: Amount/Limit ($) | C55: Number field (Currency) | D55: Input field to contain loan amount. Mandatory if Unlocked.
B56: Actual Monthly Scheduled Commitment ($) | C56: Number field (Currency) | D56: Input field to contain the monthly commitment of the type of commitment selected. This field is mandatory for all type of commitments.
B57: Remaining P&I Loan Term | C57: Number field (Months) | D57: Remaining P&I Loan Term. Only applicable to P&I, IO and LOC loans.
B58: Contractual Rate (%) | C58: Number field (Percentage) | D58: Input field to contain the contractual rate of an existing. Mandatory for P&I, IO and LOC loans.
B59: Monthly Amount ($) | C59: Number field (Currency) | D59: Current monthly Commitment.
B60: Investment Eligible for Tax Deductions? | C60: Drop down list (Y/N) | D60: Answer yes (Y) if the commitment is an investment and is eligible for a tax deduction. Otherwise select no (N) from the drop down box. Mandatory if Unlocked. Selecting "Yes" (Y) will apply a tax deduction amount. Note: Only answer "Yes" for an Investment loan where rental income forms part of the serviceability and customer is an Australian Resident.
B61: Credit/Store Card | C61: Auto populated (locked field) | D61: Field containing numbering of the new commitments.
B62: Credit Institution | C62: Drop Down list | D62: Select Financial Institution from list
B63: Card Limit | C63: Number field (Currency) | D63: Input field containing card limit
B64: Paid off every months | C64: Drop Down list (Yes/No) | D64: Select 'Yes' if card is paid off every month, otherwise select 'No'.
B65: Comment | C65: Free text field (any characters) | D65: Input field to contain a comment/note if further information is needed. This field is not mandatory.
A66: RESULTS | B66: Total Net Income | C66: Auto populated (locked field) | D66: Field containing Total income after tax
B67: Monthly Surplus Income | C67: Auto populated (locked field) | D67: Field containing Monthly Actual Surplus Income.
B68: Serviceability Ratio | C68: Auto populated (locked field) | D68: Field containing Serviceability Ratio.
B69: DTI | C69: Auto populated (locked field) | D69: Debt to Income ratio.
B70: Monthly Repayments (Assessment Interest Rate) | C70: Auto populated (locked field) | D70: Field containing monthly repayments for new commitments at assessment interest rate.
B71: Monthly Repayments (Actual Interest Rate) | C71: Auto populated (locked field) | D71: Field containing monthly repayments for new commitments at actual interest rate.
B72: Monthly Mortgage Repayment to Income Measure | C72: Auto populated (locked field) | D72: Field containing Monthly Mortgage Repayment to Income Measure

Sheet Tables (hidden)
C2: Repayment Type
C3: Principal and Interest
C4: Interest Only | H4: Tax Table | L4: Low Income Tax
H5: Gross | I5: $0-$18,200 | J5: 0 | L5: $0-$37,500 | M5: 700
C6: Interest rate for ReInvestment | D6: 0.0576 | I6: $18,201-$45,000 | J6: 0.19 | L6: $37,501 - $45,000 | M6: $700 minus ((Taxable Income minus $37,500) x 5%))
C7: Interest Rate buffer | D7: 0.025 | F7: Commitment Type | I7: $45,001-$120,000 | J7: 0.325 | L7: $45,001 - $66,667 | M7: $325 minus ((Taxable Income minus $45,000) x 1.5%))
C8: Floor rate | D8: 0.05 | F8: Other Mortgage | I8: $120,001-$180,000 | J8: 0.37 | L8: More than $66,667 | M8: Nil
C9: Proxy rate | D9: 0.0378 | F9: Rental Expense | I9: $180,000- | J9: 0.45
C10: Default commitment rate | D10: 0.065 | F10: Personal Loan
F11: Hire Purchase
C12: New Commitement Table | F12: HECS - HELP | I12: Rental Categories | J12: % | L12: Low and middle income tax offset
C13: Residential Loan P&I | F13: Child Maintenance | I13: Cat 1 Resi | J13: 0.8 | L13: $0 - $37,000 | M13: 255
C14: Residential Loan IO 1 Year | F14: Other Commitments | I14: Cat 1 Commercial | J14: 0.65 | L14: $37,001 - $48,000 | M14: $255 plus 7.5 cents for every dollar above $37,000, up to a maximum of $1,080
C15: Residential Loan IO 2 Years | I15: Cat 2 Resi | J15: 0.8 | L15: $48,001 - $90,000 | M15: 1080
C16: Residential Loan IO 3 Years | F16: Investment Loan Add Back | G16: 0.06 | I16: Cat 2 Commercial | J16: 0.65 | L16: $90,001 - $126,000 | M16: $1,080 minus 3 cents for every dollar of the amount above $90,000
C17: Residential Loan IO 4 Years | I17: Cat 3 Resi | J17: 0.8
C18: Residential Loan IO 5 Years | F18: Payment Frequency | I18: Cat 3 Commercial | J18: 0.65
C19: Secured Personal Loan | F19: Weekly | I19: Cat 4 Resi | J19: 0.65
C20: Unsecured Personal Loan | F20: Fortnightly | I20: Cat 4 Commercial | J20: 0.65
C21: Credit Card | F21: Monthly
C22: Line of Credit P&I | F22: Annually
C23: Line of Credit IO | H23: LVR | I23: Inner City | J23: Cat 1 | K23: Cat 2 | L23: Cat 3/4
H24: 0.7 | I24: 2000000 | J24: 2000000 | K24: 1000000 | L24: 500000
C25: Married | F25: Existing Commitments | H25: 0.8 | I25: 2000000 | J25: 2000000 | K25: 1000000 | L25: 400000
C26: Single | H26: 0.9 | I26: N/A | J26: 1500000 | K26: 750000 | L26: N/A
C27: Couple Other | F27: Residential Loan P&I | H27: 0.95 | I27: N/A | J27: 800000 | K27: 500000 | L27: N/A
F28: Residential Loan IO
F29: Secured Personal Loan
F30: Unsecured Personal Loan | I30: Weighting Classifications
F31: Line of Credit | I31: Bonus | J31: 0.8
C32: HEM Test | F32: Child Maintenance | I32: Commission | J32: 0.8
C33: Couple | F33: HECS/HELP | I33: Dividends | J33: 0.9
C34: Couple with 1 child | F34: Board/Rental Commitment | I34: Overtime | J34: 0.8
C35: Couple with 2 children | F35: Other | I35: Car Allowance | J35: 1
C36: Couple with 3 children | I36: Foreign Income | J36: 1
C37: Single person | F37: Living Expense Variaton | G37: 0.75
C38: Single parent with 1 child
C39: Single parent with 2 children
C40: Single parent with 3 children | F40: YES
F41: NO
C59: =IF(OR(ISBLANK(C57)),"",IF(C57="YES",2,1)) ->  | F59: =IF(OR(ISBLANK(F57)),"",IF(F57="YES",2,1)) ->  | J59: =IF(OR(ISBLANK(J57)),"",IF(J57="YES",2,1)) ->  | M59: =IF(OR(ISBLANK(M57)),"",IF(M57="YES",2,1)) -> 
C60: Credit Institution
C62: Adelaide Bank
C63: Advantedge
C64: AFG Home Loans
C65: Afterpay
C66: Allstate Home Loans
C67: American Express
C68: AMP
C69: ANZ Bank
C70: Athena Home Loans
C71: Aussie Home Loans
C72: Australian First Mortgage
C73: Bank of Melbourne
C74: Bank of Queensland
C75: Bank of Sydney Ltd
C76: Bank SA
C77: Bankwest
C78: BC Securities Pty Ltd
C79: Bendigo Bank
C80: Better Choice
C81: Better Mortgage Mgmt
C82: Bluestone
C83: BOQ
C84: Brighten Home Loans
C85: CBA
C86: Citibank
C87: Columbus Capital Pty Ltd
C88: Commonwealth Bank
C89: Credit Union Australia
C90: EMoney Pty Ltd
C91: Esanda
C92: FASTLend
C93: Firstmac
C94: Heritage
C95: Homeloans Ltd
C96: Homeside
C97: Homestar Finance Pty Ltd
C98: HSBC
C99: ING
C100: LaTrobe
C101: Liberty
C102: Macquarie
C103: ME Bank
C104: Mortgage Ezy
C105: Mortgage Mart
C106: NAB
C107: Origin Mortgage Management Services Pty Ltd
C108: Pepper
C109: RESIMAC
C110: St George
C111: Suncorp Metway
C112: Teachers Credit Union
C113: Tictoc Online
C114: Well Nigh Capital Funding No 1 Pty Ltd
C115: Westpac Bank
C116: Other

Sheet Result Sheet (hidden)
A1: PAYG Income | M1: Number of Applicants | N1: =COUNTA(Calculator!M27:X27) -> 0
B2: Weighting | C2: Applicant 1 | D2: Haircut | E2: Applicant 2 | F2: Haircut | G2: Applicant 3 | H2: Haircut | I2: Applicant 4 | J2: Haircut
A3: Income | B3: 1 | C3: =Calculator!M43 -> 0 | D3: =C3-(C3*B3) -> 0 | E3: =Calculator!P43 -> 0 | F3: =E3-(E3*B3) -> 0 | G3: =Calculator!T43 -> 0 | H3: =G3-(G3*B3) -> 0 | I3: =Calculator!W43 -> 0 | J3: =I3-(I3*B3) -> 0
A4: Bonus | B4: ='Tables '!J31 -> 0.8 | C4: =Calculator!M67 -> 0 | D4: =C4-(C4*B4) -> 0 | E4: =Calculator!P67*$B4 -> 0 | F4: =E4-(E4*B4) -> 0 | G4: =Calculator!T67 -> 0 | H4: =G4-(G4*B4) -> 0 | I4: =Calculator!W67 -> 0 | J4: =I4-(I4*$B4) -> 0
A5: Commission | B5: ='Tables '!J32 -> 0.8 | C5: =Calculator!M69 -> 0 | D5: 0 | E5: =Calculator!P69*$B5 -> 0 | F5: 0 | G5: =Calculator!T69 -> 0 | H5: 0 | I5: =Calculator!W69 -> 0 | J5: 0
A6: Dividends | B6: ='Tables '!J33 -> 0.9 | C6: =Calculator!M71 -> 0 | D6: 0 | E6: =Calculator!P71*$B6 -> 0 | F6: 0 | G6: =Calculator!T71 -> 0 | H6: 0 | I6: =Calculator!W71 -> 0 | J6: 0
A7: Overtime | B7: ='Tables '!J34 -> 0.8 | C7: =Calculator!M73 -> 0 | D7: 0 | E7: =Calculator!P73*$B7 -> 0 | F7: 0 | G7: =Calculator!T73 -> 0 | H7: 0 | I7: =Calculator!W73 -> 0 | J7: 0
A8: Other Taxable Income | B8: 1 | C8: =Calculator!M75 -> 0 | D8: 0 | E8: =Calculator!P75*$B8 -> 0 | F8: 0 | G8: =Calculator!T75 -> 0 | H8: 0 | I8: =Calculator!W75 -> 0 | J8: 0
A9: Company car | B9: ='Tables '!J35 -> 1 | C9: =Calculator!M77 -> 0 | D9: 0 | E9: =Calculator!P77*$B9 -> 0 | F9: 0 | G9: =Calculator!T77 -> 0 | H9: 0 | I9: =Calculator!W77 -> 0 | J9: 0
A10: Centrelink | B10: 1 | C10: =Calculator!M79 -> 0 | D10: 0 | E10: =Calculator!P79 -> 0 | F10: 0 | G10: =Calculator!T79 -> 0 | H10: 0 | I10: =Calculator!W79 -> 0 | J10: 0
A12: PAYG Haircut | D12: =SUM(D3:D9) -> 0 | F12: =SUM(F3:F9) -> 0 | H12: =SUM(H3:H9) -> 0 | J12: =SUM(J3:J9) -> 0
A13: Self Employed Income
B14: Weighting | C14: Applicant 1 | D14: Applicant 2 | E14: Applicant 3 | F14: Applicant 4
A15: Income | B15: 1 | C15: ='Self Employed'!E35 -> 0 | D15: ='Self Employed'!G35 -> 0 | E15: ='Self Employed'!I35 -> 0 | F15: ='Self Employed'!K35 -> 0
A16: HEM Income | B16: 1 | C16: ='Self Employed'!E51 -> 0 | D16: ='Self Employed'!G51 -> 0 | E16: ='Self Employed'!I51 -> 0 | F16: ='Self Employed'!K51 -> 0
A17: Rent
B18: Weighting | C18: Applicant 1 | D18: Haircut | E18: Applicant 2 | F18: Haircut | G18: Applicant 3 | H18: Haircut | I18: Applicant 4 | J18: Haircut
A19: Household | C19: =Calculator!M29 -> 0 | E19: =Calculator!P29 -> 0 | G19: =Calculator!T29 -> 0 | I19: =Calculator!W29 -> 0
A20: Cat 1,2,3 and any other Residential | B20: ='Tables '!J13 -> 0.8 | C20: =Calculator!M56 -> 0 | D20: =C20-(C20*B20) -> 0 | E20: =Calculator!P56 -> 0 | F20: =E20-(E20*B20) -> 0 | G20: =Calculator!T56 -> 0 | H20: =G20-(G20*B20) -> 0 | I20: =Calculator!W56 -> 0 | J20: =I20-(I20*B20) -> 0
A21: Cat 4 Residential | B21: ='Tables '!J19 -> 0.65 | C21: =Calculator!M58 -> 0 | D21: =C21-(C21*B21) -> 0 | E21: =Calculator!P58 -> 0 | F21: =E21-(E21*B21) -> 0 | G21: =Calculator!T58 -> 0 | H21: =G21-(G21*B21) -> 0 | I21: =Calculator!W58 -> 0 | J21: =I21-(I21*B21) -> 0
A22: Cat 1,2,3 and any other Commercial | B22: ='Tables '!J14 -> 0.65 | C22: =Calculator!M60 -> 0 | D22: 0 | E22: =Calculator!P60 -> 0 | F22: 0 | G22: =Calculator!T60 -> 0 | H22: 0 | I22: =Calculator!W60 -> 0 | J22: 0
A23: Cat 4 Commercial | B23: ='Tables '!J20 -> 0.65 | C23: =Calculator!M62 -> 0 | D23: 0 | E23: =Calculator!P62 -> 0 | F23: 0 | G23: =Calculator!T62 -> 0 | H23: 0 | I23: =Calculator!W62 -> 0 | J23: 0
A26: Total Gross Rental | C26: =SUM(C20:C23) -> 0 | E26: 0 | G26: 0 | I26: 0
A27: Total Haircut | C27: =SUM(D20:D23) -> 0 | E27: =SUM(F20:F23) -> 0 | G27: =SUM(H20:H23) -> 0 | I27: =SUM(J20:J23) -> 0
A29: Household | B29: 1 | C29: 2 | D29: 3 | E29: 4
A30: Gross Rental Income | B30: =SUMIF(C19:I19,B29,C26:I26) -> 0 | C30: =SUMIF(C19:I19,C29,C26:I26) -> 0 | D30: =SUMIF(C19:I19,D29,C26:I26) -> 0 | E30: =SUMIF(C19:I19,E29,C26:I26) -> 0
A31: Eligible Rental Income | B31: =SUMIF(C19:I19,B29,C27:I27) -> 0 | C31: =SUMIF(C19:I19,C29,C27:I27) -> 0 | D31: =SUMIF(C19:I19,D29,C27:I27) -> 0 | E31: =SUMIF(C19:I19,E29,C27:I27) -> 0
A32: Rent less Commitment | B32: =B30-((SUMIF(D36:G36,B29,D40:G40)+SUMIF(D43:G43,B29,D50:G50))) -> 0 | C32: =C30-((SUMIF(D36:G36,C29,D40:G40)+SUMIF(D43:G43,C29,D50:G50))) -> 0 | D32: =D30-((SUMIF(D36:G36,D29,D40:G40)+SUMIF(D43:G43,D29,D50:G50))) -> 0 | E32: =E30-((SUMIF(D36:G36,E29,D40:G40)+SUMIF(D43:G43,E29,D50:G50))) -> 0
A34: New Commitment Tax Deduction
B35: Tax Deductible | C35: Tax Deduction | D35: Applicant 1 | E35: Applicant 2 | F35: Applicant 3 | G35: Applicant 4 | J35: Income Earner | K35: =IF(OR(C19>0),1,0)+IF(OR(E19>0),1,0)+IF(OR(G19>0),1,0)+IF(OR(I19>0),1,0) -> 0
A36: Household | D36: =C19 -> 0 | E36: =E19 -> 0 | F36: =G19 -> 0 | G36: =I19 -> 0
A37: Commitment 1 | B37: =Calculator!T11 -> 0 | C37: =IF($B37="YES",(IPMT('Tables '!$D$6/12,1,Calculator!$P11,-Calculator!$M11)*12),0) -> 0 | D37: =IF(AND(B37="YES",C26>0),C37/K35,0) -> 0 | E37: =IF(AND(B37="YES",E26>0),C37/K35,0) -> 0 | F37: =IF(AND(B37="YES",G26>0),C37/K35,0) -> 0 | G37: =IF(AND(B37="YES",I26>0),C37/K35,0) -> 0
A38: Commitment 2 | B38: =Calculator!T13 -> 0 | C38: =IF($B38="YES",(IPMT('Tables '!$D$6/12,1,Calculator!$P13,-Calculator!$M13)*12),0) -> 0 | D38: =IF(AND(B38="YES",C26>0),C38/K35,0) -> 0 | E38: =IF(AND(B38="YES",E26>0),C38/K35,0) -> 0 | F38: =IF(AND(B38="YES",G26>0),C38/K35,0) -> 0 | G38: =IF(AND(B38="YES",I26>0),C38/K35,0) -> 0
A39: Commitment 3 | B39: =Calculator!T15 -> 0 | C39: =IF($B39="YES",(IPMT('Tables '!$D$6/12,1,Calculator!$P15,-Calculator!$M15)*12),0) -> 0 | D39: =IF(AND(B39="YES",C26>0),C39/K35,0) -> 0 | E39: =IF(AND(B39="YES",E26>0),C39/K35,0) -> 0 | F39: =IF(AND(B39="YES",G26>0),C39/K35,0) -> 0 | G39: =IF(AND(B39="YES",I26>0),C39/K35,0) -> 0
A40: Total | D40: =SUM(D37:D39) -> 0 | E40: =SUM(E37:E39) -> 0 | F40: =SUM(F37:F39) -> 0 | G40: =SUM(G37:G39) -> 0
A41: Current Commitment Tax Deduction
B42: Tax Deductible | C42: Tax Deduction | D42: Applicant 1 | E42: Applicant 2 | F42: Applicant 3 | G42: Applicant 4
A43: Household | D43: =D36 -> 0 | E43: =E36 -> 0 | F43: =F36 -> 0 | G43: =G36 -> 0
A44: Commitment 1 | B44: =Calculator!W104 -> 0 | C44: =IF($B44="YES",(Calculator!$M104*'Tables '!$D$6),0) -> 0 | D44: =IF(ISBLANK(Calculator!$M$27),"",IF($N$1=1,$C44/1,IF($N$1=2,$C44/2,IF($N$1=3,$C44/3,IF($N$1=4,$C44/4,0))))) ->  | E44: =IF(ISBLANK(Calculator!$P$27),"",IF($N$1=1,$C$44/1,IF($N$1=2,$C$44/2,IF($N$1=3,$C$44/3,IF($N$1=4,$C$44/4,0))))) ->  | F44: =IF(ISBLANK(Calculator!$T$27),"",IF($N$1=1,$C$44/1,IF($N$1=2,$C$44/2,IF($N$1=3,$C$44/3,IF($N$1=4,$C$44/4,0))))) ->  | G44: =IF(ISBLANK(Calculator!$W$27),"",IF($N$1=1,$C$44/1,IF($N$1=2,$C$44/2,IF($N$1=3,$C$44/3,IF($N$1=4,$C$44/4,0))))) -> 
A45: Commitment 2 | B45: =Calculator!W106 -> 0 | C45: =IF($B45="YES",(Calculator!$M106*'Tables '!$D$6),0) -> 0 | D45: =IF(ISBLANK(Calculator!$M$27),"",IF($N$1=1,$C45/1,IF($N$1=2,$C45/2,IF($N$1=3,$C45/3,IF($N$1=4,$C45/4,0))))) ->  | E45: =IF(ISBLANK(Calculator!$P$27),"",IF($N$1=1,$C$45/1,IF($N$1=2,$C$45/2,IF($N$1=3,$C$45/3,IF($N$1=4,$C$45/4,0))))) ->  | F45: =IF(ISBLANK(Calculator!$T$27),"",IF($N$1=1,$C$45/1,IF($N$1=2,$C$45/2,IF($N$1=3,$C$45/3,IF($N$1=4,$C$45/4,0))))) ->  | G45: =IF(ISBLANK(Calculator!$W$27),"",IF($N$1=1,$C$45/1,IF($N$1=2,$C$45/2,IF($N$1=3,$C$45/3,IF($N$1=4,$C$45/4,0))))) -> 
A46: Commitment 3 | B46: =Calculator!W108 -> 0 | C46: =IF($B46="YES",(Calculator!$M108*'Tables '!$D$6),0) -> 0 | D46: =IF(ISBLANK(Calculator!$M$27),"",IF($N$1=1,$C46/1,IF($N$1=2,$C46/2,IF($N$1=3,$C46/3,IF($N$1=4,$C46/4,0))))) ->  | E46: =IF(ISBLANK(Calculator!$P$27),"",IF($N$1=1,$C46/1,IF($N$1=2,$C46/2,IF($N$1=3,$C46/3,IF($N$1=4,$C46/4,0))))) ->  | F46: =IF(ISBLANK(Calculator!$T$27),"",IF($N$1=1,$C46/1,IF($N$1=2,$C46/2,IF($N$1=3,$C46/3,IF($N$1=4,$C46/4,0))))) ->  | G46: =IF(ISBLANK(Calculator!$W$27),"",IF($N$1=1,$C46/1,IF($N$1=2,$C46/2,IF($N$1=3,$C46/3,IF($N$1=4,$C46/4,0))))) -> 
A47: Commitment 4 | B47: =Calculator!W110 -> 0 | C47: =IF($B47="YES",(Calculator!$M110*'Tables '!$D$6),0) -> 0 | D47: =IF(ISBLANK(Calculator!$M$27),"",IF($N$1=1,$C47/1,IF($N$1=2,$C47/2,IF($N$1=3,$C47/3,IF($N$1=4,$C47/4,0))))) ->  | E47: =IF(ISBLANK(Calculator!$P$27),"",IF($N$1=1,$C47/1,IF($N$1=2,$C47/2,IF($N$1=3,$C47/3,IF($N$1=4,$C47/4,0))))) ->  | F47: =IF(ISBLANK(Calculator!$T$27),"",IF($N$1=1,$C47/1,IF($N$1=2,$C47/2,IF($N$1=3,$C47/3,IF($N$1=4,$C47/4,0))))) ->  | G47: =IF(ISBLANK(Calculator!$W$27),"",IF($N$1=1,$C47/1,IF($N$1=2,$C47/2,IF($N$1=3,$C47/3,IF($N$1=4,$C47/4,0))))) -> 
A48: Commitment 5 | B48: =Calculator!W112 -> 0 | C48: =IF($B48="YES",(Calculator!$M112*'Tables '!$D$6),0) -> 0 | D48: =IF(ISBLANK(Calculator!$M$27),"",IF($N$1=1,$C48/1,IF($N$1=2,$C48/2,IF($N$1=3,$C48/3,IF($N$1=4,$C48/4,0))))) ->  | E48: =IF(ISBLANK(Calculator!$P$27),"",IF($N$1=1,$C48/1,IF($N$1=2,$C48/2,IF($N$1=3,$C48/3,IF($N$1=4,$C48/4,0))))) ->  | F48: =IF(ISBLANK(Calculator!$T$27),"",IF($N$1=1,$C48/1,IF($N$1=2,$C48/2,IF($N$1=3,$C48/3,IF($N$1=4,$C48/4,0))))) ->  | G48: =IF(ISBLANK(Calculator!$W$27),"",IF($N$1=1,$C48/1,IF($N$1=2,$C48/2,IF($N$1=3,$C48/3,IF($N$1=4,$C48/4,0))))) -> 
A49: Commitment 6 | B49: =Calculator!W114 -> 0 | C49: =IF($B49="YES",(Calculator!$M114*'Tables '!$D$6),0) -> 0 | D49: =IF(ISBLANK(Calculator!$M$27),"",IF($N$1=1,$C49/1,IF($N$1=2,$C49/2,IF($N$1=3,$C49/3,IF($N$1=4,$C49/4,0))))) ->  | E49: =IF(ISBLANK(Calculator!$P$27),"",IF($N$1=1,$C49/1,IF($N$1=2,$C49/2,IF($N$1=3,$C49/3,IF($N$1=4,$C49/4,0))))) ->  | F49: =IF(ISBLANK(Calculator!$T$27),"",IF($N$1=1,$C49/1,IF($N$1=2,$C49/2,IF($N$1=3,$C49/3,IF($N$1=4,$C49/4,0))))) ->  | G49: =IF(ISBLANK(Calculator!$W$27),"",IF($N$1=1,$C49/1,IF($N$1=2,$C49/2,IF($N$1=3,$C49/3,IF($N$1=4,$C49/4,0))))) -> 
D50: =SUM(D44:D49) -> 0 | E50: =SUM(E44:E49) -> 0 | F50: =SUM(F44:F49) -> 0 | G50: =SUM(G44:G49) -> 0
A52: Household | D52: =IF(ISBLANK(Calculator!M29),"",Calculator!M29) ->  | E52: =IF(ISBLANK(Calculator!P29),"",Calculator!P29) ->  | F52: =IF(ISBLANK(Calculator!T29),"",Calculator!T29) ->  | G52: =IF(ISBLANK(Calculator!W29),"",Calculator!W29) ->  | J52: Number of households | K52: =SUMPRODUCT((D52:G52<>"")/COUNTIF(D52:G52,D52:G52&"")) -> 0
A53: Taxable Income | D53: =SUM(C3:C9)+C15+SUM(C20:C23)-D40-D50 -> 0 | E53: =SUM(E3:E9)+D15+SUM(E20:E23)-E40-E50 -> 0 | F53: =SUM(G3:G9)+E15+SUM(G20:G23)-F40-F50 -> 0 | G53: =SUM(I3:I9)+F15+SUM(I20:I23)-G40-G50 -> 0
A54: Gross Income | D54: =SUM((SUM(C3:C9))+C15+C26) -> 0 | E54: =SUM((SUM(E3:E9)-F12)+D15+E26) -> 0 | F54: =SUM((SUM(G3:G9)-H12)+E15+G26) -> 0 | G54: =SUM((SUM(I3:I9)+F15+I26)) -> 0
A55: Living Expense Income | D55: =SUM((SUM(C3:C10))+C16+C26-D12-C27) -> 0 | E55: =SUM((SUM(E3:E10))+D16+E26-F12-E27) -> 0 | F55: =SUM((SUM(G3:G10))+E16+G26-H12-G27) -> 0 | G55: =SUM((SUM(I3:I10))+F16+I26-J12-I27) -> 0
A56: DTI | D56: =SUM((SUM(C3:C10))+C16+C26) -> 0 | E56: =SUM((SUM(E3:E10))+D16+E26) -> 0 | F56: =SUM((SUM(G3:G10))+F16+G26) -> 0 | G56: =SUM((SUM(I3:I10))+F16+I26) -> 0
A58: Household | B58: 1 | C58: 2 | D58: 3 | E58: 4
A59: Household Income | B59: =SUMIF(D52:G52,B58,D55:G55) -> 0 | C59: =SUMIF(D52:G52,C58,D55:G55) -> 0 | D59: =SUMIF(D52:G52,D58,D55:G55) -> 0 | E59: =SUMIF(D52:G52,E58,D55:G55) -> 0
A60: Couple Validation | B60: =IF(D52="",0,IF(OR(ISBLANK(Calculator!M34)),0,IF(Calculator!M34="YES","Y","N"))) -> 0 | C60: =IF(E52="",0,IF(OR(ISBLANK(Calculator!P34)),0,IF(Calculator!P34="YES","Y","N"))) -> 0 | D60: =IF(F52="",0,IF(OR(ISBLANK(Calculator!T34)),0,IF(Calculator!T34="YES","Y","N"))) -> 0 | E60: =IF(G52="",0,IF(OR(ISBLANK(Calculator!W34)),0,IF(Calculator!W34="YES","Y","N"))) -> 0
A61: Couple Count | B61: =COUNTIFS(Calculator!#REF!,"Yes",Calculator!$M$29:$X$29,B58) ->  | C61: =COUNTIFS(Calculator!#REF!,"Yes",Calculator!$M$29:$X$29,C58) ->  | D61: =COUNTIFS(Calculator!#REF!,"Yes",Calculator!$M$29:$X$29,D58) ->  | E61: =COUNTIFS(Calculator!#REF!,"Yes",Calculator!$M$29:$X$29,E58) -> 
B62: =IF(B61=0,"",B61) -> 
A63: Children | B63: =Calculator!M38 -> 0 | C63: =Calculator!P38 -> 0 | D63: =Calculator!T38 -> 0 | E63: =Calculator!W38 -> 0
A64: Savings Capacity Buffer | B64: =IF(K52=0,0,(IF(('Living Exp'!F47<('Living Exp'!F49)),(((Calculator!W137*1)/12)/K52),IF(('Living Exp'!F47>=('Living Exp'!F49+(((Calculator!W137*1)/12)/K52))),0,(('Living Exp'!F49+(((Calculator!W137*1)/12)/K52)-'Living Exp'!F47))))*IF(ISBLANK(Calculator!M34),0,1)+IF(('Living Exp'!H47<('Living Exp'!H49)),(((Calculator!W137*1)/12)/K52),IF(('Living Exp'!H47>=('Living Exp'!H49+(((Calculator!W137*1)/12)/K52))),0,(('Living Exp'!H49+(((Calculator!W137*1)/12)/K52)-'Living Exp'!H47))))*IF(ISBLANK(Calculator!P34),0,1)+IF(('Living Exp'!J47<('Living Exp'!J49)),(((Calculator!W137*1)/12)/K52),IF(('Living Exp'!J47>=('Living Exp'!J49+(((Calculator!W137*1)/12)/K52))),0,(('Living Exp'!J49+(((Calculator!W137*1)/12)/K52)-'Living Exp'!J47))))*IF(ISBLANK(Calculator!T34),0,1)+IF(('Living Exp'!L47<('Living Exp'!L49)),(((Calculator!W137*1)/12)/K52),IF(('Living Exp'!L47>=('Living Exp'!L49+(((Calculator!W137*1)/12)/K52))),0,(('Living Exp'!L49+(((Calculator!W137*1)/12)/K52)-'Living Exp'!L47))))*IF(ISBLANK(Calculator!W34),0,1))) -> 0 | D64: =Calculator!T38 -> 0
A65: Applicable Living expenses per month | B65: =MAX('Living Exp'!F47,D139)+MAX('Living Exp'!H47,D140)+MAX('Living Exp'!J47,D141)+MAX('Living Exp'!L47,D142) -> 0
A68: Income Tax
C69: Income Tax | D69: Medicare Levy | E69: Total Tax | F69: Applicant 1 | G69: Applicant 2 | H69: Applicant 3 | I69: Applicant 4
A70: 0 | B70: 18200 | C70: 0 | D70: 0 | E70: =C70+D70 -> 0 | F70: =IF(AND(D53>='Result Sheet'!A70,D53<='Result Sheet'!B70),D53*'Result Sheet'!E70,0) -> 0 | G70: =IF(AND(E53>='Result Sheet'!A70,E53<='Result Sheet'!B70),E53*'Result Sheet'!E70,0) -> 0 | H70: =IF(AND(F53>='Result Sheet'!A70,F53<='Result Sheet'!B70),F53*'Result Sheet'!E70,0) -> 0 | I70: =IF(AND(G53>='Result Sheet'!A70,G53<='Result Sheet'!B70),G53*'Result Sheet'!E70,0) -> 0
A71: 18200.01 | B71: 22801 | C71: 0.19 | D71: 0 | E71: =C71+D71 -> 0.19 | F71: =IF(AND(D53>='Result Sheet'!A71,D53<='Result Sheet'!B71),(D53-A71)*'Result Sheet'!E71,0) -> 0 | G71: =IF(AND(E53>='Result Sheet'!A71,E53<='Result Sheet'!B71),(E53-A71)*'Result Sheet'!E71,0) -> 0 | H71: =IF(AND(F53>='Result Sheet'!A71,F53<='Result Sheet'!B71),(F53-A71)*'Result Sheet'!E71,0) -> 0 | I71: =IF(AND(G53>='Result Sheet'!A71,G53<='Result Sheet'!B71),(G53-A71)*'Result Sheet'!E71,0) -> 0
A72: 22801.01 | B72: 28501 | C72: 0.19 | D72: 0.02 | E72: 0.29 | F72: =IF(AND(D53>='Result Sheet'!$A72,D53<='Result Sheet'!$B72),SUM((($B71-A71)*$E71)+(($D53-$A72)*$E72)),0) -> 0 | G72: =IF(AND(E53>='Result Sheet'!$A72,E53<='Result Sheet'!$B72),SUM((($B71-A71)*$E71)+(($E53-$A72)*$E72)),0) -> 0 | H72: =IF(AND(F53>='Result Sheet'!$A72,F53<='Result Sheet'!$B72),SUM((($B71-A71)*$E71)+(($F53-$A72)*$E72)),0) -> 0 | I72: =IF(AND(G53>='Result Sheet'!$A72,G53<='Result Sheet'!$B72),SUM((($B71-A71)*$E71)+(($G53-$A72)*$E72)),0) -> 0
A73: 28501.01 | B73: 45000 | C73: 0.19 | D73: 0.02 | E73: 0.21 | F73: =IF(AND(D53>='Result Sheet'!$A73,D53<='Result Sheet'!$B73),SUM((($B71-A71)*$E71)+(($B72-A72)*$E72)+((D53-$B72)*$E73)),0) -> 0 | G73: =IF(AND(E53>='Result Sheet'!$A73,E53<='Result Sheet'!$B73),SUM((($B71-A71)*$E71)+(($B72-A72)*$E72)+((E53-$A73)*$E73)),0) -> 0 | H73: =IF(AND(F53>='Result Sheet'!$A73,F53<='Result Sheet'!$B73),SUM((($B71-A71)*$E71)+(($B72-A72)*$E72)+((F53-$A73)*$E73)),0) -> 0 | I73: =IF(AND(G53>='Result Sheet'!$A73,G53<='Result Sheet'!$B73),SUM((($B71-A71)*$E71)+(($B72-A72)*$E72)+((G53-$A73)*$E73)),0) -> 0
A74: 45000.01 | B74: 120000 | C74: 0.325 | D74: 0.02 | E74: 0.345 | F74: =IF(AND(D53>='Result Sheet'!$A74,D53<='Result Sheet'!$B74),SUM((($B71-A71)*$E71)+(($B72-A72)*$E72)+(($B73-A73)*$E73)+((D53-A74)*$E74),0)) -> FALSE | G74: =IF(AND(E53>='Result Sheet'!$A74,E53<='Result Sheet'!$B74),SUM((($B71-A71)*$E71)+(($B72-A72)*$E72)+(($B73-A73)*$E73)+((E53-A74)*$E74),0)) -> FALSE | H74: =IF(AND(F53>='Result Sheet'!$A74,F53<='Result Sheet'!$B74),SUM((($B71-A71)*$E71)+(($B72-A72)*$E72)+(($B73-A73)*$E73)+((F53-A74)*$E74),0)) -> FALSE | I74: =IF(AND(G53>='Result Sheet'!$A74,G53<='Result Sheet'!$B74),SUM((($B71-A71)*$E71)+(($B72-A72)*$E72)+(($B73-$A73)*$E73)+((G53-A74)*$E74),0)) -> FALSE
A75: 120000.01 | B75: 180000 | C75: 0.37 | D75: 0.02 | E75: 0.39 | F75: =IF(AND(D53>='Result Sheet'!$A75,D53<='Result Sheet'!$B75),SUM((($B71-A71)*$E71)+(($B72-A72)*$E72)+(($B73-A73)*$E73)+(($B74-A74)*$E74)+((D53-A75)*$E75),0)) -> FALSE | G75: =IF(AND(E53>='Result Sheet'!$A75,E53<='Result Sheet'!$B75),SUM((($B71-A71)*$E71)+(($B72-A72)*$E72)+(($B73-A73)*$E73)+(($B74-A74)*$E74)+((E53-A75)*$E75),0)) -> FALSE | H75: =IF(AND(F53>='Result Sheet'!$A75,F53<='Result Sheet'!$B75),SUM((($B71-A71)*$E71)+(($B72-A72)*$E72)+(($B73-A73)*$E73)+(($B74-A74)*$E74)+((F53-A75)*$E75),0)) -> FALSE | I75: =IF(AND(G53>='Result Sheet'!$A75,G53<='Result Sheet'!$B75),SUM((($B71-A71)*$E71)+(($B72-A72)*$E72)+(($B73-A73)*$E73)+(($B74-A74)*$E74)+((G53-A75)*$E75),0)) -> FALSE
A76: 180000.01 | B76: 999999999 | C76: 0.45 | D76: 0.02 | E76: 0.47 | F76: =IF(AND(D53>='Result Sheet'!$A76,D53<='Result Sheet'!$B76),SUM((($B71-A71)*$E71)+(($B72-A72)*$E72)+(($B73-A73)*$E73)+(($B74-A74)*$E74)+(($B75-A75)*$E75)+((D53-A76)*$E76),0)) -> FALSE | G76: =IF(AND(E53>='Result Sheet'!$A76,E53<='Result Sheet'!$B76),SUM((($B71-A71)*$E71)+(($B72-A72)*$E72)+(($B73-A73)*$E73)+(($B74-A74)*$E74)+(($B75-A75)*$E75)+((E53-A76)*$E76),0)) -> FALSE | H76: =IF(AND(F53>='Result Sheet'!$A76,F53<='Result Sheet'!$B76),SUM((($B71-A71)*$E71)+(($B72-A72)*$E72)+(($B73-A73)*$E73)+(($B74-A74)*$E74)+(($B75-A75)*$E75)+((F53-A76)*$E76),0)) -> FALSE | I76: =IF(AND(G53>='Result Sheet'!$A76,G53<='Result Sheet'!$B76),SUM((($B71-A71)*$E71)+(($B72-A72)*$E72)+(($B73-A73)*$E73)+(($B74-A74)*$E74)+(($B75-A75)*$E75)+((G53-A76)*$E76),0)) -> FALSE
A79: Low Income Tax Offset
C80: Reduction | D80: Applicant 1 | E80: Applicant 2 | F80: Applicant 3 | G80: Applicant 4
A81: 0 | B81: 37500 | C81: 700 | D81: =IF(AND(D53>='Result Sheet'!$A81,D53<='Result Sheet'!$B81),$C81,0) -> 700 | E81: =IF(AND(E53>='Result Sheet'!$A81,E53<='Result Sheet'!$B81),$C81,0) -> 700 | F81: =IF(AND(F53>='Result Sheet'!$A81,F53<='Result Sheet'!$B81),$C81,0) -> 700 | G81: =IF(AND(G53>='Result Sheet'!$A81,G53<='Result Sheet'!$B81),$C81,0) -> 700
A82: 37501 | B82: 45000 | C82: $700 minus ((Taxable Income minus $37,500) x 5%)) | D82: =IF(AND(D53>='Result Sheet'!$A$82,D53<='Result Sheet'!$B$82),SUM(700-(D53-37500)*0.05),0) -> 0 | E82: =IF(AND(E53>='Result Sheet'!$A$82,E53<='Result Sheet'!$B$82),SUM(700-(E53-37500)*0.05),0) -> 0 | F82: =IF(AND(F53>='Result Sheet'!$A$82,F53<='Result Sheet'!$B$82),SUM(700-(F53-37500)*0.05),0) -> 0 | G82: =IF(AND(G53>='Result Sheet'!$A$82,G53<='Result Sheet'!$B$82),SUM(700-(G53-37500)*0.05),0) -> 0
A83: 45001 | B83: 66667 | C83: $325 minus ((Taxable Income minus $45,000) x 1.5%)) | D83: =IF(AND(D53>='Result Sheet'!$A$83,D53<='Result Sheet'!$B$83),SUM(325-(D53-45000)*0.015),0) -> 0 | E83: =IF(AND(E53>='Result Sheet'!$A$83,E53<='Result Sheet'!$B$83),SUM(325-(E53-45000)*0.015),0) -> 0 | F83: =IF(AND(F53>='Result Sheet'!$A$83,F53<='Result Sheet'!$B$83),SUM(325-(F53-45000)*0.015),0) -> 0 | G83: =IF(AND(G53>='Result Sheet'!$A$83,G53<='Result Sheet'!$B$83),SUM(325-(G53-45000)*0.015),0) -> 0
A86: Low and middle Income Tax Offset
C87: Reduction | D87: Applicant 1 | E87: Applicant 2 | F87: Applicant 3 | G87: Applicant 4
A88: 0 | B88: 37000 | C88: 255
A89: 37001 | B89: 48000 | C89: $255 plus 7.5 cents for every dollar above $37,000, up to a maximum of $1,080
A90: 48001 | B90: 90000 | C90: 1080
A91: 90001 | B91: 126000 | C91: $1,080 minus 3 cents for every dollar of the amount above $90,000
C94: Total Income Tax | D94: Applicant 1 | E94: Applicant 2 | F94: Applicant 3 | G94: Applicant 4
C95: Income Tax | D95: =SUM(F70:F76) -> 0 | E95: =SUM(G70:G76) -> 0 | F95: =SUM(H70:H76) -> 0 | G95: =SUM(I70:I76) -> 0
C96: Low Income Tax Offset | D96: =SUM(D81:D83) -> 700 | E96: =SUM(E81:E83) -> 700 | F96: =SUM(F81:F83) -> 700 | G96: =SUM(G81:G83) -> 700
C97: Low and middle income Tax offset | D97: =SUM(D88:D91) -> 0 | E97: =SUM(E88:E91) -> 0 | F97: =SUM(F88:F91) -> 0 | G97: =SUM(G88:G91) -> 0
C98: Tax Payable | D98: =MAX(0,D95-D96-D97) -> 0 | E98: =MAX(0,E95-E96-E97) -> 0 | F98: =MAX(0,F95-F96-F97) -> 0 | G98: =MAX(0,G95-G96-G97) -> 0
C100: PAYG Addback | D100: =Calculator!M79 -> 0 | E100: =Calculator!P79 -> 0 | F100: =Calculator!T79 -> 0 | G100: =Calculator!W79 -> 0
C101: SE Addback | D101: ='Self Employed'!E49 -> 0 | E101: ='Self Employed'!G49 -> 0 | F101: ='Self Employed'!I49 -> 0 | G101: ='Self Employed'!K49 -> 0
C102: (Haircut PAYG) | D102: =D12 -> 0 | E102: =F12 -> 0 | F102: =H12 -> 0 | G102: =J12 -> 0
C103: (HaircutRent) | D103: =C27 -> 0 | E103: =E27 -> 0 | F103: =G27 -> 0 | G103: =I27 -> 0
C104: Net Income | D104: =D54-D98+D100+D101-D103-D102 -> 0 | E104: =E54-E98+E100+E101-E102-E103 -> 0 | F104: =F54-F98+F100+F101-F102-F103 -> 0 | G104: =G54+G100+G101-G98-G102-G103 -> 0
F107: Total | G107: =SUM(D104:G104) -> 0
B108: YES | C108: NO | D108: Total CC Repayment | G108: =SUM(D99:E99) -> 0
A109: Credit Card Min Repayment | B109: =IF(SUM(B110:B114)>=20000,(SUM(B110:B114)-20000)*4%,0) -> 0 | C109: =SUM(C110:C114)*4% -> 0 | D109: =SUM(B109:C109) -> 0
A110: Credit Card 1 | B110: =IF(Calculator!P120="YES",Calculator!M120,0) -> 0 | C110: =IF(Calculator!P120="NO",Calculator!M120,0) -> 0
A111: Credit Card 2 | B111: =IF(Calculator!P122="YES",Calculator!M122,0) -> 0 | C111: =IF(Calculator!P122="NO",Calculator!M122,0) -> 0
A112: Credit Card 3 | B112: =IF(Calculator!P124="YES",Calculator!M124,0) -> 0 | C112: =IF(Calculator!P124="NO",Calculator!M124,0) -> 0
A113: Credit Card 4 | B113: =IF(Calculator!P126="YES",Calculator!M126,0) -> 0 | C113: =IF(Calculator!P126="NO",Calculator!M126,0) -> 0
A114: Credit Card 5 | B114: =IF(Calculator!P128="YES",Calculator!M128,0) -> 0 | C114: =IF(Calculator!P128="NO",Calculator!M128,0) -> 0
A115: Total CC Limit | B115: =SUM(B110:C114) -> 0
A117: New Commitment | B117: Type | C117: Key | D117: Interest Rate | E117: Assessment Rate | F117: P&I | G117: IO 1 | H117: IO2 | I117: IO3 | J117: IO4 | K117: IO5
A118: Commitment 1 | B118: =Calculator!E11 -> 0 | C118: =IF(ISNUMBER(SEARCH("residential loan p&i",B118)),1,IF(ISNUMBER(SEARCH("Residential Loan IO 1 Year",B118)),2,IF(ISNUMBER(SEARCH("Residential Loan IO 2 Years",B118)),3,IF(ISNUMBER(SEARCH("Residential Loan IO 3 Years",B118)),4,IF(ISNUMBER(SEARCH("Residential Loan IO 4 Years",B118)),5,IF(ISNUMBER(SEARCH("Residential Loan IO 5 Years",B118)),6,0)))))) -> 0 | D118: =Calculator!R11 -> 0 | E118: =IF(OR(ISBLANK(Calculator!R11)),"",IF(D118+'Tables '!D$7>='Tables '!D$8,'Result Sheet'!D118+'Tables '!D$7,'Tables '!D$8)) ->  | F118: =IF(C118=1,PMT(E118/12,Calculator!P11,-Calculator!M11),0) -> 0 | G118: =IF(C118=2,PMT(E118/12,(Calculator!$P$11-12),-Calculator!$M$11),0) -> 0 | H118: =IF(C118=3,PMT(E118/12,(Calculator!$P$11-24),-Calculator!$M$11),0) -> 0 | I118: =IF(C118=4,PMT(E118/12,(Calculator!$P$11-36),-Calculator!$M$11),0) -> 0 | J118: =IF(C118=5,PMT(E118/12,(Calculator!$P$11-48),-Calculator!$M$11),0) -> 0 | K118: =IF(C118=6,PMT(E118/12,(Calculator!$P$11-60),-Calculator!$M$11),0) -> 0
A119: Commitment 2 | B119: =Calculator!E13 -> 0 | C119: =IF(ISNUMBER(SEARCH("residential loan p&i",B119)),1,IF(ISNUMBER(SEARCH("Residential Loan IO 1 Year",B119)),2,IF(ISNUMBER(SEARCH("Residential Loan IO 2 Years",B119)),3,IF(ISNUMBER(SEARCH("Residential Loan IO 3 Years",B119)),4,IF(ISNUMBER(SEARCH("Residential Loan IO 4 Years",B119)),5,IF(ISNUMBER(SEARCH("Residential Loan IO 5 Years",B119)),6,0)))))) -> 0 | D119: =Calculator!R13 -> 0 | E119: =IF(OR(ISBLANK(Calculator!R13)),"",IF(D119+'Tables '!D$7>='Tables '!D$8,'Result Sheet'!D119+'Tables '!D$7,'Tables '!D$8)) ->  | F119: =IF(C119=1,PMT(E119/12,Calculator!P13,-Calculator!M13),0) -> 0 | G119: =IF(C119=2,PMT(E119/12,(Calculator!$P$13-12),-Calculator!$M$13),0) -> 0 | H119: =IF(C119=3,PMT(E119/12,(Calculator!$P$13-24),-Calculator!$M$13),0) -> 0 | I119: =IF(C119=4,PMT(E119/12,(Calculator!$P$13-36),-Calculator!$M$13),0) -> 0 | J119: =IF(C119=5,PMT(E119/12,(Calculator!$P$13-48),-Calculator!$M$13),0) -> 0 | K119: =IF(C119=6,PMT(E119/12,(Calculator!$P$13-60),-Calculator!$M$13),0) -> 0
A120: Commitment 3 | B120: =Calculator!E15 -> 0 | C120: =IF(ISNUMBER(SEARCH("residential loan p&i",B120)),1,IF(ISNUMBER(SEARCH("Residential Loan IO 1 Year",B120)),2,IF(ISNUMBER(SEARCH("Residential Loan IO 2 Years",B120)),3,IF(ISNUMBER(SEARCH("Residential Loan IO 3 Years",B120)),4,IF(ISNUMBER(SEARCH("Residential Loan IO 4 Years",B120)),5,IF(ISNUMBER(SEARCH("Residential Loan IO 5 Years",B120)),6,0)))))) -> 0 | D120: =Calculator!R15 -> 0 | E120: =IF(OR(ISBLANK(Calculator!R15)),"",IF(D120+'Tables '!D$7>='Tables '!D$8,'Result Sheet'!D120+'Tables '!D$7,'Tables '!D$8)) ->  | F120: =IF(C120=1,PMT(E120/12,Calculator!P15,-Calculator!M15),0) -> 0 | G120: =IF(C120=2,PMT(E120/12,(Calculator!$P$15-12),-Calculator!$M$15),0) -> 0 | H120: =IF(C120=3,PMT(E120/12,(Calculator!$P$15-24),-Calculator!$M$15),0) -> 0 | I120: =IF(C120=4,PMT(E120/12,(Calculator!$P$15-36),-Calculator!$M$15),0) -> 0 | J120: =IF(C120=5,PMT(E120/12,(Calculator!$P$15-48),-Calculator!$M$15),0) -> 0 | K120: =IF(C120=6,PMT(E120/12,(Calculator!$P$15-60),-Calculator!$M$15),0) -> 0
L121: =SUM(F118:K120) -> 0
A122: <Actual>
A123: Commitment 1 | B123: =Calculator!E11 -> 0 | C123: =IF(ISNUMBER(SEARCH("residential loan p&i",B123)),1,IF(ISNUMBER(SEARCH("Residential Loan IO 1 Year",B123)),2,IF(ISNUMBER(SEARCH("Residential Loan IO 2 Years",B123)),3,IF(ISNUMBER(SEARCH("Residential Loan IO 3 Years",B123)),4,IF(ISNUMBER(SEARCH("Residential Loan IO 4 Years",B123)),5,IF(ISNUMBER(SEARCH("Residential Loan IO 5 Years",B123)),6,0)))))) -> 0 | D123: =Calculator!R11 -> 0 | F123: =IF(C123=1,PMT(D123/12,Calculator!P11,-Calculator!M11),0) -> 0 | G123: =IF(C123=2,IPMT(D123/12,1,12,-Calculator!$M$11)) -> FALSE | H123: =IF(C123=3,IPMT(D123/12,1,24,-Calculator!$M$11)) -> FALSE | I123: =IF(C123=4,IPMT(D123/12,1,12,-Calculator!$M$11)) -> FALSE | J123: =IF(C123=5,IPMT(D123/12,1,12,-Calculator!$M$11)) -> FALSE | K123: =IF(C123=6,IPMT(D123/12,1,12,-Calculator!$M$11)) -> FALSE
A124: Commitment 2 | B124: =Calculator!E13 -> 0 | C124: =IF(ISNUMBER(SEARCH("residential loan p&i",B124)),1,IF(ISNUMBER(SEARCH("Residential Loan IO 1 Year",B124)),2,IF(ISNUMBER(SEARCH("Residential Loan IO 2 Years",B124)),3,IF(ISNUMBER(SEARCH("Residential Loan IO 3 Years",B124)),4,IF(ISNUMBER(SEARCH("Residential Loan IO 4 Years",B124)),5,IF(ISNUMBER(SEARCH("Residential Loan IO 5 Years",B124)),6,0)))))) -> 0 | D124: =Calculator!R13 -> 0 | F124: =IF(C124=1,PMT(D124/12,Calculator!P13,-Calculator!M13),0) -> 0 | G124: =IF(C124=2,IPMT(D124/12,1,12,-Calculator!$M$13)) -> FALSE | H124: =IF(C124=3,IPMT(D124/12,1,24,-Calculator!$M$13)) -> FALSE | I124: =IF(C124=4,IPMT(D124/12,1,12,-Calculator!$M$13)) -> FALSE | J124: =IF(C124=5,IPMT(D124/12,1,12,-Calculator!$M$13)) -> FALSE | K124: =IF(C124=6,IPMT(D124/12,1,12,-Calculator!$M$13)) -> FALSE
A125: Commitment 3 | B125: =Calculator!E15 -> 0 | C125: =IF(ISNUMBER(SEARCH("residential loan p&i",B125)),1,IF(ISNUMBER(SEARCH("Residential Loan IO 1 Year",B125)),2,IF(ISNUMBER(SEARCH("Residential Loan IO 2 Years",B125)),3,IF(ISNUMBER(SEARCH("Residential Loan IO 3 Years",B125)),4,IF(ISNUMBER(SEARCH("Residential Loan IO 4 Years",B125)),5,IF(ISNUMBER(SEARCH("Residential Loan IO 5 Years",B125)),6,0)))))) -> 0 | D125: =Calculator!R15 -> 0 | F125: =IF(C125=1,PMT(D125/12,Calculator!P15,-Calculator!M15),0) -> 0 | G125: =IF(C125=2,IPMT(D125/12,1,12,-Calculator!$M$15)) -> FALSE | H125: =IF(C125=3,IPMT(D125/12,1,24,-Calculator!$M$15)) -> FALSE | I125: =IF(C125=4,IPMT(D125/12,1,12,-Calculator!$M$15)) -> FALSE | J125: =IF(C125=5,IPMT(D125/12,1,12,-Calculator!$M$15)) -> FALSE | K125: =IF(C125=6,IPMT(D125/12,1,12,-Calculator!$M$15)) -> FALSE | Q125: =IF(AND(F129=1,Calculator!P104<1),PMT('Tables '!$D$8/12,300,-Calculator!M104),IF(AND(F129=2,Calculator!P104<1),PMT('Tables '!$D$8/12,300,-Calculator!M104),IF(AND(F129=5,Calculator!P104<1),PMT('Tables '!$D$8/12,300,-Calculator!M104),0))) -> 0
L126: =SUM(F123:K125) -> 0
A128: Existing Commitment | B128: Type | C128: Key | D128: Limit | E128: Repayment | F128: Key 2 | G128: P&I | H128: IO | I128: Secured | J128: Unsecured | K128: LoC | L128: Child Maint | M128: Boarding | N128: HECS | O128: Other | P128: Default | Q128: Total | T128: Metric:
A129: Commitment 1 | B129: =Calculator!H104 -> 0 | C129: =IF(ISNUMBER(SEARCH("residential loan p&i",B129)),1,IF(ISNUMBER(SEARCH("residential loan IO",B129)),1,IF(ISNUMBER(SEARCH("line of credit",B129)),1,0))) -> 0 | D129: =Calculator!M104 -> 0 | E129: =Calculator!T104 -> 0 | F129: =IF(ISNUMBER(SEARCH("residential loan p&i",B129)),1,IF(ISNUMBER(SEARCH("residential loan IO",B129)),2,IF(ISNUMBER(SEARCH("Secured Personal Loan",B129)),3,IF(ISNUMBER(SEARCH("unsecured personal loan",B129)),4,IF(ISNUMBER(SEARCH("Line of Credit",B129)),5,IF(ISNUMBER(SEARCH("Child Maintenance",B129)),6,IF(ISNUMBER(SEARCH("Board/Rental Commitment",B129)),7,IF(ISNUMBER(SEARCH("HECS/HELP",B129)),8,IF(ISNUMBER(SEARCH("OTHER",B129)),9,0))))))))) -> 0 | G129: =IF(AND(F129=1,Calculator!P104>0),IF(AND((Calculator!R104+'Tables '!D7)>'Tables '!$D$8,Calculator!R104>0),PMT((Calculator!R104+'Tables '!D7)/12,Calculator!P104,-Calculator!M104),PMT('Tables '!$D$8/12,Calculator!P104,-Calculator!M104)),0) -> 0 | H129: =IF(AND(F129=2,Calculator!P104>0),IF(AND((Calculator!R104+'Tables '!D7)>'Tables '!$D$8,Calculator!R104>0),PMT((Calculator!R104+'Tables '!D7)/12,Calculator!P104,-Calculator!M104),PMT('Tables '!$D$8/12,Calculator!P104,-Calculator!M104)),0) -> 0 | I129: =IF(F129=3,E129,0) -> 0 | J129: =IF(F129=4,E129,0) -> 0 | K129: =IF(AND(F129=5,Calculator!P104>0),IF(AND((Calculator!R104+'Tables '!D7)>'Tables '!$D$8,Calculator!R104>0),PMT((Calculator!R104+'Tables '!D7)/12,Calculator!P104,-Calculator!M104),PMT('Tables '!$D$8/12,Calculator!P104,-Calculator!M104)),IF(F129=5,IF(AND((Calculator!R104+'Tables '!D7)>'Tables '!$D$8,Calculator!R104>0),PMT((Calculator!R104+'Tables '!D7)/12,(25*12),-Calculator!M104),PMT('Tables '!$D$8/12,(25*12),-Calculator!M104)))) -> FALSE | L129: =IF(F129=6,E129,0) -> 0 | M129: =IF(F129=7,E129,0) -> 0 | N129: =IF(F129=8,E129,0) -> 0 | O129: =IF(F129=9,E129,0) -> 0 | P129: =IF(AND(F129=1,Calculator!P104<1),PMT('Tables '!$D$10/12,300,-Calculator!M104),IF(AND(F129=2,Calculator!P104<1),PMT('Tables '!$D$10/12,300,-Calculator!M104),IF(AND(F129=5,Calculator!P104<1),PMT('Tables '!$D$10/12,300,-Calculator!M104),0))) -> 0 | Q129: =(SUM(G129:P129)) -> 0 | T129: P&I and IO facilities where the remaining term is known, the sensitised repayment will be Sensitised Interest Rate on the (Principal Balance) over the Remaining Loan Term on a P&I basis. No calculation will be available for these facilities where the remaining term is unknown.
A130: Commitment 2 | B130: =Calculator!H106 -> 0 | C130: 0 | D130: =Calculator!M106 -> 0 | E130: =Calculator!T106 -> 0 | F130: =IF(ISNUMBER(SEARCH("residential loan p&i",B130)),1,IF(ISNUMBER(SEARCH("residential loan IO",B130)),2,IF(ISNUMBER(SEARCH("Secured Personal Loan",B130)),3,IF(ISNUMBER(SEARCH("unsecured personal loan",B130)),4,IF(ISNUMBER(SEARCH("Line of Credit",B130)),5,IF(ISNUMBER(SEARCH("Child Maintenance",B130)),6,IF(ISNUMBER(SEARCH("Board/Rental Commitment",B130)),7,IF(ISNUMBER(SEARCH("HECS/HELP",B130)),8,IF(ISNUMBER(SEARCH("OTHER",B130)),9,0))))))))) -> 0 | G130: =IF(AND(F130=1,Calculator!P106>0),IF(AND((Calculator!R106+'Tables '!D7)>'Tables '!$D$8,Calculator!R106>0),PMT((Calculator!R106+'Tables '!D7)/12,Calculator!P106,-Calculator!M106),PMT('Tables '!$D$8/12,Calculator!P106,-Calculator!M106)),0) -> 0 | H130: =IF(AND(F130=2,Calculator!P106>0),IF(AND((Calculator!R106+'Tables '!D7)>'Tables '!$D$8,Calculator!R106>0),PMT((Calculator!R106+'Tables '!D7)/12,Calculator!P106,-Calculator!M106),PMT('Tables '!$D$8/12,Calculator!P106,-Calculator!M106)),0) -> 0 | I130: 0 | J130: =IF(F130=4,E130,0) -> 0 | K130: =IF(AND(F130=5,Calculator!P106>0),IF(AND((Calculator!R106+'Tables '!D7)>'Tables '!$D$8,Calculator!R106>0),PMT((Calculator!R106+'Tables '!D7)/12,Calculator!P106,-Calculator!M106),PMT('Tables '!$D$8/12,Calculator!P106,-Calculator!M106)),IF(F130=5,IF(AND((Calculator!R106+'Tables '!D7)>'Tables '!$D$8,Calculator!R106>0),PMT((Calculator!R106+'Tables '!D7)/12,(25*12),-Calculator!M106),PMT('Tables '!$D$8/12,(25*12),-Calculator!M106)))) -> FALSE | L130: 0 | M130: =IF(F130=7,E130,0) -> 0 | N130: 0 | O130: =IF(F130=9,E130,0) -> 0 | P130: =IF(AND(F130=1,Calculator!P106<1),PMT('Tables '!$D$10/12,300,-Calculator!M106),IF(AND(F130=2,Calculator!P106<1),PMT('Tables '!$D$10/12,300,-Calculator!M106),IF(AND(F130=5,Calculator!P106<1),PMT('Tables '!$D$10/12,300,-Calculator!M106),0))) -> 0 | Q130: =(SUM(G130:P130)) -> 0 | T130: LOC facilities where the remaining term is known, will be Sensitised Interest Rate on the (Principal Balance) over the Remaining Loan Term on a P&I basis
A131: Commitment 3 | B131: =Calculator!H108 -> 0 | C131: 0 | D131: =Calculator!M108 -> 0 | E131: =Calculator!T108 -> 0 | F131: 0 | G131: =IF(AND(F131=1,Calculator!P108>0),IF(AND((Calculator!R108+'Tables '!D7)>'Tables '!$D$8,Calculator!R108>0),PMT((Calculator!R108+'Tables '!D7)/12,Calculator!P108,-Calculator!M108),PMT('Tables '!$D$8/12,Calculator!P108,-Calculator!M108)),0) -> 0 | H131: =IF(AND(F131=2,Calculator!P108>0),IF(AND((Calculator!R108+'Tables '!D7)>'Tables '!$D$8,Calculator!R108>0),PMT((Calculator!R108+'Tables '!D7)/12,Calculator!P108,-Calculator!M108),PMT('Tables '!$D$8/12,Calculator!P108,-Calculator!M108)),0) -> 0 | I131: 0 | J131: =IF(F131=4,E131,0) -> 0 | K131: =IF(AND(F131=5,Calculator!P108>0),IF(AND((Calculator!R108+'Tables '!D7)>'Tables '!$D$8,Calculator!R108>0),PMT((Calculator!R108+'Tables '!D7)/12,Calculator!P108,-Calculator!M108),PMT('Tables '!$D$8/12,Calculator!P108,-Calculator!M108)),IF(F131=5,IF(AND((Calculator!R108+'Tables '!D7)>'Tables '!$D$8,Calculator!R108>0),PMT((Calculator!R108+'Tables '!D7)/12,(25*12),-Calculator!M108),PMT('Tables '!$D$8/12,(25*12),-Calculator!M108)))) -> FALSE | L131: 0 | M131: 0 | N131: 0 | O131: 0 | P131: =IF(AND(F131=1,Calculator!P108<1),PMT('Tables '!$D$10/12,300,-Calculator!M108),IF(AND(F131=2,Calculator!P108<1),PMT('Tables '!$D$10/12,300,-Calculator!M108),IF(AND(F131=5,Calculator!P108<1),PMT('Tables '!$D$10/12,300,-Calculator!M108),0))) -> 0 | Q131: 0 | T131: Where the remaining term is unknown the LOC facilities will be the Sensitised Interest Rate on the (Principal Balance) over the default LOC P&I term (25 years).
A132: Commitment 4 | B132: =Calculator!H110 -> 0 | C132: 0 | D132: =Calculator!M110 -> 0 | E132: =Calculator!T110 -> 0 | F132: 0 | G132: =IF(AND(F132=1,Calculator!P110>0),IF(AND((Calculator!R110+'Tables '!D8)>'Tables '!$D$8,Calculator!R110>0),PMT((Calculator!R110+'Tables '!D8)/12,Calculator!P110,-Calculator!M110),PMT('Tables '!$D$8/12,Calculator!P110,-Calculator!M110)),0) -> 0 | H132: =IF(AND(F132=2,Calculator!P110>0),IF(AND((Calculator!R110+'Tables '!D8)>'Tables '!$D$8,Calculator!R110>0),PMT((Calculator!R110+'Tables '!D8)/12,Calculator!P110,-Calculator!M110),PMT('Tables '!$D$8/12,Calculator!P110,-Calculator!M110)),0) -> 0 | I132: 0 | J132: =IF(F132=4,E132,0) -> 0 | K132: =IF(AND(F132=5,Calculator!P110>0),IF(AND((Calculator!R110+'Tables '!D8)>'Tables '!$D$8,Calculator!R110>0),PMT((Calculator!R110+'Tables '!D8)/12,Calculator!P110,-Calculator!M110),PMT('Tables '!$D$8/12,Calculator!P110,-Calculator!M110)),IF(F132=5,IF(AND((Calculator!R110+'Tables '!D8)>'Tables '!$D$8,Calculator!R110>0),PMT((Calculator!R110+'Tables '!D8)/12,(25*12),-Calculator!M110),PMT('Tables '!$D$8/12,(25*12),-Calculator!M110)))) -> FALSE | L132: 0 | M132: 0 | N132: 0 | O132: 0 | P132: =IF(AND(F132=1,Calculator!P110<1),PMT('Tables '!$D$10/12,300,-Calculator!M110),IF(AND(F132=2,Calculator!P110<1),PMT('Tables '!$D$10/12,300,-Calculator!M110),IF(AND(F132=5,Calculator!P110<1),PMT('Tables '!$D$10/12,300,-Calculator!M110),0))) -> 0 | Q132: 0
A133: Commitment 5 | B133: =Calculator!H112 -> 0 | C133: 0 | D133: =Calculator!M112 -> 0 | E133: =Calculator!T112 -> 0 | F133: 0 | G133: =IF(AND(F133=1,Calculator!P112>0),IF(AND((Calculator!R112+'Tables '!D9)>'Tables '!$D$8,Calculator!R112>0),PMT((Calculator!R112+'Tables '!D9)/12,Calculator!P112,-Calculator!M112),PMT('Tables '!$D$8/12,Calculator!P112,-Calculator!M112)),0) -> 0 | H133: =IF(AND(F133=2,Calculator!P112>0),IF(AND((Calculator!R112+'Tables '!D9)>'Tables '!$D$8,Calculator!R112>0),PMT((Calculator!R112+'Tables '!D9)/12,Calculator!P112,-Calculator!M112),PMT('Tables '!$D$8/12,Calculator!P112,-Calculator!M112)),0) -> 0 | I133: 0 | J133: 0 | K133: =IF(AND(F133=5,Calculator!P112>0),IF(AND((Calculator!R112+'Tables '!D9)>'Tables '!$D$8,Calculator!R112>0),PMT((Calculator!R112+'Tables '!D9)/12,Calculator!P112,-Calculator!M112),PMT('Tables '!$D$8/12,Calculator!P112,-Calculator!M112)),IF(F133=5,IF(AND((Calculator!R112+'Tables '!D9)>'Tables '!$D$8,Calculator!R112>0),PMT((Calculator!R112+'Tables '!D9)/12,(25*12),-Calculator!M112),PMT('Tables '!$D$8/12,(25*12),-Calculator!M112)))) -> FALSE | L133: 0 | M133: 0 | N133: 0 | O133: 0 | P133: =IF(AND(F133=1,Calculator!P112<1),PMT('Tables '!$D$10/12,300,-Calculator!M112),IF(AND(F133=2,Calculator!P112<1),PMT('Tables '!$D$10/12,300,-Calculator!M112),IF(AND(F133=5,Calculator!P112<1),PMT('Tables '!$D$10/12,300,-Calculator!M112),0))) -> 0 | Q133: 0
A134: Commitment 6 | B134: =Calculator!H114 -> 0 | C134: 0 | D134: =Calculator!M114 -> 0 | E134: =Calculator!T114 -> 0 | F134: 0 | G134: =IF(AND(F134=1,Calculator!P114>0),IF(AND((Calculator!R114+'Tables '!D10)>'Tables '!$D$8,Calculator!R114>0),PMT((Calculator!R114+'Tables '!D10)/12,Calculator!P114,-Calculator!M114),PMT('Tables '!$D$8/12,Calculator!P114,-Calculator!M114)),0) -> 0 | H134: =IF(AND(F134=2,Calculator!P114>0),IF(AND((Calculator!R114+'Tables '!D10)>'Tables '!$D$8,Calculator!R114>0),PMT((Calculator!R114+'Tables '!D10)/12,Calculator!P114,-Calculator!M114),PMT('Tables '!$D$8/12,Calculator!P114,-Calculator!M114)),0) -> 0 | I134: 0 | J134: 0 | K134: =IF(AND(F134=5,Calculator!P114>0),IF(AND((Calculator!R114+'Tables '!D10)>'Tables '!$D$8,Calculator!R114>0),PMT((Calculator!R114+'Tables '!D10)/12,Calculator!P114,-Calculator!M114),PMT('Tables '!$D$8/12,Calculator!P114,-Calculator!M114)),IF(F134=5,IF(AND((Calculator!R114+'Tables '!D10)>'Tables '!$D$8,Calculator!R114>0),PMT((Calculator!R114+'Tables '!D10)/12,(25*12),-Calculator!M114),PMT('Tables '!$D$8/12,(25*12),-Calculator!M114)))) -> FALSE | L134: 0 | M134: 0 | N134: 0 | O134: 0 | P134: =IF(AND(F134=1,Calculator!P114<1),PMT('Tables '!$D$10/12,300,-Calculator!M114),IF(AND(F134=2,Calculator!P114<1),PMT('Tables '!$D$10/12,300,-Calculator!M114),IF(AND(F134=5,Calculator!P114<1),PMT('Tables '!$D$10/12,300,-Calculator!M114),0))) -> 0 | Q134: 0
D135: Total if '1' | E135: =SUMIF(C129:C134,1,E129:E134) -> 0 | Q135: =SUM(Q129:Q134) -> 0
H136: =IF(F130=2,-PMT('Tables '!D8/12,25*12,'Result Sheet'!D130),"") ->  | T136: Sensitised Interest Rates
H137: =IPMT(D123/12,1,36,-Calculator!$M$11) -> 0
A138: Living Expenses Income | D138: HEM + Disc Expenses | T138: Sensitised Interest Rates on all existing residential mortgage facilities (IO, LOC, P&I) will be as follows:
A139: Household 1 | B139: =SUMIF(D52:G52,1,D53:G53) -> 0 | D139: =HEM!$K17+'Living Exp'!F31+'Living Exp'!F33+'Living Exp'!F35+'Living Exp'!F37+'Living Exp'!F41+'Living Exp'!F43 -> 0 | T139: Where the contracted rate is known this will be the greater of Interest Floor Rate (5.25%) or the Contractual Interest Rate + Interest Rate Buffer (2.5%).
A140: Household 2 | B140: =SUMIF(D52:G52,2,D53:G53) -> 0 | D140: =HEM!$K24+'Living Exp'!H31+'Living Exp'!H33+'Living Exp'!H35+'Living Exp'!H37+'Living Exp'!H41+'Living Exp'!H43 -> 0 | T140: Where the contracted rate is not known this will be the greater of Interest Floor Rate (5.25%) or the Proxy Interest rate (3.78) + Interest Rate Buffer (2.5%).
A141: Household 3 | B141: =SUMIF(D52:G52,3,D53:G53) -> 0 | D141: =HEM!$K31+'Living Exp'!J31+'Living Exp'!J33+'Living Exp'!J35+'Living Exp'!J37+'Living Exp'!J41+'Living Exp'!J43 -> 0
A142: Household 4 | B142: =SUMIF(D52:G52,4,D53:G53) -> 0 | D142: =HEM!$K38+'Living Exp'!L31+'Living Exp'!L33+'Living Exp'!L35+'Living Exp'!L37+'Living Exp'!L41+'Living Exp'!L43 -> 0
A144: Mortgag Repayment to Income | B144: Applicant 1 | C144: Applicant 2 | D144: Applicant 3 | E144: Applicant 4
A145: Gross Income | B145: =D54 -> 0 | C145: =E54 -> 0 | D145: =F54 -> 0 | E145: =G54 -> 0
A146: PAYG Addback | B146: =D100 -> 0 | C146: =E100 -> 0 | D146: 0 | E146: 0
A147: SE Addback | B147: =D101 -> 0 | C147: =E101 -> 0 | D147: 0 | E147: 0
A148: (Haircut PAYG) | B148: =D12 -> 0 | C148: =F12 -> 0 | D148: =H12 -> 0 | E148: =J12 -> 0
A149: (Haircut Rent) | B149: =D103 -> 0 | C149: =E103 -> 0 | D149: =F103 -> 0 | E149: =G103 -> 0
A150: Total | B150: =B145+B146+B147-B148-B149 -> 0 | C150: =C145+C146+C147-C148-C149 -> 0 | D150: =D145+D146+D147-D148-D149 -> 0 | E150: =E145+E146+E147-E148-E149 -> 0
A151: Total all applicants per month | B151: =SUM(B150:E150)/12 -> 0
A153: Serviceabilty Ratio | B153: =IFERROR(SUM(('Result Sheet'!G107/12)-B65-'Result Sheet'!B64)/(Calculator!W135+'Result Sheet'!Q135+'Result Sheet'!D109),"") -> 

Sheet Postcode (hidden)
A1: Residential Security Locations
A2: Postcode | B2: Category | C2: 0.7 | D2: 0.8 | E2: 0.9 | F2: 0.95
A3: 2000 | B3: 1 | C3: =IF($B3=1,VLOOKUP(C$2,Table1[],3,0),IF($B3=2,VLOOKUP(C$2,Table1[],4,0),IF($B3=3,VLOOKUP(C$2,Table1[],5,0),IF($B3=4,VLOOKUP(C$2,Table1[],5,0),0)))) -> 2000000 | D3: =IF($B3=1,VLOOKUP(D$2,Table1[],3,0),IF($B3=2,VLOOKUP(D$2,Table1[],4,0),IF($B3=3,VLOOKUP(D$2,Table1[],5,0),IF($B3=4,VLOOKUP(D$2,Table1[],5,0),0)))) -> 2000000 | E3: =IF($B3=1,VLOOKUP(E$2,Table1[],3,0),IF($B3=2,VLOOKUP(E$2,Table1[],4,0),IF($B3=3,VLOOKUP(E$2,Table1[],5,0),IF($B3=4,VLOOKUP(E$2,Table1[],5,0),0)))) -> 1500000 | F3: =IF($B3=1,VLOOKUP(F$2,Table1[],3,0),IF($B3=2,VLOOKUP(F$2,Table1[],4,0),IF($B3=3,VLOOKUP(F$2,Table1[],5,0),IF($B3=4,VLOOKUP(F$2,Table1[],5,0),0)))) -> 800000 | H3: Enter Postcode | I3: =Calculator!M19 -> 0
A4: 2007 | B4: 1 | C4: =IF($B4=1,VLOOKUP(C$2,Table1[],3,0),IF($B4=2,VLOOKUP(C$2,Table1[],4,0),IF($B4=3,VLOOKUP(C$2,Table1[],5,0),IF($B4=4,VLOOKUP(C$2,Table1[],5,0),0)))) -> 2000000 | D4: =IF($B4=1,VLOOKUP(D$2,Table1[],3,0),IF($B4=2,VLOOKUP(D$2,Table1[],4,0),IF($B4=3,VLOOKUP(D$2,Table1[],5,0),IF($B4=4,VLOOKUP(D$2,Table1[],5,0),0)))) -> 2000000 | E4: =IF($B4=1,VLOOKUP(E$2,Table1[],3,0),IF($B4=2,VLOOKUP(E$2,Table1[],4,0),IF($B4=3,VLOOKUP(E$2,Table1[],5,0),IF($B4=4,VLOOKUP(E$2,Table1[],5,0),0)))) -> 1500000 | F4: =IF($B4=1,VLOOKUP(F$2,Table1[],3,0),IF($B4=2,VLOOKUP(F$2,Table1[],4,0),IF($B4=3,VLOOKUP(F$2,Table1[],5,0),IF($B4=4,VLOOKUP(F$2,Table1[],5,0),0)))) -> 800000 | H4: Enter LVR | I4: =Calculator!W17 -> 
A5: 2008 | B5: 1 | C5: =IF($B5=1,VLOOKUP(C$2,Table1[],3,0),IF($B5=2,VLOOKUP(C$2,Table1[],4,0),IF($B5=3,VLOOKUP(C$2,Table1[],5,0),IF($B5=4,VLOOKUP(C$2,Table1[],5,0),0)))) -> 2000000 | D5: =IF($B5=1,VLOOKUP(D$2,Table1[],3,0),IF($B5=2,VLOOKUP(D$2,Table1[],4,0),IF($B5=3,VLOOKUP(D$2,Table1[],5,0),IF($B5=4,VLOOKUP(D$2,Table1[],5,0),0)))) -> 2000000 | E5: =IF($B5=1,VLOOKUP(E$2,Table1[],3,0),IF($B5=2,VLOOKUP(E$2,Table1[],4,0),IF($B5=3,VLOOKUP(E$2,Table1[],5,0),IF($B5=4,VLOOKUP(E$2,Table1[],5,0),0)))) -> 1500000 | F5: =IF($B5=1,VLOOKUP(F$2,Table1[],3,0),IF($B5=2,VLOOKUP(F$2,Table1[],4,0),IF($B5=3,VLOOKUP(F$2,Table1[],5,0),IF($B5=4,VLOOKUP(F$2,Table1[],5,0),0)))) -> 800000 | H5: Enter Loan Amount | I5: =Calculator!M17 -> 0
A6: 2009 | B6: 1 | C6: =IF($B6=1,VLOOKUP(C$2,Table1[],3,0),IF($B6=2,VLOOKUP(C$2,Table1[],4,0),IF($B6=3,VLOOKUP(C$2,Table1[],5,0),IF($B6=4,VLOOKUP(C$2,Table1[],5,0),0)))) -> 2000000 | D6: =IF($B6=1,VLOOKUP(D$2,Table1[],3,0),IF($B6=2,VLOOKUP(D$2,Table1[],4,0),IF($B6=3,VLOOKUP(D$2,Table1[],5,0),IF($B6=4,VLOOKUP(D$2,Table1[],5,0),0)))) -> 2000000 | E6: =IF($B6=1,VLOOKUP(E$2,Table1[],3,0),IF($B6=2,VLOOKUP(E$2,Table1[],4,0),IF($B6=3,VLOOKUP(E$2,Table1[],5,0),IF($B6=4,VLOOKUP(E$2,Table1[],5,0),0)))) -> 1500000 | F6: =IF($B6=1,VLOOKUP(F$2,Table1[],3,0),IF($B6=2,VLOOKUP(F$2,Table1[],4,0),IF($B6=3,VLOOKUP(F$2,Table1[],5,0),IF($B6=4,VLOOKUP(F$2,Table1[],5,0),0)))) -> 800000
A7: 2010 | B7: 1 | C7: =IF($B7=1,VLOOKUP(C$2,Table1[],3,0),IF($B7=2,VLOOKUP(C$2,Table1[],4,0),IF($B7=3,VLOOKUP(C$2,Table1[],5,0),IF($B7=4,VLOOKUP(C$2,Table1[],5,0),0)))) -> 2000000 | D7: =IF($B7=1,VLOOKUP(D$2,Table1[],3,0),IF($B7=2,VLOOKUP(D$2,Table1[],4,0),IF($B7=3,VLOOKUP(D$2,Table1[],5,0),IF($B7=4,VLOOKUP(D$2,Table1[],5,0),0)))) -> 2000000 | E7: =IF($B7=1,VLOOKUP(E$2,Table1[],3,0),IF($B7=2,VLOOKUP(E$2,Table1[],4,0),IF($B7=3,VLOOKUP(E$2,Table1[],5,0),IF($B7=4,VLOOKUP(E$2,Table1[],5,0),0)))) -> 1500000 | F7: =IF($B7=1,VLOOKUP(F$2,Table1[],3,0),IF($B7=2,VLOOKUP(F$2,Table1[],4,0),IF($B7=3,VLOOKUP(F$2,Table1[],5,0),IF($B7=4,VLOOKUP(F$2,Table1[],5,0),0)))) -> 800000 | H7: 0.7 | I7: =IF(ISERROR(VLOOKUP($I$3,$A$3:$F$1484,3,0)),"-",VLOOKUP($I$3,$A$3:$F$1484,3,0)) -> - | J7: =IF(AND(I7<>"-",I7<>"N/A"),IF(AND($I$4<=70%,$I$5<=I7),1,0),0) -> 0
A8: 2011 | B8: 1 | C8: =IF($B8=1,VLOOKUP(C$2,Table1[],3,0),IF($B8=2,VLOOKUP(C$2,Table1[],4,0),IF($B8=3,VLOOKUP(C$2,Table1[],5,0),IF($B8=4,VLOOKUP(C$2,Table1[],5,0),0)))) -> 2000000 | D8: =IF($B8=1,VLOOKUP(D$2,Table1[],3,0),IF($B8=2,VLOOKUP(D$2,Table1[],4,0),IF($B8=3,VLOOKUP(D$2,Table1[],5,0),IF($B8=4,VLOOKUP(D$2,Table1[],5,0),0)))) -> 2000000 | E8: =IF($B8=1,VLOOKUP(E$2,Table1[],3,0),IF($B8=2,VLOOKUP(E$2,Table1[],4,0),IF($B8=3,VLOOKUP(E$2,Table1[],5,0),IF($B8=4,VLOOKUP(E$2,Table1[],5,0),0)))) -> 1500000 | F8: =IF($B8=1,VLOOKUP(F$2,Table1[],3,0),IF($B8=2,VLOOKUP(F$2,Table1[],4,0),IF($B8=3,VLOOKUP(F$2,Table1[],5,0),IF($B8=4,VLOOKUP(F$2,Table1[],5,0),0)))) -> 800000 | H8: 0.8 | I8: =IF(ISERROR(VLOOKUP($I$3,$A$3:$F$1484,4,0)),"-",VLOOKUP($I$3,$A$3:$F$1484,4,0)) -> - | J8: =IF(AND(I8<>"-",I8<>"N/A"),IF(AND($I$4>=70.01%,$I$4<=80%),IF($I$5<=$I8,1,0),0),0) -> 0
A9: 2015 | B9: 1 | C9: =IF($B9=1,VLOOKUP(C$2,Table1[],3,0),IF($B9=2,VLOOKUP(C$2,Table1[],4,0),IF($B9=3,VLOOKUP(C$2,Table1[],5,0),IF($B9=4,VLOOKUP(C$2,Table1[],5,0),0)))) -> 2000000 | D9: =IF($B9=1,VLOOKUP(D$2,Table1[],3,0),IF($B9=2,VLOOKUP(D$2,Table1[],4,0),IF($B9=3,VLOOKUP(D$2,Table1[],5,0),IF($B9=4,VLOOKUP(D$2,Table1[],5,0),0)))) -> 2000000 | E9: =IF($B9=1,VLOOKUP(E$2,Table1[],3,0),IF($B9=2,VLOOKUP(E$2,Table1[],4,0),IF($B9=3,VLOOKUP(E$2,Table1[],5,0),IF($B9=4,VLOOKUP(E$2,Table1[],5,0),0)))) -> 1500000 | F9: =IF($B9=1,VLOOKUP(F$2,Table1[],3,0),IF($B9=2,VLOOKUP(F$2,Table1[],4,0),IF($B9=3,VLOOKUP(F$2,Table1[],5,0),IF($B9=4,VLOOKUP(F$2,Table1[],5,0),0)))) -> 800000 | H9: 0.9 | I9: =IF(ISERROR(VLOOKUP($I$3,$A$3:$F$1484,5,0)),"-",VLOOKUP($I$3,$A$3:$F$1484,5,0)) -> - | J9: =IF(AND(I9<>"-",I9<>"N/A"),IF(AND($I$4>=80.01%,$I$4<=90%),IF($I$5<=$I9,1,0),0),0) -> 0
A10: 2016 | B10: 1 | C10: =IF($B10=1,VLOOKUP(C$2,Table1[],3,0),IF($B10=2,VLOOKUP(C$2,Table1[],4,0),IF($B10=3,VLOOKUP(C$2,Table1[],5,0),IF($B10=4,VLOOKUP(C$2,Table1[],5,0),0)))) -> 2000000 | D10: =IF($B10=1,VLOOKUP(D$2,Table1[],3,0),IF($B10=2,VLOOKUP(D$2,Table1[],4,0),IF($B10=3,VLOOKUP(D$2,Table1[],5,0),IF($B10=4,VLOOKUP(D$2,Table1[],5,0),0)))) -> 2000000 | E10: =IF($B10=1,VLOOKUP(E$2,Table1[],3,0),IF($B10=2,VLOOKUP(E$2,Table1[],4,0),IF($B10=3,VLOOKUP(E$2,Table1[],5,0),IF($B10=4,VLOOKUP(E$2,Table1[],5,0),0)))) -> 1500000 | F10: =IF($B10=1,VLOOKUP(F$2,Table1[],3,0),IF($B10=2,VLOOKUP(F$2,Table1[],4,0),IF($B10=3,VLOOKUP(F$2,Table1[],5,0),IF($B10=4,VLOOKUP(F$2,Table1[],5,0),0)))) -> 800000 | H10: 0.95 | I10: =IF(ISERROR(VLOOKUP($I$3,$A$3:$F$1484,6,0)),"-",VLOOKUP($I$3,$A$3:$F$1484,6,0)) -> - | J10: =IF(AND(I10<>"-",I10<>"N/A"),IF(AND($I$4>=90.01%,$I$4<=95%),IF($I$5<=$I10,1,0),0),0) -> 0
A11: 2017 | B11: 1 | C11: =IF($B11=1,VLOOKUP(C$2,Table1[],3,0),IF($B11=2,VLOOKUP(C$2,Table1[],4,0),IF($B11=3,VLOOKUP(C$2,Table1[],5,0),IF($B11=4,VLOOKUP(C$2,Table1[],5,0),0)))) -> 2000000 | D11: =IF($B11=1,VLOOKUP(D$2,Table1[],3,0),IF($B11=2,VLOOKUP(D$2,Table1[],4,0),IF($B11=3,VLOOKUP(D$2,Table1[],5,0),IF($B11=4,VLOOKUP(D$2,Table1[],5,0),0)))) -> 2000000 | E11: =IF($B11=1,VLOOKUP(E$2,Table1[],3,0),IF($B11=2,VLOOKUP(E$2,Table1[],4,0),IF($B11=3,VLOOKUP(E$2,Table1[],5,0),IF($B11=4,VLOOKUP(E$2,Table1[],5,0),0)))) -> 1500000 | F11: =IF($B11=1,VLOOKUP(F$2,Table1[],3,0),IF($B11=2,VLOOKUP(F$2,Table1[],4,0),IF($B11=3,VLOOKUP(F$2,Table1[],5,0),IF($B11=4,VLOOKUP(F$2,Table1[],5,0),0)))) -> 800000 | H11: Result | I11: =IF(MAX(J7:J10)=1,"Pass","Refer") -> Refer
A12: 2018 | B12: 1 | C12: =IF($B12=1,VLOOKUP(C$2,Table1[],3,0),IF($B12=2,VLOOKUP(C$2,Table1[],4,0),IF($B12=3,VLOOKUP(C$2,Table1[],5,0),IF($B12=4,VLOOKUP(C$2,Table1[],5,0),0)))) -> 2000000 | D12: =IF($B12=1,VLOOKUP(D$2,Table1[],3,0),IF($B12=2,VLOOKUP(D$2,Table1[],4,0),IF($B12=3,VLOOKUP(D$2,Table1[],5,0),IF($B12=4,VLOOKUP(D$2,Table1[],5,0),0)))) -> 2000000 | E12: =IF($B12=1,VLOOKUP(E$2,Table1[],3,0),IF($B12=2,VLOOKUP(E$2,Table1[],4,0),IF($B12=3,VLOOKUP(E$2,Table1[],5,0),IF($B12=4,VLOOKUP(E$2,Table1[],5,0),0)))) -> 1500000 | F12: =IF($B12=1,VLOOKUP(F$2,Table1[],3,0),IF($B12=2,VLOOKUP(F$2,Table1[],4,0),IF($B12=3,VLOOKUP(F$2,Table1[],5,0),IF($B12=4,VLOOKUP(F$2,Table1[],5,0),0)))) -> 800000
A13: 2019 | B13: 1 | C13: =IF($B13=1,VLOOKUP(C$2,Table1[],3,0),IF($B13=2,VLOOKUP(C$2,Table1[],4,0),IF($B13=3,VLOOKUP(C$2,Table1[],5,0),IF($B13=4,VLOOKUP(C$2,Table1[],5,0),0)))) -> 2000000 | D13: =IF($B13=1,VLOOKUP(D$2,Table1[],3,0),IF($B13=2,VLOOKUP(D$2,Table1[],4,0),IF($B13=3,VLOOKUP(D$2,Table1[],5,0),IF($B13=4,VLOOKUP(D$2,Table1[],5,0),0)))) -> 2000000 | E13: =IF($B13=1,VLOOKUP(E$2,Table1[],3,0),IF($B13=2,VLOOKUP(E$2,Table1[],4,0),IF($B13=3,VLOOKUP(E$2,Table1[],5,0),IF($B13=4,VLOOKUP(E$2,Table1[],5,0),0)))) -> 1500000 | F13: =IF($B13=1,VLOOKUP(F$2,Table1[],3,0),IF($B13=2,VLOOKUP(F$2,Table1[],4,0),IF($B13=3,VLOOKUP(F$2,Table1[],5,0),IF($B13=4,VLOOKUP(F$2,Table1[],5,0),0)))) -> 800000
A14: 2020 | B14: 1 | C14: =IF($B14=1,VLOOKUP(C$2,Table1[],3,0),IF($B14=2,VLOOKUP(C$2,Table1[],4,0),IF($B14=3,VLOOKUP(C$2,Table1[],5,0),IF($B14=4,VLOOKUP(C$2,Table1[],5,0),0)))) -> 2000000 | D14: =IF($B14=1,VLOOKUP(D$2,Table1[],3,0),IF($B14=2,VLOOKUP(D$2,Table1[],4,0),IF($B14=3,VLOOKUP(D$2,Table1[],5,0),IF($B14=4,VLOOKUP(D$2,Table1[],5,0),0)))) -> 2000000 | E14: =IF($B14=1,VLOOKUP(E$2,Table1[],3,0),IF($B14=2,VLOOKUP(E$2,Table1[],4,0),IF($B14=3,VLOOKUP(E$2,Table1[],5,0),IF($B14=4,VLOOKUP(E$2,Table1[],5,0),0)))) -> 1500000 | F14: =IF($B14=1,VLOOKUP(F$2,Table1[],3,0),IF($B14=2,VLOOKUP(F$2,Table1[],4,0),IF($B14=3,VLOOKUP(F$2,Table1[],5,0),IF($B14=4,VLOOKUP(F$2,Table1[],5,0),0)))) -> 800000
A15: 2021 | B15: 1 | C15: =IF($B15=1,VLOOKUP(C$2,Table1[],3,0),IF($B15=2,VLOOKUP(C$2,Table1[],4,0),IF($B15=3,VLOOKUP(C$2,Table1[],5,0),IF($B15=4,VLOOKUP(C$2,Table1[],5,0),0)))) -> 2000000 | D15: =IF($B15=1,VLOOKUP(D$2,Table1[],3,0),IF($B15=2,VLOOKUP(D$2,Table1[],4,0),IF($B15=3,VLOOKUP(D$2,Table1[],5,0),IF($B15=4,VLOOKUP(D$2,Table1[],5,0),0)))) -> 2000000 | E15: =IF($B15=1,VLOOKUP(E$2,Table1[],3,0),IF($B15=2,VLOOKUP(E$2,Table1[],4,0),IF($B15=3,VLOOKUP(E$2,Table1[],5,0),IF($B15=4,VLOOKUP(E$2,Table1[],5,0),0)))) -> 1500000 | F15: =IF($B15=1,VLOOKUP(F$2,Table1[],3,0),IF($B15=2,VLOOKUP(F$2,Table1[],4,0),IF($B15=3,VLOOKUP(F$2,Table1[],5,0),IF($B15=4,VLOOKUP(F$2,Table1[],5,0),0)))) -> 800000
A16: 2022 | B16: 1 | C16: =IF($B16=1,VLOOKUP(C$2,Table1[],3,0),IF($B16=2,VLOOKUP(C$2,Table1[],4,0),IF($B16=3,VLOOKUP(C$2,Table1[],5,0),IF($B16=4,VLOOKUP(C$2,Table1[],5,0),0)))) -> 2000000 | D16: =IF($B16=1,VLOOKUP(D$2,Table1[],3,0),IF($B16=2,VLOOKUP(D$2,Table1[],4,0),IF($B16=3,VLOOKUP(D$2,Table1[],5,0),IF($B16=4,VLOOKUP(D$2,Table1[],5,0),0)))) -> 2000000 | E16: =IF($B16=1,VLOOKUP(E$2,Table1[],3,0),IF($B16=2,VLOOKUP(E$2,Table1[],4,0),IF($B16=3,VLOOKUP(E$2,Table1[],5,0),IF($B16=4,VLOOKUP(E$2,Table1[],5,0),0)))) -> 1500000 | F16: =IF($B16=1,VLOOKUP(F$2,Table1[],3,0),IF($B16=2,VLOOKUP(F$2,Table1[],4,0),IF($B16=3,VLOOKUP(F$2,Table1[],5,0),IF($B16=4,VLOOKUP(F$2,Table1[],5,0),0)))) -> 800000
A17: 2023 | B17: 1 | C17: =IF($B17=1,VLOOKUP(C$2,Table1[],3,0),IF($B17=2,VLOOKUP(C$2,Table1[],4,0),IF($B17=3,VLOOKUP(C$2,Table1[],5,0),IF($B17=4,VLOOKUP(C$2,Table1[],5,0),0)))) -> 2000000 | D17: =IF($B17=1,VLOOKUP(D$2,Table1[],3,0),IF($B17=2,VLOOKUP(D$2,Table1[],4,0),IF($B17=3,VLOOKUP(D$2,Table1[],5,0),IF($B17=4,VLOOKUP(D$2,Table1[],5,0),0)))) -> 2000000 | E17: =IF($B17=1,VLOOKUP(E$2,Table1[],3,0),IF($B17=2,VLOOKUP(E$2,Table1[],4,0),IF($B17=3,VLOOKUP(E$2,Table1[],5,0),IF($B17=4,VLOOKUP(E$2,Table1[],5,0),0)))) -> 1500000 | F17: =IF($B17=1,VLOOKUP(F$2,Table1[],3,0),IF($B17=2,VLOOKUP(F$2,Table1[],4,0),IF($B17=3,VLOOKUP(F$2,Table1[],5,0),IF($B17=4,VLOOKUP(F$2,Table1[],5,0),0)))) -> 800000
A18: 2024 | B18: 1 | C18: =IF($B18=1,VLOOKUP(C$2,Table1[],3,0),IF($B18=2,VLOOKUP(C$2,Table1[],4,0),IF($B18=3,VLOOKUP(C$2,Table1[],5,0),IF($B18=4,VLOOKUP(C$2,Table1[],5,0),0)))) -> 2000000 | D18: =IF($B18=1,VLOOKUP(D$2,Table1[],3,0),IF($B18=2,VLOOKUP(D$2,Table1[],4,0),IF($B18=3,VLOOKUP(D$2,Table1[],5,0),IF($B18=4,VLOOKUP(D$2,Table1[],5,0),0)))) -> 2000000 | E18: =IF($B18=1,VLOOKUP(E$2,Table1[],3,0),IF($B18=2,VLOOKUP(E$2,Table1[],4,0),IF($B18=3,VLOOKUP(E$2,Table1[],5,0),IF($B18=4,VLOOKUP(E$2,Table1[],5,0),0)))) -> 1500000 | F18: =IF($B18=1,VLOOKUP(F$2,Table1[],3,0),IF($B18=2,VLOOKUP(F$2,Table1[],4,0),IF($B18=3,VLOOKUP(F$2,Table1[],5,0),IF($B18=4,VLOOKUP(F$2,Table1[],5,0),0)))) -> 800000
A19: 2025 | B19: 1 | C19: =IF($B19=1,VLOOKUP(C$2,Table1[],3,0),IF($B19=2,VLOOKUP(C$2,Table1[],4,0),IF($B19=3,VLOOKUP(C$2,Table1[],5,0),IF($B19=4,VLOOKUP(C$2,Table1[],5,0),0)))) -> 2000000 | D19: =IF($B19=1,VLOOKUP(D$2,Table1[],3,0),IF($B19=2,VLOOKUP(D$2,Table1[],4,0),IF($B19=3,VLOOKUP(D$2,Table1[],5,0),IF($B19=4,VLOOKUP(D$2,Table1[],5,0),0)))) -> 2000000 | E19: =IF($B19=1,VLOOKUP(E$2,Table1[],3,0),IF($B19=2,VLOOKUP(E$2,Table1[],4,0),IF($B19=3,VLOOKUP(E$2,Table1[],5,0),IF($B19=4,VLOOKUP(E$2,Table1[],5,0),0)))) -> 1500000 | F19: =IF($B19=1,VLOOKUP(F$2,Table1[],3,0),IF($B19=2,VLOOKUP(F$2,Table1[],4,0),IF($B19=3,VLOOKUP(F$2,Table1[],5,0),IF($B19=4,VLOOKUP(F$2,Table1[],5,0),0)))) -> 800000
A20: 2026 | B20: 1 | C20: =IF($B20=1,VLOOKUP(C$2,Table1[],3,0),IF($B20=2,VLOOKUP(C$2,Table1[],4,0),IF($B20=3,VLOOKUP(C$2,Table1[],5,0),IF($B20=4,VLOOKUP(C$2,Table1[],5,0),0)))) -> 2000000 | D20: =IF($B20=1,VLOOKUP(D$2,Table1[],3,0),IF($B20=2,VLOOKUP(D$2,Table1[],4,0),IF($B20=3,VLOOKUP(D$2,Table1[],5,0),IF($B20=4,VLOOKUP(D$2,Table1[],5,0),0)))) -> 2000000 | E20: =IF($B20=1,VLOOKUP(E$2,Table1[],3,0),IF($B20=2,VLOOKUP(E$2,Table1[],4,0),IF($B20=3,VLOOKUP(E$2,Table1[],5,0),IF($B20=4,VLOOKUP(E$2,Table1[],5,0),0)))) -> 1500000 | F20: =IF($B20=1,VLOOKUP(F$2,Table1[],3,0),IF($B20=2,VLOOKUP(F$2,Table1[],4,0),IF($B20=3,VLOOKUP(F$2,Table1[],5,0),IF($B20=4,VLOOKUP(F$2,Table1[],5,0),0)))) -> 800000
A21: 2027 | B21: 1 | C21: =IF($B21=1,VLOOKUP(C$2,Table1[],3,0),IF($B21=2,VLOOKUP(C$2,Table1[],4,0),IF($B21=3,VLOOKUP(C$2,Table1[],5,0),IF($B21=4,VLOOKUP(C$2,Table1[],5,0),0)))) -> 2000000 | D21: =IF($B21=1,VLOOKUP(D$2,Table1[],3,0),IF($B21=2,VLOOKUP(D$2,Table1[],4,0),IF($B21=3,VLOOKUP(D$2,Table1[],5,0),IF($B21=4,VLOOKUP(D$2,Table1[],5,0),0)))) -> 2000000 | E21: =IF($B21=1,VLOOKUP(E$2,Table1[],3,0),IF($B21=2,VLOOKUP(E$2,Table1[],4,0),IF($B21=3,VLOOKUP(E$2,Table1[],5,0),IF($B21=4,VLOOKUP(E$2,Table1[],5,0),0)))) -> 1500000 | F21: =IF($B21=1,VLOOKUP(F$2,Table1[],3,0),IF($B21=2,VLOOKUP(F$2,Table1[],4,0),IF($B21=3,VLOOKUP(F$2,Table1[],5,0),IF($B21=4,VLOOKUP(F$2,Table1[],5,0),0)))) -> 800000
A22: 2028 | B22: 1 | C22: =IF($B22=1,VLOOKUP(C$2,Table1[],3,0),IF($B22=2,VLOOKUP(C$2,Table1[],4,0),IF($B22=3,VLOOKUP(C$2,Table1[],5,0),IF($B22=4,VLOOKUP(C$2,Table1[],5,0),0)))) -> 2000000 | D22: =IF($B22=1,VLOOKUP(D$2,Table1[],3,0),IF($B22=2,VLOOKUP(D$2,Table1[],4,0),IF($B22=3,VLOOKUP(D$2,Table1[],5,0),IF($B22=4,VLOOKUP(D$2,Table1[],5,0),0)))) -> 2000000 | E22: =IF($B22=1,VLOOKUP(E$2,Table1[],3,0),IF($B22=2,VLOOKUP(E$2,Table1[],4,0),IF($B22=3,VLOOKUP(E$2,Table1[],5,0),IF($B22=4,VLOOKUP(E$2,Table1[],5,0),0)))) -> 1500000 | F22: =IF($B22=1,VLOOKUP(F$2,Table1[],3,0),IF($B22=2,VLOOKUP(F$2,Table1[],4,0),IF($B22=3,VLOOKUP(F$2,Table1[],5,0),IF($B22=4,VLOOKUP(F$2,Table1[],5,0),0)))) -> 800000
A23: 2029 | B23: 1 | C23: =IF($B23=1,VLOOKUP(C$2,Table1[],3,0),IF($B23=2,VLOOKUP(C$2,Table1[],4,0),IF($B23=3,VLOOKUP(C$2,Table1[],5,0),IF($B23=4,VLOOKUP(C$2,Table1[],5,0),0)))) -> 2000000 | D23: =IF($B23=1,VLOOKUP(D$2,Table1[],3,0),IF($B23=2,VLOOKUP(D$2,Table1[],4,0),IF($B23=3,VLOOKUP(D$2,Table1[],5,0),IF($B23=4,VLOOKUP(D$2,Table1[],5,0),0)))) -> 2000000 | E23: =IF($B23=1,VLOOKUP(E$2,Table1[],3,0),IF($B23=2,VLOOKUP(E$2,Table1[],4,0),IF($B23=3,VLOOKUP(E$2,Table1[],5,0),IF($B23=4,VLOOKUP(E$2,Table1[],5,0),0)))) -> 1500000 | F23: =IF($B23=1,VLOOKUP(F$2,Table1[],3,0),IF($B23=2,VLOOKUP(F$2,Table1[],4,0),IF($B23=3,VLOOKUP(F$2,Table1[],5,0),IF($B23=4,VLOOKUP(F$2,Table1[],5,0),0)))) -> 800000
A24: 2030 | B24: 1 | C24: =IF($B24=1,VLOOKUP(C$2,Table1[],3,0),IF($B24=2,VLOOKUP(C$2,Table1[],4,0),IF($B24=3,VLOOKUP(C$2,Table1[],5,0),IF($B24=4,VLOOKUP(C$2,Table1[],5,0),0)))) -> 2000000 | D24: =IF($B24=1,VLOOKUP(D$2,Table1[],3,0),IF($B24=2,VLOOKUP(D$2,Table1[],4,0),IF($B24=3,VLOOKUP(D$2,Table1[],5,0),IF($B24=4,VLOOKUP(D$2,Table1[],5,0),0)))) -> 2000000 | E24: =IF($B24=1,VLOOKUP(E$2,Table1[],3,0),IF($B24=2,VLOOKUP(E$2,Table1[],4,0),IF($B24=3,VLOOKUP(E$2,Table1[],5,0),IF($B24=4,VLOOKUP(E$2,Table1[],5,0),0)))) -> 1500000 | F24: =IF($B24=1,VLOOKUP(F$2,Table1[],3,0),IF($B24=2,VLOOKUP(F$2,Table1[],4,0),IF($B24=3,VLOOKUP(F$2,Table1[],5,0),IF($B24=4,VLOOKUP(F$2,Table1[],5,0),0)))) -> 800000
A25: 2031 | B25: 1 | C25: =IF($B25=1,VLOOKUP(C$2,Table1[],3,0),IF($B25=2,VLOOKUP(C$2,Table1[],4,0),IF($B25=3,VLOOKUP(C$2,Table1[],5,0),IF($B25=4,VLOOKUP(C$2,Table1[],5,0),0)))) -> 2000000 | D25: =IF($B25=1,VLOOKUP(D$2,Table1[],3,0),IF($B25=2,VLOOKUP(D$2,Table1[],4,0),IF($B25=3,VLOOKUP(D$2,Table1[],5,0),IF($B25=4,VLOOKUP(D$2,Table1[],5,0),0)))) -> 2000000 | E25: =IF($B25=1,VLOOKUP(E$2,Table1[],3,0),IF($B25=2,VLOOKUP(E$2,Table1[],4,0),IF($B25=3,VLOOKUP(E$2,Table1[],5,0),IF($B25=4,VLOOKUP(E$2,Table1[],5,0),0)))) -> 1500000 | F25: =IF($B25=1,VLOOKUP(F$2,Table1[],3,0),IF($B25=2,VLOOKUP(F$2,Table1[],4,0),IF($B25=3,VLOOKUP(F$2,Table1[],5,0),IF($B25=4,VLOOKUP(F$2,Table1[],5,0),0)))) -> 800000
A26: 2032 | B26: 1 | C26: =IF($B26=1,VLOOKUP(C$2,Table1[],3,0),IF($B26=2,VLOOKUP(C$2,Table1[],4,0),IF($B26=3,VLOOKUP(C$2,Table1[],5,0),IF($B26=4,VLOOKUP(C$2,Table1[],5,0),0)))) -> 2000000 | D26: =IF($B26=1,VLOOKUP(D$2,Table1[],3,0),IF($B26=2,VLOOKUP(D$2,Table1[],4,0),IF($B26=3,VLOOKUP(D$2,Table1[],5,0),IF($B26=4,VLOOKUP(D$2,Table1[],5,0),0)))) -> 2000000 | E26: =IF($B26=1,VLOOKUP(E$2,Table1[],3,0),IF($B26=2,VLOOKUP(E$2,Table1[],4,0),IF($B26=3,VLOOKUP(E$2,Table1[],5,0),IF($B26=4,VLOOKUP(E$2,Table1[],5,0),0)))) -> 1500000 | F26: =IF($B26=1,VLOOKUP(F$2,Table1[],3,0),IF($B26=2,VLOOKUP(F$2,Table1[],4,0),IF($B26=3,VLOOKUP(F$2,Table1[],5,0),IF($B26=4,VLOOKUP(F$2,Table1[],5,0),0)))) -> 800000
A27: 2033 | B27: 1 | C27: =IF($B27=1,VLOOKUP(C$2,Table1[],3,0),IF($B27=2,VLOOKUP(C$2,Table1[],4,0),IF($B27=3,VLOOKUP(C$2,Table1[],5,0),IF($B27=4,VLOOKUP(C$2,Table1[],5,0),0)))) -> 2000000 | D27: =IF($B27=1,VLOOKUP(D$2,Table1[],3,0),IF($B27=2,VLOOKUP(D$2,Table1[],4,0),IF($B27=3,VLOOKUP(D$2,Table1[],5,0),IF($B27=4,VLOOKUP(D$2,Table1[],5,0),0)))) -> 2000000 | E27: =IF($B27=1,VLOOKUP(E$2,Table1[],3,0),IF($B27=2,VLOOKUP(E$2,Table1[],4,0),IF($B27=3,VLOOKUP(E$2,Table1[],5,0),IF($B27=4,VLOOKUP(E$2,Table1[],5,0),0)))) -> 1500000 | F27: =IF($B27=1,VLOOKUP(F$2,Table1[],3,0),IF($B27=2,VLOOKUP(F$2,Table1[],4,0),IF($B27=3,VLOOKUP(F$2,Table1[],5,0),IF($B27=4,VLOOKUP(F$2,Table1[],5,0),0)))) -> 800000
A28: 2034 | B28: 1 | C28: =IF($B28=1,VLOOKUP(C$2,Table1[],3,0),IF($B28=2,VLOOKUP(C$2,Table1[],4,0),IF($B28=3,VLOOKUP(C$2,Table1[],5,0),IF($B28=4,VLOOKUP(C$2,Table1[],5,0),0)))) -> 2000000 | D28: =IF($B28=1,VLOOKUP(D$2,Table1[],3,0),IF($B28=2,VLOOKUP(D$2,Table1[],4,0),IF($B28=3,VLOOKUP(D$2,Table1[],5,0),IF($B28=4,VLOOKUP(D$2,Table1[],5,0),0)))) -> 2000000 | E28: =IF($B28=1,VLOOKUP(E$2,Table1[],3,0),IF($B28=2,VLOOKUP(E$2,Table1[],4,0),IF($B28=3,VLOOKUP(E$2,Table1[],5,0),IF($B28=4,VLOOKUP(E$2,Table1[],5,0),0)))) -> 1500000 | F28: =IF($B28=1,VLOOKUP(F$2,Table1[],3,0),IF($B28=2,VLOOKUP(F$2,Table1[],4,0),IF($B28=3,VLOOKUP(F$2,Table1[],5,0),IF($B28=4,VLOOKUP(F$2,Table1[],5,0),0)))) -> 800000
A29: 2035 | B29: 1 | C29: =IF($B29=1,VLOOKUP(C$2,Table1[],3,0),IF($B29=2,VLOOKUP(C$2,Table1[],4,0),IF($B29=3,VLOOKUP(C$2,Table1[],5,0),IF($B29=4,VLOOKUP(C$2,Table1[],5,0),0)))) -> 2000000 | D29: =IF($B29=1,VLOOKUP(D$2,Table1[],3,0),IF($B29=2,VLOOKUP(D$2,Table1[],4,0),IF($B29=3,VLOOKUP(D$2,Table1[],5,0),IF($B29=4,VLOOKUP(D$2,Table1[],5,0),0)))) -> 2000000 | E29: =IF($B29=1,VLOOKUP(E$2,Table1[],3,0),IF($B29=2,VLOOKUP(E$2,Table1[],4,0),IF($B29=3,VLOOKUP(E$2,Table1[],5,0),IF($B29=4,VLOOKUP(E$2,Table1[],5,0),0)))) -> 1500000 | F29: =IF($B29=1,VLOOKUP(F$2,Table1[],3,0),IF($B29=2,VLOOKUP(F$2,Table1[],4,0),IF($B29=3,VLOOKUP(F$2,Table1[],5,0),IF($B29=4,VLOOKUP(F$2,Table1[],5,0),0)))) -> 800000
A30: 2036 | B30: 1 | C30: =IF($B30=1,VLOOKUP(C$2,Table1[],3,0),IF($B30=2,VLOOKUP(C$2,Table1[],4,0),IF($B30=3,VLOOKUP(C$2,Table1[],5,0),IF($B30=4,VLOOKUP(C$2,Table1[],5,0),0)))) -> 2000000 | D30: =IF($B30=1,VLOOKUP(D$2,Table1[],3,0),IF($B30=2,VLOOKUP(D$2,Table1[],4,0),IF($B30=3,VLOOKUP(D$2,Table1[],5,0),IF($B30=4,VLOOKUP(D$2,Table1[],5,0),0)))) -> 2000000 | E30: =IF($B30=1,VLOOKUP(E$2,Table1[],3,0),IF($B30=2,VLOOKUP(E$2,Table1[],4,0),IF($B30=3,VLOOKUP(E$2,Table1[],5,0),IF($B30=4,VLOOKUP(E$2,Table1[],5,0),0)))) -> 1500000 | F30: =IF($B30=1,VLOOKUP(F$2,Table1[],3,0),IF($B30=2,VLOOKUP(F$2,Table1[],4,0),IF($B30=3,VLOOKUP(F$2,Table1[],5,0),IF($B30=4,VLOOKUP(F$2,Table1[],5,0),0)))) -> 800000
A31: 2037 | B31: 1 | C31: =IF($B31=1,VLOOKUP(C$2,Table1[],3,0),IF($B31=2,VLOOKUP(C$2,Table1[],4,0),IF($B31=3,VLOOKUP(C$2,Table1[],5,0),IF($B31=4,VLOOKUP(C$2,Table1[],5,0),0)))) -> 2000000 | D31: =IF($B31=1,VLOOKUP(D$2,Table1[],3,0),IF($B31=2,VLOOKUP(D$2,Table1[],4,0),IF($B31=3,VLOOKUP(D$2,Table1[],5,0),IF($B31=4,VLOOKUP(D$2,Table1[],5,0),0)))) -> 2000000 | E31: =IF($B31=1,VLOOKUP(E$2,Table1[],3,0),IF($B31=2,VLOOKUP(E$2,Table1[],4,0),IF($B31=3,VLOOKUP(E$2,Table1[],5,0),IF($B31=4,VLOOKUP(E$2,Table1[],5,0),0)))) -> 1500000 | F31: =IF($B31=1,VLOOKUP(F$2,Table1[],3,0),IF($B31=2,VLOOKUP(F$2,Table1[],4,0),IF($B31=3,VLOOKUP(F$2,Table1[],5,0),IF($B31=4,VLOOKUP(F$2,Table1[],5,0),0)))) -> 800000
A32: 2038 | B32: 1 | C32: =IF($B32=1,VLOOKUP(C$2,Table1[],3,0),IF($B32=2,VLOOKUP(C$2,Table1[],4,0),IF($B32=3,VLOOKUP(C$2,Table1[],5,0),IF($B32=4,VLOOKUP(C$2,Table1[],5,0),0)))) -> 2000000 | D32: =IF($B32=1,VLOOKUP(D$2,Table1[],3,0),IF($B32=2,VLOOKUP(D$2,Table1[],4,0),IF($B32=3,VLOOKUP(D$2,Table1[],5,0),IF($B32=4,VLOOKUP(D$2,Table1[],5,0),0)))) -> 2000000 | E32: =IF($B32=1,VLOOKUP(E$2,Table1[],3,0),IF($B32=2,VLOOKUP(E$2,Table1[],4,0),IF($B32=3,VLOOKUP(E$2,Table1[],5,0),IF($B32=4,VLOOKUP(E$2,Table1[],5,0),0)))) -> 1500000 | F32: =IF($B32=1,VLOOKUP(F$2,Table1[],3,0),IF($B32=2,VLOOKUP(F$2,Table1[],4,0),IF($B32=3,VLOOKUP(F$2,Table1[],5,0),IF($B32=4,VLOOKUP(F$2,Table1[],5,0),0)))) -> 800000
A33: 2039 | B33: 1 | C33: =IF($B33=1,VLOOKUP(C$2,Table1[],3,0),IF($B33=2,VLOOKUP(C$2,Table1[],4,0),IF($B33=3,VLOOKUP(C$2,Table1[],5,0),IF($B33=4,VLOOKUP(C$2,Table1[],5,0),0)))) -> 2000000 | D33: =IF($B33=1,VLOOKUP(D$2,Table1[],3,0),IF($B33=2,VLOOKUP(D$2,Table1[],4,0),IF($B33=3,VLOOKUP(D$2,Table1[],5,0),IF($B33=4,VLOOKUP(D$2,Table1[],5,0),0)))) -> 2000000 | E33: =IF($B33=1,VLOOKUP(E$2,Table1[],3,0),IF($B33=2,VLOOKUP(E$2,Table1[],4,0),IF($B33=3,VLOOKUP(E$2,Table1[],5,0),IF($B33=4,VLOOKUP(E$2,Table1[],5,0),0)))) -> 1500000 | F33: =IF($B33=1,VLOOKUP(F$2,Table1[],3,0),IF($B33=2,VLOOKUP(F$2,Table1[],4,0),IF($B33=3,VLOOKUP(F$2,Table1[],5,0),IF($B33=4,VLOOKUP(F$2,Table1[],5,0),0)))) -> 800000
A34: 2040 | B34: 1 | C34: =IF($B34=1,VLOOKUP(C$2,Table1[],3,0),IF($B34=2,VLOOKUP(C$2,Table1[],4,0),IF($B34=3,VLOOKUP(C$2,Table1[],5,0),IF($B34=4,VLOOKUP(C$2,Table1[],5,0),0)))) -> 2000000 | D34: =IF($B34=1,VLOOKUP(D$2,Table1[],3,0),IF($B34=2,VLOOKUP(D$2,Table1[],4,0),IF($B34=3,VLOOKUP(D$2,Table1[],5,0),IF($B34=4,VLOOKUP(D$2,Table1[],5,0),0)))) -> 2000000 | E34: =IF($B34=1,VLOOKUP(E$2,Table1[],3,0),IF($B34=2,VLOOKUP(E$2,Table1[],4,0),IF($B34=3,VLOOKUP(E$2,Table1[],5,0),IF($B34=4,VLOOKUP(E$2,Table1[],5,0),0)))) -> 1500000 | F34: =IF($B34=1,VLOOKUP(F$2,Table1[],3,0),IF($B34=2,VLOOKUP(F$2,Table1[],4,0),IF($B34=3,VLOOKUP(F$2,Table1[],5,0),IF($B34=4,VLOOKUP(F$2,Table1[],5,0),0)))) -> 800000
A35: 2041 | B35: 1 | C35: =IF($B35=1,VLOOKUP(C$2,Table1[],3,0),IF($B35=2,VLOOKUP(C$2,Table1[],4,0),IF($B35=3,VLOOKUP(C$2,Table1[],5,0),IF($B35=4,VLOOKUP(C$2,Table1[],5,0),0)))) -> 2000000 | D35: =IF($B35=1,VLOOKUP(D$2,Table1[],3,0),IF($B35=2,VLOOKUP(D$2,Table1[],4,0),IF($B35=3,VLOOKUP(D$2,Table1[],5,0),IF($B35=4,VLOOKUP(D$2,Table1[],5,0),0)))) -> 2000000 | E35: =IF($B35=1,VLOOKUP(E$2,Table1[],3,0),IF($B35=2,VLOOKUP(E$2,Table1[],4,0),IF($B35=3,VLOOKUP(E$2,Table1[],5,0),IF($B35=4,VLOOKUP(E$2,Table1[],5,0),0)))) -> 1500000 | F35: =IF($B35=1,VLOOKUP(F$2,Table1[],3,0),IF($B35=2,VLOOKUP(F$2,Table1[],4,0),IF($B35=3,VLOOKUP(F$2,Table1[],5,0),IF($B35=4,VLOOKUP(F$2,Table1[],5,0),0)))) -> 800000
A36: 2042 | B36: 1 | C36: =IF($B36=1,VLOOKUP(C$2,Table1[],3,0),IF($B36=2,VLOOKUP(C$2,Table1[],4,0),IF($B36=3,VLOOKUP(C$2,Table1[],5,0),IF($B36=4,VLOOKUP(C$2,Table1[],5,0),0)))) -> 2000000 | D36: =IF($B36=1,VLOOKUP(D$2,Table1[],3,0),IF($B36=2,VLOOKUP(D$2,Table1[],4,0),IF($B36=3,VLOOKUP(D$2,Table1[],5,0),IF($B36=4,VLOOKUP(D$2,Table1[],5,0),0)))) -> 2000000 | E36: =IF($B36=1,VLOOKUP(E$2,Table1[],3,0),IF($B36=2,VLOOKUP(E$2,Table1[],4,0),IF($B36=3,VLOOKUP(E$2,Table1[],5,0),IF($B36=4,VLOOKUP(E$2,Table1[],5,0),0)))) -> 1500000 | F36: =IF($B36=1,VLOOKUP(F$2,Table1[],3,0),IF($B36=2,VLOOKUP(F$2,Table1[],4,0),IF($B36=3,VLOOKUP(F$2,Table1[],5,0),IF($B36=4,VLOOKUP(F$2,Table1[],5,0),0)))) -> 800000
A37: 2043 | B37: 1 | C37: =IF($B37=1,VLOOKUP(C$2,Table1[],3,0),IF($B37=2,VLOOKUP(C$2,Table1[],4,0),IF($B37=3,VLOOKUP(C$2,Table1[],5,0),IF($B37=4,VLOOKUP(C$2,Table1[],5,0),0)))) -> 2000000 | D37: =IF($B37=1,VLOOKUP(D$2,Table1[],3,0),IF($B37=2,VLOOKUP(D$2,Table1[],4,0),IF($B37=3,VLOOKUP(D$2,Table1[],5,0),IF($B37=4,VLOOKUP(D$2,Table1[],5,0),0)))) -> 2000000 | E37: =IF($B37=1,VLOOKUP(E$2,Table1[],3,0),IF($B37=2,VLOOKUP(E$2,Table1[],4,0),IF($B37=3,VLOOKUP(E$2,Table1[],5,0),IF($B37=4,VLOOKUP(E$2,Table1[],5,0),0)))) -> 1500000 | F37: =IF($B37=1,VLOOKUP(F$2,Table1[],3,0),IF($B37=2,VLOOKUP(F$2,Table1[],4,0),IF($B37=3,VLOOKUP(F$2,Table1[],5,0),IF($B37=4,VLOOKUP(F$2,Table1[],5,0),0)))) -> 800000
A38: 2044 | B38: 1 | C38: =IF($B38=1,VLOOKUP(C$2,Table1[],3,0),IF($B38=2,VLOOKUP(C$2,Table1[],4,0),IF($B38=3,VLOOKUP(C$2,Table1[],5,0),IF($B38=4,VLOOKUP(C$2,Table1[],5,0),0)))) -> 2000000 | D38: =IF($B38=1,VLOOKUP(D$2,Table1[],3,0),IF($B38=2,VLOOKUP(D$2,Table1[],4,0),IF($B38=3,VLOOKUP(D$2,Table1[],5,0),IF($B38=4,VLOOKUP(D$2,Table1[],5,0),0)))) -> 2000000 | E38: =IF($B38=1,VLOOKUP(E$2,Table1[],3,0),IF($B38=2,VLOOKUP(E$2,Table1[],4,0),IF($B38=3,VLOOKUP(E$2,Table1[],5,0),IF($B38=4,VLOOKUP(E$2,Table1[],5,0),0)))) -> 1500000 | F38: =IF($B38=1,VLOOKUP(F$2,Table1[],3,0),IF($B38=2,VLOOKUP(F$2,Table1[],4,0),IF($B38=3,VLOOKUP(F$2,Table1[],5,0),IF($B38=4,VLOOKUP(F$2,Table1[],5,0),0)))) -> 800000
A39: 2045 | B39: 1 | C39: =IF($B39=1,VLOOKUP(C$2,Table1[],3,0),IF($B39=2,VLOOKUP(C$2,Table1[],4,0),IF($B39=3,VLOOKUP(C$2,Table1[],5,0),IF($B39=4,VLOOKUP(C$2,Table1[],5,0),0)))) -> 2000000 | D39: =IF($B39=1,VLOOKUP(D$2,Table1[],3,0),IF($B39=2,VLOOKUP(D$2,Table1[],4,0),IF($B39=3,VLOOKUP(D$2,Table1[],5,0),IF($B39=4,VLOOKUP(D$2,Table1[],5,0),0)))) -> 2000000 | E39: =IF($B39=1,VLOOKUP(E$2,Table1[],3,0),IF($B39=2,VLOOKUP(E$2,Table1[],4,0),IF($B39=3,VLOOKUP(E$2,Table1[],5,0),IF($B39=4,VLOOKUP(E$2,Table1[],5,0),0)))) -> 1500000 | F39: =IF($B39=1,VLOOKUP(F$2,Table1[],3,0),IF($B39=2,VLOOKUP(F$2,Table1[],4,0),IF($B39=3,VLOOKUP(F$2,Table1[],5,0),IF($B39=4,VLOOKUP(F$2,Table1[],5,0),0)))) -> 800000
A40: 2046 | B40: 1 | C40: =IF($B40=1,VLOOKUP(C$2,Table1[],3,0),IF($B40=2,VLOOKUP(C$2,Table1[],4,0),IF($B40=3,VLOOKUP(C$2,Table1[],5,0),IF($B40=4,VLOOKUP(C$2,Table1[],5,0),0)))) -> 2000000 | D40: =IF($B40=1,VLOOKUP(D$2,Table1[],3,0),IF($B40=2,VLOOKUP(D$2,Table1[],4,0),IF($B40=3,VLOOKUP(D$2,Table1[],5,0),IF($B40=4,VLOOKUP(D$2,Table1[],5,0),0)))) -> 2000000 | E40: =IF($B40=1,VLOOKUP(E$2,Table1[],3,0),IF($B40=2,VLOOKUP(E$2,Table1[],4,0),IF($B40=3,VLOOKUP(E$2,Table1[],5,0),IF($B40=4,VLOOKUP(E$2,Table1[],5,0),0)))) -> 1500000 | F40: =IF($B40=1,VLOOKUP(F$2,Table1[],3,0),IF($B40=2,VLOOKUP(F$2,Table1[],4,0),IF($B40=3,VLOOKUP(F$2,Table1[],5,0),IF($B40=4,VLOOKUP(F$2,Table1[],5,0),0)))) -> 800000
A41: 2047 | B41: 1 | C41: =IF($B41=1,VLOOKUP(C$2,Table1[],3,0),IF($B41=2,VLOOKUP(C$2,Table1[],4,0),IF($B41=3,VLOOKUP(C$2,Table1[],5,0),IF($B41=4,VLOOKUP(C$2,Table1[],5,0),0)))) -> 2000000 | D41: =IF($B41=1,VLOOKUP(D$2,Table1[],3,0),IF($B41=2,VLOOKUP(D$2,Table1[],4,0),IF($B41=3,VLOOKUP(D$2,Table1[],5,0),IF($B41=4,VLOOKUP(D$2,Table1[],5,0),0)))) -> 2000000 | E41: =IF($B41=1,VLOOKUP(E$2,Table1[],3,0),IF($B41=2,VLOOKUP(E$2,Table1[],4,0),IF($B41=3,VLOOKUP(E$2,Table1[],5,0),IF($B41=4,VLOOKUP(E$2,Table1[],5,0),0)))) -> 1500000 | F41: =IF($B41=1,VLOOKUP(F$2,Table1[],3,0),IF($B41=2,VLOOKUP(F$2,Table1[],4,0),IF($B41=3,VLOOKUP(F$2,Table1[],5,0),IF($B41=4,VLOOKUP(F$2,Table1[],5,0),0)))) -> 800000
A42: 2048 | B42: 1 | C42: =IF($B42=1,VLOOKUP(C$2,Table1[],3,0),IF($B42=2,VLOOKUP(C$2,Table1[],4,0),IF($B42=3,VLOOKUP(C$2,Table1[],5,0),IF($B42=4,VLOOKUP(C$2,Table1[],5,0),0)))) -> 2000000 | D42: =IF($B42=1,VLOOKUP(D$2,Table1[],3,0),IF($B42=2,VLOOKUP(D$2,Table1[],4,0),IF($B42=3,VLOOKUP(D$2,Table1[],5,0),IF($B42=4,VLOOKUP(D$2,Table1[],5,0),0)))) -> 2000000 | E42: =IF($B42=1,VLOOKUP(E$2,Table1[],3,0),IF($B42=2,VLOOKUP(E$2,Table1[],4,0),IF($B42=3,VLOOKUP(E$2,Table1[],5,0),IF($B42=4,VLOOKUP(E$2,Table1[],5,0),0)))) -> 1500000 | F42: =IF($B42=1,VLOOKUP(F$2,Table1[],3,0),IF($B42=2,VLOOKUP(F$2,Table1[],4,0),IF($B42=3,VLOOKUP(F$2,Table1[],5,0),IF($B42=4,VLOOKUP(F$2,Table1[],5,0),0)))) -> 800000
A43: 2049 | B43: 1 | C43: =IF($B43=1,VLOOKUP(C$2,Table1[],3,0),IF($B43=2,VLOOKUP(C$2,Table1[],4,0),IF($B43=3,VLOOKUP(C$2,Table1[],5,0),IF($B43=4,VLOOKUP(C$2,Table1[],5,0),0)))) -> 2000000 | D43: =IF($B43=1,VLOOKUP(D$2,Table1[],3,0),IF($B43=2,VLOOKUP(D$2,Table1[],4,0),IF($B43=3,VLOOKUP(D$2,Table1[],5,0),IF($B43=4,VLOOKUP(D$2,Table1[],5,0),0)))) -> 2000000 | E43: =IF($B43=1,VLOOKUP(E$2,Table1[],3,0),IF($B43=2,VLOOKUP(E$2,Table1[],4,0),IF($B43=3,VLOOKUP(E$2,Table1[],5,0),IF($B43=4,VLOOKUP(E$2,Table1[],5,0),0)))) -> 1500000 | F43: =IF($B43=1,VLOOKUP(F$2,Table1[],3,0),IF($B43=2,VLOOKUP(F$2,Table1[],4,0),IF($B43=3,VLOOKUP(F$2,Table1[],5,0),IF($B43=4,VLOOKUP(F$2,Table1[],5,0),0)))) -> 800000
A44: 2050 | B44: 1 | C44: =IF($B44=1,VLOOKUP(C$2,Table1[],3,0),IF($B44=2,VLOOKUP(C$2,Table1[],4,0),IF($B44=3,VLOOKUP(C$2,Table1[],5,0),IF($B44=4,VLOOKUP(C$2,Table1[],5,0),0)))) -> 2000000 | D44: =IF($B44=1,VLOOKUP(D$2,Table1[],3,0),IF($B44=2,VLOOKUP(D$2,Table1[],4,0),IF($B44=3,VLOOKUP(D$2,Table1[],5,0),IF($B44=4,VLOOKUP(D$2,Table1[],5,0),0)))) -> 2000000 | E44: =IF($B44=1,VLOOKUP(E$2,Table1[],3,0),IF($B44=2,VLOOKUP(E$2,Table1[],4,0),IF($B44=3,VLOOKUP(E$2,Table1[],5,0),IF($B44=4,VLOOKUP(E$2,Table1[],5,0),0)))) -> 1500000 | F44: =IF($B44=1,VLOOKUP(F$2,Table1[],3,0),IF($B44=2,VLOOKUP(F$2,Table1[],4,0),IF($B44=3,VLOOKUP(F$2,Table1[],5,0),IF($B44=4,VLOOKUP(F$2,Table1[],5,0),0)))) -> 800000
A45: 2060 | B45: 1 | C45: =IF($B45=1,VLOOKUP(C$2,Table1[],3,0),IF($B45=2,VLOOKUP(C$2,Table1[],4,0),IF($B45=3,VLOOKUP(C$2,Table1[],5,0),IF($B45=4,VLOOKUP(C$2,Table1[],5,0),0)))) -> 2000000 | D45: =IF($B45=1,VLOOKUP(D$2,Table1[],3,0),IF($B45=2,VLOOKUP(D$2,Table1[],4,0),IF($B45=3,VLOOKUP(D$2,Table1[],5,0),IF($B45=4,VLOOKUP(D$2,Table1[],5,0),0)))) -> 2000000 | E45: =IF($B45=1,VLOOKUP(E$2,Table1[],3,0),IF($B45=2,VLOOKUP(E$2,Table1[],4,0),IF($B45=3,VLOOKUP(E$2,Table1[],5,0),IF($B45=4,VLOOKUP(E$2,Table1[],5,0),0)))) -> 1500000 | F45: =IF($B45=1,VLOOKUP(F$2,Table1[],3,0),IF($B45=2,VLOOKUP(F$2,Table1[],4,0),IF($B45=3,VLOOKUP(F$2,Table1[],5,0),IF($B45=4,VLOOKUP(F$2,Table1[],5,0),0)))) -> 800000
A46: 2061 | B46: 1 | C46: =IF($B46=1,VLOOKUP(C$2,Table1[],3,0),IF($B46=2,VLOOKUP(C$2,Table1[],4,0),IF($B46=3,VLOOKUP(C$2,Table1[],5,0),IF($B46=4,VLOOKUP(C$2,Table1[],5,0),0)))) -> 2000000 | D46: =IF($B46=1,VLOOKUP(D$2,Table1[],3,0),IF($B46=2,VLOOKUP(D$2,Table1[],4,0),IF($B46=3,VLOOKUP(D$2,Table1[],5,0),IF($B46=4,VLOOKUP(D$2,Table1[],5,0),0)))) -> 2000000 | E46: =IF($B46=1,VLOOKUP(E$2,Table1[],3,0),IF($B46=2,VLOOKUP(E$2,Table1[],4,0),IF($B46=3,VLOOKUP(E$2,Table1[],5,0),IF($B46=4,VLOOKUP(E$2,Table1[],5,0),0)))) -> 1500000 | F46: =IF($B46=1,VLOOKUP(F$2,Table1[],3,0),IF($B46=2,VLOOKUP(F$2,Table1[],4,0),IF($B46=3,VLOOKUP(F$2,Table1[],5,0),IF($B46=4,VLOOKUP(F$2,Table1[],5,0),0)))) -> 800000
A47: 2062 | B47: 1 | C47: =IF($B47=1,VLOOKUP(C$2,Table1[],3,0),IF($B47=2,VLOOKUP(C$2,Table1[],4,0),IF($B47=3,VLOOKUP(C$2,Table1[],5,0),IF($B47=4,VLOOKUP(C$2,Table1[],5,0),0)))) -> 2000000 | D47: =IF($B47=1,VLOOKUP(D$2,Table1[],3,0),IF($B47=2,VLOOKUP(D$2,Table1[],4,0),IF($B47=3,VLOOKUP(D$2,Table1[],5,0),IF($B47=4,VLOOKUP(D$2,Table1[],5,0),0)))) -> 2000000 | E47: =IF($B47=1,VLOOKUP(E$2,Table1[],3,0),IF($B47=2,VLOOKUP(E$2,Table1[],4,0),IF($B47=3,VLOOKUP(E$2,Table1[],5,0),IF($B47=4,VLOOKUP(E$2,Table1[],5,0),0)))) -> 1500000 | F47: =IF($B47=1,VLOOKUP(F$2,Table1[],3,0),IF($B47=2,VLOOKUP(F$2,Table1[],4,0),IF($B47=3,VLOOKUP(F$2,Table1[],5,0),IF($B47=4,VLOOKUP(F$2,Table1[],5,0),0)))) -> 800000
A48: 2063 | B48: 1 | C48: =IF($B48=1,VLOOKUP(C$2,Table1[],3,0),IF($B48=2,VLOOKUP(C$2,Table1[],4,0),IF($B48=3,VLOOKUP(C$2,Table1[],5,0),IF($B48=4,VLOOKUP(C$2,Table1[],5,0),0)))) -> 2000000 | D48: =IF($B48=1,VLOOKUP(D$2,Table1[],3,0),IF($B48=2,VLOOKUP(D$2,Table1[],4,0),IF($B48=3,VLOOKUP(D$2,Table1[],5,0),IF($B48=4,VLOOKUP(D$2,Table1[],5,0),0)))) -> 2000000 | E48: =IF($B48=1,VLOOKUP(E$2,Table1[],3,0),IF($B48=2,VLOOKUP(E$2,Table1[],4,0),IF($B48=3,VLOOKUP(E$2,Table1[],5,0),IF($B48=4,VLOOKUP(E$2,Table1[],5,0),0)))) -> 1500000 | F48: =IF($B48=1,VLOOKUP(F$2,Table1[],3,0),IF($B48=2,VLOOKUP(F$2,Table1[],4,0),IF($B48=3,VLOOKUP(F$2,Table1[],5,0),IF($B48=4,VLOOKUP(F$2,Table1[],5,0),0)))) -> 800000
A49: 2064 | B49: 1 | C49: =IF($B49=1,VLOOKUP(C$2,Table1[],3,0),IF($B49=2,VLOOKUP(C$2,Table1[],4,0),IF($B49=3,VLOOKUP(C$2,Table1[],5,0),IF($B49=4,VLOOKUP(C$2,Table1[],5,0),0)))) -> 2000000 | D49: =IF($B49=1,VLOOKUP(D$2,Table1[],3,0),IF($B49=2,VLOOKUP(D$2,Table1[],4,0),IF($B49=3,VLOOKUP(D$2,Table1[],5,0),IF($B49=4,VLOOKUP(D$2,Table1[],5,0),0)))) -> 2000000 | E49: =IF($B49=1,VLOOKUP(E$2,Table1[],3,0),IF($B49=2,VLOOKUP(E$2,Table1[],4,0),IF($B49=3,VLOOKUP(E$2,Table1[],5,0),IF($B49=4,VLOOKUP(E$2,Table1[],5,0),0)))) -> 1500000 | F49: =IF($B49=1,VLOOKUP(F$2,Table1[],3,0),IF($B49=2,VLOOKUP(F$2,Table1[],4,0),IF($B49=3,VLOOKUP(F$2,Table1[],5,0),IF($B49=4,VLOOKUP(F$2,Table1[],5,0),0)))) -> 800000
A50: 2065 | B50: 1 | C50: =IF($B50=1,VLOOKUP(C$2,Table1[],3,0),IF($B50=2,VLOOKUP(C$2,Table1[],4,0),IF($B50=3,VLOOKUP(C$2,Table1[],5,0),IF($B50=4,VLOOKUP(C$2,Table1[],5,0),0)))) -> 2000000 | D50: =IF($B50=1,VLOOKUP(D$2,Table1[],3,0),IF($B50=2,VLOOKUP(D$2,Table1[],4,0),IF($B50=3,VLOOKUP(D$2,Table1[],5,0),IF($B50=4,VLOOKUP(D$2,Table1[],5,0),0)))) -> 2000000 | E50: =IF($B50=1,VLOOKUP(E$2,Table1[],3,0),IF($B50=2,VLOOKUP(E$2,Table1[],4,0),IF($B50=3,VLOOKUP(E$2,Table1[],5,0),IF($B50=4,VLOOKUP(E$2,Table1[],5,0),0)))) -> 1500000 | F50: =IF($B50=1,VLOOKUP(F$2,Table1[],3,0),IF($B50=2,VLOOKUP(F$2,Table1[],4,0),IF($B50=3,VLOOKUP(F$2,Table1[],5,0),IF($B50=4,VLOOKUP(F$2,Table1[],5,0),0)))) -> 800000
A51: 2066 | B51: 1 | C51: =IF($B51=1,VLOOKUP(C$2,Table1[],3,0),IF($B51=2,VLOOKUP(C$2,Table1[],4,0),IF($B51=3,VLOOKUP(C$2,Table1[],5,0),IF($B51=4,VLOOKUP(C$2,Table1[],5,0),0)))) -> 2000000 | D51: =IF($B51=1,VLOOKUP(D$2,Table1[],3,0),IF($B51=2,VLOOKUP(D$2,Table1[],4,0),IF($B51=3,VLOOKUP(D$2,Table1[],5,0),IF($B51=4,VLOOKUP(D$2,Table1[],5,0),0)))) -> 2000000 | E51: =IF($B51=1,VLOOKUP(E$2,Table1[],3,0),IF($B51=2,VLOOKUP(E$2,Table1[],4,0),IF($B51=3,VLOOKUP(E$2,Table1[],5,0),IF($B51=4,VLOOKUP(E$2,Table1[],5,0),0)))) -> 1500000 | F51: =IF($B51=1,VLOOKUP(F$2,Table1[],3,0),IF($B51=2,VLOOKUP(F$2,Table1[],4,0),IF($B51=3,VLOOKUP(F$2,Table1[],5,0),IF($B51=4,VLOOKUP(F$2,Table1[],5,0),0)))) -> 800000
A52: 2067 | B52: 1 | C52: =IF($B52=1,VLOOKUP(C$2,Table1[],3,0),IF($B52=2,VLOOKUP(C$2,Table1[],4,0),IF($B52=3,VLOOKUP(C$2,Table1[],5,0),IF($B52=4,VLOOKUP(C$2,Table1[],5,0),0)))) -> 2000000 | D52: =IF($B52=1,VLOOKUP(D$2,Table1[],3,0),IF($B52=2,VLOOKUP(D$2,Table1[],4,0),IF($B52=3,VLOOKUP(D$2,Table1[],5,0),IF($B52=4,VLOOKUP(D$2,Table1[],5,0),0)))) -> 2000000 | E52: =IF($B52=1,VLOOKUP(E$2,Table1[],3,0),IF($B52=2,VLOOKUP(E$2,Table1[],4,0),IF($B52=3,VLOOKUP(E$2,Table1[],5,0),IF($B52=4,VLOOKUP(E$2,Table1[],5,0),0)))) -> 1500000 | F52: =IF($B52=1,VLOOKUP(F$2,Table1[],3,0),IF($B52=2,VLOOKUP(F$2,Table1[],4,0),IF($B52=3,VLOOKUP(F$2,Table1[],5,0),IF($B52=4,VLOOKUP(F$2,Table1[],5,0),0)))) -> 800000
A53: 2068 | B53: 1 | C53: =IF($B53=1,VLOOKUP(C$2,Table1[],3,0),IF($B53=2,VLOOKUP(C$2,Table1[],4,0),IF($B53=3,VLOOKUP(C$2,Table1[],5,0),IF($B53=4,VLOOKUP(C$2,Table1[],5,0),0)))) -> 2000000 | D53: =IF($B53=1,VLOOKUP(D$2,Table1[],3,0),IF($B53=2,VLOOKUP(D$2,Table1[],4,0),IF($B53=3,VLOOKUP(D$2,Table1[],5,0),IF($B53=4,VLOOKUP(D$2,Table1[],5,0),0)))) -> 2000000 | E53: =IF($B53=1,VLOOKUP(E$2,Table1[],3,0),IF($B53=2,VLOOKUP(E$2,Table1[],4,0),IF($B53=3,VLOOKUP(E$2,Table1[],5,0),IF($B53=4,VLOOKUP(E$2,Table1[],5,0),0)))) -> 1500000 | F53: =IF($B53=1,VLOOKUP(F$2,Table1[],3,0),IF($B53=2,VLOOKUP(F$2,Table1[],4,0),IF($B53=3,VLOOKUP(F$2,Table1[],5,0),IF($B53=4,VLOOKUP(F$2,Table1[],5,0),0)))) -> 800000
A54: 2069 | B54: 1 | C54: =IF($B54=1,VLOOKUP(C$2,Table1[],3,0),IF($B54=2,VLOOKUP(C$2,Table1[],4,0),IF($B54=3,VLOOKUP(C$2,Table1[],5,0),IF($B54=4,VLOOKUP(C$2,Table1[],5,0),0)))) -> 2000000 | D54: =IF($B54=1,VLOOKUP(D$2,Table1[],3,0),IF($B54=2,VLOOKUP(D$2,Table1[],4,0),IF($B54=3,VLOOKUP(D$2,Table1[],5,0),IF($B54=4,VLOOKUP(D$2,Table1[],5,0),0)))) -> 2000000 | E54: =IF($B54=1,VLOOKUP(E$2,Table1[],3,0),IF($B54=2,VLOOKUP(E$2,Table1[],4,0),IF($B54=3,VLOOKUP(E$2,Table1[],5,0),IF($B54=4,VLOOKUP(E$2,Table1[],5,0),0)))) -> 1500000 | F54: =IF($B54=1,VLOOKUP(F$2,Table1[],3,0),IF($B54=2,VLOOKUP(F$2,Table1[],4,0),IF($B54=3,VLOOKUP(F$2,Table1[],5,0),IF($B54=4,VLOOKUP(F$2,Table1[],5,0),0)))) -> 800000
A55: 2070 | B55: 1 | C55: =IF($B55=1,VLOOKUP(C$2,Table1[],3,0),IF($B55=2,VLOOKUP(C$2,Table1[],4,0),IF($B55=3,VLOOKUP(C$2,Table1[],5,0),IF($B55=4,VLOOKUP(C$2,Table1[],5,0),0)))) -> 2000000 | D55: =IF($B55=1,VLOOKUP(D$2,Table1[],3,0),IF($B55=2,VLOOKUP(D$2,Table1[],4,0),IF($B55=3,VLOOKUP(D$2,Table1[],5,0),IF($B55=4,VLOOKUP(D$2,Table1[],5,0),0)))) -> 2000000 | E55: =IF($B55=1,VLOOKUP(E$2,Table1[],3,0),IF($B55=2,VLOOKUP(E$2,Table1[],4,0),IF($B55=3,VLOOKUP(E$2,Table1[],5,0),IF($B55=4,VLOOKUP(E$2,Table1[],5,0),0)))) -> 1500000 | F55: =IF($B55=1,VLOOKUP(F$2,Table1[],3,0),IF($B55=2,VLOOKUP(F$2,Table1[],4,0),IF($B55=3,VLOOKUP(F$2,Table1[],5,0),IF($B55=4,VLOOKUP(F$2,Table1[],5,0),0)))) -> 800000
A56: 2071 | B56: 1 | C56: =IF($B56=1,VLOOKUP(C$2,Table1[],3,0),IF($B56=2,VLOOKUP(C$2,Table1[],4,0),IF($B56=3,VLOOKUP(C$2,Table1[],5,0),IF($B56=4,VLOOKUP(C$2,Table1[],5,0),0)))) -> 2000000 | D56: =IF($B56=1,VLOOKUP(D$2,Table1[],3,0),IF($B56=2,VLOOKUP(D$2,Table1[],4,0),IF($B56=3,VLOOKUP(D$2,Table1[],5,0),IF($B56=4,VLOOKUP(D$2,Table1[],5,0),0)))) -> 2000000 | E56: =IF($B56=1,VLOOKUP(E$2,Table1[],3,0),IF($B56=2,VLOOKUP(E$2,Table1[],4,0),IF($B56=3,VLOOKUP(E$2,Table1[],5,0),IF($B56=4,VLOOKUP(E$2,Table1[],5,0),0)))) -> 1500000 | F56: =IF($B56=1,VLOOKUP(F$2,Table1[],3,0),IF($B56=2,VLOOKUP(F$2,Table1[],4,0),IF($B56=3,VLOOKUP(F$2,Table1[],5,0),IF($B56=4,VLOOKUP(F$2,Table1[],5,0),0)))) -> 800000
A57: 2072 | B57: 1 | C57: =IF($B57=1,VLOOKUP(C$2,Table1[],3,0),IF($B57=2,VLOOKUP(C$2,Table1[],4,0),IF($B57=3,VLOOKUP(C$2,Table1[],5,0),IF($B57=4,VLOOKUP(C$2,Table1[],5,0),0)))) -> 2000000 | D57: =IF($B57=1,VLOOKUP(D$2,Table1[],3,0),IF($B57=2,VLOOKUP(D$2,Table1[],4,0),IF($B57=3,VLOOKUP(D$2,Table1[],5,0),IF($B57=4,VLOOKUP(D$2,Table1[],5,0),0)))) -> 2000000 | E57: =IF($B57=1,VLOOKUP(E$2,Table1[],3,0),IF($B57=2,VLOOKUP(E$2,Table1[],4,0),IF($B57=3,VLOOKUP(E$2,Table1[],5,0),IF($B57=4,VLOOKUP(E$2,Table1[],5,0),0)))) -> 1500000 | F57: =IF($B57=1,VLOOKUP(F$2,Table1[],3,0),IF($B57=2,VLOOKUP(F$2,Table1[],4,0),IF($B57=3,VLOOKUP(F$2,Table1[],5,0),IF($B57=4,VLOOKUP(F$2,Table1[],5,0),0)))) -> 800000
A58: 2073 | B58: 1 | C58: =IF($B58=1,VLOOKUP(C$2,Table1[],3,0),IF($B58=2,VLOOKUP(C$2,Table1[],4,0),IF($B58=3,VLOOKUP(C$2,Table1[],5,0),IF($B58=4,VLOOKUP(C$2,Table1[],5,0),0)))) -> 2000000 | D58: =IF($B58=1,VLOOKUP(D$2,Table1[],3,0),IF($B58=2,VLOOKUP(D$2,Table1[],4,0),IF($B58=3,VLOOKUP(D$2,Table1[],5,0),IF($B58=4,VLOOKUP(D$2,Table1[],5,0),0)))) -> 2000000 | E58: =IF($B58=1,VLOOKUP(E$2,Table1[],3,0),IF($B58=2,VLOOKUP(E$2,Table1[],4,0),IF($B58=3,VLOOKUP(E$2,Table1[],5,0),IF($B58=4,VLOOKUP(E$2,Table1[],5,0),0)))) -> 1500000 | F58: =IF($B58=1,VLOOKUP(F$2,Table1[],3,0),IF($B58=2,VLOOKUP(F$2,Table1[],4,0),IF($B58=3,VLOOKUP(F$2,Table1[],5,0),IF($B58=4,VLOOKUP(F$2,Table1[],5,0),0)))) -> 800000
A59: 2074 | B59: 1 | C59: =IF($B59=1,VLOOKUP(C$2,Table1[],3,0),IF($B59=2,VLOOKUP(C$2,Table1[],4,0),IF($B59=3,VLOOKUP(C$2,Table1[],5,0),IF($B59=4,VLOOKUP(C$2,Table1[],5,0),0)))) -> 2000000 | D59: =IF($B59=1,VLOOKUP(D$2,Table1[],3,0),IF($B59=2,VLOOKUP(D$2,Table1[],4,0),IF($B59=3,VLOOKUP(D$2,Table1[],5,0),IF($B59=4,VLOOKUP(D$2,Table1[],5,0),0)))) -> 2000000 | E59: =IF($B59=1,VLOOKUP(E$2,Table1[],3,0),IF($B59=2,VLOOKUP(E$2,Table1[],4,0),IF($B59=3,VLOOKUP(E$2,Table1[],5,0),IF($B59=4,VLOOKUP(E$2,Table1[],5,0),0)))) -> 1500000 | F59: =IF($B59=1,VLOOKUP(F$2,Table1[],3,0),IF($B59=2,VLOOKUP(F$2,Table1[],4,0),IF($B59=3,VLOOKUP(F$2,Table1[],5,0),IF($B59=4,VLOOKUP(F$2,Table1[],5,0),0)))) -> 800000
A60: 2075 | B60: 1 | C60: =IF($B60=1,VLOOKUP(C$2,Table1[],3,0),IF($B60=2,VLOOKUP(C$2,Table1[],4,0),IF($B60=3,VLOOKUP(C$2,Table1[],5,0),IF($B60=4,VLOOKUP(C$2,Table1[],5,0),0)))) -> 2000000 | D60: =IF($B60=1,VLOOKUP(D$2,Table1[],3,0),IF($B60=2,VLOOKUP(D$2,Table1[],4,0),IF($B60=3,VLOOKUP(D$2,Table1[],5,0),IF($B60=4,VLOOKUP(D$2,Table1[],5,0),0)))) -> 2000000 | E60: =IF($B60=1,VLOOKUP(E$2,Table1[],3,0),IF($B60=2,VLOOKUP(E$2,Table1[],4,0),IF($B60=3,VLOOKUP(E$2,Table1[],5,0),IF($B60=4,VLOOKUP(E$2,Table1[],5,0),0)))) -> 1500000 | F60: =IF($B60=1,VLOOKUP(F$2,Table1[],3,0),IF($B60=2,VLOOKUP(F$2,Table1[],4,0),IF($B60=3,VLOOKUP(F$2,Table1[],5,0),IF($B60=4,VLOOKUP(F$2,Table1[],5,0),0)))) -> 800000
A61: 2076 | B61: 1 | C61: =IF($B61=1,VLOOKUP(C$2,Table1[],3,0),IF($B61=2,VLOOKUP(C$2,Table1[],4,0),IF($B61=3,VLOOKUP(C$2,Table1[],5,0),IF($B61=4,VLOOKUP(C$2,Table1[],5,0),0)))) -> 2000000 | D61: =IF($B61=1,VLOOKUP(D$2,Table1[],3,0),IF($B61=2,VLOOKUP(D$2,Table1[],4,0),IF($B61=3,VLOOKUP(D$2,Table1[],5,0),IF($B61=4,VLOOKUP(D$2,Table1[],5,0),0)))) -> 2000000 | E61: =IF($B61=1,VLOOKUP(E$2,Table1[],3,0),IF($B61=2,VLOOKUP(E$2,Table1[],4,0),IF($B61=3,VLOOKUP(E$2,Table1[],5,0),IF($B61=4,VLOOKUP(E$2,Table1[],5,0),0)))) -> 1500000 | F61: =IF($B61=1,VLOOKUP(F$2,Table1[],3,0),IF($B61=2,VLOOKUP(F$2,Table1[],4,0),IF($B61=3,VLOOKUP(F$2,Table1[],5,0),IF($B61=4,VLOOKUP(F$2,Table1[],5,0),0)))) -> 800000
A62: 2077 | B62: 1 | C62: =IF($B62=1,VLOOKUP(C$2,Table1[],3,0),IF($B62=2,VLOOKUP(C$2,Table1[],4,0),IF($B62=3,VLOOKUP(C$2,Table1[],5,0),IF($B62=4,VLOOKUP(C$2,Table1[],5,0),0)))) -> 2000000 | D62: =IF($B62=1,VLOOKUP(D$2,Table1[],3,0),IF($B62=2,VLOOKUP(D$2,Table1[],4,0),IF($B62=3,VLOOKUP(D$2,Table1[],5,0),IF($B62=4,VLOOKUP(D$2,Table1[],5,0),0)))) -> 2000000 | E62: =IF($B62=1,VLOOKUP(E$2,Table1[],3,0),IF($B62=2,VLOOKUP(E$2,Table1[],4,0),IF($B62=3,VLOOKUP(E$2,Table1[],5,0),IF($B62=4,VLOOKUP(E$2,Table1[],5,0),0)))) -> 1500000 | F62: =IF($B62=1,VLOOKUP(F$2,Table1[],3,0),IF($B62=2,VLOOKUP(F$2,Table1[],4,0),IF($B62=3,VLOOKUP(F$2,Table1[],5,0),IF($B62=4,VLOOKUP(F$2,Table1[],5,0),0)))) -> 800000
A63: 2079 | B63: 1 | C63: =IF($B63=1,VLOOKUP(C$2,Table1[],3,0),IF($B63=2,VLOOKUP(C$2,Table1[],4,0),IF($B63=3,VLOOKUP(C$2,Table1[],5,0),IF($B63=4,VLOOKUP(C$2,Table1[],5,0),0)))) -> 2000000 | D63: =IF($B63=1,VLOOKUP(D$2,Table1[],3,0),IF($B63=2,VLOOKUP(D$2,Table1[],4,0),IF($B63=3,VLOOKUP(D$2,Table1[],5,0),IF($B63=4,VLOOKUP(D$2,Table1[],5,0),0)))) -> 2000000 | E63: =IF($B63=1,VLOOKUP(E$2,Table1[],3,0),IF($B63=2,VLOOKUP(E$2,Table1[],4,0),IF($B63=3,VLOOKUP(E$2,Table1[],5,0),IF($B63=4,VLOOKUP(E$2,Table1[],5,0),0)))) -> 1500000 | F63: =IF($B63=1,VLOOKUP(F$2,Table1[],3,0),IF($B63=2,VLOOKUP(F$2,Table1[],4,0),IF($B63=3,VLOOKUP(F$2,Table1[],5,0),IF($B63=4,VLOOKUP(F$2,Table1[],5,0),0)))) -> 800000
A64: 2080 | B64: 1 | C64: =IF($B64=1,VLOOKUP(C$2,Table1[],3,0),IF($B64=2,VLOOKUP(C$2,Table1[],4,0),IF($B64=3,VLOOKUP(C$2,Table1[],5,0),IF($B64=4,VLOOKUP(C$2,Table1[],5,0),0)))) -> 2000000 | D64: =IF($B64=1,VLOOKUP(D$2,Table1[],3,0),IF($B64=2,VLOOKUP(D$2,Table1[],4,0),IF($B64=3,VLOOKUP(D$2,Table1[],5,0),IF($B64=4,VLOOKUP(D$2,Table1[],5,0),0)))) -> 2000000 | E64: =IF($B64=1,VLOOKUP(E$2,Table1[],3,0),IF($B64=2,VLOOKUP(E$2,Table1[],4,0),IF($B64=3,VLOOKUP(E$2,Table1[],5,0),IF($B64=4,VLOOKUP(E$2,Table1[],5,0),0)))) -> 1500000 | F64: =IF($B64=1,VLOOKUP(F$2,Table1[],3,0),IF($B64=2,VLOOKUP(F$2,Table1[],4,0),IF($B64=3,VLOOKUP(F$2,Table1[],5,0),IF($B64=4,VLOOKUP(F$2,Table1[],5,0),0)))) -> 800000
A65: 2081 | B65: 1 | C65: =IF($B65=1,VLOOKUP(C$2,Table1[],3,0),IF($B65=2,VLOOKUP(C$2,Table1[],4,0),IF($B65=3,VLOOKUP(C$2,Table1[],5,0),IF($B65=4,VLOOKUP(C$2,Table1[],5,0),0)))) -> 2000000 | D65: =IF($B65=1,VLOOKUP(D$2,Table1[],3,0),IF($B65=2,VLOOKUP(D$2,Table1[],4,0),IF($B65=3,VLOOKUP(D$2,Table1[],5,0),IF($B65=4,VLOOKUP(D$2,Table1[],5,0),0)))) -> 2000000 | E65: =IF($B65=1,VLOOKUP(E$2,Table1[],3,0),IF($B65=2,VLOOKUP(E$2,Table1[],4,0),IF($B65=3,VLOOKUP(E$2,Table1[],5,0),IF($B65=4,VLOOKUP(E$2,Table1[],5,0),0)))) -> 1500000 | F65: =IF($B65=1,VLOOKUP(F$2,Table1[],3,0),IF($B65=2,VLOOKUP(F$2,Table1[],4,0),IF($B65=3,VLOOKUP(F$2,Table1[],5,0),IF($B65=4,VLOOKUP(F$2,Table1[],5,0),0)))) -> 800000
A66: 2082 | B66: 1 | C66: =IF($B66=1,VLOOKUP(C$2,Table1[],3,0),IF($B66=2,VLOOKUP(C$2,Table1[],4,0),IF($B66=3,VLOOKUP(C$2,Table1[],5,0),IF($B66=4,VLOOKUP(C$2,Table1[],5,0),0)))) -> 2000000 | D66: =IF($B66=1,VLOOKUP(D$2,Table1[],3,0),IF($B66=2,VLOOKUP(D$2,Table1[],4,0),IF($B66=3,VLOOKUP(D$2,Table1[],5,0),IF($B66=4,VLOOKUP(D$2,Table1[],5,0),0)))) -> 2000000 | E66: =IF($B66=1,VLOOKUP(E$2,Table1[],3,0),IF($B66=2,VLOOKUP(E$2,Table1[],4,0),IF($B66=3,VLOOKUP(E$2,Table1[],5,0),IF($B66=4,VLOOKUP(E$2,Table1[],5,0),0)))) -> 1500000 | F66: =IF($B66=1,VLOOKUP(F$2,Table1[],3,0),IF($B66=2,VLOOKUP(F$2,Table1[],4,0),IF($B66=3,VLOOKUP(F$2,Table1[],5,0),IF($B66=4,VLOOKUP(F$2,Table1[],5,0),0)))) -> 800000
A67: 2083 | B67: 1 | C67: =IF($B67=1,VLOOKUP(C$2,Table1[],3,0),IF($B67=2,VLOOKUP(C$2,Table1[],4,0),IF($B67=3,VLOOKUP(C$2,Table1[],5,0),IF($B67=4,VLOOKUP(C$2,Table1[],5,0),0)))) -> 2000000 | D67: =IF($B67=1,VLOOKUP(D$2,Table1[],3,0),IF($B67=2,VLOOKUP(D$2,Table1[],4,0),IF($B67=3,VLOOKUP(D$2,Table1[],5,0),IF($B67=4,VLOOKUP(D$2,Table1[],5,0),0)))) -> 2000000 | E67: =IF($B67=1,VLOOKUP(E$2,Table1[],3,0),IF($B67=2,VLOOKUP(E$2,Table1[],4,0),IF($B67=3,VLOOKUP(E$2,Table1[],5,0),IF($B67=4,VLOOKUP(E$2,Table1[],5,0),0)))) -> 1500000 | F67: =IF($B67=1,VLOOKUP(F$2,Table1[],3,0),IF($B67=2,VLOOKUP(F$2,Table1[],4,0),IF($B67=3,VLOOKUP(F$2,Table1[],5,0),IF($B67=4,VLOOKUP(F$2,Table1[],5,0),0)))) -> 800000
A68: 2084 | B68: 1 | C68: =IF($B68=1,VLOOKUP(C$2,Table1[],3,0),IF($B68=2,VLOOKUP(C$2,Table1[],4,0),IF($B68=3,VLOOKUP(C$2,Table1[],5,0),IF($B68=4,VLOOKUP(C$2,Table1[],5,0),0)))) -> 2000000 | D68: =IF($B68=1,VLOOKUP(D$2,Table1[],3,0),IF($B68=2,VLOOKUP(D$2,Table1[],4,0),IF($B68=3,VLOOKUP(D$2,Table1[],5,0),IF($B68=4,VLOOKUP(D$2,Table1[],5,0),0)))) -> 2000000 | E68: =IF($B68=1,VLOOKUP(E$2,Table1[],3,0),IF($B68=2,VLOOKUP(E$2,Table1[],4,0),IF($B68=3,VLOOKUP(E$2,Table1[],5,0),IF($B68=4,VLOOKUP(E$2,Table1[],5,0),0)))) -> 1500000 | F68: =IF($B68=1,VLOOKUP(F$2,Table1[],3,0),IF($B68=2,VLOOKUP(F$2,Table1[],4,0),IF($B68=3,VLOOKUP(F$2,Table1[],5,0),IF($B68=4,VLOOKUP(F$2,Table1[],5,0),0)))) -> 800000
A69: 2085 | B69: 1 | C69: =IF($B69=1,VLOOKUP(C$2,Table1[],3,0),IF($B69=2,VLOOKUP(C$2,Table1[],4,0),IF($B69=3,VLOOKUP(C$2,Table1[],5,0),IF($B69=4,VLOOKUP(C$2,Table1[],5,0),0)))) -> 2000000 | D69: =IF($B69=1,VLOOKUP(D$2,Table1[],3,0),IF($B69=2,VLOOKUP(D$2,Table1[],4,0),IF($B69=3,VLOOKUP(D$2,Table1[],5,0),IF($B69=4,VLOOKUP(D$2,Table1[],5,0),0)))) -> 2000000 | E69: =IF($B69=1,VLOOKUP(E$2,Table1[],3,0),IF($B69=2,VLOOKUP(E$2,Table1[],4,0),IF($B69=3,VLOOKUP(E$2,Table1[],5,0),IF($B69=4,VLOOKUP(E$2,Table1[],5,0),0)))) -> 1500000 | F69: =IF($B69=1,VLOOKUP(F$2,Table1[],3,0),IF($B69=2,VLOOKUP(F$2,Table1[],4,0),IF($B69=3,VLOOKUP(F$2,Table1[],5,0),IF($B69=4,VLOOKUP(F$2,Table1[],5,0),0)))) -> 800000
A70: 2086 | B70: 1 | C70: =IF($B70=1,VLOOKUP(C$2,Table1[],3,0),IF($B70=2,VLOOKUP(C$2,Table1[],4,0),IF($B70=3,VLOOKUP(C$2,Table1[],5,0),IF($B70=4,VLOOKUP(C$2,Table1[],5,0),0)))) -> 2000000 | D70: =IF($B70=1,VLOOKUP(D$2,Table1[],3,0),IF($B70=2,VLOOKUP(D$2,Table1[],4,0),IF($B70=3,VLOOKUP(D$2,Table1[],5,0),IF($B70=4,VLOOKUP(D$2,Table1[],5,0),0)))) -> 2000000 | E70: =IF($B70=1,VLOOKUP(E$2,Table1[],3,0),IF($B70=2,VLOOKUP(E$2,Table1[],4,0),IF($B70=3,VLOOKUP(E$2,Table1[],5,0),IF($B70=4,VLOOKUP(E$2,Table1[],5,0),0)))) -> 1500000 | F70: =IF($B70=1,VLOOKUP(F$2,Table1[],3,0),IF($B70=2,VLOOKUP(F$2,Table1[],4,0),IF($B70=3,VLOOKUP(F$2,Table1[],5,0),IF($B70=4,VLOOKUP(F$2,Table1[],5,0),0)))) -> 800000
A71: 2087 | B71: 1 | C71: =IF($B71=1,VLOOKUP(C$2,Table1[],3,0),IF($B71=2,VLOOKUP(C$2,Table1[],4,0),IF($B71=3,VLOOKUP(C$2,Table1[],5,0),IF($B71=4,VLOOKUP(C$2,Table1[],5,0),0)))) -> 2000000 | D71: =IF($B71=1,VLOOKUP(D$2,Table1[],3,0),IF($B71=2,VLOOKUP(D$2,Table1[],4,0),IF($B71=3,VLOOKUP(D$2,Table1[],5,0),IF($B71=4,VLOOKUP(D$2,Table1[],5,0),0)))) -> 2000000 | E71: =IF($B71=1,VLOOKUP(E$2,Table1[],3,0),IF($B71=2,VLOOKUP(E$2,Table1[],4,0),IF($B71=3,VLOOKUP(E$2,Table1[],5,0),IF($B71=4,VLOOKUP(E$2,Table1[],5,0),0)))) -> 1500000 | F71: =IF($B71=1,VLOOKUP(F$2,Table1[],3,0),IF($B71=2,VLOOKUP(F$2,Table1[],4,0),IF($B71=3,VLOOKUP(F$2,Table1[],5,0),IF($B71=4,VLOOKUP(F$2,Table1[],5,0),0)))) -> 800000
A72: 2088 | B72: 1 | C72: =IF($B72=1,VLOOKUP(C$2,Table1[],3,0),IF($B72=2,VLOOKUP(C$2,Table1[],4,0),IF($B72=3,VLOOKUP(C$2,Table1[],5,0),IF($B72=4,VLOOKUP(C$2,Table1[],5,0),0)))) -> 2000000 | D72: =IF($B72=1,VLOOKUP(D$2,Table1[],3,0),IF($B72=2,VLOOKUP(D$2,Table1[],4,0),IF($B72=3,VLOOKUP(D$2,Table1[],5,0),IF($B72=4,VLOOKUP(D$2,Table1[],5,0),0)))) -> 2000000 | E72: =IF($B72=1,VLOOKUP(E$2,Table1[],3,0),IF($B72=2,VLOOKUP(E$2,Table1[],4,0),IF($B72=3,VLOOKUP(E$2,Table1[],5,0),IF($B72=4,VLOOKUP(E$2,Table1[],5,0),0)))) -> 1500000 | F72: =IF($B72=1,VLOOKUP(F$2,Table1[],3,0),IF($B72=2,VLOOKUP(F$2,Table1[],4,0),IF($B72=3,VLOOKUP(F$2,Table1[],5,0),IF($B72=4,VLOOKUP(F$2,Table1[],5,0),0)))) -> 800000
A73: 2089 | B73: 1 | C73: =IF($B73=1,VLOOKUP(C$2,Table1[],3,0),IF($B73=2,VLOOKUP(C$2,Table1[],4,0),IF($B73=3,VLOOKUP(C$2,Table1[],5,0),IF($B73=4,VLOOKUP(C$2,Table1[],5,0),0)))) -> 2000000 | D73: =IF($B73=1,VLOOKUP(D$2,Table1[],3,0),IF($B73=2,VLOOKUP(D$2,Table1[],4,0),IF($B73=3,VLOOKUP(D$2,Table1[],5,0),IF($B73=4,VLOOKUP(D$2,Table1[],5,0),0)))) -> 2000000 | E73: =IF($B73=1,VLOOKUP(E$2,Table1[],3,0),IF($B73=2,VLOOKUP(E$2,Table1[],4,0),IF($B73=3,VLOOKUP(E$2,Table1[],5,0),IF($B73=4,VLOOKUP(E$2,Table1[],5,0),0)))) -> 1500000 | F73: =IF($B73=1,VLOOKUP(F$2,Table1[],3,0),IF($B73=2,VLOOKUP(F$2,Table1[],4,0),IF($B73=3,VLOOKUP(F$2,Table1[],5,0),IF($B73=4,VLOOKUP(F$2,Table1[],5,0),0)))) -> 800000
A74: 2090 | B74: 1 | C74: =IF($B74=1,VLOOKUP(C$2,Table1[],3,0),IF($B74=2,VLOOKUP(C$2,Table1[],4,0),IF($B74=3,VLOOKUP(C$2,Table1[],5,0),IF($B74=4,VLOOKUP(C$2,Table1[],5,0),0)))) -> 2000000 | D74: =IF($B74=1,VLOOKUP(D$2,Table1[],3,0),IF($B74=2,VLOOKUP(D$2,Table1[],4,0),IF($B74=3,VLOOKUP(D$2,Table1[],5,0),IF($B74=4,VLOOKUP(D$2,Table1[],5,0),0)))) -> 2000000 | E74: =IF($B74=1,VLOOKUP(E$2,Table1[],3,0),IF($B74=2,VLOOKUP(E$2,Table1[],4,0),IF($B74=3,VLOOKUP(E$2,Table1[],5,0),IF($B74=4,VLOOKUP(E$2,Table1[],5,0),0)))) -> 1500000 | F74: =IF($B74=1,VLOOKUP(F$2,Table1[],3,0),IF($B74=2,VLOOKUP(F$2,Table1[],4,0),IF($B74=3,VLOOKUP(F$2,Table1[],5,0),IF($B74=4,VLOOKUP(F$2,Table1[],5,0),0)))) -> 800000
A75: 2092 | B75: 1 | C75: =IF($B75=1,VLOOKUP(C$2,Table1[],3,0),IF($B75=2,VLOOKUP(C$2,Table1[],4,0),IF($B75=3,VLOOKUP(C$2,Table1[],5,0),IF($B75=4,VLOOKUP(C$2,Table1[],5,0),0)))) -> 2000000 | D75: =IF($B75=1,VLOOKUP(D$2,Table1[],3,0),IF($B75=2,VLOOKUP(D$2,Table1[],4,0),IF($B75=3,VLOOKUP(D$2,Table1[],5,0),IF($B75=4,VLOOKUP(D$2,Table1[],5,0),0)))) -> 2000000 | E75: =IF($B75=1,VLOOKUP(E$2,Table1[],3,0),IF($B75=2,VLOOKUP(E$2,Table1[],4,0),IF($B75=3,VLOOKUP(E$2,Table1[],5,0),IF($B75=4,VLOOKUP(E$2,Table1[],5,0),0)))) -> 1500000 | F75: =IF($B75=1,VLOOKUP(F$2,Table1[],3,0),IF($B75=2,VLOOKUP(F$2,Table1[],4,0),IF($B75=3,VLOOKUP(F$2,Table1[],5,0),IF($B75=4,VLOOKUP(F$2,Table1[],5,0),0)))) -> 800000
A76: 2093 | B76: 1 | C76: =IF($B76=1,VLOOKUP(C$2,Table1[],3,0),IF($B76=2,VLOOKUP(C$2,Table1[],4,0),IF($B76=3,VLOOKUP(C$2,Table1[],5,0),IF($B76=4,VLOOKUP(C$2,Table1[],5,0),0)))) -> 2000000 | D76: =IF($B76=1,VLOOKUP(D$2,Table1[],3,0),IF($B76=2,VLOOKUP(D$2,Table1[],4,0),IF($B76=3,VLOOKUP(D$2,Table1[],5,0),IF($B76=4,VLOOKUP(D$2,Table1[],5,0),0)))) -> 2000000 | E76: =IF($B76=1,VLOOKUP(E$2,Table1[],3,0),IF($B76=2,VLOOKUP(E$2,Table1[],4,0),IF($B76=3,VLOOKUP(E$2,Table1[],5,0),IF($B76=4,VLOOKUP(E$2,Table1[],5,0),0)))) -> 1500000 | F76: =IF($B76=1,VLOOKUP(F$2,Table1[],3,0),IF($B76=2,VLOOKUP(F$2,Table1[],4,0),IF($B76=3,VLOOKUP(F$2,Table1[],5,0),IF($B76=4,VLOOKUP(F$2,Table1[],5,0),0)))) -> 800000
A77: 2094 | B77: 1 | C77: =IF($B77=1,VLOOKUP(C$2,Table1[],3,0),IF($B77=2,VLOOKUP(C$2,Table1[],4,0),IF($B77=3,VLOOKUP(C$2,Table1[],5,0),IF($B77=4,VLOOKUP(C$2,Table1[],5,0),0)))) -> 2000000 | D77: =IF($B77=1,VLOOKUP(D$2,Table1[],3,0),IF($B77=2,VLOOKUP(D$2,Table1[],4,0),IF($B77=3,VLOOKUP(D$2,Table1[],5,0),IF($B77=4,VLOOKUP(D$2,Table1[],5,0),0)))) -> 2000000 | E77: =IF($B77=1,VLOOKUP(E$2,Table1[],3,0),IF($B77=2,VLOOKUP(E$2,Table1[],4,0),IF($B77=3,VLOOKUP(E$2,Table1[],5,0),IF($B77=4,VLOOKUP(E$2,Table1[],5,0),0)))) -> 1500000 | F77: =IF($B77=1,VLOOKUP(F$2,Table1[],3,0),IF($B77=2,VLOOKUP(F$2,Table1[],4,0),IF($B77=3,VLOOKUP(F$2,Table1[],5,0),IF($B77=4,VLOOKUP(F$2,Table1[],5,0),0)))) -> 800000
A78: 2095 | B78: 1 | C78: =IF($B78=1,VLOOKUP(C$2,Table1[],3,0),IF($B78=2,VLOOKUP(C$2,Table1[],4,0),IF($B78=3,VLOOKUP(C$2,Table1[],5,0),IF($B78=4,VLOOKUP(C$2,Table1[],5,0),0)))) -> 2000000 | D78: =IF($B78=1,VLOOKUP(D$2,Table1[],3,0),IF($B78=2,VLOOKUP(D$2,Table1[],4,0),IF($B78=3,VLOOKUP(D$2,Table1[],5,0),IF($B78=4,VLOOKUP(D$2,Table1[],5,0),0)))) -> 2000000 | E78: =IF($B78=1,VLOOKUP(E$2,Table1[],3,0),IF($B78=2,VLOOKUP(E$2,Table1[],4,0),IF($B78=3,VLOOKUP(E$2,Table1[],5,0),IF($B78=4,VLOOKUP(E$2,Table1[],5,0),0)))) -> 1500000 | F78: =IF($B78=1,VLOOKUP(F$2,Table1[],3,0),IF($B78=2,VLOOKUP(F$2,Table1[],4,0),IF($B78=3,VLOOKUP(F$2,Table1[],5,0),IF($B78=4,VLOOKUP(F$2,Table1[],5,0),0)))) -> 800000
A79: 2096 | B79: 1 | C79: =IF($B79=1,VLOOKUP(C$2,Table1[],3,0),IF($B79=2,VLOOKUP(C$2,Table1[],4,0),IF($B79=3,VLOOKUP(C$2,Table1[],5,0),IF($B79=4,VLOOKUP(C$2,Table1[],5,0),0)))) -> 2000000 | D79: =IF($B79=1,VLOOKUP(D$2,Table1[],3,0),IF($B79=2,VLOOKUP(D$2,Table1[],4,0),IF($B79=3,VLOOKUP(D$2,Table1[],5,0),IF($B79=4,VLOOKUP(D$2,Table1[],5,0),0)))) -> 2000000 | E79: =IF($B79=1,VLOOKUP(E$2,Table1[],3,0),IF($B79=2,VLOOKUP(E$2,Table1[],4,0),IF($B79=3,VLOOKUP(E$2,Table1[],5,0),IF($B79=4,VLOOKUP(E$2,Table1[],5,0),0)))) -> 1500000 | F79: =IF($B79=1,VLOOKUP(F$2,Table1[],3,0),IF($B79=2,VLOOKUP(F$2,Table1[],4,0),IF($B79=3,VLOOKUP(F$2,Table1[],5,0),IF($B79=4,VLOOKUP(F$2,Table1[],5,0),0)))) -> 800000
A80: 2097 | B80: 1 | C80: =IF($B80=1,VLOOKUP(C$2,Table1[],3,0),IF($B80=2,VLOOKUP(C$2,Table1[],4,0),IF($B80=3,VLOOKUP(C$2,Table1[],5,0),IF($B80=4,VLOOKUP(C$2,Table1[],5,0),0)))) -> 2000000 | D80: =IF($B80=1,VLOOKUP(D$2,Table1[],3,0),IF($B80=2,VLOOKUP(D$2,Table1[],4,0),IF($B80=3,VLOOKUP(D$2,Table1[],5,0),IF($B80=4,VLOOKUP(D$2,Table1[],5,0),0)))) -> 2000000 | E80: =IF($B80=1,VLOOKUP(E$2,Table1[],3,0),IF($B80=2,VLOOKUP(E$2,Table1[],4,0),IF($B80=3,VLOOKUP(E$2,Table1[],5,0),IF($B80=4,VLOOKUP(E$2,Table1[],5,0),0)))) -> 1500000 | F80: =IF($B80=1,VLOOKUP(F$2,Table1[],3,0),IF($B80=2,VLOOKUP(F$2,Table1[],4,0),IF($B80=3,VLOOKUP(F$2,Table1[],5,0),IF($B80=4,VLOOKUP(F$2,Table1[],5,0),0)))) -> 800000
A81: 2099 | B81: 1 | C81: =IF($B81=1,VLOOKUP(C$2,Table1[],3,0),IF($B81=2,VLOOKUP(C$2,Table1[],4,0),IF($B81=3,VLOOKUP(C$2,Table1[],5,0),IF($B81=4,VLOOKUP(C$2,Table1[],5,0),0)))) -> 2000000 | D81: =IF($B81=1,VLOOKUP(D$2,Table1[],3,0),IF($B81=2,VLOOKUP(D$2,Table1[],4,0),IF($B81=3,VLOOKUP(D$2,Table1[],5,0),IF($B81=4,VLOOKUP(D$2,Table1[],5,0),0)))) -> 2000000 | E81: =IF($B81=1,VLOOKUP(E$2,Table1[],3,0),IF($B81=2,VLOOKUP(E$2,Table1[],4,0),IF($B81=3,VLOOKUP(E$2,Table1[],5,0),IF($B81=4,VLOOKUP(E$2,Table1[],5,0),0)))) -> 1500000 | F81: =IF($B81=1,VLOOKUP(F$2,Table1[],3,0),IF($B81=2,VLOOKUP(F$2,Table1[],4,0),IF($B81=3,VLOOKUP(F$2,Table1[],5,0),IF($B81=4,VLOOKUP(F$2,Table1[],5,0),0)))) -> 800000
A82: 2100 | B82: 1 | C82: =IF($B82=1,VLOOKUP(C$2,Table1[],3,0),IF($B82=2,VLOOKUP(C$2,Table1[],4,0),IF($B82=3,VLOOKUP(C$2,Table1[],5,0),IF($B82=4,VLOOKUP(C$2,Table1[],5,0),0)))) -> 2000000 | D82: =IF($B82=1,VLOOKUP(D$2,Table1[],3,0),IF($B82=2,VLOOKUP(D$2,Table1[],4,0),IF($B82=3,VLOOKUP(D$2,Table1[],5,0),IF($B82=4,VLOOKUP(D$2,Table1[],5,0),0)))) -> 2000000 | E82: =IF($B82=1,VLOOKUP(E$2,Table1[],3,0),IF($B82=2,VLOOKUP(E$2,Table1[],4,0),IF($B82=3,VLOOKUP(E$2,Table1[],5,0),IF($B82=4,VLOOKUP(E$2,Table1[],5,0),0)))) -> 1500000 | F82: =IF($B82=1,VLOOKUP(F$2,Table1[],3,0),IF($B82=2,VLOOKUP(F$2,Table1[],4,0),IF($B82=3,VLOOKUP(F$2,Table1[],5,0),IF($B82=4,VLOOKUP(F$2,Table1[],5,0),0)))) -> 800000
A83: 2101 | B83: 1 | C83: =IF($B83=1,VLOOKUP(C$2,Table1[],3,0),IF($B83=2,VLOOKUP(C$2,Table1[],4,0),IF($B83=3,VLOOKUP(C$2,Table1[],5,0),IF($B83=4,VLOOKUP(C$2,Table1[],5,0),0)))) -> 2000000 | D83: =IF($B83=1,VLOOKUP(D$2,Table1[],3,0),IF($B83=2,VLOOKUP(D$2,Table1[],4,0),IF($B83=3,VLOOKUP(D$2,Table1[],5,0),IF($B83=4,VLOOKUP(D$2,Table1[],5,0),0)))) -> 2000000 | E83: =IF($B83=1,VLOOKUP(E$2,Table1[],3,0),IF($B83=2,VLOOKUP(E$2,Table1[],4,0),IF($B83=3,VLOOKUP(E$2,Table1[],5,0),IF($B83=4,VLOOKUP(E$2,Table1[],5,0),0)))) -> 1500000 | F83: =IF($B83=1,VLOOKUP(F$2,Table1[],3,0),IF($B83=2,VLOOKUP(F$2,Table1[],4,0),IF($B83=3,VLOOKUP(F$2,Table1[],5,0),IF($B83=4,VLOOKUP(F$2,Table1[],5,0),0)))) -> 800000
A84: 2102 | B84: 1 | C84: =IF($B84=1,VLOOKUP(C$2,Table1[],3,0),IF($B84=2,VLOOKUP(C$2,Table1[],4,0),IF($B84=3,VLOOKUP(C$2,Table1[],5,0),IF($B84=4,VLOOKUP(C$2,Table1[],5,0),0)))) -> 2000000 | D84: =IF($B84=1,VLOOKUP(D$2,Table1[],3,0),IF($B84=2,VLOOKUP(D$2,Table1[],4,0),IF($B84=3,VLOOKUP(D$2,Table1[],5,0),IF($B84=4,VLOOKUP(D$2,Table1[],5,0),0)))) -> 2000000 | E84: =IF($B84=1,VLOOKUP(E$2,Table1[],3,0),IF($B84=2,VLOOKUP(E$2,Table1[],4,0),IF($B84=3,VLOOKUP(E$2,Table1[],5,0),IF($B84=4,VLOOKUP(E$2,Table1[],5,0),0)))) -> 1500000 | F84: =IF($B84=1,VLOOKUP(F$2,Table1[],3,0),IF($B84=2,VLOOKUP(F$2,Table1[],4,0),IF($B84=3,VLOOKUP(F$2,Table1[],5,0),IF($B84=4,VLOOKUP(F$2,Table1[],5,0),0)))) -> 800000
A85: 2103 | B85: 1 | C85: =IF($B85=1,VLOOKUP(C$2,Table1[],3,0),IF($B85=2,VLOOKUP(C$2,Table1[],4,0),IF($B85=3,VLOOKUP(C$2,Table1[],5,0),IF($B85=4,VLOOKUP(C$2,Table1[],5,0),0)))) -> 2000000 | D85: =IF($B85=1,VLOOKUP(D$2,Table1[],3,0),IF($B85=2,VLOOKUP(D$2,Table1[],4,0),IF($B85=3,VLOOKUP(D$2,Table1[],5,0),IF($B85=4,VLOOKUP(D$2,Table1[],5,0),0)))) -> 2000000 | E85: =IF($B85=1,VLOOKUP(E$2,Table1[],3,0),IF($B85=2,VLOOKUP(E$2,Table1[],4,0),IF($B85=3,VLOOKUP(E$2,Table1[],5,0),IF($B85=4,VLOOKUP(E$2,Table1[],5,0),0)))) -> 1500000 | F85: =IF($B85=1,VLOOKUP(F$2,Table1[],3,0),IF($B85=2,VLOOKUP(F$2,Table1[],4,0),IF($B85=3,VLOOKUP(F$2,Table1[],5,0),IF($B85=4,VLOOKUP(F$2,Table1[],5,0),0)))) -> 800000
A86: 2104 | B86: 1 | C86: =IF($B86=1,VLOOKUP(C$2,Table1[],3,0),IF($B86=2,VLOOKUP(C$2,Table1[],4,0),IF($B86=3,VLOOKUP(C$2,Table1[],5,0),IF($B86=4,VLOOKUP(C$2,Table1[],5,0),0)))) -> 2000000 | D86: =IF($B86=1,VLOOKUP(D$2,Table1[],3,0),IF($B86=2,VLOOKUP(D$2,Table1[],4,0),IF($B86=3,VLOOKUP(D$2,Table1[],5,0),IF($B86=4,VLOOKUP(D$2,Table1[],5,0),0)))) -> 2000000 | E86: =IF($B86=1,VLOOKUP(E$2,Table1[],3,0),IF($B86=2,VLOOKUP(E$2,Table1[],4,0),IF($B86=3,VLOOKUP(E$2,Table1[],5,0),IF($B86=4,VLOOKUP(E$2,Table1[],5,0),0)))) -> 1500000 | F86: =IF($B86=1,VLOOKUP(F$2,Table1[],3,0),IF($B86=2,VLOOKUP(F$2,Table1[],4,0),IF($B86=3,VLOOKUP(F$2,Table1[],5,0),IF($B86=4,VLOOKUP(F$2,Table1[],5,0),0)))) -> 800000
A87: 2105 | B87: 1 | C87: =IF($B87=1,VLOOKUP(C$2,Table1[],3,0),IF($B87=2,VLOOKUP(C$2,Table1[],4,0),IF($B87=3,VLOOKUP(C$2,Table1[],5,0),IF($B87=4,VLOOKUP(C$2,Table1[],5,0),0)))) -> 2000000 | D87: =IF($B87=1,VLOOKUP(D$2,Table1[],3,0),IF($B87=2,VLOOKUP(D$2,Table1[],4,0),IF($B87=3,VLOOKUP(D$2,Table1[],5,0),IF($B87=4,VLOOKUP(D$2,Table1[],5,0),0)))) -> 2000000 | E87: =IF($B87=1,VLOOKUP(E$2,Table1[],3,0),IF($B87=2,VLOOKUP(E$2,Table1[],4,0),IF($B87=3,VLOOKUP(E$2,Table1[],5,0),IF($B87=4,VLOOKUP(E$2,Table1[],5,0),0)))) -> 1500000 | F87: =IF($B87=1,VLOOKUP(F$2,Table1[],3,0),IF($B87=2,VLOOKUP(F$2,Table1[],4,0),IF($B87=3,VLOOKUP(F$2,Table1[],5,0),IF($B87=4,VLOOKUP(F$2,Table1[],5,0),0)))) -> 800000
A88: 2106 | B88: 1 | C88: =IF($B88=1,VLOOKUP(C$2,Table1[],3,0),IF($B88=2,VLOOKUP(C$2,Table1[],4,0),IF($B88=3,VLOOKUP(C$2,Table1[],5,0),IF($B88=4,VLOOKUP(C$2,Table1[],5,0),0)))) -> 2000000 | D88: =IF($B88=1,VLOOKUP(D$2,Table1[],3,0),IF($B88=2,VLOOKUP(D$2,Table1[],4,0),IF($B88=3,VLOOKUP(D$2,Table1[],5,0),IF($B88=4,VLOOKUP(D$2,Table1[],5,0),0)))) -> 2000000 | E88: =IF($B88=1,VLOOKUP(E$2,Table1[],3,0),IF($B88=2,VLOOKUP(E$2,Table1[],4,0),IF($B88=3,VLOOKUP(E$2,Table1[],5,0),IF($B88=4,VLOOKUP(E$2,Table1[],5,0),0)))) -> 1500000 | F88: =IF($B88=1,VLOOKUP(F$2,Table1[],3,0),IF($B88=2,VLOOKUP(F$2,Table1[],4,0),IF($B88=3,VLOOKUP(F$2,Table1[],5,0),IF($B88=4,VLOOKUP(F$2,Table1[],5,0),0)))) -> 800000
A89: 2107 | B89: 1 | C89: =IF($B89=1,VLOOKUP(C$2,Table1[],3,0),IF($B89=2,VLOOKUP(C$2,Table1[],4,0),IF($B89=3,VLOOKUP(C$2,Table1[],5,0),IF($B89=4,VLOOKUP(C$2,Table1[],5,0),0)))) -> 2000000 | D89: =IF($B89=1,VLOOKUP(D$2,Table1[],3,0),IF($B89=2,VLOOKUP(D$2,Table1[],4,0),IF($B89=3,VLOOKUP(D$2,Table1[],5,0),IF($B89=4,VLOOKUP(D$2,Table1[],5,0),0)))) -> 2000000 | E89: =IF($B89=1,VLOOKUP(E$2,Table1[],3,0),IF($B89=2,VLOOKUP(E$2,Table1[],4,0),IF($B89=3,VLOOKUP(E$2,Table1[],5,0),IF($B89=4,VLOOKUP(E$2,Table1[],5,0),0)))) -> 1500000 | F89: =IF($B89=1,VLOOKUP(F$2,Table1[],3,0),IF($B89=2,VLOOKUP(F$2,Table1[],4,0),IF($B89=3,VLOOKUP(F$2,Table1[],5,0),IF($B89=4,VLOOKUP(F$2,Table1[],5,0),0)))) -> 800000
A90: 2108 | B90: 1 | C90: =IF($B90=1,VLOOKUP(C$2,Table1[],3,0),IF($B90=2,VLOOKUP(C$2,Table1[],4,0),IF($B90=3,VLOOKUP(C$2,Table1[],5,0),IF($B90=4,VLOOKUP(C$2,Table1[],5,0),0)))) -> 2000000 | D90: =IF($B90=1,VLOOKUP(D$2,Table1[],3,0),IF($B90=2,VLOOKUP(D$2,Table1[],4,0),IF($B90=3,VLOOKUP(D$2,Table1[],5,0),IF($B90=4,VLOOKUP(D$2,Table1[],5,0),0)))) -> 2000000 | E90: =IF($B90=1,VLOOKUP(E$2,Table1[],3,0),IF($B90=2,VLOOKUP(E$2,Table1[],4,0),IF($B90=3,VLOOKUP(E$2,Table1[],5,0),IF($B90=4,VLOOKUP(E$2,Table1[],5,0),0)))) -> 1500000 | F90: =IF($B90=1,VLOOKUP(F$2,Table1[],3,0),IF($B90=2,VLOOKUP(F$2,Table1[],4,0),IF($B90=3,VLOOKUP(F$2,Table1[],5,0),IF($B90=4,VLOOKUP(F$2,Table1[],5,0),0)))) -> 800000
A91: 2110 | B91: 1 | C91: =IF($B91=1,VLOOKUP(C$2,Table1[],3,0),IF($B91=2,VLOOKUP(C$2,Table1[],4,0),IF($B91=3,VLOOKUP(C$2,Table1[],5,0),IF($B91=4,VLOOKUP(C$2,Table1[],5,0),0)))) -> 2000000 | D91: =IF($B91=1,VLOOKUP(D$2,Table1[],3,0),IF($B91=2,VLOOKUP(D$2,Table1[],4,0),IF($B91=3,VLOOKUP(D$2,Table1[],5,0),IF($B91=4,VLOOKUP(D$2,Table1[],5,0),0)))) -> 2000000 | E91: =IF($B91=1,VLOOKUP(E$2,Table1[],3,0),IF($B91=2,VLOOKUP(E$2,Table1[],4,0),IF($B91=3,VLOOKUP(E$2,Table1[],5,0),IF($B91=4,VLOOKUP(E$2,Table1[],5,0),0)))) -> 1500000 | F91: =IF($B91=1,VLOOKUP(F$2,Table1[],3,0),IF($B91=2,VLOOKUP(F$2,Table1[],4,0),IF($B91=3,VLOOKUP(F$2,Table1[],5,0),IF($B91=4,VLOOKUP(F$2,Table1[],5,0),0)))) -> 800000
A92: 2111 | B92: 1 | C92: =IF($B92=1,VLOOKUP(C$2,Table1[],3,0),IF($B92=2,VLOOKUP(C$2,Table1[],4,0),IF($B92=3,VLOOKUP(C$2,Table1[],5,0),IF($B92=4,VLOOKUP(C$2,Table1[],5,0),0)))) -> 2000000 | D92: =IF($B92=1,VLOOKUP(D$2,Table1[],3,0),IF($B92=2,VLOOKUP(D$2,Table1[],4,0),IF($B92=3,VLOOKUP(D$2,Table1[],5,0),IF($B92=4,VLOOKUP(D$2,Table1[],5,0),0)))) -> 2000000 | E92: =IF($B92=1,VLOOKUP(E$2,Table1[],3,0),IF($B92=2,VLOOKUP(E$2,Table1[],4,0),IF($B92=3,VLOOKUP(E$2,Table1[],5,0),IF($B92=4,VLOOKUP(E$2,Table1[],5,0),0)))) -> 1500000 | F92: =IF($B92=1,VLOOKUP(F$2,Table1[],3,0),IF($B92=2,VLOOKUP(F$2,Table1[],4,0),IF($B92=3,VLOOKUP(F$2,Table1[],5,0),IF($B92=4,VLOOKUP(F$2,Table1[],5,0),0)))) -> 800000
A93: 2112 | B93: 1 | C93: =IF($B93=1,VLOOKUP(C$2,Table1[],3,0),IF($B93=2,VLOOKUP(C$2,Table1[],4,0),IF($B93=3,VLOOKUP(C$2,Table1[],5,0),IF($B93=4,VLOOKUP(C$2,Table1[],5,0),0)))) -> 2000000 | D93: =IF($B93=1,VLOOKUP(D$2,Table1[],3,0),IF($B93=2,VLOOKUP(D$2,Table1[],4,0),IF($B93=3,VLOOKUP(D$2,Table1[],5,0),IF($B93=4,VLOOKUP(D$2,Table1[],5,0),0)))) -> 2000000 | E93: =IF($B93=1,VLOOKUP(E$2,Table1[],3,0),IF($B93=2,VLOOKUP(E$2,Table1[],4,0),IF($B93=3,VLOOKUP(E$2,Table1[],5,0),IF($B93=4,VLOOKUP(E$2,Table1[],5,0),0)))) -> 1500000 | F93: =IF($B93=1,VLOOKUP(F$2,Table1[],3,0),IF($B93=2,VLOOKUP(F$2,Table1[],4,0),IF($B93=3,VLOOKUP(F$2,Table1[],5,0),IF($B93=4,VLOOKUP(F$2,Table1[],5,0),0)))) -> 800000
A94: 2113 | B94: 1 | C94: =IF($B94=1,VLOOKUP(C$2,Table1[],3,0),IF($B94=2,VLOOKUP(C$2,Table1[],4,0),IF($B94=3,VLOOKUP(C$2,Table1[],5,0),IF($B94=4,VLOOKUP(C$2,Table1[],5,0),0)))) -> 2000000 | D94: =IF($B94=1,VLOOKUP(D$2,Table1[],3,0),IF($B94=2,VLOOKUP(D$2,Table1[],4,0),IF($B94=3,VLOOKUP(D$2,Table1[],5,0),IF($B94=4,VLOOKUP(D$2,Table1[],5,0),0)))) -> 2000000 | E94: =IF($B94=1,VLOOKUP(E$2,Table1[],3,0),IF($B94=2,VLOOKUP(E$2,Table1[],4,0),IF($B94=3,VLOOKUP(E$2,Table1[],5,0),IF($B94=4,VLOOKUP(E$2,Table1[],5,0),0)))) -> 1500000 | F94: =IF($B94=1,VLOOKUP(F$2,Table1[],3,0),IF($B94=2,VLOOKUP(F$2,Table1[],4,0),IF($B94=3,VLOOKUP(F$2,Table1[],5,0),IF($B94=4,VLOOKUP(F$2,Table1[],5,0),0)))) -> 800000
A95: 2114 | B95: 1 | C95: =IF($B95=1,VLOOKUP(C$2,Table1[],3,0),IF($B95=2,VLOOKUP(C$2,Table1[],4,0),IF($B95=3,VLOOKUP(C$2,Table1[],5,0),IF($B95=4,VLOOKUP(C$2,Table1[],5,0),0)))) -> 2000000 | D95: =IF($B95=1,VLOOKUP(D$2,Table1[],3,0),IF($B95=2,VLOOKUP(D$2,Table1[],4,0),IF($B95=3,VLOOKUP(D$2,Table1[],5,0),IF($B95=4,VLOOKUP(D$2,Table1[],5,0),0)))) -> 2000000 | E95: =IF($B95=1,VLOOKUP(E$2,Table1[],3,0),IF($B95=2,VLOOKUP(E$2,Table1[],4,0),IF($B95=3,VLOOKUP(E$2,Table1[],5,0),IF($B95=4,VLOOKUP(E$2,Table1[],5,0),0)))) -> 1500000 | F95: =IF($B95=1,VLOOKUP(F$2,Table1[],3,0),IF($B95=2,VLOOKUP(F$2,Table1[],4,0),IF($B95=3,VLOOKUP(F$2,Table1[],5,0),IF($B95=4,VLOOKUP(F$2,Table1[],5,0),0)))) -> 800000
A96: 2115 | B96: 1 | C96: =IF($B96=1,VLOOKUP(C$2,Table1[],3,0),IF($B96=2,VLOOKUP(C$2,Table1[],4,0),IF($B96=3,VLOOKUP(C$2,Table1[],5,0),IF($B96=4,VLOOKUP(C$2,Table1[],5,0),0)))) -> 2000000 | D96: =IF($B96=1,VLOOKUP(D$2,Table1[],3,0),IF($B96=2,VLOOKUP(D$2,Table1[],4,0),IF($B96=3,VLOOKUP(D$2,Table1[],5,0),IF($B96=4,VLOOKUP(D$2,Table1[],5,0),0)))) -> 2000000 | E96: =IF($B96=1,VLOOKUP(E$2,Table1[],3,0),IF($B96=2,VLOOKUP(E$2,Table1[],4,0),IF($B96=3,VLOOKUP(E$2,Table1[],5,0),IF($B96=4,VLOOKUP(E$2,Table1[],5,0),0)))) -> 1500000 | F96: =IF($B96=1,VLOOKUP(F$2,Table1[],3,0),IF($B96=2,VLOOKUP(F$2,Table1[],4,0),IF($B96=3,VLOOKUP(F$2,Table1[],5,0),IF($B96=4,VLOOKUP(F$2,Table1[],5,0),0)))) -> 800000
A97: 2116 | B97: 1 | C97: =IF($B97=1,VLOOKUP(C$2,Table1[],3,0),IF($B97=2,VLOOKUP(C$2,Table1[],4,0),IF($B97=3,VLOOKUP(C$2,Table1[],5,0),IF($B97=4,VLOOKUP(C$2,Table1[],5,0),0)))) -> 2000000 | D97: =IF($B97=1,VLOOKUP(D$2,Table1[],3,0),IF($B97=2,VLOOKUP(D$2,Table1[],4,0),IF($B97=3,VLOOKUP(D$2,Table1[],5,0),IF($B97=4,VLOOKUP(D$2,Table1[],5,0),0)))) -> 2000000 | E97: =IF($B97=1,VLOOKUP(E$2,Table1[],3,0),IF($B97=2,VLOOKUP(E$2,Table1[],4,0),IF($B97=3,VLOOKUP(E$2,Table1[],5,0),IF($B97=4,VLOOKUP(E$2,Table1[],5,0),0)))) -> 1500000 | F97: =IF($B97=1,VLOOKUP(F$2,Table1[],3,0),IF($B97=2,VLOOKUP(F$2,Table1[],4,0),IF($B97=3,VLOOKUP(F$2,Table1[],5,0),IF($B97=4,VLOOKUP(F$2,Table1[],5,0),0)))) -> 800000
A98: 2117 | B98: 1 | C98: =IF($B98=1,VLOOKUP(C$2,Table1[],3,0),IF($B98=2,VLOOKUP(C$2,Table1[],4,0),IF($B98=3,VLOOKUP(C$2,Table1[],5,0),IF($B98=4,VLOOKUP(C$2,Table1[],5,0),0)))) -> 2000000 | D98: =IF($B98=1,VLOOKUP(D$2,Table1[],3,0),IF($B98=2,VLOOKUP(D$2,Table1[],4,0),IF($B98=3,VLOOKUP(D$2,Table1[],5,0),IF($B98=4,VLOOKUP(D$2,Table1[],5,0),0)))) -> 2000000 | E98: =IF($B98=1,VLOOKUP(E$2,Table1[],3,0),IF($B98=2,VLOOKUP(E$2,Table1[],4,0),IF($B98=3,VLOOKUP(E$2,Table1[],5,0),IF($B98=4,VLOOKUP(E$2,Table1[],5,0),0)))) -> 1500000 | F98: =IF($B98=1,VLOOKUP(F$2,Table1[],3,0),IF($B98=2,VLOOKUP(F$2,Table1[],4,0),IF($B98=3,VLOOKUP(F$2,Table1[],5,0),IF($B98=4,VLOOKUP(F$2,Table1[],5,0),0)))) -> 800000
A99: 2118 | B99: 1 | C99: =IF($B99=1,VLOOKUP(C$2,Table1[],3,0),IF($B99=2,VLOOKUP(C$2,Table1[],4,0),IF($B99=3,VLOOKUP(C$2,Table1[],5,0),IF($B99=4,VLOOKUP(C$2,Table1[],5,0),0)))) -> 2000000 | D99: =IF($B99=1,VLOOKUP(D$2,Table1[],3,0),IF($B99=2,VLOOKUP(D$2,Table1[],4,0),IF($B99=3,VLOOKUP(D$2,Table1[],5,0),IF($B99=4,VLOOKUP(D$2,Table1[],5,0),0)))) -> 2000000 | E99: =IF($B99=1,VLOOKUP(E$2,Table1[],3,0),IF($B99=2,VLOOKUP(E$2,Table1[],4,0),IF($B99=3,VLOOKUP(E$2,Table1[],5,0),IF($B99=4,VLOOKUP(E$2,Table1[],5,0),0)))) -> 1500000 | F99: =IF($B99=1,VLOOKUP(F$2,Table1[],3,0),IF($B99=2,VLOOKUP(F$2,Table1[],4,0),IF($B99=3,VLOOKUP(F$2,Table1[],5,0),IF($B99=4,VLOOKUP(F$2,Table1[],5,0),0)))) -> 800000
A100: 2119 | B100: 1 | C100: =IF($B100=1,VLOOKUP(C$2,Table1[],3,0),IF($B100=2,VLOOKUP(C$2,Table1[],4,0),IF($B100=3,VLOOKUP(C$2,Table1[],5,0),IF($B100=4,VLOOKUP(C$2,Table1[],5,0),0)))) -> 2000000 | D100: =IF($B100=1,VLOOKUP(D$2,Table1[],3,0),IF($B100=2,VLOOKUP(D$2,Table1[],4,0),IF($B100=3,VLOOKUP(D$2,Table1[],5,0),IF($B100=4,VLOOKUP(D$2,Table1[],5,0),0)))) -> 2000000 | E100: =IF($B100=1,VLOOKUP(E$2,Table1[],3,0),IF($B100=2,VLOOKUP(E$2,Table1[],4,0),IF($B100=3,VLOOKUP(E$2,Table1[],5,0),IF($B100=4,VLOOKUP(E$2,Table1[],5,0),0)))) -> 1500000 | F100: =IF($B100=1,VLOOKUP(F$2,Table1[],3,0),IF($B100=2,VLOOKUP(F$2,Table1[],4,0),IF($B100=3,VLOOKUP(F$2,Table1[],5,0),IF($B100=4,VLOOKUP(F$2,Table1[],5,0),0)))) -> 800000
A101: 2120 | B101: 1 | C101: =IF($B101=1,VLOOKUP(C$2,Table1[],3,0),IF($B101=2,VLOOKUP(C$2,Table1[],4,0),IF($B101=3,VLOOKUP(C$2,Table1[],5,0),IF($B101=4,VLOOKUP(C$2,Table1[],5,0),0)))) -> 2000000 | D101: =IF($B101=1,VLOOKUP(D$2,Table1[],3,0),IF($B101=2,VLOOKUP(D$2,Table1[],4,0),IF($B101=3,VLOOKUP(D$2,Table1[],5,0),IF($B101=4,VLOOKUP(D$2,Table1[],5,0),0)))) -> 2000000 | E101: =IF($B101=1,VLOOKUP(E$2,Table1[],3,0),IF($B101=2,VLOOKUP(E$2,Table1[],4,0),IF($B101=3,VLOOKUP(E$2,Table1[],5,0),IF($B101=4,VLOOKUP(E$2,Table1[],5,0),0)))) -> 1500000 | F101: =IF($B101=1,VLOOKUP(F$2,Table1[],3,0),IF($B101=2,VLOOKUP(F$2,Table1[],4,0),IF($B101=3,VLOOKUP(F$2,Table1[],5,0),IF($B101=4,VLOOKUP(F$2,Table1[],5,0),0)))) -> 800000
A102: 2121 | B102: 1 | C102: =IF($B102=1,VLOOKUP(C$2,Table1[],3,0),IF($B102=2,VLOOKUP(C$2,Table1[],4,0),IF($B102=3,VLOOKUP(C$2,Table1[],5,0),IF($B102=4,VLOOKUP(C$2,Table1[],5,0),0)))) -> 2000000 | D102: =IF($B102=1,VLOOKUP(D$2,Table1[],3,0),IF($B102=2,VLOOKUP(D$2,Table1[],4,0),IF($B102=3,VLOOKUP(D$2,Table1[],5,0),IF($B102=4,VLOOKUP(D$2,Table1[],5,0),0)))) -> 2000000 | E102: =IF($B102=1,VLOOKUP(E$2,Table1[],3,0),IF($B102=2,VLOOKUP(E$2,Table1[],4,0),IF($B102=3,VLOOKUP(E$2,Table1[],5,0),IF($B102=4,VLOOKUP(E$2,Table1[],5,0),0)))) -> 1500000 | F102: =IF($B102=1,VLOOKUP(F$2,Table1[],3,0),IF($B102=2,VLOOKUP(F$2,Table1[],4,0),IF($B102=3,VLOOKUP(F$2,Table1[],5,0),IF($B102=4,VLOOKUP(F$2,Table1[],5,0),0)))) -> 800000
A103: 2122 | B103: 1 | C103: =IF($B103=1,VLOOKUP(C$2,Table1[],3,0),IF($B103=2,VLOOKUP(C$2,Table1[],4,0),IF($B103=3,VLOOKUP(C$2,Table1[],5,0),IF($B103=4,VLOOKUP(C$2,Table1[],5,0),0)))) -> 2000000 | D103: =IF($B103=1,VLOOKUP(D$2,Table1[],3,0),IF($B103=2,VLOOKUP(D$2,Table1[],4,0),IF($B103=3,VLOOKUP(D$2,Table1[],5,0),IF($B103=4,VLOOKUP(D$2,Table1[],5,0),0)))) -> 2000000 | E103: =IF($B103=1,VLOOKUP(E$2,Table1[],3,0),IF($B103=2,VLOOKUP(E$2,Table1[],4,0),IF($B103=3,VLOOKUP(E$2,Table1[],5,0),IF($B103=4,VLOOKUP(E$2,Table1[],5,0),0)))) -> 1500000 | F103: =IF($B103=1,VLOOKUP(F$2,Table1[],3,0),IF($B103=2,VLOOKUP(F$2,Table1[],4,0),IF($B103=3,VLOOKUP(F$2,Table1[],5,0),IF($B103=4,VLOOKUP(F$2,Table1[],5,0),0)))) -> 800000
A104: 2125 | B104: 1 | C104: =IF($B104=1,VLOOKUP(C$2,Table1[],3,0),IF($B104=2,VLOOKUP(C$2,Table1[],4,0),IF($B104=3,VLOOKUP(C$2,Table1[],5,0),IF($B104=4,VLOOKUP(C$2,Table1[],5,0),0)))) -> 2000000 | D104: =IF($B104=1,VLOOKUP(D$2,Table1[],3,0),IF($B104=2,VLOOKUP(D$2,Table1[],4,0),IF($B104=3,VLOOKUP(D$2,Table1[],5,0),IF($B104=4,VLOOKUP(D$2,Table1[],5,0),0)))) -> 2000000 | E104: =IF($B104=1,VLOOKUP(E$2,Table1[],3,0),IF($B104=2,VLOOKUP(E$2,Table1[],4,0),IF($B104=3,VLOOKUP(E$2,Table1[],5,0),IF($B104=4,VLOOKUP(E$2,Table1[],5,0),0)))) -> 1500000 | F104: =IF($B104=1,VLOOKUP(F$2,Table1[],3,0),IF($B104=2,VLOOKUP(F$2,Table1[],4,0),IF($B104=3,VLOOKUP(F$2,Table1[],5,0),IF($B104=4,VLOOKUP(F$2,Table1[],5,0),0)))) -> 800000
A105: 2126 | B105: 1 | C105: =IF($B105=1,VLOOKUP(C$2,Table1[],3,0),IF($B105=2,VLOOKUP(C$2,Table1[],4,0),IF($B105=3,VLOOKUP(C$2,Table1[],5,0),IF($B105=4,VLOOKUP(C$2,Table1[],5,0),0)))) -> 2000000 | D105: =IF($B105=1,VLOOKUP(D$2,Table1[],3,0),IF($B105=2,VLOOKUP(D$2,Table1[],4,0),IF($B105=3,VLOOKUP(D$2,Table1[],5,0),IF($B105=4,VLOOKUP(D$2,Table1[],5,0),0)))) -> 2000000 | E105: =IF($B105=1,VLOOKUP(E$2,Table1[],3,0),IF($B105=2,VLOOKUP(E$2,Table1[],4,0),IF($B105=3,VLOOKUP(E$2,Table1[],5,0),IF($B105=4,VLOOKUP(E$2,Table1[],5,0),0)))) -> 1500000 | F105: =IF($B105=1,VLOOKUP(F$2,Table1[],3,0),IF($B105=2,VLOOKUP(F$2,Table1[],4,0),IF($B105=3,VLOOKUP(F$2,Table1[],5,0),IF($B105=4,VLOOKUP(F$2,Table1[],5,0),0)))) -> 800000
A106: 2127 | B106: 1 | C106: =IF($B106=1,VLOOKUP(C$2,Table1[],3,0),IF($B106=2,VLOOKUP(C$2,Table1[],4,0),IF($B106=3,VLOOKUP(C$2,Table1[],5,0),IF($B106=4,VLOOKUP(C$2,Table1[],5,0),0)))) -> 2000000 | D106: =IF($B106=1,VLOOKUP(D$2,Table1[],3,0),IF($B106=2,VLOOKUP(D$2,Table1[],4,0),IF($B106=3,VLOOKUP(D$2,Table1[],5,0),IF($B106=4,VLOOKUP(D$2,Table1[],5,0),0)))) -> 2000000 | E106: =IF($B106=1,VLOOKUP(E$2,Table1[],3,0),IF($B106=2,VLOOKUP(E$2,Table1[],4,0),IF($B106=3,VLOOKUP(E$2,Table1[],5,0),IF($B106=4,VLOOKUP(E$2,Table1[],5,0),0)))) -> 1500000 | F106: =IF($B106=1,VLOOKUP(F$2,Table1[],3,0),IF($B106=2,VLOOKUP(F$2,Table1[],4,0),IF($B106=3,VLOOKUP(F$2,Table1[],5,0),IF($B106=4,VLOOKUP(F$2,Table1[],5,0),0)))) -> 800000
A107: 2128 | B107: 1 | C107: =IF($B107=1,VLOOKUP(C$2,Table1[],3,0),IF($B107=2,VLOOKUP(C$2,Table1[],4,0),IF($B107=3,VLOOKUP(C$2,Table1[],5,0),IF($B107=4,VLOOKUP(C$2,Table1[],5,0),0)))) -> 2000000 | D107: =IF($B107=1,VLOOKUP(D$2,Table1[],3,0),IF($B107=2,VLOOKUP(D$2,Table1[],4,0),IF($B107=3,VLOOKUP(D$2,Table1[],5,0),IF($B107=4,VLOOKUP(D$2,Table1[],5,0),0)))) -> 2000000 | E107: =IF($B107=1,VLOOKUP(E$2,Table1[],3,0),IF($B107=2,VLOOKUP(E$2,Table1[],4,0),IF($B107=3,VLOOKUP(E$2,Table1[],5,0),IF($B107=4,VLOOKUP(E$2,Table1[],5,0),0)))) -> 1500000 | F107: =IF($B107=1,VLOOKUP(F$2,Table1[],3,0),IF($B107=2,VLOOKUP(F$2,Table1[],4,0),IF($B107=3,VLOOKUP(F$2,Table1[],5,0),IF($B107=4,VLOOKUP(F$2,Table1[],5,0),0)))) -> 800000
A108: 2130 | B108: 1 | C108: =IF($B108=1,VLOOKUP(C$2,Table1[],3,0),IF($B108=2,VLOOKUP(C$2,Table1[],4,0),IF($B108=3,VLOOKUP(C$2,Table1[],5,0),IF($B108=4,VLOOKUP(C$2,Table1[],5,0),0)))) -> 2000000 | D108: =IF($B108=1,VLOOKUP(D$2,Table1[],3,0),IF($B108=2,VLOOKUP(D$2,Table1[],4,0),IF($B108=3,VLOOKUP(D$2,Table1[],5,0),IF($B108=4,VLOOKUP(D$2,Table1[],5,0),0)))) -> 2000000 | E108: =IF($B108=1,VLOOKUP(E$2,Table1[],3,0),IF($B108=2,VLOOKUP(E$2,Table1[],4,0),IF($B108=3,VLOOKUP(E$2,Table1[],5,0),IF($B108=4,VLOOKUP(E$2,Table1[],5,0),0)))) -> 1500000 | F108: =IF($B108=1,VLOOKUP(F$2,Table1[],3,0),IF($B108=2,VLOOKUP(F$2,Table1[],4,0),IF($B108=3,VLOOKUP(F$2,Table1[],5,0),IF($B108=4,VLOOKUP(F$2,Table1[],5,0),0)))) -> 800000
A109: 2131 | B109: 1 | C109: =IF($B109=1,VLOOKUP(C$2,Table1[],3,0),IF($B109=2,VLOOKUP(C$2,Table1[],4,0),IF($B109=3,VLOOKUP(C$2,Table1[],5,0),IF($B109=4,VLOOKUP(C$2,Table1[],5,0),0)))) -> 2000000 | D109: =IF($B109=1,VLOOKUP(D$2,Table1[],3,0),IF($B109=2,VLOOKUP(D$2,Table1[],4,0),IF($B109=3,VLOOKUP(D$2,Table1[],5,0),IF($B109=4,VLOOKUP(D$2,Table1[],5,0),0)))) -> 2000000 | E109: =IF($B109=1,VLOOKUP(E$2,Table1[],3,0),IF($B109=2,VLOOKUP(E$2,Table1[],4,0),IF($B109=3,VLOOKUP(E$2,Table1[],5,0),IF($B109=4,VLOOKUP(E$2,Table1[],5,0),0)))) -> 1500000 | F109: =IF($B109=1,VLOOKUP(F$2,Table1[],3,0),IF($B109=2,VLOOKUP(F$2,Table1[],4,0),IF($B109=3,VLOOKUP(F$2,Table1[],5,0),IF($B109=4,VLOOKUP(F$2,Table1[],5,0),0)))) -> 800000
A110: 2132 | B110: 1 | C110: =IF($B110=1,VLOOKUP(C$2,Table1[],3,0),IF($B110=2,VLOOKUP(C$2,Table1[],4,0),IF($B110=3,VLOOKUP(C$2,Table1[],5,0),IF($B110=4,VLOOKUP(C$2,Table1[],5,0),0)))) -> 2000000 | D110: =IF($B110=1,VLOOKUP(D$2,Table1[],3,0),IF($B110=2,VLOOKUP(D$2,Table1[],4,0),IF($B110=3,VLOOKUP(D$2,Table1[],5,0),IF($B110=4,VLOOKUP(D$2,Table1[],5,0),0)))) -> 2000000 | E110: =IF($B110=1,VLOOKUP(E$2,Table1[],3,0),IF($B110=2,VLOOKUP(E$2,Table1[],4,0),IF($B110=3,VLOOKUP(E$2,Table1[],5,0),IF($B110=4,VLOOKUP(E$2,Table1[],5,0),0)))) -> 1500000 | F110: =IF($B110=1,VLOOKUP(F$2,Table1[],3,0),IF($B110=2,VLOOKUP(F$2,Table1[],4,0),IF($B110=3,VLOOKUP(F$2,Table1[],5,0),IF($B110=4,VLOOKUP(F$2,Table1[],5,0),0)))) -> 800000
A111: 2133 | B111: 1 | C111: =IF($B111=1,VLOOKUP(C$2,Table1[],3,0),IF($B111=2,VLOOKUP(C$2,Table1[],4,0),IF($B111=3,VLOOKUP(C$2,Table1[],5,0),IF($B111=4,VLOOKUP(C$2,Table1[],5,0),0)))) -> 2000000 | D111: =IF($B111=1,VLOOKUP(D$2,Table1[],3,0),IF($B111=2,VLOOKUP(D$2,Table1[],4,0),IF($B111=3,VLOOKUP(D$2,Table1[],5,0),IF($B111=4,VLOOKUP(D$2,Table1[],5,0),0)))) -> 2000000 | E111: =IF($B111=1,VLOOKUP(E$2,Table1[],3,0),IF($B111=2,VLOOKUP(E$2,Table1[],4,0),IF($B111=3,VLOOKUP(E$2,Table1[],5,0),IF($B111=4,VLOOKUP(E$2,Table1[],5,0),0)))) -> 1500000 | F111: =IF($B111=1,VLOOKUP(F$2,Table1[],3,0),IF($B111=2,VLOOKUP(F$2,Table1[],4,0),IF($B111=3,VLOOKUP(F$2,Table1[],5,0),IF($B111=4,VLOOKUP(F$2,Table1[],5,0),0)))) -> 800000
A112: 2134 | B112: 1 | C112: =IF($B112=1,VLOOKUP(C$2,Table1[],3,0),IF($B112=2,VLOOKUP(C$2,Table1[],4,0),IF($B112=3,VLOOKUP(C$2,Table1[],5,0),IF($B112=4,VLOOKUP(C$2,Table1[],5,0),0)))) -> 2000000 | D112: =IF($B112=1,VLOOKUP(D$2,Table1[],3,0),IF($B112=2,VLOOKUP(D$2,Table1[],4,0),IF($B112=3,VLOOKUP(D$2,Table1[],5,0),IF($B112=4,VLOOKUP(D$2,Table1[],5,0),0)))) -> 2000000 | E112: =IF($B112=1,VLOOKUP(E$2,Table1[],3,0),IF($B112=2,VLOOKUP(E$2,Table1[],4,0),IF($B112=3,VLOOKUP(E$2,Table1[],5,0),IF($B112=4,VLOOKUP(E$2,Table1[],5,0),0)))) -> 1500000 | F112: =IF($B112=1,VLOOKUP(F$2,Table1[],3,0),IF($B112=2,VLOOKUP(F$2,Table1[],4,0),IF($B112=3,VLOOKUP(F$2,Table1[],5,0),IF($B112=4,VLOOKUP(F$2,Table1[],5,0),0)))) -> 800000
A113: 2135 | B113: 1 | C113: =IF($B113=1,VLOOKUP(C$2,Table1[],3,0),IF($B113=2,VLOOKUP(C$2,Table1[],4,0),IF($B113=3,VLOOKUP(C$2,Table1[],5,0),IF($B113=4,VLOOKUP(C$2,Table1[],5,0),0)))) -> 2000000 | D113: =IF($B113=1,VLOOKUP(D$2,Table1[],3,0),IF($B113=2,VLOOKUP(D$2,Table1[],4,0),IF($B113=3,VLOOKUP(D$2,Table1[],5,0),IF($B113=4,VLOOKUP(D$2,Table1[],5,0),0)))) -> 2000000 | E113: =IF($B113=1,VLOOKUP(E$2,Table1[],3,0),IF($B113=2,VLOOKUP(E$2,Table1[],4,0),IF($B113=3,VLOOKUP(E$2,Table1[],5,0),IF($B113=4,VLOOKUP(E$2,Table1[],5,0),0)))) -> 1500000 | F113: =IF($B113=1,VLOOKUP(F$2,Table1[],3,0),IF($B113=2,VLOOKUP(F$2,Table1[],4,0),IF($B113=3,VLOOKUP(F$2,Table1[],5,0),IF($B113=4,VLOOKUP(F$2,Table1[],5,0),0)))) -> 800000
A114: 2136 | B114: 1 | C114: =IF($B114=1,VLOOKUP(C$2,Table1[],3,0),IF($B114=2,VLOOKUP(C$2,Table1[],4,0),IF($B114=3,VLOOKUP(C$2,Table1[],5,0),IF($B114=4,VLOOKUP(C$2,Table1[],5,0),0)))) -> 2000000 | D114: =IF($B114=1,VLOOKUP(D$2,Table1[],3,0),IF($B114=2,VLOOKUP(D$2,Table1[],4,0),IF($B114=3,VLOOKUP(D$2,Table1[],5,0),IF($B114=4,VLOOKUP(D$2,Table1[],5,0),0)))) -> 2000000 | E114: =IF($B114=1,VLOOKUP(E$2,Table1[],3,0),IF($B114=2,VLOOKUP(E$2,Table1[],4,0),IF($B114=3,VLOOKUP(E$2,Table1[],5,0),IF($B114=4,VLOOKUP(E$2,Table1[],5,0),0)))) -> 1500000 | F114: =IF($B114=1,VLOOKUP(F$2,Table1[],3,0),IF($B114=2,VLOOKUP(F$2,Table1[],4,0),IF($B114=3,VLOOKUP(F$2,Table1[],5,0),IF($B114=4,VLOOKUP(F$2,Table1[],5,0),0)))) -> 800000
A115: 2137 | B115: 1 | C115: =IF($B115=1,VLOOKUP(C$2,Table1[],3,0),IF($B115=2,VLOOKUP(C$2,Table1[],4,0),IF($B115=3,VLOOKUP(C$2,Table1[],5,0),IF($B115=4,VLOOKUP(C$2,Table1[],5,0),0)))) -> 2000000 | D115: =IF($B115=1,VLOOKUP(D$2,Table1[],3,0),IF($B115=2,VLOOKUP(D$2,Table1[],4,0),IF($B115=3,VLOOKUP(D$2,Table1[],5,0),IF($B115=4,VLOOKUP(D$2,Table1[],5,0),0)))) -> 2000000 | E115: =IF($B115=1,VLOOKUP(E$2,Table1[],3,0),IF($B115=2,VLOOKUP(E$2,Table1[],4,0),IF($B115=3,VLOOKUP(E$2,Table1[],5,0),IF($B115=4,VLOOKUP(E$2,Table1[],5,0),0)))) -> 1500000 | F115: =IF($B115=1,VLOOKUP(F$2,Table1[],3,0),IF($B115=2,VLOOKUP(F$2,Table1[],4,0),IF($B115=3,VLOOKUP(F$2,Table1[],5,0),IF($B115=4,VLOOKUP(F$2,Table1[],5,0),0)))) -> 800000
A116: 2138 | B116: 1 | C116: =IF($B116=1,VLOOKUP(C$2,Table1[],3,0),IF($B116=2,VLOOKUP(C$2,Table1[],4,0),IF($B116=3,VLOOKUP(C$2,Table1[],5,0),IF($B116=4,VLOOKUP(C$2,Table1[],5,0),0)))) -> 2000000 | D116: =IF($B116=1,VLOOKUP(D$2,Table1[],3,0),IF($B116=2,VLOOKUP(D$2,Table1[],4,0),IF($B116=3,VLOOKUP(D$2,Table1[],5,0),IF($B116=4,VLOOKUP(D$2,Table1[],5,0),0)))) -> 2000000 | E116: =IF($B116=1,VLOOKUP(E$2,Table1[],3,0),IF($B116=2,VLOOKUP(E$2,Table1[],4,0),IF($B116=3,VLOOKUP(E$2,Table1[],5,0),IF($B116=4,VLOOKUP(E$2,Table1[],5,0),0)))) -> 1500000 | F116: =IF($B116=1,VLOOKUP(F$2,Table1[],3,0),IF($B116=2,VLOOKUP(F$2,Table1[],4,0),IF($B116=3,VLOOKUP(F$2,Table1[],5,0),IF($B116=4,VLOOKUP(F$2,Table1[],5,0),0)))) -> 800000
A117: 2140 | B117: 1 | C117: =IF($B117=1,VLOOKUP(C$2,Table1[],3,0),IF($B117=2,VLOOKUP(C$2,Table1[],4,0),IF($B117=3,VLOOKUP(C$2,Table1[],5,0),IF($B117=4,VLOOKUP(C$2,Table1[],5,0),0)))) -> 2000000 | D117: =IF($B117=1,VLOOKUP(D$2,Table1[],3,0),IF($B117=2,VLOOKUP(D$2,Table1[],4,0),IF($B117=3,VLOOKUP(D$2,Table1[],5,0),IF($B117=4,VLOOKUP(D$2,Table1[],5,0),0)))) -> 2000000 | E117: =IF($B117=1,VLOOKUP(E$2,Table1[],3,0),IF($B117=2,VLOOKUP(E$2,Table1[],4,0),IF($B117=3,VLOOKUP(E$2,Table1[],5,0),IF($B117=4,VLOOKUP(E$2,Table1[],5,0),0)))) -> 1500000 | F117: =IF($B117=1,VLOOKUP(F$2,Table1[],3,0),IF($B117=2,VLOOKUP(F$2,Table1[],4,0),IF($B117=3,VLOOKUP(F$2,Table1[],5,0),IF($B117=4,VLOOKUP(F$2,Table1[],5,0),0)))) -> 800000
A118: 2141 | B118: 1 | C118: =IF($B118=1,VLOOKUP(C$2,Table1[],3,0),IF($B118=2,VLOOKUP(C$2,Table1[],4,0),IF($B118=3,VLOOKUP(C$2,Table1[],5,0),IF($B118=4,VLOOKUP(C$2,Table1[],5,0),0)))) -> 2000000 | D118: =IF($B118=1,VLOOKUP(D$2,Table1[],3,0),IF($B118=2,VLOOKUP(D$2,Table1[],4,0),IF($B118=3,VLOOKUP(D$2,Table1[],5,0),IF($B118=4,VLOOKUP(D$2,Table1[],5,0),0)))) -> 2000000 | E118: =IF($B118=1,VLOOKUP(E$2,Table1[],3,0),IF($B118=2,VLOOKUP(E$2,Table1[],4,0),IF($B118=3,VLOOKUP(E$2,Table1[],5,0),IF($B118=4,VLOOKUP(E$2,Table1[],5,0),0)))) -> 1500000 | F118: =IF($B118=1,VLOOKUP(F$2,Table1[],3,0),IF($B118=2,VLOOKUP(F$2,Table1[],4,0),IF($B118=3,VLOOKUP(F$2,Table1[],5,0),IF($B118=4,VLOOKUP(F$2,Table1[],5,0),0)))) -> 800000
A119: 2142 | B119: 1 | C119: =IF($B119=1,VLOOKUP(C$2,Table1[],3,0),IF($B119=2,VLOOKUP(C$2,Table1[],4,0),IF($B119=3,VLOOKUP(C$2,Table1[],5,0),IF($B119=4,VLOOKUP(C$2,Table1[],5,0),0)))) -> 2000000 | D119: =IF($B119=1,VLOOKUP(D$2,Table1[],3,0),IF($B119=2,VLOOKUP(D$2,Table1[],4,0),IF($B119=3,VLOOKUP(D$2,Table1[],5,0),IF($B119=4,VLOOKUP(D$2,Table1[],5,0),0)))) -> 2000000 | E119: =IF($B119=1,VLOOKUP(E$2,Table1[],3,0),IF($B119=2,VLOOKUP(E$2,Table1[],4,0),IF($B119=3,VLOOKUP(E$2,Table1[],5,0),IF($B119=4,VLOOKUP(E$2,Table1[],5,0),0)))) -> 1500000 | F119: =IF($B119=1,VLOOKUP(F$2,Table1[],3,0),IF($B119=2,VLOOKUP(F$2,Table1[],4,0),IF($B119=3,VLOOKUP(F$2,Table1[],5,0),IF($B119=4,VLOOKUP(F$2,Table1[],5,0),0)))) -> 800000
A120: 2143 | B120: 1 | C120: =IF($B120=1,VLOOKUP(C$2,Table1[],3,0),IF($B120=2,VLOOKUP(C$2,Table1[],4,0),IF($B120=3,VLOOKUP(C$2,Table1[],5,0),IF($B120=4,VLOOKUP(C$2,Table1[],5,0),0)))) -> 2000000 | D120: =IF($B120=1,VLOOKUP(D$2,Table1[],3,0),IF($B120=2,VLOOKUP(D$2,Table1[],4,0),IF($B120=3,VLOOKUP(D$2,Table1[],5,0),IF($B120=4,VLOOKUP(D$2,Table1[],5,0),0)))) -> 2000000 | E120: =IF($B120=1,VLOOKUP(E$2,Table1[],3,0),IF($B120=2,VLOOKUP(E$2,Table1[],4,0),IF($B120=3,VLOOKUP(E$2,Table1[],5,0),IF($B120=4,VLOOKUP(E$2,Table1[],5,0),0)))) -> 1500000 | F120: =IF($B120=1,VLOOKUP(F$2,Table1[],3,0),IF($B120=2,VLOOKUP(F$2,Table1[],4,0),IF($B120=3,VLOOKUP(F$2,Table1[],5,0),IF($B120=4,VLOOKUP(F$2,Table1[],5,0),0)))) -> 800000
A121: 2144 | B121: 1 | C121: =IF($B121=1,VLOOKUP(C$2,Table1[],3,0),IF($B121=2,VLOOKUP(C$2,Table1[],4,0),IF($B121=3,VLOOKUP(C$2,Table1[],5,0),IF($B121=4,VLOOKUP(C$2,Table1[],5,0),0)))) -> 2000000 | D121: =IF($B121=1,VLOOKUP(D$2,Table1[],3,0),IF($B121=2,VLOOKUP(D$2,Table1[],4,0),IF($B121=3,VLOOKUP(D$2,Table1[],5,0),IF($B121=4,VLOOKUP(D$2,Table1[],5,0),0)))) -> 2000000 | E121: =IF($B121=1,VLOOKUP(E$2,Table1[],3,0),IF($B121=2,VLOOKUP(E$2,Table1[],4,0),IF($B121=3,VLOOKUP(E$2,Table1[],5,0),IF($B121=4,VLOOKUP(E$2,Table1[],5,0),0)))) -> 1500000 | F121: =IF($B121=1,VLOOKUP(F$2,Table1[],3,0),IF($B121=2,VLOOKUP(F$2,Table1[],4,0),IF($B121=3,VLOOKUP(F$2,Table1[],5,0),IF($B121=4,VLOOKUP(F$2,Table1[],5,0),0)))) -> 800000
A122: 2145 | B122: 1 | C122: =IF($B122=1,VLOOKUP(C$2,Table1[],3,0),IF($B122=2,VLOOKUP(C$2,Table1[],4,0),IF($B122=3,VLOOKUP(C$2,Table1[],5,0),IF($B122=4,VLOOKUP(C$2,Table1[],5,0),0)))) -> 2000000 | D122: =IF($B122=1,VLOOKUP(D$2,Table1[],3,0),IF($B122=2,VLOOKUP(D$2,Table1[],4,0),IF($B122=3,VLOOKUP(D$2,Table1[],5,0),IF($B122=4,VLOOKUP(D$2,Table1[],5,0),0)))) -> 2000000 | E122: =IF($B122=1,VLOOKUP(E$2,Table1[],3,0),IF($B122=2,VLOOKUP(E$2,Table1[],4,0),IF($B122=3,VLOOKUP(E$2,Table1[],5,0),IF($B122=4,VLOOKUP(E$2,Table1[],5,0),0)))) -> 1500000 | F122: =IF($B122=1,VLOOKUP(F$2,Table1[],3,0),IF($B122=2,VLOOKUP(F$2,Table1[],4,0),IF($B122=3,VLOOKUP(F$2,Table1[],5,0),IF($B122=4,VLOOKUP(F$2,Table1[],5,0),0)))) -> 800000
A123: 2146 | B123: 1 | C123: =IF($B123=1,VLOOKUP(C$2,Table1[],3,0),IF($B123=2,VLOOKUP(C$2,Table1[],4,0),IF($B123=3,VLOOKUP(C$2,Table1[],5,0),IF($B123=4,VLOOKUP(C$2,Table1[],5,0),0)))) -> 2000000 | D123: =IF($B123=1,VLOOKUP(D$2,Table1[],3,0),IF($B123=2,VLOOKUP(D$2,Table1[],4,0),IF($B123=3,VLOOKUP(D$2,Table1[],5,0),IF($B123=4,VLOOKUP(D$2,Table1[],5,0),0)))) -> 2000000 | E123: =IF($B123=1,VLOOKUP(E$2,Table1[],3,0),IF($B123=2,VLOOKUP(E$2,Table1[],4,0),IF($B123=3,VLOOKUP(E$2,Table1[],5,0),IF($B123=4,VLOOKUP(E$2,Table1[],5,0),0)))) -> 1500000 | F123: =IF($B123=1,VLOOKUP(F$2,Table1[],3,0),IF($B123=2,VLOOKUP(F$2,Table1[],4,0),IF($B123=3,VLOOKUP(F$2,Table1[],5,0),IF($B123=4,VLOOKUP(F$2,Table1[],5,0),0)))) -> 800000
A124: 2147 | B124: 1 | C124: =IF($B124=1,VLOOKUP(C$2,Table1[],3,0),IF($B124=2,VLOOKUP(C$2,Table1[],4,0),IF($B124=3,VLOOKUP(C$2,Table1[],5,0),IF($B124=4,VLOOKUP(C$2,Table1[],5,0),0)))) -> 2000000 | D124: =IF($B124=1,VLOOKUP(D$2,Table1[],3,0),IF($B124=2,VLOOKUP(D$2,Table1[],4,0),IF($B124=3,VLOOKUP(D$2,Table1[],5,0),IF($B124=4,VLOOKUP(D$2,Table1[],5,0),0)))) -> 2000000 | E124: =IF($B124=1,VLOOKUP(E$2,Table1[],3,0),IF($B124=2,VLOOKUP(E$2,Table1[],4,0),IF($B124=3,VLOOKUP(E$2,Table1[],5,0),IF($B124=4,VLOOKUP(E$2,Table1[],5,0),0)))) -> 1500000 | F124: =IF($B124=1,VLOOKUP(F$2,Table1[],3,0),IF($B124=2,VLOOKUP(F$2,Table1[],4,0),IF($B124=3,VLOOKUP(F$2,Table1[],5,0),IF($B124=4,VLOOKUP(F$2,Table1[],5,0),0)))) -> 800000
A125: 2148 | B125: 1 | C125: =IF($B125=1,VLOOKUP(C$2,Table1[],3,0),IF($B125=2,VLOOKUP(C$2,Table1[],4,0),IF($B125=3,VLOOKUP(C$2,Table1[],5,0),IF($B125=4,VLOOKUP(C$2,Table1[],5,0),0)))) -> 2000000 | D125: =IF($B125=1,VLOOKUP(D$2,Table1[],3,0),IF($B125=2,VLOOKUP(D$2,Table1[],4,0),IF($B125=3,VLOOKUP(D$2,Table1[],5,0),IF($B125=4,VLOOKUP(D$2,Table1[],5,0),0)))) -> 2000000 | E125: =IF($B125=1,VLOOKUP(E$2,Table1[],3,0),IF($B125=2,VLOOKUP(E$2,Table1[],4,0),IF($B125=3,VLOOKUP(E$2,Table1[],5,0),IF($B125=4,VLOOKUP(E$2,Table1[],5,0),0)))) -> 1500000 | F125: =IF($B125=1,VLOOKUP(F$2,Table1[],3,0),IF($B125=2,VLOOKUP(F$2,Table1[],4,0),IF($B125=3,VLOOKUP(F$2,Table1[],5,0),IF($B125=4,VLOOKUP(F$2,Table1[],5,0),0)))) -> 800000
A126: 2150 | B126: 1 | C126: =IF($B126=1,VLOOKUP(C$2,Table1[],3,0),IF($B126=2,VLOOKUP(C$2,Table1[],4,0),IF($B126=3,VLOOKUP(C$2,Table1[],5,0),IF($B126=4,VLOOKUP(C$2,Table1[],5,0),0)))) -> 2000000 | D126: =IF($B126=1,VLOOKUP(D$2,Table1[],3,0),IF($B126=2,VLOOKUP(D$2,Table1[],4,0),IF($B126=3,VLOOKUP(D$2,Table1[],5,0),IF($B126=4,VLOOKUP(D$2,Table1[],5,0),0)))) -> 2000000 | E126: =IF($B126=1,VLOOKUP(E$2,Table1[],3,0),IF($B126=2,VLOOKUP(E$2,Table1[],4,0),IF($B126=3,VLOOKUP(E$2,Table1[],5,0),IF($B126=4,VLOOKUP(E$2,Table1[],5,0),0)))) -> 1500000 | F126: =IF($B126=1,VLOOKUP(F$2,Table1[],3,0),IF($B126=2,VLOOKUP(F$2,Table1[],4,0),IF($B126=3,VLOOKUP(F$2,Table1[],5,0),IF($B126=4,VLOOKUP(F$2,Table1[],5,0),0)))) -> 800000
A127: 2151 | B127: 1 | C127: =IF($B127=1,VLOOKUP(C$2,Table1[],3,0),IF($B127=2,VLOOKUP(C$2,Table1[],4,0),IF($B127=3,VLOOKUP(C$2,Table1[],5,0),IF($B127=4,VLOOKUP(C$2,Table1[],5,0),0)))) -> 2000000 | D127: =IF($B127=1,VLOOKUP(D$2,Table1[],3,0),IF($B127=2,VLOOKUP(D$2,Table1[],4,0),IF($B127=3,VLOOKUP(D$2,Table1[],5,0),IF($B127=4,VLOOKUP(D$2,Table1[],5,0),0)))) -> 2000000 | E127: =IF($B127=1,VLOOKUP(E$2,Table1[],3,0),IF($B127=2,VLOOKUP(E$2,Table1[],4,0),IF($B127=3,VLOOKUP(E$2,Table1[],5,0),IF($B127=4,VLOOKUP(E$2,Table1[],5,0),0)))) -> 1500000 | F127: =IF($B127=1,VLOOKUP(F$2,Table1[],3,0),IF($B127=2,VLOOKUP(F$2,Table1[],4,0),IF($B127=3,VLOOKUP(F$2,Table1[],5,0),IF($B127=4,VLOOKUP(F$2,Table1[],5,0),0)))) -> 800000
A128: 2152 | B128: 1 | C128: =IF($B128=1,VLOOKUP(C$2,Table1[],3,0),IF($B128=2,VLOOKUP(C$2,Table1[],4,0),IF($B128=3,VLOOKUP(C$2,Table1[],5,0),IF($B128=4,VLOOKUP(C$2,Table1[],5,0),0)))) -> 2000000 | D128: =IF($B128=1,VLOOKUP(D$2,Table1[],3,0),IF($B128=2,VLOOKUP(D$2,Table1[],4,0),IF($B128=3,VLOOKUP(D$2,Table1[],5,0),IF($B128=4,VLOOKUP(D$2,Table1[],5,0),0)))) -> 2000000 | E128: =IF($B128=1,VLOOKUP(E$2,Table1[],3,0),IF($B128=2,VLOOKUP(E$2,Table1[],4,0),IF($B128=3,VLOOKUP(E$2,Table1[],5,0),IF($B128=4,VLOOKUP(E$2,Table1[],5,0),0)))) -> 1500000 | F128: =IF($B128=1,VLOOKUP(F$2,Table1[],3,0),IF($B128=2,VLOOKUP(F$2,Table1[],4,0),IF($B128=3,VLOOKUP(F$2,Table1[],5,0),IF($B128=4,VLOOKUP(F$2,Table1[],5,0),0)))) -> 800000
A129: 2153 | B129: 1 | C129: =IF($B129=1,VLOOKUP(C$2,Table1[],3,0),IF($B129=2,VLOOKUP(C$2,Table1[],4,0),IF($B129=3,VLOOKUP(C$2,Table1[],5,0),IF($B129=4,VLOOKUP(C$2,Table1[],5,0),0)))) -> 2000000 | D129: =IF($B129=1,VLOOKUP(D$2,Table1[],3,0),IF($B129=2,VLOOKUP(D$2,Table1[],4,0),IF($B129=3,VLOOKUP(D$2,Table1[],5,0),IF($B129=4,VLOOKUP(D$2,Table1[],5,0),0)))) -> 2000000 | E129: =IF($B129=1,VLOOKUP(E$2,Table1[],3,0),IF($B129=2,VLOOKUP(E$2,Table1[],4,0),IF($B129=3,VLOOKUP(E$2,Table1[],5,0),IF($B129=4,VLOOKUP(E$2,Table1[],5,0),0)))) -> 1500000 | F129: =IF($B129=1,VLOOKUP(F$2,Table1[],3,0),IF($B129=2,VLOOKUP(F$2,Table1[],4,0),IF($B129=3,VLOOKUP(F$2,Table1[],5,0),IF($B129=4,VLOOKUP(F$2,Table1[],5,0),0)))) -> 800000
A130: 2154 | B130: 1 | C130: =IF($B130=1,VLOOKUP(C$2,Table1[],3,0),IF($B130=2,VLOOKUP(C$2,Table1[],4,0),IF($B130=3,VLOOKUP(C$2,Table1[],5,0),IF($B130=4,VLOOKUP(C$2,Table1[],5,0),0)))) -> 2000000 | D130: =IF($B130=1,VLOOKUP(D$2,Table1[],3,0),IF($B130=2,VLOOKUP(D$2,Table1[],4,0),IF($B130=3,VLOOKUP(D$2,Table1[],5,0),IF($B130=4,VLOOKUP(D$2,Table1[],5,0),0)))) -> 2000000 | E130: =IF($B130=1,VLOOKUP(E$2,Table1[],3,0),IF($B130=2,VLOOKUP(E$2,Table1[],4,0),IF($B130=3,VLOOKUP(E$2,Table1[],5,0),IF($B130=4,VLOOKUP(E$2,Table1[],5,0),0)))) -> 1500000 | F130: =IF($B130=1,VLOOKUP(F$2,Table1[],3,0),IF($B130=2,VLOOKUP(F$2,Table1[],4,0),IF($B130=3,VLOOKUP(F$2,Table1[],5,0),IF($B130=4,VLOOKUP(F$2,Table1[],5,0),0)))) -> 800000
A131: 2155 | B131: 1 | C131: =IF($B131=1,VLOOKUP(C$2,Table1[],3,0),IF($B131=2,VLOOKUP(C$2,Table1[],4,0),IF($B131=3,VLOOKUP(C$2,Table1[],5,0),IF($B131=4,VLOOKUP(C$2,Table1[],5,0),0)))) -> 2000000 | D131: =IF($B131=1,VLOOKUP(D$2,Table1[],3,0),IF($B131=2,VLOOKUP(D$2,Table1[],4,0),IF($B131=3,VLOOKUP(D$2,Table1[],5,0),IF($B131=4,VLOOKUP(D$2,Table1[],5,0),0)))) -> 2000000 | E131: =IF($B131=1,VLOOKUP(E$2,Table1[],3,0),IF($B131=2,VLOOKUP(E$2,Table1[],4,0),IF($B131=3,VLOOKUP(E$2,Table1[],5,0),IF($B131=4,VLOOKUP(E$2,Table1[],5,0),0)))) -> 1500000 | F131: =IF($B131=1,VLOOKUP(F$2,Table1[],3,0),IF($B131=2,VLOOKUP(F$2,Table1[],4,0),IF($B131=3,VLOOKUP(F$2,Table1[],5,0),IF($B131=4,VLOOKUP(F$2,Table1[],5,0),0)))) -> 800000
A132: 2156 | B132: 1 | C132: =IF($B132=1,VLOOKUP(C$2,Table1[],3,0),IF($B132=2,VLOOKUP(C$2,Table1[],4,0),IF($B132=3,VLOOKUP(C$2,Table1[],5,0),IF($B132=4,VLOOKUP(C$2,Table1[],5,0),0)))) -> 2000000 | D132: =IF($B132=1,VLOOKUP(D$2,Table1[],3,0),IF($B132=2,VLOOKUP(D$2,Table1[],4,0),IF($B132=3,VLOOKUP(D$2,Table1[],5,0),IF($B132=4,VLOOKUP(D$2,Table1[],5,0),0)))) -> 2000000 | E132: =IF($B132=1,VLOOKUP(E$2,Table1[],3,0),IF($B132=2,VLOOKUP(E$2,Table1[],4,0),IF($B132=3,VLOOKUP(E$2,Table1[],5,0),IF($B132=4,VLOOKUP(E$2,Table1[],5,0),0)))) -> 1500000 | F132: =IF($B132=1,VLOOKUP(F$2,Table1[],3,0),IF($B132=2,VLOOKUP(F$2,Table1[],4,0),IF($B132=3,VLOOKUP(F$2,Table1[],5,0),IF($B132=4,VLOOKUP(F$2,Table1[],5,0),0)))) -> 800000
A133: 2157 | B133: 1 | C133: =IF($B133=1,VLOOKUP(C$2,Table1[],3,0),IF($B133=2,VLOOKUP(C$2,Table1[],4,0),IF($B133=3,VLOOKUP(C$2,Table1[],5,0),IF($B133=4,VLOOKUP(C$2,Table1[],5,0),0)))) -> 2000000 | D133: =IF($B133=1,VLOOKUP(D$2,Table1[],3,0),IF($B133=2,VLOOKUP(D$2,Table1[],4,0),IF($B133=3,VLOOKUP(D$2,Table1[],5,0),IF($B133=4,VLOOKUP(D$2,Table1[],5,0),0)))) -> 2000000 | E133: =IF($B133=1,VLOOKUP(E$2,Table1[],3,0),IF($B133=2,VLOOKUP(E$2,Table1[],4,0),IF($B133=3,VLOOKUP(E$2,Table1[],5,0),IF($B133=4,VLOOKUP(E$2,Table1[],5,0),0)))) -> 1500000 | F133: =IF($B133=1,VLOOKUP(F$2,Table1[],3,0),IF($B133=2,VLOOKUP(F$2,Table1[],4,0),IF($B133=3,VLOOKUP(F$2,Table1[],5,0),IF($B133=4,VLOOKUP(F$2,Table1[],5,0),0)))) -> 800000
A134: 2158 | B134: 1 | C134: =IF($B134=1,VLOOKUP(C$2,Table1[],3,0),IF($B134=2,VLOOKUP(C$2,Table1[],4,0),IF($B134=3,VLOOKUP(C$2,Table1[],5,0),IF($B134=4,VLOOKUP(C$2,Table1[],5,0),0)))) -> 2000000 | D134: =IF($B134=1,VLOOKUP(D$2,Table1[],3,0),IF($B134=2,VLOOKUP(D$2,Table1[],4,0),IF($B134=3,VLOOKUP(D$2,Table1[],5,0),IF($B134=4,VLOOKUP(D$2,Table1[],5,0),0)))) -> 2000000 | E134: =IF($B134=1,VLOOKUP(E$2,Table1[],3,0),IF($B134=2,VLOOKUP(E$2,Table1[],4,0),IF($B134=3,VLOOKUP(E$2,Table1[],5,0),IF($B134=4,VLOOKUP(E$2,Table1[],5,0),0)))) -> 1500000 | F134: =IF($B134=1,VLOOKUP(F$2,Table1[],3,0),IF($B134=2,VLOOKUP(F$2,Table1[],4,0),IF($B134=3,VLOOKUP(F$2,Table1[],5,0),IF($B134=4,VLOOKUP(F$2,Table1[],5,0),0)))) -> 800000
A135: 2159 | B135: 1 | C135: =IF($B135=1,VLOOKUP(C$2,Table1[],3,0),IF($B135=2,VLOOKUP(C$2,Table1[],4,0),IF($B135=3,VLOOKUP(C$2,Table1[],5,0),IF($B135=4,VLOOKUP(C$2,Table1[],5,0),0)))) -> 2000000 | D135: =IF($B135=1,VLOOKUP(D$2,Table1[],3,0),IF($B135=2,VLOOKUP(D$2,Table1[],4,0),IF($B135=3,VLOOKUP(D$2,Table1[],5,0),IF($B135=4,VLOOKUP(D$2,Table1[],5,0),0)))) -> 2000000 | E135: =IF($B135=1,VLOOKUP(E$2,Table1[],3,0),IF($B135=2,VLOOKUP(E$2,Table1[],4,0),IF($B135=3,VLOOKUP(E$2,Table1[],5,0),IF($B135=4,VLOOKUP(E$2,Table1[],5,0),0)))) -> 1500000 | F135: =IF($B135=1,VLOOKUP(F$2,Table1[],3,0),IF($B135=2,VLOOKUP(F$2,Table1[],4,0),IF($B135=3,VLOOKUP(F$2,Table1[],5,0),IF($B135=4,VLOOKUP(F$2,Table1[],5,0),0)))) -> 800000
A136: 2160 | B136: 1 | C136: =IF($B136=1,VLOOKUP(C$2,Table1[],3,0),IF($B136=2,VLOOKUP(C$2,Table1[],4,0),IF($B136=3,VLOOKUP(C$2,Table1[],5,0),IF($B136=4,VLOOKUP(C$2,Table1[],5,0),0)))) -> 2000000 | D136: =IF($B136=1,VLOOKUP(D$2,Table1[],3,0),IF($B136=2,VLOOKUP(D$2,Table1[],4,0),IF($B136=3,VLOOKUP(D$2,Table1[],5,0),IF($B136=4,VLOOKUP(D$2,Table1[],5,0),0)))) -> 2000000 | E136: =IF($B136=1,VLOOKUP(E$2,Table1[],3,0),IF($B136=2,VLOOKUP(E$2,Table1[],4,0),IF($B136=3,VLOOKUP(E$2,Table1[],5,0),IF($B136=4,VLOOKUP(E$2,Table1[],5,0),0)))) -> 1500000 | F136: =IF($B136=1,VLOOKUP(F$2,Table1[],3,0),IF($B136=2,VLOOKUP(F$2,Table1[],4,0),IF($B136=3,VLOOKUP(F$2,Table1[],5,0),IF($B136=4,VLOOKUP(F$2,Table1[],5,0),0)))) -> 800000
A137: 2161 | B137: 1 | C137: =IF($B137=1,VLOOKUP(C$2,Table1[],3,0),IF($B137=2,VLOOKUP(C$2,Table1[],4,0),IF($B137=3,VLOOKUP(C$2,Table1[],5,0),IF($B137=4,VLOOKUP(C$2,Table1[],5,0),0)))) -> 2000000 | D137: =IF($B137=1,VLOOKUP(D$2,Table1[],3,0),IF($B137=2,VLOOKUP(D$2,Table1[],4,0),IF($B137=3,VLOOKUP(D$2,Table1[],5,0),IF($B137=4,VLOOKUP(D$2,Table1[],5,0),0)))) -> 2000000 | E137: =IF($B137=1,VLOOKUP(E$2,Table1[],3,0),IF($B137=2,VLOOKUP(E$2,Table1[],4,0),IF($B137=3,VLOOKUP(E$2,Table1[],5,0),IF($B137=4,VLOOKUP(E$2,Table1[],5,0),0)))) -> 1500000 | F137: =IF($B137=1,VLOOKUP(F$2,Table1[],3,0),IF($B137=2,VLOOKUP(F$2,Table1[],4,0),IF($B137=3,VLOOKUP(F$2,Table1[],5,0),IF($B137=4,VLOOKUP(F$2,Table1[],5,0),0)))) -> 800000
A138: 2162 | B138: 1 | C138: =IF($B138=1,VLOOKUP(C$2,Table1[],3,0),IF($B138=2,VLOOKUP(C$2,Table1[],4,0),IF($B138=3,VLOOKUP(C$2,Table1[],5,0),IF($B138=4,VLOOKUP(C$2,Table1[],5,0),0)))) -> 2000000 | D138: =IF($B138=1,VLOOKUP(D$2,Table1[],3,0),IF($B138=2,VLOOKUP(D$2,Table1[],4,0),IF($B138=3,VLOOKUP(D$2,Table1[],5,0),IF($B138=4,VLOOKUP(D$2,Table1[],5,0),0)))) -> 2000000 | E138: =IF($B138=1,VLOOKUP(E$2,Table1[],3,0),IF($B138=2,VLOOKUP(E$2,Table1[],4,0),IF($B138=3,VLOOKUP(E$2,Table1[],5,0),IF($B138=4,VLOOKUP(E$2,Table1[],5,0),0)))) -> 1500000 | F138: =IF($B138=1,VLOOKUP(F$2,Table1[],3,0),IF($B138=2,VLOOKUP(F$2,Table1[],4,0),IF($B138=3,VLOOKUP(F$2,Table1[],5,0),IF($B138=4,VLOOKUP(F$2,Table1[],5,0),0)))) -> 800000
A139: 2163 | B139: 1 | C139: =IF($B139=1,VLOOKUP(C$2,Table1[],3,0),IF($B139=2,VLOOKUP(C$2,Table1[],4,0),IF($B139=3,VLOOKUP(C$2,Table1[],5,0),IF($B139=4,VLOOKUP(C$2,Table1[],5,0),0)))) -> 2000000 | D139: =IF($B139=1,VLOOKUP(D$2,Table1[],3,0),IF($B139=2,VLOOKUP(D$2,Table1[],4,0),IF($B139=3,VLOOKUP(D$2,Table1[],5,0),IF($B139=4,VLOOKUP(D$2,Table1[],5,0),0)))) -> 2000000 | E139: =IF($B139=1,VLOOKUP(E$2,Table1[],3,0),IF($B139=2,VLOOKUP(E$2,Table1[],4,0),IF($B139=3,VLOOKUP(E$2,Table1[],5,0),IF($B139=4,VLOOKUP(E$2,Table1[],5,0),0)))) -> 1500000 | F139: =IF($B139=1,VLOOKUP(F$2,Table1[],3,0),IF($B139=2,VLOOKUP(F$2,Table1[],4,0),IF($B139=3,VLOOKUP(F$2,Table1[],5,0),IF($B139=4,VLOOKUP(F$2,Table1[],5,0),0)))) -> 800000
A140: 2164 | B140: 1 | C140: =IF($B140=1,VLOOKUP(C$2,Table1[],3,0),IF($B140=2,VLOOKUP(C$2,Table1[],4,0),IF($B140=3,VLOOKUP(C$2,Table1[],5,0),IF($B140=4,VLOOKUP(C$2,Table1[],5,0),0)))) -> 2000000 | D140: =IF($B140=1,VLOOKUP(D$2,Table1[],3,0),IF($B140=2,VLOOKUP(D$2,Table1[],4,0),IF($B140=3,VLOOKUP(D$2,Table1[],5,0),IF($B140=4,VLOOKUP(D$2,Table1[],5,0),0)))) -> 2000000 | E140: =IF($B140=1,VLOOKUP(E$2,Table1[],3,0),IF($B140=2,VLOOKUP(E$2,Table1[],4,0),IF($B140=3,VLOOKUP(E$2,Table1[],5,0),IF($B140=4,VLOOKUP(E$2,Table1[],5,0),0)))) -> 1500000 | F140: =IF($B140=1,VLOOKUP(F$2,Table1[],3,0),IF($B140=2,VLOOKUP(F$2,Table1[],4,0),IF($B140=3,VLOOKUP(F$2,Table1[],5,0),IF($B140=4,VLOOKUP(F$2,Table1[],5,0),0)))) -> 800000
A141: 2165 | B141: 1 | C141: =IF($B141=1,VLOOKUP(C$2,Table1[],3,0),IF($B141=2,VLOOKUP(C$2,Table1[],4,0),IF($B141=3,VLOOKUP(C$2,Table1[],5,0),IF($B141=4,VLOOKUP(C$2,Table1[],5,0),0)))) -> 2000000 | D141: =IF($B141=1,VLOOKUP(D$2,Table1[],3,0),IF($B141=2,VLOOKUP(D$2,Table1[],4,0),IF($B141=3,VLOOKUP(D$2,Table1[],5,0),IF($B141=4,VLOOKUP(D$2,Table1[],5,0),0)))) -> 2000000 | E141: =IF($B141=1,VLOOKUP(E$2,Table1[],3,0),IF($B141=2,VLOOKUP(E$2,Table1[],4,0),IF($B141=3,VLOOKUP(E$2,Table1[],5,0),IF($B141=4,VLOOKUP(E$2,Table1[],5,0),0)))) -> 1500000 | F141: =IF($B141=1,VLOOKUP(F$2,Table1[],3,0),IF($B141=2,VLOOKUP(F$2,Table1[],4,0),IF($B141=3,VLOOKUP(F$2,Table1[],5,0),IF($B141=4,VLOOKUP(F$2,Table1[],5,0),0)))) -> 800000
A142: 2166 | B142: 1 | C142: =IF($B142=1,VLOOKUP(C$2,Table1[],3,0),IF($B142=2,VLOOKUP(C$2,Table1[],4,0),IF($B142=3,VLOOKUP(C$2,Table1[],5,0),IF($B142=4,VLOOKUP(C$2,Table1[],5,0),0)))) -> 2000000 | D142: =IF($B142=1,VLOOKUP(D$2,Table1[],3,0),IF($B142=2,VLOOKUP(D$2,Table1[],4,0),IF($B142=3,VLOOKUP(D$2,Table1[],5,0),IF($B142=4,VLOOKUP(D$2,Table1[],5,0),0)))) -> 2000000 | E142: =IF($B142=1,VLOOKUP(E$2,Table1[],3,0),IF($B142=2,VLOOKUP(E$2,Table1[],4,0),IF($B142=3,VLOOKUP(E$2,Table1[],5,0),IF($B142=4,VLOOKUP(E$2,Table1[],5,0),0)))) -> 1500000 | F142: =IF($B142=1,VLOOKUP(F$2,Table1[],3,0),IF($B142=2,VLOOKUP(F$2,Table1[],4,0),IF($B142=3,VLOOKUP(F$2,Table1[],5,0),IF($B142=4,VLOOKUP(F$2,Table1[],5,0),0)))) -> 800000
A143: 2167 | B143: 1 | C143: =IF($B143=1,VLOOKUP(C$2,Table1[],3,0),IF($B143=2,VLOOKUP(C$2,Table1[],4,0),IF($B143=3,VLOOKUP(C$2,Table1[],5,0),IF($B143=4,VLOOKUP(C$2,Table1[],5,0),0)))) -> 2000000 | D143: =IF($B143=1,VLOOKUP(D$2,Table1[],3,0),IF($B143=2,VLOOKUP(D$2,Table1[],4,0),IF($B143=3,VLOOKUP(D$2,Table1[],5,0),IF($B143=4,VLOOKUP(D$2,Table1[],5,0),0)))) -> 2000000 | E143: =IF($B143=1,VLOOKUP(E$2,Table1[],3,0),IF($B143=2,VLOOKUP(E$2,Table1[],4,0),IF($B143=3,VLOOKUP(E$2,Table1[],5,0),IF($B143=4,VLOOKUP(E$2,Table1[],5,0),0)))) -> 1500000 | F143: =IF($B143=1,VLOOKUP(F$2,Table1[],3,0),IF($B143=2,VLOOKUP(F$2,Table1[],4,0),IF($B143=3,VLOOKUP(F$2,Table1[],5,0),IF($B143=4,VLOOKUP(F$2,Table1[],5,0),0)))) -> 800000
A144: 2168 | B144: 1 | C144: =IF($B144=1,VLOOKUP(C$2,Table1[],3,0),IF($B144=2,VLOOKUP(C$2,Table1[],4,0),IF($B144=3,VLOOKUP(C$2,Table1[],5,0),IF($B144=4,VLOOKUP(C$2,Table1[],5,0),0)))) -> 2000000 | D144: =IF($B144=1,VLOOKUP(D$2,Table1[],3,0),IF($B144=2,VLOOKUP(D$2,Table1[],4,0),IF($B144=3,VLOOKUP(D$2,Table1[],5,0),IF($B144=4,VLOOKUP(D$2,Table1[],5,0),0)))) -> 2000000 | E144: =IF($B144=1,VLOOKUP(E$2,Table1[],3,0),IF($B144=2,VLOOKUP(E$2,Table1[],4,0),IF($B144=3,VLOOKUP(E$2,Table1[],5,0),IF($B144=4,VLOOKUP(E$2,Table1[],5,0),0)))) -> 1500000 | F144: =IF($B144=1,VLOOKUP(F$2,Table1[],3,0),IF($B144=2,VLOOKUP(F$2,Table1[],4,0),IF($B144=3,VLOOKUP(F$2,Table1[],5,0),IF($B144=4,VLOOKUP(F$2,Table1[],5,0),0)))) -> 800000
A145: 2170 | B145: 1 | C145: =IF($B145=1,VLOOKUP(C$2,Table1[],3,0),IF($B145=2,VLOOKUP(C$2,Table1[],4,0),IF($B145=3,VLOOKUP(C$2,Table1[],5,0),IF($B145=4,VLOOKUP(C$2,Table1[],5,0),0)))) -> 2000000 | D145: =IF($B145=1,VLOOKUP(D$2,Table1[],3,0),IF($B145=2,VLOOKUP(D$2,Table1[],4,0),IF($B145=3,VLOOKUP(D$2,Table1[],5,0),IF($B145=4,VLOOKUP(D$2,Table1[],5,0),0)))) -> 2000000 | E145: =IF($B145=1,VLOOKUP(E$2,Table1[],3,0),IF($B145=2,VLOOKUP(E$2,Table1[],4,0),IF($B145=3,VLOOKUP(E$2,Table1[],5,0),IF($B145=4,VLOOKUP(E$2,Table1[],5,0),0)))) -> 1500000 | F145: =IF($B145=1,VLOOKUP(F$2,Table1[],3,0),IF($B145=2,VLOOKUP(F$2,Table1[],4,0),IF($B145=3,VLOOKUP(F$2,Table1[],5,0),IF($B145=4,VLOOKUP(F$2,Table1[],5,0),0)))) -> 800000
A146: 2171 | B146: 1 | C146: =IF($B146=1,VLOOKUP(C$2,Table1[],3,0),IF($B146=2,VLOOKUP(C$2,Table1[],4,0),IF($B146=3,VLOOKUP(C$2,Table1[],5,0),IF($B146=4,VLOOKUP(C$2,Table1[],5,0),0)))) -> 2000000 | D146: =IF($B146=1,VLOOKUP(D$2,Table1[],3,0),IF($B146=2,VLOOKUP(D$2,Table1[],4,0),IF($B146=3,VLOOKUP(D$2,Table1[],5,0),IF($B146=4,VLOOKUP(D$2,Table1[],5,0),0)))) -> 2000000 | E146: =IF($B146=1,VLOOKUP(E$2,Table1[],3,0),IF($B146=2,VLOOKUP(E$2,Table1[],4,0),IF($B146=3,VLOOKUP(E$2,Table1[],5,0),IF($B146=4,VLOOKUP(E$2,Table1[],5,0),0)))) -> 1500000 | F146: =IF($B146=1,VLOOKUP(F$2,Table1[],3,0),IF($B146=2,VLOOKUP(F$2,Table1[],4,0),IF($B146=3,VLOOKUP(F$2,Table1[],5,0),IF($B146=4,VLOOKUP(F$2,Table1[],5,0),0)))) -> 800000
A147: 2172 | B147: 1 | C147: =IF($B147=1,VLOOKUP(C$2,Table1[],3,0),IF($B147=2,VLOOKUP(C$2,Table1[],4,0),IF($B147=3,VLOOKUP(C$2,Table1[],5,0),IF($B147=4,VLOOKUP(C$2,Table1[],5,0),0)))) -> 2000000 | D147: =IF($B147=1,VLOOKUP(D$2,Table1[],3,0),IF($B147=2,VLOOKUP(D$2,Table1[],4,0),IF($B147=3,VLOOKUP(D$2,Table1[],5,0),IF($B147=4,VLOOKUP(D$2,Table1[],5,0),0)))) -> 2000000 | E147: =IF($B147=1,VLOOKUP(E$2,Table1[],3,0),IF($B147=2,VLOOKUP(E$2,Table1[],4,0),IF($B147=3,VLOOKUP(E$2,Table1[],5,0),IF($B147=4,VLOOKUP(E$2,Table1[],5,0),0)))) -> 1500000 | F147: =IF($B147=1,VLOOKUP(F$2,Table1[],3,0),IF($B147=2,VLOOKUP(F$2,Table1[],4,0),IF($B147=3,VLOOKUP(F$2,Table1[],5,0),IF($B147=4,VLOOKUP(F$2,Table1[],5,0),0)))) -> 800000
A148: 2173 | B148: 1 | C148: =IF($B148=1,VLOOKUP(C$2,Table1[],3,0),IF($B148=2,VLOOKUP(C$2,Table1[],4,0),IF($B148=3,VLOOKUP(C$2,Table1[],5,0),IF($B148=4,VLOOKUP(C$2,Table1[],5,0),0)))) -> 2000000 | D148: =IF($B148=1,VLOOKUP(D$2,Table1[],3,0),IF($B148=2,VLOOKUP(D$2,Table1[],4,0),IF($B148=3,VLOOKUP(D$2,Table1[],5,0),IF($B148=4,VLOOKUP(D$2,Table1[],5,0),0)))) -> 2000000 | E148: =IF($B148=1,VLOOKUP(E$2,Table1[],3,0),IF($B148=2,VLOOKUP(E$2,Table1[],4,0),IF($B148=3,VLOOKUP(E$2,Table1[],5,0),IF($B148=4,VLOOKUP(E$2,Table1[],5,0),0)))) -> 1500000 | F148: =IF($B148=1,VLOOKUP(F$2,Table1[],3,0),IF($B148=2,VLOOKUP(F$2,Table1[],4,0),IF($B148=3,VLOOKUP(F$2,Table1[],5,0),IF($B148=4,VLOOKUP(F$2,Table1[],5,0),0)))) -> 800000
A149: 2174 | B149: 1 | C149: =IF($B149=1,VLOOKUP(C$2,Table1[],3,0),IF($B149=2,VLOOKUP(C$2,Table1[],4,0),IF($B149=3,VLOOKUP(C$2,Table1[],5,0),IF($B149=4,VLOOKUP(C$2,Table1[],5,0),0)))) -> 2000000 | D149: =IF($B149=1,VLOOKUP(D$2,Table1[],3,0),IF($B149=2,VLOOKUP(D$2,Table1[],4,0),IF($B149=3,VLOOKUP(D$2,Table1[],5,0),IF($B149=4,VLOOKUP(D$2,Table1[],5,0),0)))) -> 2000000 | E149: =IF($B149=1,VLOOKUP(E$2,Table1[],3,0),IF($B149=2,VLOOKUP(E$2,Table1[],4,0),IF($B149=3,VLOOKUP(E$2,Table1[],5,0),IF($B149=4,VLOOKUP(E$2,Table1[],5,0),0)))) -> 1500000 | F149: =IF($B149=1,VLOOKUP(F$2,Table1[],3,0),IF($B149=2,VLOOKUP(F$2,Table1[],4,0),IF($B149=3,VLOOKUP(F$2,Table1[],5,0),IF($B149=4,VLOOKUP(F$2,Table1[],5,0),0)))) -> 800000
A150: 2175 | B150: 1 | C150: =IF($B150=1,VLOOKUP(C$2,Table1[],3,0),IF($B150=2,VLOOKUP(C$2,Table1[],4,0),IF($B150=3,VLOOKUP(C$2,Table1[],5,0),IF($B150=4,VLOOKUP(C$2,Table1[],5,0),0)))) -> 2000000 | D150: =IF($B150=1,VLOOKUP(D$2,Table1[],3,0),IF($B150=2,VLOOKUP(D$2,Table1[],4,0),IF($B150=3,VLOOKUP(D$2,Table1[],5,0),IF($B150=4,VLOOKUP(D$2,Table1[],5,0),0)))) -> 2000000 | E150: =IF($B150=1,VLOOKUP(E$2,Table1[],3,0),IF($B150=2,VLOOKUP(E$2,Table1[],4,0),IF($B150=3,VLOOKUP(E$2,Table1[],5,0),IF($B150=4,VLOOKUP(E$2,Table1[],5,0),0)))) -> 1500000 | F150: =IF($B150=1,VLOOKUP(F$2,Table1[],3,0),IF($B150=2,VLOOKUP(F$2,Table1[],4,0),IF($B150=3,VLOOKUP(F$2,Table1[],5,0),IF($B150=4,VLOOKUP(F$2,Table1[],5,0),0)))) -> 800000
A151: 2176 | B151: 1 | C151: =IF($B151=1,VLOOKUP(C$2,Table1[],3,0),IF($B151=2,VLOOKUP(C$2,Table1[],4,0),IF($B151=3,VLOOKUP(C$2,Table1[],5,0),IF($B151=4,VLOOKUP(C$2,Table1[],5,0),0)))) -> 2000000 | D151: =IF($B151=1,VLOOKUP(D$2,Table1[],3,0),IF($B151=2,VLOOKUP(D$2,Table1[],4,0),IF($B151=3,VLOOKUP(D$2,Table1[],5,0),IF($B151=4,VLOOKUP(D$2,Table1[],5,0),0)))) -> 2000000 | E151: =IF($B151=1,VLOOKUP(E$2,Table1[],3,0),IF($B151=2,VLOOKUP(E$2,Table1[],4,0),IF($B151=3,VLOOKUP(E$2,Table1[],5,0),IF($B151=4,VLOOKUP(E$2,Table1[],5,0),0)))) -> 1500000 | F151: =IF($B151=1,VLOOKUP(F$2,Table1[],3,0),IF($B151=2,VLOOKUP(F$2,Table1[],4,0),IF($B151=3,VLOOKUP(F$2,Table1[],5,0),IF($B151=4,VLOOKUP(F$2,Table1[],5,0),0)))) -> 800000
A152: 2177 | B152: 1 | C152: =IF($B152=1,VLOOKUP(C$2,Table1[],3,0),IF($B152=2,VLOOKUP(C$2,Table1[],4,0),IF($B152=3,VLOOKUP(C$2,Table1[],5,0),IF($B152=4,VLOOKUP(C$2,Table1[],5,0),0)))) -> 2000000 | D152: =IF($B152=1,VLOOKUP(D$2,Table1[],3,0),IF($B152=2,VLOOKUP(D$2,Table1[],4,0),IF($B152=3,VLOOKUP(D$2,Table1[],5,0),IF($B152=4,VLOOKUP(D$2,Table1[],5,0),0)))) -> 2000000 | E152: =IF($B152=1,VLOOKUP(E$2,Table1[],3,0),IF($B152=2,VLOOKUP(E$2,Table1[],4,0),IF($B152=3,VLOOKUP(E$2,Table1[],5,0),IF($B152=4,VLOOKUP(E$2,Table1[],5,0),0)))) -> 1500000 | F152: =IF($B152=1,VLOOKUP(F$2,Table1[],3,0),IF($B152=2,VLOOKUP(F$2,Table1[],4,0),IF($B152=3,VLOOKUP(F$2,Table1[],5,0),IF($B152=4,VLOOKUP(F$2,Table1[],5,0),0)))) -> 800000
A153: 2178 | B153: 1 | C153: =IF($B153=1,VLOOKUP(C$2,Table1[],3,0),IF($B153=2,VLOOKUP(C$2,Table1[],4,0),IF($B153=3,VLOOKUP(C$2,Table1[],5,0),IF($B153=4,VLOOKUP(C$2,Table1[],5,0),0)))) -> 2000000 | D153: =IF($B153=1,VLOOKUP(D$2,Table1[],3,0),IF($B153=2,VLOOKUP(D$2,Table1[],4,0),IF($B153=3,VLOOKUP(D$2,Table1[],5,0),IF($B153=4,VLOOKUP(D$2,Table1[],5,0),0)))) -> 2000000 | E153: =IF($B153=1,VLOOKUP(E$2,Table1[],3,0),IF($B153=2,VLOOKUP(E$2,Table1[],4,0),IF($B153=3,VLOOKUP(E$2,Table1[],5,0),IF($B153=4,VLOOKUP(E$2,Table1[],5,0),0)))) -> 1500000 | F153: =IF($B153=1,VLOOKUP(F$2,Table1[],3,0),IF($B153=2,VLOOKUP(F$2,Table1[],4,0),IF($B153=3,VLOOKUP(F$2,Table1[],5,0),IF($B153=4,VLOOKUP(F$2,Table1[],5,0),0)))) -> 800000
A154: 2179 | B154: 1 | C154: =IF($B154=1,VLOOKUP(C$2,Table1[],3,0),IF($B154=2,VLOOKUP(C$2,Table1[],4,0),IF($B154=3,VLOOKUP(C$2,Table1[],5,0),IF($B154=4,VLOOKUP(C$2,Table1[],5,0),0)))) -> 2000000 | D154: =IF($B154=1,VLOOKUP(D$2,Table1[],3,0),IF($B154=2,VLOOKUP(D$2,Table1[],4,0),IF($B154=3,VLOOKUP(D$2,Table1[],5,0),IF($B154=4,VLOOKUP(D$2,Table1[],5,0),0)))) -> 2000000 | E154: =IF($B154=1,VLOOKUP(E$2,Table1[],3,0),IF($B154=2,VLOOKUP(E$2,Table1[],4,0),IF($B154=3,VLOOKUP(E$2,Table1[],5,0),IF($B154=4,VLOOKUP(E$2,Table1[],5,0),0)))) -> 1500000 | F154: =IF($B154=1,VLOOKUP(F$2,Table1[],3,0),IF($B154=2,VLOOKUP(F$2,Table1[],4,0),IF($B154=3,VLOOKUP(F$2,Table1[],5,0),IF($B154=4,VLOOKUP(F$2,Table1[],5,0),0)))) -> 800000
A155: 2190 | B155: 1 | C155: =IF($B155=1,VLOOKUP(C$2,Table1[],3,0),IF($B155=2,VLOOKUP(C$2,Table1[],4,0),IF($B155=3,VLOOKUP(C$2,Table1[],5,0),IF($B155=4,VLOOKUP(C$2,Table1[],5,0),0)))) -> 2000000 | D155: =IF($B155=1,VLOOKUP(D$2,Table1[],3,0),IF($B155=2,VLOOKUP(D$2,Table1[],4,0),IF($B155=3,VLOOKUP(D$2,Table1[],5,0),IF($B155=4,VLOOKUP(D$2,Table1[],5,0),0)))) -> 2000000 | E155: =IF($B155=1,VLOOKUP(E$2,Table1[],3,0),IF($B155=2,VLOOKUP(E$2,Table1[],4,0),IF($B155=3,VLOOKUP(E$2,Table1[],5,0),IF($B155=4,VLOOKUP(E$2,Table1[],5,0),0)))) -> 1500000 | F155: =IF($B155=1,VLOOKUP(F$2,Table1[],3,0),IF($B155=2,VLOOKUP(F$2,Table1[],4,0),IF($B155=3,VLOOKUP(F$2,Table1[],5,0),IF($B155=4,VLOOKUP(F$2,Table1[],5,0),0)))) -> 800000
A156: 2191 | B156: 1 | C156: =IF($B156=1,VLOOKUP(C$2,Table1[],3,0),IF($B156=2,VLOOKUP(C$2,Table1[],4,0),IF($B156=3,VLOOKUP(C$2,Table1[],5,0),IF($B156=4,VLOOKUP(C$2,Table1[],5,0),0)))) -> 2000000 | D156: =IF($B156=1,VLOOKUP(D$2,Table1[],3,0),IF($B156=2,VLOOKUP(D$2,Table1[],4,0),IF($B156=3,VLOOKUP(D$2,Table1[],5,0),IF($B156=4,VLOOKUP(D$2,Table1[],5,0),0)))) -> 2000000 | E156: =IF($B156=1,VLOOKUP(E$2,Table1[],3,0),IF($B156=2,VLOOKUP(E$2,Table1[],4,0),IF($B156=3,VLOOKUP(E$2,Table1[],5,0),IF($B156=4,VLOOKUP(E$2,Table1[],5,0),0)))) -> 1500000 | F156: =IF($B156=1,VLOOKUP(F$2,Table1[],3,0),IF($B156=2,VLOOKUP(F$2,Table1[],4,0),IF($B156=3,VLOOKUP(F$2,Table1[],5,0),IF($B156=4,VLOOKUP(F$2,Table1[],5,0),0)))) -> 800000
A157: 2192 | B157: 1 | C157: =IF($B157=1,VLOOKUP(C$2,Table1[],3,0),IF($B157=2,VLOOKUP(C$2,Table1[],4,0),IF($B157=3,VLOOKUP(C$2,Table1[],5,0),IF($B157=4,VLOOKUP(C$2,Table1[],5,0),0)))) -> 2000000 | D157: =IF($B157=1,VLOOKUP(D$2,Table1[],3,0),IF($B157=2,VLOOKUP(D$2,Table1[],4,0),IF($B157=3,VLOOKUP(D$2,Table1[],5,0),IF($B157=4,VLOOKUP(D$2,Table1[],5,0),0)))) -> 2000000 | E157: =IF($B157=1,VLOOKUP(E$2,Table1[],3,0),IF($B157=2,VLOOKUP(E$2,Table1[],4,0),IF($B157=3,VLOOKUP(E$2,Table1[],5,0),IF($B157=4,VLOOKUP(E$2,Table1[],5,0),0)))) -> 1500000 | F157: =IF($B157=1,VLOOKUP(F$2,Table1[],3,0),IF($B157=2,VLOOKUP(F$2,Table1[],4,0),IF($B157=3,VLOOKUP(F$2,Table1[],5,0),IF($B157=4,VLOOKUP(F$2,Table1[],5,0),0)))) -> 800000
A158: 2193 | B158: 1 | C158: =IF($B158=1,VLOOKUP(C$2,Table1[],3,0),IF($B158=2,VLOOKUP(C$2,Table1[],4,0),IF($B158=3,VLOOKUP(C$2,Table1[],5,0),IF($B158=4,VLOOKUP(C$2,Table1[],5,0),0)))) -> 2000000 | D158: =IF($B158=1,VLOOKUP(D$2,Table1[],3,0),IF($B158=2,VLOOKUP(D$2,Table1[],4,0),IF($B158=3,VLOOKUP(D$2,Table1[],5,0),IF($B158=4,VLOOKUP(D$2,Table1[],5,0),0)))) -> 2000000 | E158: =IF($B158=1,VLOOKUP(E$2,Table1[],3,0),IF($B158=2,VLOOKUP(E$2,Table1[],4,0),IF($B158=3,VLOOKUP(E$2,Table1[],5,0),IF($B158=4,VLOOKUP(E$2,Table1[],5,0),0)))) -> 1500000 | F158: =IF($B158=1,VLOOKUP(F$2,Table1[],3,0),IF($B158=2,VLOOKUP(F$2,Table1[],4,0),IF($B158=3,VLOOKUP(F$2,Table1[],5,0),IF($B158=4,VLOOKUP(F$2,Table1[],5,0),0)))) -> 800000
A159: 2194 | B159: 1 | C159: =IF($B159=1,VLOOKUP(C$2,Table1[],3,0),IF($B159=2,VLOOKUP(C$2,Table1[],4,0),IF($B159=3,VLOOKUP(C$2,Table1[],5,0),IF($B159=4,VLOOKUP(C$2,Table1[],5,0),0)))) -> 2000000 | D159: =IF($B159=1,VLOOKUP(D$2,Table1[],3,0),IF($B159=2,VLOOKUP(D$2,Table1[],4,0),IF($B159=3,VLOOKUP(D$2,Table1[],5,0),IF($B159=4,VLOOKUP(D$2,Table1[],5,0),0)))) -> 2000000 | E159: =IF($B159=1,VLOOKUP(E$2,Table1[],3,0),IF($B159=2,VLOOKUP(E$2,Table1[],4,0),IF($B159=3,VLOOKUP(E$2,Table1[],5,0),IF($B159=4,VLOOKUP(E$2,Table1[],5,0),0)))) -> 1500000 | F159: =IF($B159=1,VLOOKUP(F$2,Table1[],3,0),IF($B159=2,VLOOKUP(F$2,Table1[],4,0),IF($B159=3,VLOOKUP(F$2,Table1[],5,0),IF($B159=4,VLOOKUP(F$2,Table1[],5,0),0)))) -> 800000
A160: 2195 | B160: 1 | C160: =IF($B160=1,VLOOKUP(C$2,Table1[],3,0),IF($B160=2,VLOOKUP(C$2,Table1[],4,0),IF($B160=3,VLOOKUP(C$2,Table1[],5,0),IF($B160=4,VLOOKUP(C$2,Table1[],5,0),0)))) -> 2000000 | D160: =IF($B160=1,VLOOKUP(D$2,Table1[],3,0),IF($B160=2,VLOOKUP(D$2,Table1[],4,0),IF($B160=3,VLOOKUP(D$2,Table1[],5,0),IF($B160=4,VLOOKUP(D$2,Table1[],5,0),0)))) -> 2000000 | E160: =IF($B160=1,VLOOKUP(E$2,Table1[],3,0),IF($B160=2,VLOOKUP(E$2,Table1[],4,0),IF($B160=3,VLOOKUP(E$2,Table1[],5,0),IF($B160=4,VLOOKUP(E$2,Table1[],5,0),0)))) -> 1500000 | F160: =IF($B160=1,VLOOKUP(F$2,Table1[],3,0),IF($B160=2,VLOOKUP(F$2,Table1[],4,0),IF($B160=3,VLOOKUP(F$2,Table1[],5,0),IF($B160=4,VLOOKUP(F$2,Table1[],5,0),0)))) -> 800000
A161: 2196 | B161: 1 | C161: =IF($B161=1,VLOOKUP(C$2,Table1[],3,0),IF($B161=2,VLOOKUP(C$2,Table1[],4,0),IF($B161=3,VLOOKUP(C$2,Table1[],5,0),IF($B161=4,VLOOKUP(C$2,Table1[],5,0),0)))) -> 2000000 | D161: =IF($B161=1,VLOOKUP(D$2,Table1[],3,0),IF($B161=2,VLOOKUP(D$2,Table1[],4,0),IF($B161=3,VLOOKUP(D$2,Table1[],5,0),IF($B161=4,VLOOKUP(D$2,Table1[],5,0),0)))) -> 2000000 | E161: =IF($B161=1,VLOOKUP(E$2,Table1[],3,0),IF($B161=2,VLOOKUP(E$2,Table1[],4,0),IF($B161=3,VLOOKUP(E$2,Table1[],5,0),IF($B161=4,VLOOKUP(E$2,Table1[],5,0),0)))) -> 1500000 | F161: =IF($B161=1,VLOOKUP(F$2,Table1[],3,0),IF($B161=2,VLOOKUP(F$2,Table1[],4,0),IF($B161=3,VLOOKUP(F$2,Table1[],5,0),IF($B161=4,VLOOKUP(F$2,Table1[],5,0),0)))) -> 800000
A162: 2197 | B162: 1 | C162: =IF($B162=1,VLOOKUP(C$2,Table1[],3,0),IF($B162=2,VLOOKUP(C$2,Table1[],4,0),IF($B162=3,VLOOKUP(C$2,Table1[],5,0),IF($B162=4,VLOOKUP(C$2,Table1[],5,0),0)))) -> 2000000 | D162: =IF($B162=1,VLOOKUP(D$2,Table1[],3,0),IF($B162=2,VLOOKUP(D$2,Table1[],4,0),IF($B162=3,VLOOKUP(D$2,Table1[],5,0),IF($B162=4,VLOOKUP(D$2,Table1[],5,0),0)))) -> 2000000 | E162: =IF($B162=1,VLOOKUP(E$2,Table1[],3,0),IF($B162=2,VLOOKUP(E$2,Table1[],4,0),IF($B162=3,VLOOKUP(E$2,Table1[],5,0),IF($B162=4,VLOOKUP(E$2,Table1[],5,0),0)))) -> 1500000 | F162: =IF($B162=1,VLOOKUP(F$2,Table1[],3,0),IF($B162=2,VLOOKUP(F$2,Table1[],4,0),IF($B162=3,VLOOKUP(F$2,Table1[],5,0),IF($B162=4,VLOOKUP(F$2,Table1[],5,0),0)))) -> 800000
A163: 2198 | B163: 1 | C163: =IF($B163=1,VLOOKUP(C$2,Table1[],3,0),IF($B163=2,VLOOKUP(C$2,Table1[],4,0),IF($B163=3,VLOOKUP(C$2,Table1[],5,0),IF($B163=4,VLOOKUP(C$2,Table1[],5,0),0)))) -> 2000000 | D163: =IF($B163=1,VLOOKUP(D$2,Table1[],3,0),IF($B163=2,VLOOKUP(D$2,Table1[],4,0),IF($B163=3,VLOOKUP(D$2,Table1[],5,0),IF($B163=4,VLOOKUP(D$2,Table1[],5,0),0)))) -> 2000000 | E163: =IF($B163=1,VLOOKUP(E$2,Table1[],3,0),IF($B163=2,VLOOKUP(E$2,Table1[],4,0),IF($B163=3,VLOOKUP(E$2,Table1[],5,0),IF($B163=4,VLOOKUP(E$2,Table1[],5,0),0)))) -> 1500000 | F163: =IF($B163=1,VLOOKUP(F$2,Table1[],3,0),IF($B163=2,VLOOKUP(F$2,Table1[],4,0),IF($B163=3,VLOOKUP(F$2,Table1[],5,0),IF($B163=4,VLOOKUP(F$2,Table1[],5,0),0)))) -> 800000
A164: 2199 | B164: 1 | C164: =IF($B164=1,VLOOKUP(C$2,Table1[],3,0),IF($B164=2,VLOOKUP(C$2,Table1[],4,0),IF($B164=3,VLOOKUP(C$2,Table1[],5,0),IF($B164=4,VLOOKUP(C$2,Table1[],5,0),0)))) -> 2000000 | D164: =IF($B164=1,VLOOKUP(D$2,Table1[],3,0),IF($B164=2,VLOOKUP(D$2,Table1[],4,0),IF($B164=3,VLOOKUP(D$2,Table1[],5,0),IF($B164=4,VLOOKUP(D$2,Table1[],5,0),0)))) -> 2000000 | E164: =IF($B164=1,VLOOKUP(E$2,Table1[],3,0),IF($B164=2,VLOOKUP(E$2,Table1[],4,0),IF($B164=3,VLOOKUP(E$2,Table1[],5,0),IF($B164=4,VLOOKUP(E$2,Table1[],5,0),0)))) -> 1500000 | F164: =IF($B164=1,VLOOKUP(F$2,Table1[],3,0),IF($B164=2,VLOOKUP(F$2,Table1[],4,0),IF($B164=3,VLOOKUP(F$2,Table1[],5,0),IF($B164=4,VLOOKUP(F$2,Table1[],5,0),0)))) -> 800000
A165: 2200 | B165: 1 | C165: =IF($B165=1,VLOOKUP(C$2,Table1[],3,0),IF($B165=2,VLOOKUP(C$2,Table1[],4,0),IF($B165=3,VLOOKUP(C$2,Table1[],5,0),IF($B165=4,VLOOKUP(C$2,Table1[],5,0),0)))) -> 2000000 | D165: =IF($B165=1,VLOOKUP(D$2,Table1[],3,0),IF($B165=2,VLOOKUP(D$2,Table1[],4,0),IF($B165=3,VLOOKUP(D$2,Table1[],5,0),IF($B165=4,VLOOKUP(D$2,Table1[],5,0),0)))) -> 2000000 | E165: =IF($B165=1,VLOOKUP(E$2,Table1[],3,0),IF($B165=2,VLOOKUP(E$2,Table1[],4,0),IF($B165=3,VLOOKUP(E$2,Table1[],5,0),IF($B165=4,VLOOKUP(E$2,Table1[],5,0),0)))) -> 1500000 | F165: =IF($B165=1,VLOOKUP(F$2,Table1[],3,0),IF($B165=2,VLOOKUP(F$2,Table1[],4,0),IF($B165=3,VLOOKUP(F$2,Table1[],5,0),IF($B165=4,VLOOKUP(F$2,Table1[],5,0),0)))) -> 800000
A166: 2203 | B166: 1 | C166: =IF($B166=1,VLOOKUP(C$2,Table1[],3,0),IF($B166=2,VLOOKUP(C$2,Table1[],4,0),IF($B166=3,VLOOKUP(C$2,Table1[],5,0),IF($B166=4,VLOOKUP(C$2,Table1[],5,0),0)))) -> 2000000 | D166: =IF($B166=1,VLOOKUP(D$2,Table1[],3,0),IF($B166=2,VLOOKUP(D$2,Table1[],4,0),IF($B166=3,VLOOKUP(D$2,Table1[],5,0),IF($B166=4,VLOOKUP(D$2,Table1[],5,0),0)))) -> 2000000 | E166: =IF($B166=1,VLOOKUP(E$2,Table1[],3,0),IF($B166=2,VLOOKUP(E$2,Table1[],4,0),IF($B166=3,VLOOKUP(E$2,Table1[],5,0),IF($B166=4,VLOOKUP(E$2,Table1[],5,0),0)))) -> 1500000 | F166: =IF($B166=1,VLOOKUP(F$2,Table1[],3,0),IF($B166=2,VLOOKUP(F$2,Table1[],4,0),IF($B166=3,VLOOKUP(F$2,Table1[],5,0),IF($B166=4,VLOOKUP(F$2,Table1[],5,0),0)))) -> 800000
A167: 2204 | B167: 1 | C167: =IF($B167=1,VLOOKUP(C$2,Table1[],3,0),IF($B167=2,VLOOKUP(C$2,Table1[],4,0),IF($B167=3,VLOOKUP(C$2,Table1[],5,0),IF($B167=4,VLOOKUP(C$2,Table1[],5,0),0)))) -> 2000000 | D167: =IF($B167=1,VLOOKUP(D$2,Table1[],3,0),IF($B167=2,VLOOKUP(D$2,Table1[],4,0),IF($B167=3,VLOOKUP(D$2,Table1[],5,0),IF($B167=4,VLOOKUP(D$2,Table1[],5,0),0)))) -> 2000000 | E167: =IF($B167=1,VLOOKUP(E$2,Table1[],3,0),IF($B167=2,VLOOKUP(E$2,Table1[],4,0),IF($B167=3,VLOOKUP(E$2,Table1[],5,0),IF($B167=4,VLOOKUP(E$2,Table1[],5,0),0)))) -> 1500000 | F167: =IF($B167=1,VLOOKUP(F$2,Table1[],3,0),IF($B167=2,VLOOKUP(F$2,Table1[],4,0),IF($B167=3,VLOOKUP(F$2,Table1[],5,0),IF($B167=4,VLOOKUP(F$2,Table1[],5,0),0)))) -> 800000
A168: 2205 | B168: 1 | C168: =IF($B168=1,VLOOKUP(C$2,Table1[],3,0),IF($B168=2,VLOOKUP(C$2,Table1[],4,0),IF($B168=3,VLOOKUP(C$2,Table1[],5,0),IF($B168=4,VLOOKUP(C$2,Table1[],5,0),0)))) -> 2000000 | D168: =IF($B168=1,VLOOKUP(D$2,Table1[],3,0),IF($B168=2,VLOOKUP(D$2,Table1[],4,0),IF($B168=3,VLOOKUP(D$2,Table1[],5,0),IF($B168=4,VLOOKUP(D$2,Table1[],5,0),0)))) -> 2000000 | E168: =IF($B168=1,VLOOKUP(E$2,Table1[],3,0),IF($B168=2,VLOOKUP(E$2,Table1[],4,0),IF($B168=3,VLOOKUP(E$2,Table1[],5,0),IF($B168=4,VLOOKUP(E$2,Table1[],5,0),0)))) -> 1500000 | F168: =IF($B168=1,VLOOKUP(F$2,Table1[],3,0),IF($B168=2,VLOOKUP(F$2,Table1[],4,0),IF($B168=3,VLOOKUP(F$2,Table1[],5,0),IF($B168=4,VLOOKUP(F$2,Table1[],5,0),0)))) -> 800000
A169: 2206 | B169: 1 | C169: =IF($B169=1,VLOOKUP(C$2,Table1[],3,0),IF($B169=2,VLOOKUP(C$2,Table1[],4,0),IF($B169=3,VLOOKUP(C$2,Table1[],5,0),IF($B169=4,VLOOKUP(C$2,Table1[],5,0),0)))) -> 2000000 | D169: =IF($B169=1,VLOOKUP(D$2,Table1[],3,0),IF($B169=2,VLOOKUP(D$2,Table1[],4,0),IF($B169=3,VLOOKUP(D$2,Table1[],5,0),IF($B169=4,VLOOKUP(D$2,Table1[],5,0),0)))) -> 2000000 | E169: =IF($B169=1,VLOOKUP(E$2,Table1[],3,0),IF($B169=2,VLOOKUP(E$2,Table1[],4,0),IF($B169=3,VLOOKUP(E$2,Table1[],5,0),IF($B169=4,VLOOKUP(E$2,Table1[],5,0),0)))) -> 1500000 | F169: =IF($B169=1,VLOOKUP(F$2,Table1[],3,0),IF($B169=2,VLOOKUP(F$2,Table1[],4,0),IF($B169=3,VLOOKUP(F$2,Table1[],5,0),IF($B169=4,VLOOKUP(F$2,Table1[],5,0),0)))) -> 800000
A170: 2207 | B170: 1 | C170: =IF($B170=1,VLOOKUP(C$2,Table1[],3,0),IF($B170=2,VLOOKUP(C$2,Table1[],4,0),IF($B170=3,VLOOKUP(C$2,Table1[],5,0),IF($B170=4,VLOOKUP(C$2,Table1[],5,0),0)))) -> 2000000 | D170: =IF($B170=1,VLOOKUP(D$2,Table1[],3,0),IF($B170=2,VLOOKUP(D$2,Table1[],4,0),IF($B170=3,VLOOKUP(D$2,Table1[],5,0),IF($B170=4,VLOOKUP(D$2,Table1[],5,0),0)))) -> 2000000 | E170: =IF($B170=1,VLOOKUP(E$2,Table1[],3,0),IF($B170=2,VLOOKUP(E$2,Table1[],4,0),IF($B170=3,VLOOKUP(E$2,Table1[],5,0),IF($B170=4,VLOOKUP(E$2,Table1[],5,0),0)))) -> 1500000 | F170: =IF($B170=1,VLOOKUP(F$2,Table1[],3,0),IF($B170=2,VLOOKUP(F$2,Table1[],4,0),IF($B170=3,VLOOKUP(F$2,Table1[],5,0),IF($B170=4,VLOOKUP(F$2,Table1[],5,0),0)))) -> 800000
A171: 2208 | B171: 1 | C171: =IF($B171=1,VLOOKUP(C$2,Table1[],3,0),IF($B171=2,VLOOKUP(C$2,Table1[],4,0),IF($B171=3,VLOOKUP(C$2,Table1[],5,0),IF($B171=4,VLOOKUP(C$2,Table1[],5,0),0)))) -> 2000000 | D171: =IF($B171=1,VLOOKUP(D$2,Table1[],3,0),IF($B171=2,VLOOKUP(D$2,Table1[],4,0),IF($B171=3,VLOOKUP(D$2,Table1[],5,0),IF($B171=4,VLOOKUP(D$2,Table1[],5,0),0)))) -> 2000000 | E171: =IF($B171=1,VLOOKUP(E$2,Table1[],3,0),IF($B171=2,VLOOKUP(E$2,Table1[],4,0),IF($B171=3,VLOOKUP(E$2,Table1[],5,0),IF($B171=4,VLOOKUP(E$2,Table1[],5,0),0)))) -> 1500000 | F171: =IF($B171=1,VLOOKUP(F$2,Table1[],3,0),IF($B171=2,VLOOKUP(F$2,Table1[],4,0),IF($B171=3,VLOOKUP(F$2,Table1[],5,0),IF($B171=4,VLOOKUP(F$2,Table1[],5,0),0)))) -> 800000
A172: 2209 | B172: 1 | C172: =IF($B172=1,VLOOKUP(C$2,Table1[],3,0),IF($B172=2,VLOOKUP(C$2,Table1[],4,0),IF($B172=3,VLOOKUP(C$2,Table1[],5,0),IF($B172=4,VLOOKUP(C$2,Table1[],5,0),0)))) -> 2000000 | D172: =IF($B172=1,VLOOKUP(D$2,Table1[],3,0),IF($B172=2,VLOOKUP(D$2,Table1[],4,0),IF($B172=3,VLOOKUP(D$2,Table1[],5,0),IF($B172=4,VLOOKUP(D$2,Table1[],5,0),0)))) -> 2000000 | E172: =IF($B172=1,VLOOKUP(E$2,Table1[],3,0),IF($B172=2,VLOOKUP(E$2,Table1[],4,0),IF($B172=3,VLOOKUP(E$2,Table1[],5,0),IF($B172=4,VLOOKUP(E$2,Table1[],5,0),0)))) -> 1500000 | F172: =IF($B172=1,VLOOKUP(F$2,Table1[],3,0),IF($B172=2,VLOOKUP(F$2,Table1[],4,0),IF($B172=3,VLOOKUP(F$2,Table1[],5,0),IF($B172=4,VLOOKUP(F$2,Table1[],5,0),0)))) -> 800000
A173: 2210 | B173: 1 | C173: =IF($B173=1,VLOOKUP(C$2,Table1[],3,0),IF($B173=2,VLOOKUP(C$2,Table1[],4,0),IF($B173=3,VLOOKUP(C$2,Table1[],5,0),IF($B173=4,VLOOKUP(C$2,Table1[],5,0),0)))) -> 2000000 | D173: =IF($B173=1,VLOOKUP(D$2,Table1[],3,0),IF($B173=2,VLOOKUP(D$2,Table1[],4,0),IF($B173=3,VLOOKUP(D$2,Table1[],5,0),IF($B173=4,VLOOKUP(D$2,Table1[],5,0),0)))) -> 2000000 | E173: =IF($B173=1,VLOOKUP(E$2,Table1[],3,0),IF($B173=2,VLOOKUP(E$2,Table1[],4,0),IF($B173=3,VLOOKUP(E$2,Table1[],5,0),IF($B173=4,VLOOKUP(E$2,Table1[],5,0),0)))) -> 1500000 | F173: =IF($B173=1,VLOOKUP(F$2,Table1[],3,0),IF($B173=2,VLOOKUP(F$2,Table1[],4,0),IF($B173=3,VLOOKUP(F$2,Table1[],5,0),IF($B173=4,VLOOKUP(F$2,Table1[],5,0),0)))) -> 800000
A174: 2211 | B174: 1 | C174: =IF($B174=1,VLOOKUP(C$2,Table1[],3,0),IF($B174=2,VLOOKUP(C$2,Table1[],4,0),IF($B174=3,VLOOKUP(C$2,Table1[],5,0),IF($B174=4,VLOOKUP(C$2,Table1[],5,0),0)))) -> 2000000 | D174: =IF($B174=1,VLOOKUP(D$2,Table1[],3,0),IF($B174=2,VLOOKUP(D$2,Table1[],4,0),IF($B174=3,VLOOKUP(D$2,Table1[],5,0),IF($B174=4,VLOOKUP(D$2,Table1[],5,0),0)))) -> 2000000 | E174: =IF($B174=1,VLOOKUP(E$2,Table1[],3,0),IF($B174=2,VLOOKUP(E$2,Table1[],4,0),IF($B174=3,VLOOKUP(E$2,Table1[],5,0),IF($B174=4,VLOOKUP(E$2,Table1[],5,0),0)))) -> 1500000 | F174: =IF($B174=1,VLOOKUP(F$2,Table1[],3,0),IF($B174=2,VLOOKUP(F$2,Table1[],4,0),IF($B174=3,VLOOKUP(F$2,Table1[],5,0),IF($B174=4,VLOOKUP(F$2,Table1[],5,0),0)))) -> 800000
A175: 2212 | B175: 1 | C175: =IF($B175=1,VLOOKUP(C$2,Table1[],3,0),IF($B175=2,VLOOKUP(C$2,Table1[],4,0),IF($B175=3,VLOOKUP(C$2,Table1[],5,0),IF($B175=4,VLOOKUP(C$2,Table1[],5,0),0)))) -> 2000000 | D175: =IF($B175=1,VLOOKUP(D$2,Table1[],3,0),IF($B175=2,VLOOKUP(D$2,Table1[],4,0),IF($B175=3,VLOOKUP(D$2,Table1[],5,0),IF($B175=4,VLOOKUP(D$2,Table1[],5,0),0)))) -> 2000000 | E175: =IF($B175=1,VLOOKUP(E$2,Table1[],3,0),IF($B175=2,VLOOKUP(E$2,Table1[],4,0),IF($B175=3,VLOOKUP(E$2,Table1[],5,0),IF($B175=4,VLOOKUP(E$2,Table1[],5,0),0)))) -> 1500000 | F175: =IF($B175=1,VLOOKUP(F$2,Table1[],3,0),IF($B175=2,VLOOKUP(F$2,Table1[],4,0),IF($B175=3,VLOOKUP(F$2,Table1[],5,0),IF($B175=4,VLOOKUP(F$2,Table1[],5,0),0)))) -> 800000
A176: 2213 | B176: 1 | C176: =IF($B176=1,VLOOKUP(C$2,Table1[],3,0),IF($B176=2,VLOOKUP(C$2,Table1[],4,0),IF($B176=3,VLOOKUP(C$2,Table1[],5,0),IF($B176=4,VLOOKUP(C$2,Table1[],5,0),0)))) -> 2000000 | D176: =IF($B176=1,VLOOKUP(D$2,Table1[],3,0),IF($B176=2,VLOOKUP(D$2,Table1[],4,0),IF($B176=3,VLOOKUP(D$2,Table1[],5,0),IF($B176=4,VLOOKUP(D$2,Table1[],5,0),0)))) -> 2000000 | E176: =IF($B176=1,VLOOKUP(E$2,Table1[],3,0),IF($B176=2,VLOOKUP(E$2,Table1[],4,0),IF($B176=3,VLOOKUP(E$2,Table1[],5,0),IF($B176=4,VLOOKUP(E$2,Table1[],5,0),0)))) -> 1500000 | F176: =IF($B176=1,VLOOKUP(F$2,Table1[],3,0),IF($B176=2,VLOOKUP(F$2,Table1[],4,0),IF($B176=3,VLOOKUP(F$2,Table1[],5,0),IF($B176=4,VLOOKUP(F$2,Table1[],5,0),0)))) -> 800000
A177: 2214 | B177: 1 | C177: =IF($B177=1,VLOOKUP(C$2,Table1[],3,0),IF($B177=2,VLOOKUP(C$2,Table1[],4,0),IF($B177=3,VLOOKUP(C$2,Table1[],5,0),IF($B177=4,VLOOKUP(C$2,Table1[],5,0),0)))) -> 2000000 | D177: =IF($B177=1,VLOOKUP(D$2,Table1[],3,0),IF($B177=2,VLOOKUP(D$2,Table1[],4,0),IF($B177=3,VLOOKUP(D$2,Table1[],5,0),IF($B177=4,VLOOKUP(D$2,Table1[],5,0),0)))) -> 2000000 | E177: =IF($B177=1,VLOOKUP(E$2,Table1[],3,0),IF($B177=2,VLOOKUP(E$2,Table1[],4,0),IF($B177=3,VLOOKUP(E$2,Table1[],5,0),IF($B177=4,VLOOKUP(E$2,Table1[],5,0),0)))) -> 1500000 | F177: =IF($B177=1,VLOOKUP(F$2,Table1[],3,0),IF($B177=2,VLOOKUP(F$2,Table1[],4,0),IF($B177=3,VLOOKUP(F$2,Table1[],5,0),IF($B177=4,VLOOKUP(F$2,Table1[],5,0),0)))) -> 800000
A178: 2216 | B178: 1 | C178: =IF($B178=1,VLOOKUP(C$2,Table1[],3,0),IF($B178=2,VLOOKUP(C$2,Table1[],4,0),IF($B178=3,VLOOKUP(C$2,Table1[],5,0),IF($B178=4,VLOOKUP(C$2,Table1[],5,0),0)))) -> 2000000 | D178: =IF($B178=1,VLOOKUP(D$2,Table1[],3,0),IF($B178=2,VLOOKUP(D$2,Table1[],4,0),IF($B178=3,VLOOKUP(D$2,Table1[],5,0),IF($B178=4,VLOOKUP(D$2,Table1[],5,0),0)))) -> 2000000 | E178: =IF($B178=1,VLOOKUP(E$2,Table1[],3,0),IF($B178=2,VLOOKUP(E$2,Table1[],4,0),IF($B178=3,VLOOKUP(E$2,Table1[],5,0),IF($B178=4,VLOOKUP(E$2,Table1[],5,0),0)))) -> 1500000 | F178: =IF($B178=1,VLOOKUP(F$2,Table1[],3,0),IF($B178=2,VLOOKUP(F$2,Table1[],4,0),IF($B178=3,VLOOKUP(F$2,Table1[],5,0),IF($B178=4,VLOOKUP(F$2,Table1[],5,0),0)))) -> 800000
A179: 2217 | B179: 1 | C179: =IF($B179=1,VLOOKUP(C$2,Table1[],3,0),IF($B179=2,VLOOKUP(C$2,Table1[],4,0),IF($B179=3,VLOOKUP(C$2,Table1[],5,0),IF($B179=4,VLOOKUP(C$2,Table1[],5,0),0)))) -> 2000000 | D179: =IF($B179=1,VLOOKUP(D$2,Table1[],3,0),IF($B179=2,VLOOKUP(D$2,Table1[],4,0),IF($B179=3,VLOOKUP(D$2,Table1[],5,0),IF($B179=4,VLOOKUP(D$2,Table1[],5,0),0)))) -> 2000000 | E179: =IF($B179=1,VLOOKUP(E$2,Table1[],3,0),IF($B179=2,VLOOKUP(E$2,Table1[],4,0),IF($B179=3,VLOOKUP(E$2,Table1[],5,0),IF($B179=4,VLOOKUP(E$2,Table1[],5,0),0)))) -> 1500000 | F179: =IF($B179=1,VLOOKUP(F$2,Table1[],3,0),IF($B179=2,VLOOKUP(F$2,Table1[],4,0),IF($B179=3,VLOOKUP(F$2,Table1[],5,0),IF($B179=4,VLOOKUP(F$2,Table1[],5,0),0)))) -> 800000
A180: 2218 | B180: 1 | C180: =IF($B180=1,VLOOKUP(C$2,Table1[],3,0),IF($B180=2,VLOOKUP(C$2,Table1[],4,0),IF($B180=3,VLOOKUP(C$2,Table1[],5,0),IF($B180=4,VLOOKUP(C$2,Table1[],5,0),0)))) -> 2000000 | D180: =IF($B180=1,VLOOKUP(D$2,Table1[],3,0),IF($B180=2,VLOOKUP(D$2,Table1[],4,0),IF($B180=3,VLOOKUP(D$2,Table1[],5,0),IF($B180=4,VLOOKUP(D$2,Table1[],5,0),0)))) -> 2000000 | E180: =IF($B180=1,VLOOKUP(E$2,Table1[],3,0),IF($B180=2,VLOOKUP(E$2,Table1[],4,0),IF($B180=3,VLOOKUP(E$2,Table1[],5,0),IF($B180=4,VLOOKUP(E$2,Table1[],5,0),0)))) -> 1500000 | F180: =IF($B180=1,VLOOKUP(F$2,Table1[],3,0),IF($B180=2,VLOOKUP(F$2,Table1[],4,0),IF($B180=3,VLOOKUP(F$2,Table1[],5,0),IF($B180=4,VLOOKUP(F$2,Table1[],5,0),0)))) -> 800000
A181: 2219 | B181: 1 | C181: =IF($B181=1,VLOOKUP(C$2,Table1[],3,0),IF($B181=2,VLOOKUP(C$2,Table1[],4,0),IF($B181=3,VLOOKUP(C$2,Table1[],5,0),IF($B181=4,VLOOKUP(C$2,Table1[],5,0),0)))) -> 2000000 | D181: =IF($B181=1,VLOOKUP(D$2,Table1[],3,0),IF($B181=2,VLOOKUP(D$2,Table1[],4,0),IF($B181=3,VLOOKUP(D$2,Table1[],5,0),IF($B181=4,VLOOKUP(D$2,Table1[],5,0),0)))) -> 2000000 | E181: =IF($B181=1,VLOOKUP(E$2,Table1[],3,0),IF($B181=2,VLOOKUP(E$2,Table1[],4,0),IF($B181=3,VLOOKUP(E$2,Table1[],5,0),IF($B181=4,VLOOKUP(E$2,Table1[],5,0),0)))) -> 1500000 | F181: =IF($B181=1,VLOOKUP(F$2,Table1[],3,0),IF($B181=2,VLOOKUP(F$2,Table1[],4,0),IF($B181=3,VLOOKUP(F$2,Table1[],5,0),IF($B181=4,VLOOKUP(F$2,Table1[],5,0),0)))) -> 800000
A182: 2220 | B182: 1 | C182: =IF($B182=1,VLOOKUP(C$2,Table1[],3,0),IF($B182=2,VLOOKUP(C$2,Table1[],4,0),IF($B182=3,VLOOKUP(C$2,Table1[],5,0),IF($B182=4,VLOOKUP(C$2,Table1[],5,0),0)))) -> 2000000 | D182: =IF($B182=1,VLOOKUP(D$2,Table1[],3,0),IF($B182=2,VLOOKUP(D$2,Table1[],4,0),IF($B182=3,VLOOKUP(D$2,Table1[],5,0),IF($B182=4,VLOOKUP(D$2,Table1[],5,0),0)))) -> 2000000 | E182: =IF($B182=1,VLOOKUP(E$2,Table1[],3,0),IF($B182=2,VLOOKUP(E$2,Table1[],4,0),IF($B182=3,VLOOKUP(E$2,Table1[],5,0),IF($B182=4,VLOOKUP(E$2,Table1[],5,0),0)))) -> 1500000 | F182: =IF($B182=1,VLOOKUP(F$2,Table1[],3,0),IF($B182=2,VLOOKUP(F$2,Table1[],4,0),IF($B182=3,VLOOKUP(F$2,Table1[],5,0),IF($B182=4,VLOOKUP(F$2,Table1[],5,0),0)))) -> 800000
A183: 2221 | B183: 1 | C183: =IF($B183=1,VLOOKUP(C$2,Table1[],3,0),IF($B183=2,VLOOKUP(C$2,Table1[],4,0),IF($B183=3,VLOOKUP(C$2,Table1[],5,0),IF($B183=4,VLOOKUP(C$2,Table1[],5,0),0)))) -> 2000000 | D183: =IF($B183=1,VLOOKUP(D$2,Table1[],3,0),IF($B183=2,VLOOKUP(D$2,Table1[],4,0),IF($B183=3,VLOOKUP(D$2,Table1[],5,0),IF($B183=4,VLOOKUP(D$2,Table1[],5,0),0)))) -> 2000000 | E183: =IF($B183=1,VLOOKUP(E$2,Table1[],3,0),IF($B183=2,VLOOKUP(E$2,Table1[],4,0),IF($B183=3,VLOOKUP(E$2,Table1[],5,0),IF($B183=4,VLOOKUP(E$2,Table1[],5,0),0)))) -> 1500000 | F183: =IF($B183=1,VLOOKUP(F$2,Table1[],3,0),IF($B183=2,VLOOKUP(F$2,Table1[],4,0),IF($B183=3,VLOOKUP(F$2,Table1[],5,0),IF($B183=4,VLOOKUP(F$2,Table1[],5,0),0)))) -> 800000
A184: 2222 | B184: 1 | C184: =IF($B184=1,VLOOKUP(C$2,Table1[],3,0),IF($B184=2,VLOOKUP(C$2,Table1[],4,0),IF($B184=3,VLOOKUP(C$2,Table1[],5,0),IF($B184=4,VLOOKUP(C$2,Table1[],5,0),0)))) -> 2000000 | D184: =IF($B184=1,VLOOKUP(D$2,Table1[],3,0),IF($B184=2,VLOOKUP(D$2,Table1[],4,0),IF($B184=3,VLOOKUP(D$2,Table1[],5,0),IF($B184=4,VLOOKUP(D$2,Table1[],5,0),0)))) -> 2000000 | E184: =IF($B184=1,VLOOKUP(E$2,Table1[],3,0),IF($B184=2,VLOOKUP(E$2,Table1[],4,0),IF($B184=3,VLOOKUP(E$2,Table1[],5,0),IF($B184=4,VLOOKUP(E$2,Table1[],5,0),0)))) -> 1500000 | F184: =IF($B184=1,VLOOKUP(F$2,Table1[],3,0),IF($B184=2,VLOOKUP(F$2,Table1[],4,0),IF($B184=3,VLOOKUP(F$2,Table1[],5,0),IF($B184=4,VLOOKUP(F$2,Table1[],5,0),0)))) -> 800000
A185: 2223 | B185: 1 | C185: =IF($B185=1,VLOOKUP(C$2,Table1[],3,0),IF($B185=2,VLOOKUP(C$2,Table1[],4,0),IF($B185=3,VLOOKUP(C$2,Table1[],5,0),IF($B185=4,VLOOKUP(C$2,Table1[],5,0),0)))) -> 2000000 | D185: =IF($B185=1,VLOOKUP(D$2,Table1[],3,0),IF($B185=2,VLOOKUP(D$2,Table1[],4,0),IF($B185=3,VLOOKUP(D$2,Table1[],5,0),IF($B185=4,VLOOKUP(D$2,Table1[],5,0),0)))) -> 2000000 | E185: =IF($B185=1,VLOOKUP(E$2,Table1[],3,0),IF($B185=2,VLOOKUP(E$2,Table1[],4,0),IF($B185=3,VLOOKUP(E$2,Table1[],5,0),IF($B185=4,VLOOKUP(E$2,Table1[],5,0),0)))) -> 1500000 | F185: =IF($B185=1,VLOOKUP(F$2,Table1[],3,0),IF($B185=2,VLOOKUP(F$2,Table1[],4,0),IF($B185=3,VLOOKUP(F$2,Table1[],5,0),IF($B185=4,VLOOKUP(F$2,Table1[],5,0),0)))) -> 800000
A186: 2224 | B186: 1 | C186: =IF($B186=1,VLOOKUP(C$2,Table1[],3,0),IF($B186=2,VLOOKUP(C$2,Table1[],4,0),IF($B186=3,VLOOKUP(C$2,Table1[],5,0),IF($B186=4,VLOOKUP(C$2,Table1[],5,0),0)))) -> 2000000 | D186: =IF($B186=1,VLOOKUP(D$2,Table1[],3,0),IF($B186=2,VLOOKUP(D$2,Table1[],4,0),IF($B186=3,VLOOKUP(D$2,Table1[],5,0),IF($B186=4,VLOOKUP(D$2,Table1[],5,0),0)))) -> 2000000 | E186: =IF($B186=1,VLOOKUP(E$2,Table1[],3,0),IF($B186=2,VLOOKUP(E$2,Table1[],4,0),IF($B186=3,VLOOKUP(E$2,Table1[],5,0),IF($B186=4,VLOOKUP(E$2,Table1[],5,0),0)))) -> 1500000 | F186: =IF($B186=1,VLOOKUP(F$2,Table1[],3,0),IF($B186=2,VLOOKUP(F$2,Table1[],4,0),IF($B186=3,VLOOKUP(F$2,Table1[],5,0),IF($B186=4,VLOOKUP(F$2,Table1[],5,0),0)))) -> 800000
A187: 2225 | B187: 1 | C187: =IF($B187=1,VLOOKUP(C$2,Table1[],3,0),IF($B187=2,VLOOKUP(C$2,Table1[],4,0),IF($B187=3,VLOOKUP(C$2,Table1[],5,0),IF($B187=4,VLOOKUP(C$2,Table1[],5,0),0)))) -> 2000000 | D187: =IF($B187=1,VLOOKUP(D$2,Table1[],3,0),IF($B187=2,VLOOKUP(D$2,Table1[],4,0),IF($B187=3,VLOOKUP(D$2,Table1[],5,0),IF($B187=4,VLOOKUP(D$2,Table1[],5,0),0)))) -> 2000000 | E187: =IF($B187=1,VLOOKUP(E$2,Table1[],3,0),IF($B187=2,VLOOKUP(E$2,Table1[],4,0),IF($B187=3,VLOOKUP(E$2,Table1[],5,0),IF($B187=4,VLOOKUP(E$2,Table1[],5,0),0)))) -> 1500000 | F187: =IF($B187=1,VLOOKUP(F$2,Table1[],3,0),IF($B187=2,VLOOKUP(F$2,Table1[],4,0),IF($B187=3,VLOOKUP(F$2,Table1[],5,0),IF($B187=4,VLOOKUP(F$2,Table1[],5,0),0)))) -> 800000
A188: 2226 | B188: 1 | C188: =IF($B188=1,VLOOKUP(C$2,Table1[],3,0),IF($B188=2,VLOOKUP(C$2,Table1[],4,0),IF($B188=3,VLOOKUP(C$2,Table1[],5,0),IF($B188=4,VLOOKUP(C$2,Table1[],5,0),0)))) -> 2000000 | D188: =IF($B188=1,VLOOKUP(D$2,Table1[],3,0),IF($B188=2,VLOOKUP(D$2,Table1[],4,0),IF($B188=3,VLOOKUP(D$2,Table1[],5,0),IF($B188=4,VLOOKUP(D$2,Table1[],5,0),0)))) -> 2000000 | E188: =IF($B188=1,VLOOKUP(E$2,Table1[],3,0),IF($B188=2,VLOOKUP(E$2,Table1[],4,0),IF($B188=3,VLOOKUP(E$2,Table1[],5,0),IF($B188=4,VLOOKUP(E$2,Table1[],5,0),0)))) -> 1500000 | F188: =IF($B188=1,VLOOKUP(F$2,Table1[],3,0),IF($B188=2,VLOOKUP(F$2,Table1[],4,0),IF($B188=3,VLOOKUP(F$2,Table1[],5,0),IF($B188=4,VLOOKUP(F$2,Table1[],5,0),0)))) -> 800000
A189: 2227 | B189: 1 | C189: =IF($B189=1,VLOOKUP(C$2,Table1[],3,0),IF($B189=2,VLOOKUP(C$2,Table1[],4,0),IF($B189=3,VLOOKUP(C$2,Table1[],5,0),IF($B189=4,VLOOKUP(C$2,Table1[],5,0),0)))) -> 2000000 | D189: =IF($B189=1,VLOOKUP(D$2,Table1[],3,0),IF($B189=2,VLOOKUP(D$2,Table1[],4,0),IF($B189=3,VLOOKUP(D$2,Table1[],5,0),IF($B189=4,VLOOKUP(D$2,Table1[],5,0),0)))) -> 2000000 | E189: =IF($B189=1,VLOOKUP(E$2,Table1[],3,0),IF($B189=2,VLOOKUP(E$2,Table1[],4,0),IF($B189=3,VLOOKUP(E$2,Table1[],5,0),IF($B189=4,VLOOKUP(E$2,Table1[],5,0),0)))) -> 1500000 | F189: =IF($B189=1,VLOOKUP(F$2,Table1[],3,0),IF($B189=2,VLOOKUP(F$2,Table1[],4,0),IF($B189=3,VLOOKUP(F$2,Table1[],5,0),IF($B189=4,VLOOKUP(F$2,Table1[],5,0),0)))) -> 800000
A190: 2228 | B190: 1 | C190: =IF($B190=1,VLOOKUP(C$2,Table1[],3,0),IF($B190=2,VLOOKUP(C$2,Table1[],4,0),IF($B190=3,VLOOKUP(C$2,Table1[],5,0),IF($B190=4,VLOOKUP(C$2,Table1[],5,0),0)))) -> 2000000 | D190: =IF($B190=1,VLOOKUP(D$2,Table1[],3,0),IF($B190=2,VLOOKUP(D$2,Table1[],4,0),IF($B190=3,VLOOKUP(D$2,Table1[],5,0),IF($B190=4,VLOOKUP(D$2,Table1[],5,0),0)))) -> 2000000 | E190: =IF($B190=1,VLOOKUP(E$2,Table1[],3,0),IF($B190=2,VLOOKUP(E$2,Table1[],4,0),IF($B190=3,VLOOKUP(E$2,Table1[],5,0),IF($B190=4,VLOOKUP(E$2,Table1[],5,0),0)))) -> 1500000 | F190: =IF($B190=1,VLOOKUP(F$2,Table1[],3,0),IF($B190=2,VLOOKUP(F$2,Table1[],4,0),IF($B190=3,VLOOKUP(F$2,Table1[],5,0),IF($B190=4,VLOOKUP(F$2,Table1[],5,0),0)))) -> 800000
A191: 2229 | B191: 1 | C191: =IF($B191=1,VLOOKUP(C$2,Table1[],3,0),IF($B191=2,VLOOKUP(C$2,Table1[],4,0),IF($B191=3,VLOOKUP(C$2,Table1[],5,0),IF($B191=4,VLOOKUP(C$2,Table1[],5,0),0)))) -> 2000000 | D191: =IF($B191=1,VLOOKUP(D$2,Table1[],3,0),IF($B191=2,VLOOKUP(D$2,Table1[],4,0),IF($B191=3,VLOOKUP(D$2,Table1[],5,0),IF($B191=4,VLOOKUP(D$2,Table1[],5,0),0)))) -> 2000000 | E191: =IF($B191=1,VLOOKUP(E$2,Table1[],3,0),IF($B191=2,VLOOKUP(E$2,Table1[],4,0),IF($B191=3,VLOOKUP(E$2,Table1[],5,0),IF($B191=4,VLOOKUP(E$2,Table1[],5,0),0)))) -> 1500000 | F191: =IF($B191=1,VLOOKUP(F$2,Table1[],3,0),IF($B191=2,VLOOKUP(F$2,Table1[],4,0),IF($B191=3,VLOOKUP(F$2,Table1[],5,0),IF($B191=4,VLOOKUP(F$2,Table1[],5,0),0)))) -> 800000
A192: 2230 | B192: 1 | C192: =IF($B192=1,VLOOKUP(C$2,Table1[],3,0),IF($B192=2,VLOOKUP(C$2,Table1[],4,0),IF($B192=3,VLOOKUP(C$2,Table1[],5,0),IF($B192=4,VLOOKUP(C$2,Table1[],5,0),0)))) -> 2000000 | D192: =IF($B192=1,VLOOKUP(D$2,Table1[],3,0),IF($B192=2,VLOOKUP(D$2,Table1[],4,0),IF($B192=3,VLOOKUP(D$2,Table1[],5,0),IF($B192=4,VLOOKUP(D$2,Table1[],5,0),0)))) -> 2000000 | E192: =IF($B192=1,VLOOKUP(E$2,Table1[],3,0),IF($B192=2,VLOOKUP(E$2,Table1[],4,0),IF($B192=3,VLOOKUP(E$2,Table1[],5,0),IF($B192=4,VLOOKUP(E$2,Table1[],5,0),0)))) -> 1500000 | F192: =IF($B192=1,VLOOKUP(F$2,Table1[],3,0),IF($B192=2,VLOOKUP(F$2,Table1[],4,0),IF($B192=3,VLOOKUP(F$2,Table1[],5,0),IF($B192=4,VLOOKUP(F$2,Table1[],5,0),0)))) -> 800000
A193: 2231 | B193: 1 | C193: =IF($B193=1,VLOOKUP(C$2,Table1[],3,0),IF($B193=2,VLOOKUP(C$2,Table1[],4,0),IF($B193=3,VLOOKUP(C$2,Table1[],5,0),IF($B193=4,VLOOKUP(C$2,Table1[],5,0),0)))) -> 2000000 | D193: =IF($B193=1,VLOOKUP(D$2,Table1[],3,0),IF($B193=2,VLOOKUP(D$2,Table1[],4,0),IF($B193=3,VLOOKUP(D$2,Table1[],5,0),IF($B193=4,VLOOKUP(D$2,Table1[],5,0),0)))) -> 2000000 | E193: =IF($B193=1,VLOOKUP(E$2,Table1[],3,0),IF($B193=2,VLOOKUP(E$2,Table1[],4,0),IF($B193=3,VLOOKUP(E$2,Table1[],5,0),IF($B193=4,VLOOKUP(E$2,Table1[],5,0),0)))) -> 1500000 | F193: =IF($B193=1,VLOOKUP(F$2,Table1[],3,0),IF($B193=2,VLOOKUP(F$2,Table1[],4,0),IF($B193=3,VLOOKUP(F$2,Table1[],5,0),IF($B193=4,VLOOKUP(F$2,Table1[],5,0),0)))) -> 800000
A194: 2232 | B194: 1 | C194: =IF($B194=1,VLOOKUP(C$2,Table1[],3,0),IF($B194=2,VLOOKUP(C$2,Table1[],4,0),IF($B194=3,VLOOKUP(C$2,Table1[],5,0),IF($B194=4,VLOOKUP(C$2,Table1[],5,0),0)))) -> 2000000 | D194: =IF($B194=1,VLOOKUP(D$2,Table1[],3,0),IF($B194=2,VLOOKUP(D$2,Table1[],4,0),IF($B194=3,VLOOKUP(D$2,Table1[],5,0),IF($B194=4,VLOOKUP(D$2,Table1[],5,0),0)))) -> 2000000 | E194: =IF($B194=1,VLOOKUP(E$2,Table1[],3,0),IF($B194=2,VLOOKUP(E$2,Table1[],4,0),IF($B194=3,VLOOKUP(E$2,Table1[],5,0),IF($B194=4,VLOOKUP(E$2,Table1[],5,0),0)))) -> 1500000 | F194: =IF($B194=1,VLOOKUP(F$2,Table1[],3,0),IF($B194=2,VLOOKUP(F$2,Table1[],4,0),IF($B194=3,VLOOKUP(F$2,Table1[],5,0),IF($B194=4,VLOOKUP(F$2,Table1[],5,0),0)))) -> 800000
A195: 2233 | B195: 1 | C195: =IF($B195=1,VLOOKUP(C$2,Table1[],3,0),IF($B195=2,VLOOKUP(C$2,Table1[],4,0),IF($B195=3,VLOOKUP(C$2,Table1[],5,0),IF($B195=4,VLOOKUP(C$2,Table1[],5,0),0)))) -> 2000000 | D195: =IF($B195=1,VLOOKUP(D$2,Table1[],3,0),IF($B195=2,VLOOKUP(D$2,Table1[],4,0),IF($B195=3,VLOOKUP(D$2,Table1[],5,0),IF($B195=4,VLOOKUP(D$2,Table1[],5,0),0)))) -> 2000000 | E195: =IF($B195=1,VLOOKUP(E$2,Table1[],3,0),IF($B195=2,VLOOKUP(E$2,Table1[],4,0),IF($B195=3,VLOOKUP(E$2,Table1[],5,0),IF($B195=4,VLOOKUP(E$2,Table1[],5,0),0)))) -> 1500000 | F195: =IF($B195=1,VLOOKUP(F$2,Table1[],3,0),IF($B195=2,VLOOKUP(F$2,Table1[],4,0),IF($B195=3,VLOOKUP(F$2,Table1[],5,0),IF($B195=4,VLOOKUP(F$2,Table1[],5,0),0)))) -> 800000
A196: 2234 | B196: 1 | C196: =IF($B196=1,VLOOKUP(C$2,Table1[],3,0),IF($B196=2,VLOOKUP(C$2,Table1[],4,0),IF($B196=3,VLOOKUP(C$2,Table1[],5,0),IF($B196=4,VLOOKUP(C$2,Table1[],5,0),0)))) -> 2000000 | D196: =IF($B196=1,VLOOKUP(D$2,Table1[],3,0),IF($B196=2,VLOOKUP(D$2,Table1[],4,0),IF($B196=3,VLOOKUP(D$2,Table1[],5,0),IF($B196=4,VLOOKUP(D$2,Table1[],5,0),0)))) -> 2000000 | E196: =IF($B196=1,VLOOKUP(E$2,Table1[],3,0),IF($B196=2,VLOOKUP(E$2,Table1[],4,0),IF($B196=3,VLOOKUP(E$2,Table1[],5,0),IF($B196=4,VLOOKUP(E$2,Table1[],5,0),0)))) -> 1500000 | F196: =IF($B196=1,VLOOKUP(F$2,Table1[],3,0),IF($B196=2,VLOOKUP(F$2,Table1[],4,0),IF($B196=3,VLOOKUP(F$2,Table1[],5,0),IF($B196=4,VLOOKUP(F$2,Table1[],5,0),0)))) -> 800000
A197: 2250 | B197: 1 | C197: =IF($B197=1,VLOOKUP(C$2,Table1[],3,0),IF($B197=2,VLOOKUP(C$2,Table1[],4,0),IF($B197=3,VLOOKUP(C$2,Table1[],5,0),IF($B197=4,VLOOKUP(C$2,Table1[],5,0),0)))) -> 2000000 | D197: =IF($B197=1,VLOOKUP(D$2,Table1[],3,0),IF($B197=2,VLOOKUP(D$2,Table1[],4,0),IF($B197=3,VLOOKUP(D$2,Table1[],5,0),IF($B197=4,VLOOKUP(D$2,Table1[],5,0),0)))) -> 2000000 | E197: =IF($B197=1,VLOOKUP(E$2,Table1[],3,0),IF($B197=2,VLOOKUP(E$2,Table1[],4,0),IF($B197=3,VLOOKUP(E$2,Table1[],5,0),IF($B197=4,VLOOKUP(E$2,Table1[],5,0),0)))) -> 1500000 | F197: =IF($B197=1,VLOOKUP(F$2,Table1[],3,0),IF($B197=2,VLOOKUP(F$2,Table1[],4,0),IF($B197=3,VLOOKUP(F$2,Table1[],5,0),IF($B197=4,VLOOKUP(F$2,Table1[],5,0),0)))) -> 800000
A198: 2251 | B198: 1 | C198: =IF($B198=1,VLOOKUP(C$2,Table1[],3,0),IF($B198=2,VLOOKUP(C$2,Table1[],4,0),IF($B198=3,VLOOKUP(C$2,Table1[],5,0),IF($B198=4,VLOOKUP(C$2,Table1[],5,0),0)))) -> 2000000 | D198: =IF($B198=1,VLOOKUP(D$2,Table1[],3,0),IF($B198=2,VLOOKUP(D$2,Table1[],4,0),IF($B198=3,VLOOKUP(D$2,Table1[],5,0),IF($B198=4,VLOOKUP(D$2,Table1[],5,0),0)))) -> 2000000 | E198: =IF($B198=1,VLOOKUP(E$2,Table1[],3,0),IF($B198=2,VLOOKUP(E$2,Table1[],4,0),IF($B198=3,VLOOKUP(E$2,Table1[],5,0),IF($B198=4,VLOOKUP(E$2,Table1[],5,0),0)))) -> 1500000 | F198: =IF($B198=1,VLOOKUP(F$2,Table1[],3,0),IF($B198=2,VLOOKUP(F$2,Table1[],4,0),IF($B198=3,VLOOKUP(F$2,Table1[],5,0),IF($B198=4,VLOOKUP(F$2,Table1[],5,0),0)))) -> 800000
A199: 2256 | B199: 1 | C199: =IF($B199=1,VLOOKUP(C$2,Table1[],3,0),IF($B199=2,VLOOKUP(C$2,Table1[],4,0),IF($B199=3,VLOOKUP(C$2,Table1[],5,0),IF($B199=4,VLOOKUP(C$2,Table1[],5,0),0)))) -> 2000000 | D199: =IF($B199=1,VLOOKUP(D$2,Table1[],3,0),IF($B199=2,VLOOKUP(D$2,Table1[],4,0),IF($B199=3,VLOOKUP(D$2,Table1[],5,0),IF($B199=4,VLOOKUP(D$2,Table1[],5,0),0)))) -> 2000000 | E199: =IF($B199=1,VLOOKUP(E$2,Table1[],3,0),IF($B199=2,VLOOKUP(E$2,Table1[],4,0),IF($B199=3,VLOOKUP(E$2,Table1[],5,0),IF($B199=4,VLOOKUP(E$2,Table1[],5,0),0)))) -> 1500000 | F199: =IF($B199=1,VLOOKUP(F$2,Table1[],3,0),IF($B199=2,VLOOKUP(F$2,Table1[],4,0),IF($B199=3,VLOOKUP(F$2,Table1[],5,0),IF($B199=4,VLOOKUP(F$2,Table1[],5,0),0)))) -> 800000
A200: 2257 | B200: 1 | C200: =IF($B200=1,VLOOKUP(C$2,Table1[],3,0),IF($B200=2,VLOOKUP(C$2,Table1[],4,0),IF($B200=3,VLOOKUP(C$2,Table1[],5,0),IF($B200=4,VLOOKUP(C$2,Table1[],5,0),0)))) -> 2000000 | D200: =IF($B200=1,VLOOKUP(D$2,Table1[],3,0),IF($B200=2,VLOOKUP(D$2,Table1[],4,0),IF($B200=3,VLOOKUP(D$2,Table1[],5,0),IF($B200=4,VLOOKUP(D$2,Table1[],5,0),0)))) -> 2000000 | E200: =IF($B200=1,VLOOKUP(E$2,Table1[],3,0),IF($B200=2,VLOOKUP(E$2,Table1[],4,0),IF($B200=3,VLOOKUP(E$2,Table1[],5,0),IF($B200=4,VLOOKUP(E$2,Table1[],5,0),0)))) -> 1500000 | F200: =IF($B200=1,VLOOKUP(F$2,Table1[],3,0),IF($B200=2,VLOOKUP(F$2,Table1[],4,0),IF($B200=3,VLOOKUP(F$2,Table1[],5,0),IF($B200=4,VLOOKUP(F$2,Table1[],5,0),0)))) -> 800000
... 1284 more rows

Sheet HEM (hidden)
A1: InstitutionId | B1: NSTS_IncomeRangeStart | C1: NSTS_IncomeRangeEnd | D1: NSTS_TaxRate | E1: NSTS_TaxFree | F1: NSTS_CustomerType | H1: Applicant 1 | I1: Applicant 2 | J1: Applicant 3 | K1: Applicant 4 | L1: Applicant 5 | Q1: Weighting Classifications | T1: Rental Categories | U1: % | W1: Investment Flag | Y1: Household No. | AA1: Couple
A2: 1 | B2: 0 | C2: 999999999999 | D2: 0.3 | E2: 0 | F2: C | Q2: Bonus | R2: 0.8 | T2: Cat 1,2,3 and Any Other Residential | U2: 0.8 | W2: Yes | Y2: 1 | AA2: Y
A3: 1 | B3: 0 | C3: 18200 | D3: 0 | E3: 0 | F3: I | Q3: Commission | R3: 0.8 | T3: Cat 4 Residential | U3: 0.6 | W3: No | Y3: 2 | AA3: N
A4: 1 | B4: 18200.01 | C4: 22801 | D4: 0.19 | E4: 3458 | F4: I | Q4: Dividends | R4: 0.9 | T4: Cat 1, 2, 3 and Any Other Commercial | U4: 0.7 | Y4: 3
A5: 1 | B5: 22801.01 | C5: 28501 | D5: 0.29 | E5: 5738.1 | F5: I | Q5: Overtime | R5: 0.8 | T5: Cat 4 Commercial | U5: 0.6 | Y5: NA
A6: 1 | B6: 28501.01 | C6: 45000 | D6: 0.21 | E6: 3458.02 | F6: I | Q6: Car Allowance | R6: 1
A7: 1 | B7: 45000.01 | C7: 120000 | D7: 0.345 | E7: 9533.02 | F7: I | Q7: Foreign Income | R7: 1
A8: 1 | B8: 120000.01 | C8: 180000 | D8: 0.39 | E8: 14933.02 | F8: I
A9: 1 | B9: 180000.01 | C9: 999999999999 | D9: 0.47 | E9: 29333.02 | F9: I | T9: Rental Categories | U9: %
T10: Cat 1 Resi | U10: 0.8
H11: 0 | I11: 0 | J11: 0 | K11: 0 | L11: 0 | T11: Cat 1 Commercial | U11: 0.7
E12: 1 | T12: Cat 2 Resi | U12: 0.8
B13: Current HEM Data - provided by external people | E13: Living Expenses Table - Household 1 | T13: Cat 2 Commercial | U13: 0.7
E14: Household Members | F14: Household No's | G14: Couple | H14: Gross Income | I14: =IF('Result Sheet'!B32>0,'Result Sheet'!B32,0) -> 0 | T14: Cat 3 Resi | U14: 0.8
B15: Total HEM (Annual) | C15: =(J17+J24+J31)*52 -> 0 | E15: Adults (Applicants) | F15: =Calculator!M36 ->  | G15: ='Result Sheet'!B60 -> 0 | H15: ='Result Sheet'!B59-I15+I14 -> 0 | I15: =SUMIF('Result Sheet'!B29:E29,HEM!E12,'Result Sheet'!B30:E30)-SUMIF('Result Sheet'!B29:E29,HEM!E12,'Result Sheet'!B31:E31) -> 0 | M15: =HEM_1 -> 0 | T15: Cat 3 Commercial | U15: 0.7
B16: HEM | C16: =C15/12 -> 0 | E16: Adults (Dep) | F16: 0 | T16: Cat 4 Resi | U16: 0.6
E17: Children (capped at 10) | F17: =IF('Result Sheet'!B63>10,10,'Result Sheet'!B63) -> 0 | J17: =S69 -> 0 | K17: =(S69*52)/12 -> 0 | T17: Cat 4 Commercial | U17: 0.6
E19: 2
E20: Living Expenses Table - Household 2
E21: Household Members | F21: Household No.s | G21: Couple | H21: Gross Income | I21: =IF('Result Sheet'!C32>0,'Result Sheet'!C32,0) -> 0 | W21: Corporate / Self Employed?
E22: Adults (Applicants) | F22: =Calculator!P36 ->  | G22: ='Result Sheet'!C60 -> 0 | H22: ='Result Sheet'!C59-I22+I21 -> 0 | I22: =SUMIF('Result Sheet'!B29:E29,HEM!E19,'Result Sheet'!B30:E30)-SUMIF('Result Sheet'!B29:E29,HEM!E19,'Result Sheet'!B31:E31) -> 0
E23: Adults (Dep) | F23: 0
E24: Children (capped at 10) | F24: =IF('Result Sheet'!C63>10,10,'Result Sheet'!C63) -> 0 | J24: =S101 -> 0 | K24: =(S101*52)/12 -> 0
E26: 3
E27: Living Expenses Table - Household 3
E28: Household Members | F28: Household No.s | G28: Couple | H28: Gross Income | I28: =IF('Result Sheet'!D32>0,'Result Sheet'!D32,0) -> 0
E29: Adults (Applicants) | F29: =Calculator!T36 ->  | G29: ='Result Sheet'!D60 -> 0 | H29: ='Result Sheet'!D59-I29+I28 -> 0 | I29: =SUMIF('Result Sheet'!B29:E29,HEM!E26,'Result Sheet'!B30:E30)-SUMIF('Result Sheet'!B29:E29,HEM!E26,'Result Sheet'!B31:E31) -> 0
E30: Adults (Dep) | F30: 0
E31: Children (capped at 10) | F31: =IF('Result Sheet'!D63>10,10,'Result Sheet'!D63) -> 0 | J31: =S134 -> 0 | K31: =(S134*52)/12 -> 0
E33: 4
E34: Living Expenses Table - Household 4
E35: Household Members | F35: Household No.s | G35: Couple | H35: Gross Income | I35: =IF('Result Sheet'!E32>0,'Result Sheet'!E32,0) -> 0
E36: Adults (Applicants) | F36: =Calculator!W36 ->  | G36: ='Result Sheet'!E60 -> 0 | H36: ='Result Sheet'!E59-I36+I35 -> 0 | I36: =SUMIF('Result Sheet'!B29:E29,HEM!E33,'Result Sheet'!B30:E30)-SUMIF('Result Sheet'!B29:E29,HEM!E33,'Result Sheet'!B31:E31) -> 0
E37: Adults (Dep) | F37: 0
E38: Children (capped at 10) | F38: =IF('Result Sheet'!E63>10,10,'Result Sheet'!E63) -> 0 | J38: =S168 -> 0 | K38: =(S168*52)/12 -> 0
B40: *
B42: Insert Table Here: | G42: Total current gross HH income from all sources (measured in current dollars)
D43: 0.01 | E43: 24999.99 | F43: 36999.99 | G43: 48999.99 | H43: 60999.99 | I43: 73999.99 | J43: 97999.99 | K43: 122999.99 | L43: 146999.99 | M43: 171999.99 | N43: 195999.99 | O43: 245999.99 | P43: 306999.99 | Q43: 367999.99 | R43: More Than
D44: to | E44: to | F44: to | G44: to | H44: to | I44: to | J44: to | K44: to | L44: to | M44: to | N44: to | O44: to | P44: to | Q44: to
A45: -99999999 | C45: Australia | D45: 24999.98 | E45: 36999.98 | F45: 48999.98 | G45: 60999.98 | H45: 73999.98 | I45: 97999.98 | J45: 122999.98 | K45: 146999.98 | L45: 171999.98 | M45: 195999.98 | N45: 245999.98 | O45: 306999.98 | P45: 367999.98 | Q45: 613999.98 | R45: 613999.99
C46: Couple | D46: =E46 -> 553 | E46: 553 | F46: 567.6594413 | G46: 588.2479079 | H46: 626.2350868 | I46: 681.1490085 | J46: 756.9810332 | K46: 828.739474 | L46: 915.1865124 | M46: 960.4449562 | N46: 1003.988043 | O46: 1126.151749 | P46: 1243.438472 | Q46: 1287.68008 | R46: 1287.68008
C47: Couple with 1 child | D47: =E47 -> 621.6871719 | E47: =F47*0.95 -> 621.6871719 | F47: 654.4075494 | G47: 675.0683112 | H47: 713.1888889 | I47: 768.2955915 | J47: 844.3939324 | K47: 916.4043118 | L47: 1003.154904 | M47: 1048.57227 | N47: 1092.268274 | O47: 1214.860932 | P47: 1332.5595 | Q47: 1376.95646 | R47: 1376.95646
C48: Couple with 2 children | D48: =E48 -> 690.2347502 | E48: =F48*0.95 -> 690.2347502 | F48: 726.5628949 | G48: 747.1334923 | H48: 785.0877011 | I48: 839.9539249 | J48: 915.7201328 | K48: 987.4163291 | L48: 1073.788265 | M48: 1119.007501 | N48: 1162.512777 | O48: 1284.570399 | P48: 1401.755398 | Q48: 1445.958535 | R48: 1445.958535
C49: Couple with 3 children | D49: =E49 -> 751.0347502 | E49: =F49*0.95 -> 751.0347502 | F49: =F48+64 -> 790.5628949 | G49: 805.7396264 | H49: 844.0071665 | I49: 899.3263256 | J49: 975.7180038 | K49: 1048.006071 | L49: 1135.09103 | M49: 1180.683581 | N49: 1224.548005 | O49: 1347.613246 | P49: 1465.765602 | Q49: 1510.333721 | R49: 1510.333721
C50: Couple cost of additional dependents (capped at 10) | D50: 60 | E50: 60 | F50: 60.25785924 | G50: =G49-G48 -> 58.60613409 | H50: 61.55173485 | I50: 61.69650181 | J50: 61.89561436 | K50: 62.06901426 | L50: 62.29653272 | M50: 62.38252166 | N50: 62.51835553 | O50: 62.83490137 | P50: 63.1510964 | Q50: 63.22745391 | R50: 63.22745391
C52: Single person | D52: 282 | E52: 297.876973 | F52: 312.2425383 | G52: 332.8163882 | H52: 370.7766028 | I52: 425.6515019 | J52: 501.4296898 | K52: 573.1372316 | L52: 659.5228423 | M52: 704.7491733 | N52: 748.2613652 | O52: 870.3383232 | P52: 987.5418334 | Q52: 1031.75196 | R52: 1007.454327
C53: Single parent with 1 child | D53: =E53 -> 398.1915494 | E53: 398.1915494 | F53: 412.5558607 | G53: 433.127984 | H53: 471.0849133 | I53: 525.9551462 | J53: 601.7268306 | K53: 673.4281813 | L53: 759.8064069 | M53: 805.0288985 | N53: 848.5373248 | O53: 970.6038389 | P53: 1087.79725 | Q53: 1132.00366 | R53: 1098.653327
C54: Single parent with 2 children | D54: =E54 -> 510.5315003 | E54: 510.5315003 | F54: 524.9307876 | G54: 545.5529001 | H54: 583.6021579 | I54: 638.6057837 | J54: 714.5617337 | K54: 786.4374427 | L54: 873.0257536 | M54: 918.3581959 | N54: 961.9724412 | O54: 1084.335715 | P54: 1201.814182 | Q54: 1246.128017 | R54: 1221.592668
C55: Single parent with 3 children | D55: =E55 -> 605.4404287 | E55: =F55*0.95 -> 605.4404287 | F55: 637.3057145 | G55: 657.9778162 | H55: 696.1194025 | I55: 751.2564213 | J55: 827.3966368 | K55: 899.4467042 | L55: 986.2451004 | M55: 1031.687493 | N55: 1075.407558 | O55: 1198.067591 | P55: 1315.831114 | Q55: 1360.252374 | R55: 1361.545072
C56: Single cost of additional dependents (capped at 10) | D56: =D55-D54 -> 94.9089284 | E56: =E55-E54 -> 94.9089284 | F56: =F55-F54 -> 112.3749269 | G56: =G55-G54 -> 112.4249161 | H56: 112.5172446 | I56: 112.6506376 | J56: 112.8349031 | K56: 113.0092615 | L56: 113.2193467 | M56: 113.3292973 | N56: 113.4351164 | O56: 113.731876 | P56: 114.0169322 | Q56: 114.1243569 | R56: 139.9524041
A58: Income Unit 1 | B58: Y | C58: 0 | D58: =IF(AND($H$15>$A$45,$H$15<=$D$45),D46,0) -> 553 | E58: =IF(AND($H$15<=E$45,$H$15>E$43),E46,0) -> 0 | F58: 0 | G58: 0 | H58: 0 | I58: 0 | J58: 0 | K58: 0 | L58: 0 | M58: 0 | N58: 0 | O58: 0 | P58: 0 | Q58: 0 | R58: =IF($H$15>R45,R46,0) -> 0 | S58: =IF(AND($G$15=B58,$F$17=C58),SUM(D58:R58),0) -> 0
B59: Y | C59: 1 | D59: =IF(AND($H$15>$A$45,$H$15<=$D$45),D47,0) -> 621.6871719 | E59: =IF(AND($H$15<=E$45,$H$15>E$43),E47,0) -> 0 | F59: 0 | G59: 0 | H59: 0 | I59: 0 | J59: 0 | K59: 0 | L59: 0 | M59: 0 | N59: 0 | O59: 0 | P59: 0 | Q59: 0 | R59: =IF($H$15>R45,R47,0) -> 0 | S59: =IF(AND($G$15=B59,$F$17=C59),SUM(D59:R59),0) -> 0
B60: Y | C60: 2 | D60: =IF(AND($H$15>$A$45,$H$15<=$D$45),D48,0) -> 690.2347502 | E60: =IF(AND($H$15<=E$45,$H$15>E$43),E48,0) -> 0 | F60: 0 | G60: 0 | H60: 0 | I60: 0 | J60: 0 | K60: 0 | L60: 0 | M60: 0 | N60: 0 | O60: 0 | P60: 0 | Q60: 0 | R60: =IF($H$15>R45,R48,0) -> 0 | S60: =IF(AND($G$15=B60,$F$17=C60),SUM(D60:R60),0) -> 0
B61: Y | C61: 3 | D61: =IF(AND($H$15>$A$45,$H$15<=$D$45),D49,0) -> 751.0347502 | E61: =IF(AND($H$15<=E$45,$H$15>E$43),E49,0) -> 0 | F61: 0 | G61: 0 | H61: 0 | I61: 0 | J61: 0 | K61: 0 | L61: 0 | M61: 0 | N61: 0 | O61: 0 | P61: 0 | Q61: 0 | R61: =IF($H$15>R45,R49,0) -> 0 | S61: =IF(AND($G$15=B61,$F$17=C61),SUM(D61:R61),0) -> 0
B62: Y | C62: 4 | D62: =IF(AND($H$15>A45,$H$15<=D43),D61+(($F$17-C61)*D50),0) -> 571.0347502 | E62: =IF(AND($H$15<=E$45,$H$15>E$43),E49+(($F$17-$C61)*E50),0) -> 0 | F62: =IF(AND($H$15<=F$45,$H$15>F$43),F49+(($F$17-$C61)*F50),0) -> 0 | G62: =IF(AND($H$15<=G$45,$H$15>G$43),G49+(($F$17-$C61)*G50),0) -> 0 | H62: =IF(AND($H$15<=H$45,$H$15>H$43),H49+(($F$17-$C61)*H50),0) -> 0 | I62: =IF(AND($H$15<=I$45,$H$15>I$43),I49+(($F$17-$C61)*I50),0) -> 0 | J62: 0 | K62: 0 | L62: 0 | M62: 0 | N62: 0 | O62: 0 | P62: 0 | Q62: 0 | R62: =IF($H$15>R45,R49+(($F$17-$C61)*R50),0) -> 0 | S62: =IF(AND($G$15=B62,$F$17>=C62),SUM(D62:R62),0) -> 0
D63: =IF(AND($H$15>=A45,$H$15<D43),D51,0) -> 0 | E63: =IF(AND($H$15<E45,$H$15>=E43),E51,0) -> 0 | F63: 0 | G63: 0 | H63: 0 | I63: 0 | J63: 0 | K63: 0 | L63: 0 | M63: 0 | N63: 0 | O63: 0 | P63: 0 | Q63: =IF(AND($H$15<=Q45,$H$15>=Q43),Q51,0) -> 0 | R63: =IF($H$15>R45,R51,0) -> 0 | S63: =IF(AND($G$15=B63,$F$17=C63),SUM(D63:R63),0) -> 0
B64: N | C64: 0 | D64: =IF(AND($H$15>$A$45,$H$15<=$D$45),D52,0) -> 282 | E64: =IF(AND($H$15<=E$45,$H$15>E$43),E52,0) -> 0 | F64: 0 | G64: 0 | H64: 0 | I64: 0 | J64: 0 | K64: 0 | L64: 0 | M64: 0 | N64: 0 | O64: 0 | P64: 0 | Q64: 0 | R64: =IF($H$15>R45,R52,0) -> 0 | S64: =IF(AND($G$15=B64,$F$17=C64),SUM(D64:R64),0) -> 0
B65: N | C65: 1 | D65: =IF(AND($H$15>$A$45,$H$15<=$D$45),D53,0) -> 398.1915494 | E65: =IF(AND($H$15<=E$45,$H$15>E$43),E53,0) -> 0 | F65: 0 | G65: 0 | H65: 0 | I65: 0 | J65: 0 | K65: 0 | L65: 0 | M65: 0 | N65: 0 | O65: 0 | P65: 0 | Q65: 0 | R65: =IF($H$15>R45,R53,0) -> 0 | S65: =IF(AND($G$15=B65,$F$17=C65),SUM(D65:R65),0) -> 0
B66: N | C66: 2 | D66: =IF(AND($H$15>$A$45,$H$15<=$D$45),D54,0) -> 510.5315003 | E66: =IF(AND($H$15<=E$45,$H$15>E$43),E54,0) -> 0 | F66: 0 | G66: 0 | H66: 0 | I66: 0 | J66: 0 | K66: 0 | L66: 0 | M66: 0 | N66: 0 | O66: 0 | P66: 0 | Q66: 0 | R66: =IF($H$15>R45,R54,0) -> 0 | S66: =IF(AND($G$15=B66,$F$17=C66),SUM(D66:R66),0) -> 0
B67: N | C67: 3 | D67: =IF(AND($H$15>$A$45,$H$15<=$D$45),D55,0) -> 605.4404287 | E67: =IF(AND($H$15<=E$45,$H$15>E$43),E55,0) -> 0 | F67: 0 | G67: 0 | H67: 0 | I67: 0 | J67: 0 | K67: 0 | L67: 0 | M67: 0 | N67: 0 | O67: 0 | P67: 0 | Q67: 0 | R67: =IF($H$15>R45,R55,0) -> 0 | S67: =IF(AND($G$15=B67,$F$17=C67),SUM(D67:R67),0) -> 0
B68: N | C68: 4 | D68: =IF(AND($H$15>A45,$H$15<=D45),D55+(($F$17-C67)*D56),0) -> 320.7136435 | E68: =IF(AND($H$15<=E$45,$H$15>E$43),E55+(($F$17-$C67)*E56),0) -> 0 | F68: =IF(AND($H$15<=F$45,$H$15>F$43),F55+(($F$17-$C67)*F56),0) -> 0 | G68: =IF(AND($H$15<=G$45,$H$15>G$43),G55+(($F$17-$C67)*G56),0) -> 0 | H68: =IF(AND($H$15<=H$45,$H$15>H$43),H55+(($F$17-$C67)*H56),0) -> 0 | I68: =IF(AND($H$15<=I$45,$H$15>I$43),I55+(($F$17-$C67)*I56),0) -> 0 | J68: 0 | K68: 0 | L68: 0 | M68: 0 | N68: 0 | O68: 0 | P68: 0 | Q68: 0 | R68: =IF($H$15>R45,R55+(($F$17-$C67)*R56),0) -> 0 | S68: =IF(AND($G$15=B68,$F$17>=C68),SUM(D68:R68),0) -> 0
S69: =SUM(S58:S68)+IFERROR($F$16*SUM(D64:R64),0) -> 0
B72: Disclaimer Please note; the HEM values provided within this unprotected version of the NSC are commercial in confidence and for the sole purpose of integrating into your system to service Adelaide Bank customers. They must not be disclosed or distributed.
B74: Insert Table Here: | G74: Total current gross HH income from all sources (measured in current dollars)
D75: 0.01 | E75: 24999.99 | F75: 36999.99 | G75: 48999.99 | H75: 60999.99 | I75: 73999.99 | J75: 97999.99 | K75: 122999.99 | L75: 146999.99 | M75: 171999.99 | N75: 195999.99 | O75: 245999.99 | P75: 306999.99 | Q75: 367999.99 | R75: More Than
D76: to | E76: to | F76: to | G76: to | H76: to | I76: to | J76: to | K76: to | L76: to | M76: to | N76: to | O76: to | P76: to | Q76: to
A77: -99999999 | C77: Australia | D77: 24999.98 | E77: 36999.98 | F77: 48999.98 | G77: 60999.98 | H77: 73999.98 | I77: 97999.98 | J77: 122999.98 | K77: 146999.98 | L77: 171999.98 | M77: 195999.98 | N77: 245999.98 | O77: 306999.98 | P77: 367999.98 | Q77: 613999.98 | R77: 613999.99
C78: Couple | D78: =E78 -> 553 | E78: 553 | F78: 567.6594413 | G78: 588.2479079 | H78: 626.2350868 | I78: 681.1490085 | J78: 756.9810332 | K78: 828.739474 | L78: 915.1865124 | M78: 960.4449562 | N78: 1003.988043 | O78: 1126.151749 | P78: 1243.438472 | Q78: 1287.68008 | R78: 1287.68008
C79: Couple with 1 child | D79: =E79 -> 621.6871719 | E79: =F79*0.95 -> 621.6871719 | F79: 654.4075494 | G79: 675.0683112 | H79: 713.1888889 | I79: 768.2955915 | J79: 844.3939324 | K79: 916.4043118 | L79: 1003.154904 | M79: 1048.57227 | N79: 1092.268274 | O79: 1214.860932 | P79: 1332.5595 | Q79: 1376.95646 | R79: 1376.95646
C80: Couple with 2 children | D80: =E80 -> 690.2347502 | E80: =F80*0.95 -> 690.2347502 | F80: 726.5628949 | G80: 747.1334923 | H80: 785.0877011 | I80: 839.9539249 | J80: 915.7201328 | K80: 987.4163291 | L80: 1073.788265 | M80: 1119.007501 | N80: 1162.512777 | O80: 1284.570399 | P80: 1401.755398 | Q80: 1445.958535 | R80: 1445.958535
C81: Couple with 3 children | D81: =E81 -> 751.0347502 | E81: =F81*0.95 -> 751.0347502 | F81: =F80+64 -> 790.5628949 | G81: 805.7396264 | H81: 844.0071665 | I81: 899.3263256 | J81: 975.7180038 | K81: 1048.006071 | L81: 1135.09103 | M81: 1180.683581 | N81: 1224.548005 | O81: 1347.613246 | P81: 1465.765602 | Q81: 1510.333721 | R81: 1510.333721
C82: Couple cost of additional dependents (capped at 10) | D82: 60 | E82: 60 | F82: 60.25785924 | G82: =G81-G80 -> 58.60613409 | H82: 61.55173485 | I82: 61.69650181 | J82: 61.89561436 | K82: 62.06901426 | L82: 62.29653272 | M82: 62.38252166 | N82: 62.51835553 | O82: 62.83490137 | P82: 63.1510964 | Q82: 63.22745391 | R82: 63.22745391
C84: Single person | D84: 282 | E84: 297.876973 | F84: 312.2425383 | G84: 332.8163882 | H84: 370.7766028 | I84: 425.6515019 | J84: 501.4296898 | K84: 573.1372316 | L84: 659.5228423 | M84: 704.7491733 | N84: 748.2613652 | O84: 870.3383232 | P84: 987.5418334 | Q84: 1031.75196 | R84: 1007.454327
C85: Single parent with 1 child | D85: =E85 -> 398.1915494 | E85: 398.1915494 | F85: 412.5558607 | G85: 433.127984 | H85: 471.0849133 | I85: 525.9551462 | J85: 601.7268306 | K85: 673.4281813 | L85: 759.8064069 | M85: 805.0288985 | N85: 848.5373248 | O85: 970.6038389 | P85: 1087.79725 | Q85: 1132.00366 | R85: 1098.653327
C86: Single parent with 2 children | D86: =E86 -> 510.5315003 | E86: 510.5315003 | F86: 524.9307876 | G86: 545.5529001 | H86: 583.6021579 | I86: 638.6057837 | J86: 714.5617337 | K86: 786.4374427 | L86: 873.0257536 | M86: 918.3581959 | N86: 961.9724412 | O86: 1084.335715 | P86: 1201.814182 | Q86: 1246.128017 | R86: 1221.592668
C87: Single parent with 3 children | D87: =E87 -> 605.4404287 | E87: =F87*0.95 -> 605.4404287 | F87: 637.3057145 | G87: 657.9778162 | H87: 696.1194025 | I87: 751.2564213 | J87: 827.3966368 | K87: 899.4467042 | L87: 986.2451004 | M87: 1031.687493 | N87: 1075.407558 | O87: 1198.067591 | P87: 1315.831114 | Q87: 1360.252374 | R87: 1361.545072
C88: Single cost of additional dependents (capped at 10) | D88: =D87-D86 -> 94.9089284 | E88: =E87-E86 -> 94.9089284 | F88: =F87-F86 -> 112.3749269 | G88: =G87-G86 -> 112.4249161 | H88: 112.5172446 | I88: 112.6506376 | J88: 112.8349031 | K88: 113.0092615 | L88: 113.2193467 | M88: 113.3292973 | N88: 113.4351164 | O88: 113.731876 | P88: 114.0169322 | Q88: 114.1243569 | R88: 139.9524041
A90: Income Unit 1 | B90: Y | C90: 0 | D90: =IF(AND($H$22>$A$77,$H$22<=$D$77),D78,0) -> 553 | E90: =IF(AND($H$22<=E$77,$H$22>E$75),E78,0) -> 0 | F90: 0 | G90: 0 | H90: 0 | I90: 0 | J90: 0 | K90: 0 | L90: 0 | M90: 0 | N90: 0 | O90: 0 | P90: 0 | Q90: 0 | R90: =IF($H$22>R77,R78,0) -> 0 | S90: =IF(AND($G$22=B90,$F$24=C90),SUM(D90:R90),0) -> 0
B91: Y | C91: 1 | D91: =IF(AND($H$22>$A$77,$H$22<=$D$77),D79,0) -> 621.6871719 | E91: =IF(AND($H$22<=E$77,$H$22>E$75),E79,0) -> 0 | F91: 0 | G91: 0 | H91: 0 | I91: 0 | J91: 0 | K91: 0 | L91: 0 | M91: 0 | N91: 0 | O91: 0 | P91: 0 | Q91: 0 | R91: =IF($H$22>R77,R79,0) -> 0 | S91: =IF(AND($G$22=B91,$F$24=C91),SUM(D91:R91),0) -> 0
B92: Y | C92: 2 | D92: =IF(AND($H$22>$A$77,$H$22<=$D$77),D80,0) -> 690.2347502 | E92: =IF(AND($H$22<=E$77,$H$22>E$75),E80,0) -> 0 | F92: 0 | G92: 0 | H92: 0 | I92: 0 | J92: 0 | K92: 0 | L92: 0 | M92: 0 | N92: 0 | O92: 0 | P92: 0 | Q92: 0 | R92: =IF($H$22>R77,R80,0) -> 0 | S92: =IF(AND($G$22=B92,$F$24=C92),SUM(D92:R92),0) -> 0
B93: Y | C93: 3 | D93: =IF(AND($H$22>$A$77,$H$22<=$D$75),D81,0) -> 751.0347502 | E93: =IF(AND($H$22<=E$77,$H$22>E$75),E81,0) -> 0 | F93: 0 | G93: 0 | H93: 0 | I93: 0 | J93: 0 | K93: 0 | L93: 0 | M93: 0 | N93: 0 | O93: 0 | P93: 0 | Q93: 0 | R93: =IF($H$22>R77,R81,0) -> 0 | S93: =IF(AND($G$22=B93,$F$24=C93),SUM(D93:R93),0) -> 0
B94: Y | C94: 4 | D94: =IF(AND($H$22>A77,$H$22<=D77),D93+(($F$24-C93)*D82),0) -> 571.0347502 | E94: =IF(AND($H$22<=E$77,$H$22>E$75),E81+(($F$24-$C93)*E82),0) -> 0 | F94: =IF(AND($H$22<=F$77,$H$22>F$75),F81+(($F$24-$C93)*F82),0) -> 0 | G94: =IF(AND($H$22<=G$77,$H$22>G$75),G81+(($F$24-$C93)*G82),0) -> 0 | H94: =IF(AND($H$22<=H$77,$H$22>H$75),H81+(($F$24-$C93)*H82),0) -> 0 | I94: =IF(AND($H$22<=I$77,$H$22>I$75),I81+(($F$24-$C93)*I82),0) -> 0 | J94: 0 | K94: 0 | L94: 0 | M94: 0 | N94: 0 | O94: 0 | P94: 0 | Q94: 0 | R94: =IF($H$22>R77,R81+(($F$24-$C93)*R82),0) -> 0 | S94: =IF(AND($G$22=B94,$F$24>=C94),SUM(D94:R94),0) -> 0
D95: =IF(AND($H$22>=A77,$H$22<D75),D83,0) -> 0 | E95: =IF(AND($H$22<E77,$H$22>=E75),E83,0) -> 0 | F95: 0 | G95: 0 | H95: 0 | I95: 0 | J95: 0 | K95: 0 | L95: 0 | M95: 0 | N95: 0 | O95: 0 | P95: 0 | Q95: =IF(AND($H$22<=Q77,$H$22>=Q75),Q83,0) -> 0 | R95: =IF($H$22>R77,R83,0) -> 0 | S95: =IF(AND($G$22=B95,$F$24=C95),SUM(D95:R95),0) -> 0
B96: N | C96: 0 | D96: =IF(AND($H$22>$A$77,$H$22<=$D$77),D84,0) -> 282 | E96: =IF(AND($H$22<=E$77,$H$22>E$75),E84,0) -> 0 | F96: 0 | G96: 0 | H96: 0 | I96: 0 | J96: 0 | K96: 0 | L96: 0 | M96: 0 | N96: 0 | O96: 0 | P96: 0 | Q96: 0 | R96: =IF($H$22>R77,R84,0) -> 0 | S96: =IF(AND($G$22=B96,$F$24=C96),SUM(D96:R96),0) -> 0
B97: N | C97: 1 | D97: =IF(AND($H$22>$A$77,$H$22<=$D$77),D85,0) -> 398.1915494 | E97: =IF(AND($H$22<=E$77,$H$22>E$75),E85,0) -> 0 | F97: 0 | G97: 0 | H97: 0 | I97: 0 | J97: 0 | K97: 0 | L97: 0 | M97: 0 | N97: 0 | O97: 0 | P97: 0 | Q97: 0 | R97: =IF($H$22>R77,R85,0) -> 0 | S97: =IF(AND($G$22=B97,$F$24=C97),SUM(D97:R97),0) -> 0
B98: N | C98: 2 | D98: =IF(AND($H$22>$A$77,$H$22<=$D$77),D86,0) -> 510.5315003 | E98: =IF(AND($H$22<=E$77,$H$22>E$75),E86,0) -> 0 | F98: 0 | G98: 0 | H98: 0 | I98: 0 | J98: 0 | K98: 0 | L98: 0 | M98: 0 | N98: 0 | O98: 0 | P98: 0 | Q98: 0 | R98: =IF($H$22>R77,R86,0) -> 0 | S98: =IF(AND($G$22=B98,$F$24=C98),SUM(D98:R98),0) -> 0
B99: N | C99: 3 | D99: =IF(AND($H$22>$A$77,$H$22<=$D$77),D87,0) -> 605.4404287 | E99: =IF(AND($H$22<=E$77,$H$22>E$75),E87,0) -> 0 | F99: 0 | G99: 0 | H99: 0 | I99: 0 | J99: 0 | K99: 0 | L99: 0 | M99: 0 | N99: 0 | O99: 0 | P99: 0 | Q99: 0 | R99: =IF($H$22>R77,R87,0) -> 0 | S99: =IF(AND($G$22=B99,$F$24=C99),SUM(D99:R99),0) -> 0
B100: N | C100: 4 | D100: =IF(AND($H$22>A77,$H$22<=D77),D87+(($F$24-C$130)*D88),0) -> 320.7136435 | E100: =IF(AND($H$22<=E$77,$H$22>E$75),E87+(($F$24-$C99)*E88),0) -> 0 | F100: =IF(AND($H$22<=F$77,$H$22>F$75),F87+(($F$24-$C99)*F88),0) -> 0 | G100: =IF(AND($H$22<=G$77,$H$22>G$75),G87+(($F$24-$C99)*G88),0) -> 0 | H100: =IF(AND($H$22<=H$77,$H$22>H$75),H87+(($F$24-$C99)*H88),0) -> 0 | I100: =IF(AND($H$22<=I$77,$H$22>I$75),I87+(($F$24-$C99)*I88),0) -> 0 | J100: 0 | K100: 0 | L100: 0 | M100: 0 | N100: 0 | O100: 0 | P100: 0 | Q100: 0 | R100: =IF($H$22>R77,R87+(($F$24-$C99)*R88),0) -> 0 | S100: =IF(AND($G$22=B100,$F$24>=C100),SUM(D100:R100),0) -> 0
S101: =SUM(S90:S100)+IFERROR($F$23*SUM(D96:R96),0) -> 0
B103: Disclaimer Please note; the HEM values provided within this unprotected version of the NSC are commercial in confidence and for the sole purpose of integrating into your system to service Adelaide Bank customers. They must not be disclosed or distributed.
B105: Insert Table Here: | G105: Total current gross HH income from all sources (measured in current dollars)
D106: 0.01 | E106: 24999.99 | F106: 36999.99 | G106: 48999.99 | H106: 60999.99 | I106: 73999.99 | J106: 97999.99 | K106: 122999.99 | L106: 146999.99 | M106: 171999.99 | N106: 195999.99 | O106: 245999.99 | P106: 306999.99 | Q106: 367999.99 | R106: More Than
D107: to | E107: to | F107: to | G107: to | H107: to | I107: to | J107: to | K107: to | L107: to | M107: to | N107: to | O107: to | P107: to | Q107: to
A108: -99999999 | C108: Australia | D108: 24999.98 | E108: 36999.98 | F108: 48999.98 | G108: 60999.98 | H108: 73999.98 | I108: 97999.98 | J108: 122999.98 | K108: 146999.98 | L108: 171999.98 | M108: 195999.98 | N108: 245999.98 | O108: 306999.98 | P108: 367999.98 | Q108: 613999.98 | R108: 613999.99
C109: Couple | D109: =E109 -> 553 | E109: 553 | F109: 567.6594413 | G109: 588.2479079 | H109: 626.2350868 | I109: 681.1490085 | J109: 756.9810332 | K109: 828.739474 | L109: 915.1865124 | M109: 960.4449562 | N109: 1003.988043 | O109: 1126.151749 | P109: 1243.438472 | Q109: 1287.68008 | R109: 1287.68008
C110: Couple with 1 child | D110: =E110 -> 621.6871719 | E110: =F110*0.95 -> 621.6871719 | F110: 654.4075494 | G110: 675.0683112 | H110: 713.1888889 | I110: 768.2955915 | J110: 844.3939324 | K110: 916.4043118 | L110: 1003.154904 | M110: 1048.57227 | N110: 1092.268274 | O110: 1214.860932 | P110: 1332.5595 | Q110: 1376.95646 | R110: 1376.95646
C111: Couple with 2 children | D111: =E111 -> 690.2347502 | E111: =F111*0.95 -> 690.2347502 | F111: 726.5628949 | G111: 747.1334923 | H111: 785.0877011 | I111: 839.9539249 | J111: 915.7201328 | K111: 987.4163291 | L111: 1073.788265 | M111: 1119.007501 | N111: 1162.512777 | O111: 1284.570399 | P111: 1401.755398 | Q111: 1445.958535 | R111: 1445.958535
C112: Couple with 3 children | D112: =E112 -> 751.0347502 | E112: =F112*0.95 -> 751.0347502 | F112: =F111+64 -> 790.5628949 | G112: 805.7396264 | H112: 844.0071665 | I112: 899.3263256 | J112: 975.7180038 | K112: 1048.006071 | L112: 1135.09103 | M112: 1180.683581 | N112: 1224.548005 | O112: 1347.613246 | P112: 1465.765602 | Q112: 1510.333721 | R112: 1510.333721
C113: Couple cost of additional dependents (capped at 10) | D113: 60 | E113: 60 | F113: 60.25785924 | G113: =G112-G111 -> 58.60613409 | H113: 61.55173485 | I113: 61.69650181 | J113: 61.89561436 | K113: 62.06901426 | L113: 62.29653272 | M113: 62.38252166 | N113: 62.51835553 | O113: 62.83490137 | P113: 63.1510964 | Q113: 63.22745391 | R113: 63.22745391
C115: Single person | D115: 282 | E115: 297.876973 | F115: 312.2425383 | G115: 332.8163882 | H115: 370.7766028 | I115: 425.6515019 | J115: 501.4296898 | K115: 573.1372316 | L115: 659.5228423 | M115: 704.7491733 | N115: 748.2613652 | O115: 870.3383232 | P115: 987.5418334 | Q115: 1031.75196 | R115: 1007.454327
C116: Single parent with 1 child | D116: =E116 -> 398.1915494 | E116: 398.1915494 | F116: 412.5558607 | G116: 433.127984 | H116: 471.0849133 | I116: 525.9551462 | J116: 601.7268306 | K116: 673.4281813 | L116: 759.8064069 | M116: 805.0288985 | N116: 848.5373248 | O116: 970.6038389 | P116: 1087.79725 | Q116: 1132.00366 | R116: 1098.653327
C117: Single parent with 2 children | D117: =E117 -> 510.5315003 | E117: 510.5315003 | F117: 524.9307876 | G117: 545.5529001 | H117: 583.6021579 | I117: 638.6057837 | J117: 714.5617337 | K117: 786.4374427 | L117: 873.0257536 | M117: 918.3581959 | N117: 961.9724412 | O117: 1084.335715 | P117: 1201.814182 | Q117: 1246.128017 | R117: 1221.592668
C118: Single parent with 3 children | D118: =E118 -> 605.4404287 | E118: =F118*0.95 -> 605.4404287 | F118: 637.3057145 | G118: 657.9778162 | H118: 696.1194025 | I118: 751.2564213 | J118: 827.3966368 | K118: 899.4467042 | L118: 986.2451004 | M118: 1031.687493 | N118: 1075.407558 | O118: 1198.067591 | P118: 1315.831114 | Q118: 1360.252374 | R118: 1361.545072
C119: Single cost of additional dependents (capped at 10) | D119: =D118-D117 -> 94.9089284 | E119: =E118-E117 -> 94.9089284 | F119: =F118-F117 -> 112.3749269 | G119: =G118-G117 -> 112.4249161 | H119: 112.5172446 | I119: 112.6506376 | J119: 112.8349031 | K119: 113.0092615 | L119: 113.2193467 | M119: 113.3292973 | N119: 113.4351164 | O119: 113.731876 | P119: 114.0169322 | Q119: 114.1243569 | R119: 139.9524041
A121: Income Unit 1 | B121: Y | C121: 0 | D121: =IF(AND($H$29>A$108,$H$29<=D$108),D109,0) -> 553 | E121: =IF(AND($H$29<=E$108,$H$29>E$106),E109,0) -> 0 | F121: 0 | G121: 0 | H121: 0 | I121: 0 | J121: 0 | K121: 0 | L121: 0 | M121: 0 | N121: 0 | O121: 0 | P121: 0 | Q121: 0 | R121: =IF($H$29>R108,R109,0) -> 0 | S121: =IF(AND($G$29=B121,$F$31=C121),SUM(D121:R121),0) -> 0
B122: Y | C122: 1 | D122: =IF(AND($H$29>A$108,$H$29<=D$108),D110,0) -> 621.6871719 | E122: =IF(AND($H$29<=E$108,$H$29>E$106),E110,0) -> 0 | F122: 0 | G122: 0 | H122: 0 | I122: 0 | J122: 0 | K122: 0 | L122: 0 | M122: 0 | N122: 0 | O122: 0 | P122: 0 | Q122: 0 | R122: =IF($H$29>R108,R110,0) -> 0 | S122: =IF(AND($G$29=B122,$F$31=C122),SUM(D122:R122),0) -> 0
B123: Y | C123: 2 | D123: =IF(AND($H$29>A$108,$H$29<=D$108),D111,0) -> 690.2347502 | E123: =IF(AND($H$29<=E$108,$H$29>E$106),E111,0) -> 0 | F123: 0 | G123: 0 | H123: 0 | I123: 0 | J123: 0 | K123: 0 | L123: 0 | M123: 0 | N123: 0 | O123: 0 | P123: 0 | Q123: 0 | R123: =IF($H$29>R108,R111,0) -> 0 | S123: =IF(AND($G$29=B123,$F$31=C123),SUM(D123:R123),0) -> 0
B124: Y | C124: 3 | D124: =IF(AND($H$29>A$108,$H$29<=D$108),D112,0) -> 751.0347502 | E124: =IF(AND($H$29<=E$108,$H$29>E$106),E112,0) -> 0 | F124: 0 | G124: 0 | H124: 0 | I124: 0 | J124: 0 | K124: 0 | L124: 0 | M124: 0 | N124: 0 | O124: 0 | P124: 0 | Q124: 0 | R124: =IF($H$29>R108,R112,0) -> 0 | S124: =IF(AND($G$29=B124,$F$31=C124),SUM(D124:R124),0) -> 0
B125: Y | C125: 4 | D125: =IF(AND($H$29>A$108,$H$29<=D$108),D124+(($F$31-C124)*D113),0) -> 571.0347502 | E125: =IF(AND($H$29<=E$108,$H$29>E$106),E112+(($F$31-$C124)*E113),0) -> 0 | F125: =IF(AND($H$29<=F$108,$H$29>F$106),F112+(($F$31-$C124)*F113),0) -> 0 | G125: =IF(AND($H$29<=G$108,$H$29>G$106),G112+(($F$31-$C124)*G113),0) -> 0 | H125: =IF(AND($H$29<=H$108,$H$29>H$106),H112+(($F$31-$C124)*H113),0) -> 0 | I125: =IF(AND($H$29<=I$108,$H$29>I$106),I112+(($F$31-$C124)*I113),0) -> 0 | J125: 0 | K125: 0 | L125: 0 | M125: 0 | N125: 0 | O125: 0 | P125: 0 | Q125: 0 | R125: =IF($H$29>R108,R112+(($F$31-$C124)*R113),0) -> 0 | S125: =IF(AND($G$29=B125,$F$31>=C125),SUM(D125:R125),0) -> 0
D126: =IF(AND($H$29>=A108,$H$29<D106),D114,0) -> 0 | E126: =IF(AND($H$29<E108,$H$29>=E106),E114,0) -> 0 | F126: 0 | G126: 0 | H126: 0 | I126: 0 | J126: 0 | K126: 0 | L126: 0 | M126: 0 | N126: 0 | O126: 0 | P126: 0 | Q126: =IF(AND($H$29<=Q108,$H$29>=Q106),Q114,0) -> 0 | R126: =IF($H$29>R108,R114,0) -> 0 | S126: =IF(AND($G$29=B126,$F$31=C126),SUM(D126:R126),0) -> 0
B127: N | C127: 0 | D127: =IF(AND($H$29>A$108,$H$29<=D$108),D115,0) -> 282 | E127: =IF(AND($H$29<=E$108,$H$29>E$106),E115,0) -> 0 | F127: 0 | G127: 0 | H127: 0 | I127: 0 | J127: 0 | K127: 0 | L127: 0 | M127: 0 | N127: 0 | O127: 0 | P127: 0 | Q127: 0 | R127: =IF($H$29>R108,R115,0) -> 0 | S127: =IF(AND($G$29=B127,$F$31=C127),SUM(D127:R127),0) -> 0
B128: N | C128: 1 | D128: =IF(AND($H$29>A$108,$H$29<=D$108),D116,0) -> 398.1915494 | E128: =IF(AND($H$29<=E$108,$H$29>E$106),E116,0) -> 0 | F128: 0 | G128: 0 | H128: 0 | I128: 0 | J128: 0 | K128: 0 | L128: 0 | M128: 0 | N128: 0 | O128: 0 | P128: 0 | Q128: 0 | R128: =IF($H$29>R108,R116,0) -> 0 | S128: =IF(AND($G$29=B128,$F$31=C128),SUM(D128:R128),0) -> 0
B129: N | C129: 2 | D129: =IF(AND($H$29>A$108,$H$29<=D$108),D117,0) -> 510.5315003 | E129: =IF(AND($H$29<=E$108,$H$29>E$106),E117,0) -> 0 | F129: 0 | G129: 0 | H129: 0 | I129: 0 | J129: 0 | K129: 0 | L129: 0 | M129: 0 | N129: 0 | O129: 0 | P129: 0 | Q129: 0 | R129: =IF($H$29>R108,R117,0) -> 0 | S129: =IF(AND($G$29=B129,$F$31=C129),SUM(D129:R129),0) -> 0
B130: N | C130: 3 | D130: =IF(AND($H$29>A$108,$H$29<=D$108),D118,0) -> 605.4404287 | E130: =IF(AND($H$29<=E$108,$H$29>E$106),E118,0) -> 0 | F130: 0 | G130: 0 | H130: 0 | I130: 0 | J130: 0 | K130: 0 | L130: 0 | M130: 0 | N130: 0 | O130: 0 | P130: 0 | Q130: 0 | R130: =IF($H$29>R108,R118,0) -> 0 | S130: =IF(AND($G$29=B130,$F$31=C130),SUM(D130:R130),0) -> 0
B131: N | C131: 4 | D131: =IF(AND($H$29>A$108,$H$29<=D$108),D130+(($F$31-C130)*D119),0) -> 320.7136435 | E131: =IF(AND($H$29<=E$108,$H$29>E$106),E118+(($F$31-$C130)*E119),0) -> 0 | F131: =IF(AND($H$29<=F$108,$H$29>F$106),F118+(($F$31-$C130)*F119),0) -> 0 | G131: =IF(AND($H$29<=G$108,$H$29>G$106),G118+(($F$31-$C130)*G119),0) -> 0 | H131: =IF(AND($H$29<=H$108,$H$29>H$106),H118+(($F$31-$C130)*H119),0) -> 0 | I131: =IF(AND($H$29<=I$108,$H$29>I$106),I118+(($F$31-$C130)*I119),0) -> 0 | J131: 0 | K131: 0 | L131: 0 | M131: 0 | N131: 0 | O131: 0 | P131: 0 | Q131: 0 | R131: =IF($H$29>R108,R118+(($F$31-$C130)*R119),0) -> 0 | S131: =IF(AND($G$29=B131,$F$31>=C131),SUM(D131:R131),0) -> 0
S134: =SUM(S121:S131)+IFERROR($F$30*SUM(D127:R127),0) -> 0
B137: Disclaimer Please note; the HEM values provided within this unprotected version of the NSC are commercial in confidence and for the sole purpose of integrating into your system to service Adelaide Bank customers. They must not be disclosed or distributed.
B139: Insert Table Here: | G139: Total current gross HH income from all sources (measured in current dollars)
D140: 0.01 | E140: 24999.99 | F140: 36999.99 | G140: 48999.99 | H140: 60999.99 | I140: 73999.99 | J140: 97999.99 | K140: 122999.99 | L140: 146999.99 | M140: 171999.99 | N140: 195999.99 | O140: 245999.99 | P140: 306999.99 | Q140: 367999.99 | R140: More Than
D141: to | E141: to | F141: to | G141: to | H141: to | I141: to | J141: to | K141: to | L141: to | M141: to | N141: to | O141: to | P141: to | Q141: to
A142: -99999999 | C142: Australia | D142: 24999.98 | E142: 36999.98 | F142: 48999.98 | G142: 60999.98 | H142: 73999.98 | I142: 97999.98 | J142: 122999.98 | K142: 146999.98 | L142: 171999.98 | M142: 195999.98 | N142: 245999.98 | O142: 306999.98 | P142: 367999.98 | Q142: 613999.98 | R142: 613999.99
C143: Couple | D143: =E143 -> 553 | E143: 553 | F143: 567.6594413 | G143: 588.2479079 | H143: 626.2350868 | I143: 681.1490085 | J143: 756.9810332 | K143: 828.739474 | L143: 915.1865124 | M143: 960.4449562 | N143: 1003.988043 | O143: 1126.151749 | P143: 1243.438472 | Q143: 1287.68008 | R143: 1287.68008
C144: Couple with 1 child | D144: =E144 -> 621.6871719 | E144: =F144*0.95 -> 621.6871719 | F144: 654.4075494 | G144: 675.0683112 | H144: 713.1888889 | I144: 768.2955915 | J144: 844.3939324 | K144: 916.4043118 | L144: 1003.154904 | M144: 1048.57227 | N144: 1092.268274 | O144: 1214.860932 | P144: 1332.5595 | Q144: 1376.95646 | R144: 1376.95646
C145: Couple with 2 children | D145: =E145 -> 690.2347502 | E145: =F145*0.95 -> 690.2347502 | F145: 726.5628949 | G145: 747.1334923 | H145: 785.0877011 | I145: 839.9539249 | J145: 915.7201328 | K145: 987.4163291 | L145: 1073.788265 | M145: 1119.007501 | N145: 1162.512777 | O145: 1284.570399 | P145: 1401.755398 | Q145: 1445.958535 | R145: 1445.958535
C146: Couple with 3 children | D146: =E146 -> 751.0347502 | E146: =F146*0.95 -> 751.0347502 | F146: =F145+64 -> 790.5628949 | G146: 805.7396264 | H146: 844.0071665 | I146: 899.3263256 | J146: 975.7180038 | K146: 1048.006071 | L146: 1135.09103 | M146: 1180.683581 | N146: 1224.548005 | O146: 1347.613246 | P146: 1465.765602 | Q146: 1510.333721 | R146: 1510.333721
C147: Couple cost of additional dependents (capped at 10) | D147: 60 | E147: 60 | F147: 60.25785924 | G147: =G146-G145 -> 58.60613409 | H147: 61.55173485 | I147: 61.69650181 | J147: 61.89561436 | K147: 62.06901426 | L147: 62.29653272 | M147: 62.38252166 | N147: 62.51835553 | O147: 62.83490137 | P147: 63.1510964 | Q147: 63.22745391 | R147: 63.22745391
C149: Single person | D149: 282 | E149: 297.876973 | F149: 312.2425383 | G149: 332.8163882 | H149: 370.7766028 | I149: 425.6515019 | J149: 501.4296898 | K149: 573.1372316 | L149: 659.5228423 | M149: 704.7491733 | N149: 748.2613652 | O149: 870.3383232 | P149: 987.5418334 | Q149: 1031.75196 | R149: 1007.454327
C150: Single parent with 1 child | D150: =E150 -> 398.1915494 | E150: 398.1915494 | F150: 412.5558607 | G150: 433.127984 | H150: 471.0849133 | I150: 525.9551462 | J150: 601.7268306 | K150: 673.4281813 | L150: 759.8064069 | M150: 805.0288985 | N150: 848.5373248 | O150: 970.6038389 | P150: 1087.79725 | Q150: 1132.00366 | R150: 1098.653327
C151: Single parent with 2 children | D151: =E151 -> 510.5315003 | E151: 510.5315003 | F151: 524.9307876 | G151: 545.5529001 | H151: 583.6021579 | I151: 638.6057837 | J151: 714.5617337 | K151: 786.4374427 | L151: 873.0257536 | M151: 918.3581959 | N151: 961.9724412 | O151: 1084.335715 | P151: 1201.814182 | Q151: 1246.128017 | R151: 1221.592668
C152: Single parent with 3 children | D152: =E152 -> 605.4404287 | E152: =F152*0.95 -> 605.4404287 | F152: 637.3057145 | G152: 657.9778162 | H152: 696.1194025 | I152: 751.2564213 | J152: 827.3966368 | K152: 899.4467042 | L152: 986.2451004 | M152: 1031.687493 | N152: 1075.407558 | O152: 1198.067591 | P152: 1315.831114 | Q152: 1360.252374 | R152: 1361.545072
C153: Single cost of additional dependents (capped at 10) | D153: =D152-D151 -> 94.9089284 | E153: =E152-E151 -> 94.9089284 | F153: =F152-F151 -> 112.3749269 | G153: =G152-G151 -> 112.4249161 | H153: 112.5172446 | I153: 112.6506376 | J153: 112.8349031 | K153: 113.0092615 | L153: 113.2193467 | M153: 113.3292973 | N153: 113.4351164 | O153: 113.731876 | P153: 114.0169322 | Q153: 114.1243569 | R153: 139.9524041
A155: Income Unit 1 | B155: Y | C155: 0 | D155: =IF(AND($H$36>A$142,$H$36<=D$142),D143,0) -> 553 | E155: =IF(AND($H$36<=E$142,$H$36>E$140),E143,0) -> 0 | F155: 0 | G155: 0 | H155: 0 | I155: 0 | J155: 0 | K155: 0 | L155: 0 | M155: 0 | N155: 0 | O155: 0 | P155: 0 | Q155: 0 | R155: =IF($H$36>R142,R143,0) -> 0 | S155: =IF(AND($G$36=B155,$F$38=C155),SUM(D155:R155),0) -> 0
B156: Y | C156: 1 | D156: =IF(AND($H$36>A$142,$H$36<=D$142),D144,0) -> 621.6871719 | E156: =IF(AND($H$36<=E$142,$H$36>E$140),E144,0) -> 0 | F156: 0 | G156: 0 | H156: 0 | I156: 0 | J156: 0 | K156: 0 | L156: 0 | M156: 0 | N156: 0 | O156: 0 | P156: 0 | Q156: 0 | R156: =IF($H$36>R142,R144,0) -> 0 | S156: =IF(AND($G$36=B156,$F$38=C156),SUM(D156:R156),0) -> 0
B157: Y | C157: 2 | D157: =IF(AND($H$36>A$142,$H$36<=D$142),D145,0) -> 690.2347502 | E157: =IF(AND($H$36<=E$142,$H$36>E$140),E145,0) -> 0 | F157: 0 | G157: 0 | H157: 0 | I157: 0 | J157: 0 | K157: 0 | L157: 0 | M157: 0 | N157: 0 | O157: 0 | P157: 0 | Q157: 0 | R157: =IF($H$36>R142,R145,0) -> 0 | S157: =IF(AND($G$36=B157,$F$38=C157),SUM(D157:R157),0) -> 0
B158: Y | C158: 3 | D158: =IF(AND($H$29>A$142,$H$29<=D$140),D146,0) -> 751.0347502 | E158: =IF(AND($H$36<=E$142,$H$36>E$140),E146,0) -> 0 | F158: 0 | G158: 0 | H158: 0 | I158: 0 | J158: 0 | K158: 0 | L158: 0 | M158: 0 | N158: 0 | O158: 0 | P158: 0 | Q158: 0 | R158: =IF($H$36>R142,R146,0) -> 0 | S158: =IF(AND($G$36=B158,$F$38=C158),SUM(D158:R158),0) -> 0
B159: Y | C159: 4 | D159: =IF(AND($H$36>A$142,$H$36<=D$142),D158+(($F$38-C158)*D147),0) -> 571.0347502 | E159: =IF(AND($H$36<=E$142,$H$36>E$140),E146+(($F$38-$C158)*E147),0) -> 0 | F159: 0 | G159: 0 | H159: 0 | I159: 0 | J159: 0 | K159: 0 | L159: 0 | M159: 0 | N159: 0 | O159: 0 | P159: 0 | Q159: 0 | R159: =IF($H$36>R142,R146+(($F$38-$C158)*R147),0) -> 0 | S159: =IF(AND($G$36=B159,$F$38>=C159),SUM(D159:R159),0) -> 0
D160: =IF(AND($H$36>=A142,$H$36<D140),D148,0) -> 0 | E160: =IF(AND($H$36<E142,$H$36>=E140),E148,0) -> 0 | F160: 0 | G160: 0 | H160: 0 | I160: 0 | J160: 0 | K160: 0 | L160: 0 | M160: 0 | N160: 0 | O160: 0 | P160: 0 | Q160: =IF(AND($H$36<=Q142,$H$36>=Q140),Q148,0) -> 0 | R160: =IF($H$36>R142,R148,0) -> 0 | S160: =IF(AND($G$36=B160,$F$38=C160),SUM(D160:R160),0) -> 0
B161: N | C161: 0 | D161: =IF(AND($H$36>A$142,$H$36<=D$142),D149,0) -> 282 | E161: =IF(AND($H$36<=E$142,$H$36>E$140),E149,0) -> 0 | F161: 0 | G161: 0 | H161: 0 | I161: 0 | J161: 0 | K161: 0 | L161: 0 | M161: 0 | N161: 0 | O161: 0 | P161: 0 | Q161: 0 | R161: =IF($H$36>R142,R149,0) -> 0 | S161: =IF(AND($G$36=B161,$F$38=C161),SUM(D161:R161),0) -> 0
B162: N | C162: 1 | D162: =IF(AND($H$36>A$142,$H$36<=D$142),D150,0) -> 398.1915494 | E162: =IF(AND($H$36<=E$142,$H$36>E$140),E150,0) -> 0 | F162: 0 | G162: 0 | H162: 0 | I162: 0 | J162: 0 | K162: 0 | L162: 0 | M162: 0 | N162: 0 | O162: 0 | P162: 0 | Q162: 0 | R162: =IF($H$36>R142,R150,0) -> 0 | S162: =IF(AND($G$36=B162,$F$38=C162),SUM(D162:R162),0) -> 0
B163: N | C163: 2 | D163: =IF(AND($H$36>A$142,$H$29<=D$142),D151,0) -> 510.5315003 | E163: =IF(AND($H$36<=E$142,$H$36>E$140),E151,0) -> 0 | F163: 0 | G163: 0 | H163: 0 | I163: 0 | J163: 0 | K163: 0 | L163: 0 | M163: 0 | N163: 0 | O163: 0 | P163: 0 | Q163: 0 | R163: =IF($H$36>R142,R151,0) -> 0 | S163: =IF(AND($G$36=B163,$F$38=C163),SUM(D163:R163),0) -> 0
B164: N | C164: 3 | D164: =IF(AND($H$36>A$142,$H$36<=D$142),D152,0) -> 605.4404287 | E164: =IF(AND($H$36<=E$142,$H$36>E$140),E152,0) -> 0 | F164: =IF(AND($H$29<=F$142,$H$36>F$140),F152,0) -> 0 | G164: =IF(AND($H$36<=G$142,$H$36>G$140),G152,0) -> 0 | H164: 0 | I164: 0 | J164: 0 | K164: 0 | L164: 0 | M164: 0 | N164: 0 | O164: 0 | P164: 0 | Q164: 0 | R164: =IF($H$36>R142,R152,0) -> 0 | S164: =IF(AND($G$36=B164,$F$38=C164),SUM(D164:R164),0) -> 0
B165: N | C165: 4 | D165: =IF(AND($H$36>A$142,$H$36<=D$142),D164+(($F$38-C164)*D153),0) -> 320.7136435 | E165: =IF(AND($H$36<=E$142,$H$36>E$140),E152+(($F$38-$C164)*E153),0) -> 0 | F165: 0 | G165: 0 | H165: 0 | I165: 0 | J165: 0 | K165: 0 | L165: 0 | M165: 0 | N165: 0 | O165: 0 | P165: 0 | Q165: 0 | R165: =IF($H$36>R142,R152+(($F$38-$C164)*R153),0) -> 0 | S165: =IF(AND($G$36=B165,$F$38>=C165),SUM(D165:R165),0) -> 0
S168: =SUM(S155:S165)+IFERROR($F$30*SUM(D161:R161),0) -> 0

Sheet Version log (hidden)
A1: Rev No | B1: Date | C1: Update | D1: Comments
A2: 1.0.20 | C2: 2021 Q3 HEM data updated | D2: 2021 Q3 HEM data and ranges updated
A3: 1.0.20 | C3: Credit Card Calculation | D3: Credit card calculation update to only calculate excess above 20K
A4: 1.0.20 | B4: 2022-01-23 | C4: Self employed Abnormal Income | D4: Formula updated to dedcut from total
A5: 1.0.20 | B5: 2022-02-10 | C5: Locked Adults cells under Household Details | D5: Locked to force users to complete the Couple cell
A6: 1.0.21 | B6: 2022-02-15 | C6: 2021 Q4 HEM data updated | D6: 2021 Q4 HEM data and ranges updated
A7: 1.0.21 | B7: 2022-03-08 | C7: Introdcued default interest rate and term for existing commitments | D7: Only working in the background
A8: 1.0.21 | B8: 2022-05-11 | C8: Fixed formula for boarding/rental income | D8: Result Sheet M126:M131 referenced an incorrect cell
A9: 1.0.22 | B9: 2022-05-13 | C9: 2022 Q1 HEM data updated | D9: 2022 Q1 HEM data updated
A10: 1.0.22 | B10: 2022-05-19 | C10: Other commitments added to Exisiting Commitments formula
A11: 1.1.0 | B11: 2022-06-27 | C11: Updated HEM Calculation for BEN
A12: 1.1.1 | B12: 2022-08-08 | C12: Adjusted some formulas
A13: 1.1.1 | B13: 2022-08-16 | C13: 2022 Q2 HEM data uploaded | D13: NSR not showing when Household has not been assigned
A14: 1.1.2 | B14: 2022-11-16 | C14: 2022 Q3 HEM data updated | D14: 2022 Q3 HEM data updated
A15: 1.1.3 | B15: 2023-03-24 | C15: Updated HEM formula for income less than $24,000
A16: 1.1.4 | B16: 2023-06-14 | C16: 2023 Q1 HEM data updated | D16: 2023 Q1 HEM data updated

Sheet RK Use_Do not delete (hidden)
A1: Tax Payable | B1: =IF(OR(ISBLANK(M69)),"",IF(AND(M69>=0,M69<=18200),M69*'Tables '!$J$5,IF(AND(M69>=18201,M69<=45000),M69*'Tables '!$J$6,IF(AND(M69>=45001,M69<=120000),M69*'Tables '!$J$7,IF(AND(M69>=120001,M69<=180000),M69*'Tables '!$J$8,IF(AND(M69>=180001),M69*'Tables '!$J$9,""))))))
A2: Postcode | B2: =Postcode!I11
A3: Savings Buffer | B3: =IF(ISNUMBER(SEARCH("couple",'Calculator_HEM test'!M29)),'Calculator_HEM test'!V136/12,IF(ISNUMBER(SEARCH("couple",'Calculator_HEM test'!P29)),'Calculator_HEM test'!V136/12,IF(ISNUMBER(SEARCH("couple",'Calculator_HEM test'!S29)),'Calculator_HEM test'!V136/12,IF(ISNUMBER(SEARCH("couple",'Calculator_HEM test'!V29)),'Calculator_HEM test'!V136/12,0))))
A4: Savings Buffer | B4: =IF(K37=0,0, ( IF( ('Living Exp'!F46<('Living Exp'!F48)), ((('Calculator_HEM test'!V136*1)/12)/K37), IF( ('Living Exp'!F46>=('Living Exp'!F48+((('Calculator_HEM test'!V136*1)/12)/K37))),0, (('Living Exp'!F48+((('Calculator_HEM test'!V136*1)/12)/K37) - 'Living Exp'!F46)) ) ) *IF(ISBLANK('Calculator_HEM test'!M29),0,1) + IF( ('Living Exp'!H46<('Living Exp'!H48)), ((('Calculator_HEM test'!V136*1)/12)/K37), IF( ('Living Exp'!H46>=('Living Exp'!H48+((('Calculator_HEM test'!V136*1)/12)/K37))),0, (('Living Exp'!H48+((('Calculator_HEM test'!V136*1)/12)/K37) - 'Living Exp'!F46)) ) ) *IF(ISBLANK('Calculator_HEM test'!P29),0,1) + IF( ('Living Exp'!J46<('Living Exp'!J48)), ((('Calculator_HEM test'!V136*1)/12)/K37), IF( ('Living Exp'!J46>=('Living Exp'!J48+((('Calculator_HEM test'!V136*1)/12)/K37))),0, (('Living Exp'!J48+((('Calculator_HEM test'!V136*1)/12)/K37) - 'Living Exp'!J46)) ) ) * IF(ISBLANK('Calculator_HEM test'!S29),0,1) + IF( ('Living Exp'!L46<('Living Exp'!L48)), ((('Calculator_HEM test'!V136*1)/12)/K37), IF( ('Living Exp'!L46>=('Living Exp'!L48+((('Calculator_HEM test'!V136*1)/12)/K37))),0, (('Living Exp'!L48+((('Calculator_HEM test'!V136*1)/12)/K37) - 'Living Exp'!L46)) ) ) * IF(ISBLANK('Calculator_HEM test'!V29),0,1) ) )
A5: HEM | B5: =ROUNDUP(IF(OR(ISBLANK('Result Sheet'!B93)),"",(IF(AND('Result Sheet'!B93>=HEM_WIP!$D43,'Result Sheet'!B93<=HEM_WIP!$D45),SUMIF(HEM_WIP!$C46:$C56,'Calculator_HEM test'!M27,HEM_WIP!$D46:$D56),IF(AND('Result Sheet'!B93>=HEM_WIP!$E43,'Result Sheet'!B93<=HEM_WIP!$E45),SUMIF(HEM_WIP!$C46:$C56,'Calculator_HEM test'!M27,HEM_WIP!$E46:$E56),IF(AND('Result Sheet'!B93>=HEM_WIP!$F43,'Result Sheet'!B93<=HEM_WIP!$F45),SUMIF(HEM_WIP!$C46:$C56,'Calculator_HEM test'!M27,HEM_WIP!$F46:$F56),IF(AND('Result Sheet'!B93>=HEM_WIP!$G43,'Result Sheet'!B93<=HEM_WIP!$G45),SUMIF(HEM_WIP!$C46:$C56,'Calculator_HEM test'!M27,HEM_WIP!$G46:$G56),IF(AND('Result Sheet'!B93>=HEM_WIP!$H43,'Result Sheet'!B93<=HEM_WIP!$H45),SUMIF(HEM_WIP!$C46:$C56,'Calculator_HEM test'!M27,HEM_WIP!$H46:$H56),IF(AND('Result Sheet'!B93>=HEM_WIP!$I43,'Result Sheet'!B93<=HEM_WIP!$I45),SUMIF(HEM_WIP!$C46:$C56,'Calculator_HEM test'!M27,HEM_WIP!$I46:$I56),IF(AND('Result Sheet'!B93>=HEM_WIP!$J43,'Result Sheet'!B93<=HEM_WIP!$J45),SUMIF(HEM_WIP!$C46:$C56,'Calculator_HEM test'!M27,HEM_WIP!$J46:$J56),IF(AND('Result Sheet'!B93>=HEM_WIP!$K43,'Result Sheet'!B93<=HEM_WIP!$K45),SUMIF(HEM_WIP!$C46:$C56,'Calculator_HEM test'!M27,HEM_WIP!$K46:$K56),IF(AND('Result Sheet'!B93>=HEM_WIP!$L43,'Result Sheet'!B93<=HEM_WIP!$L45),SUMIF(HEM_WIP!$C46:$C56,'Calculator_HEM test'!M27,HEM_WIP!$L46:$L56),IF(AND('Result Sheet'!B93>=HEM_WIP!$M43,'Result Sheet'!B93<=HEM_WIP!$M45),SUMIF(HEM_WIP!$C46:$C56,'Calculator_HEM test'!M27,HEM_WIP!$M46:$M56),IF(AND('Result Sheet'!B93>=HEM_WIP!$N43,'Result Sheet'!B93<=HEM_WIP!$N45),SUMIF(HEM_WIP!$C46:$C56,'Calculator_HEM test'!M27,HEM_WIP!$N46:$N56),IF(AND('Result Sheet'!B93>=HEM_WIP!$O43,'Result Sheet'!B93<=HEM_WIP!$O45),SUMIF(HEM_WIP!$C46:$C56,'Calculator_HEM test'!M27,HEM_WIP!$O46:$O56),IF(AND('Result Sheet'!B93>=HEM_WIP!$P43,'Result Sheet'!B93<=HEM_WIP!$P45),SUMIF(HEM_WIP!$C46:$C56,'Calculator_HEM test'!M27,HEM_WIP!$P46:$P56),IF(AND('Result Sheet'!B93>=HEM_WIP!$Q43,'Result Sheet'!B93<=HEM_WIP!$Q45),SUMIF(HEM_WIP!$C46:$C56,'Calculator_HEM test'!M27,HEM_WIP!$Q46:$Q56),IF(AND('Result Sheet'!B93>=HEM_WIP!$R45,),SUMIF(HEM_WIP!$C46:$C56,'Calculator_HEM test'!M27,HEM_WIP!$R46:$R56),"")))))))))))))))))*52/12,0)
A6: Savings Buffer v2 | B6: =IF(AND('Calculator_HEM test'!M31=1,'Calculator_HEM test'!M27="YES"),IF(AND('Calculator_HEM test'!P31=1,'Calculator_HEM test'!P27="YES"),IF(AND('Calculator_HEM test'!S31=1,'Calculator_HEM test'!S27="YES"),IF(AND('Calculator_HEM test'!V31=1,'Calculator_HEM test'!V27="YES"),1,0))))
A7: IO | B7: =IF(C110=2,IPMT(E110/12,1,12,-Calculator!$M$11)+PMT(E110/12,(Calculator!$P$11-12),-Calculator!$M$11),0)
